Workbook

Sheet Accueil
B2: Saison du Championnat : | D2: 2023 - 2024 | H2: Championnat de France de Rugby à 15 - Nationale | U2: =IF($H$2="","",IF($H$2="Choix du Championnat de Rugby","","Nous sommes le "&TEXT(TODAY(),"jjjj jj mmmm aaaa"))) -> Nous sommes le dimanche 10 décembre 2023
B4: =IF($B$2="","",IF($D$2="","",IF($D$2="Choix de la saison","","Date du début du Championnat"))) -> Date du début du Championnat | T4: =IF(AF4="","",IF(AF4>3,"",IF(AF4<-3,"",IF(AF4<-3,"",IF(AF4>3,"",IF(AF4>3,"P",IF(AF4<-3,"P",IF(AF4<=3,"P",IF(AF4<=3,"P",IF(AF4<=3,"P")))))))))) ->  | U4: =IF($B$2="","",IF($D$2="","",IF($D$2="Choix de la saison","","Date de la fin du Championnat"))) -> Date de la fin du Championnat | AF4: =IF(N4=0,"",IF(N4="","",N4-AG4)) ->  | AG4: =NOW() -> 2023-12-10T23:19:37.230
B6: 2023-08-25 | M6: =IF($U$2="","",IF(N6=0,"",IF(N6="","",_xlfn.XLOOKUP(N6,Suivi!DH2:DH31,Suivi!DI2:DI31)))) ->  | T6: =IF(AF6="","",IF(AF6>3,"",IF(AF6<-3,"",IF(AF6<-3,"",IF(AF6>3,"",IF(AF6>3,"P",IF(AF6<-3,"P",IF(AF6<=3,"P",IF(AF6<=3,"P",IF(AF6<=3,"P")))))))))) ->  | U6: 2024-04-27 | AF6: =IF(N6=0,"",IF(N6="","",N6-AG6)) ->  | AG6: =NOW() -> 2023-12-10T23:19:37.230
G8: =IF($U$2="","",IF(N8=0,"",IF(N8="","","Tableau final : niveau, date et heure du prochain match à jouer :"))) ->  | M8: =IF($U$2="","",IF(N8=0,"",IF(N8="","",_xlfn.XLOOKUP(N8,'Tableau Final'!BC3:BC7,'Tableau Final'!BD3:BD7)))) ->  | N8: =IF($U$2="","",MIN('Tableau Final'!BC3:BC7)) -> 00:00:00 | T8: =IF(AF8="","",IF(AF8>3,"",IF(AF8<-3,"",IF(AF8<-3,"",IF(AF8>3,"",IF(AF8>3,"P",IF(AF8<-3,"P",IF(AF8<=3,"P",IF(AF8<=3,"P",IF(AF8<=3,"P")))))))))) ->  | AF8: =IF(N8=0,"",IF(N8="","",N8-AG8)) ->  | AG8: =NOW() -> 2023-12-10T23:19:37.230
G10: =IF($U$2="","",IF(N10=0,"",IF(N10="","","Tableau final : niveau, date et heure du dernier match programmé :"))) ->  | M10: =IF($U$2="","",IF(N10=0,"",IF(N10="","",_xlfn.XLOOKUP(N10,'Tableau Final'!BC3:BC7,'Tableau Final'!BD3:BD7)))) ->  | N10: =IF($U$2="","",MAX('Tableau Final'!BC3:BC7)) -> 00:00:00 | T10: =IF(AF10="","",IF(AF10>3,"",IF(AF10<-3,"",IF(AF10<-3,"",IF(AF10>3,"",IF(AF10>3,"P",IF(AF10<-3,"P",IF(AF10<=3,"P",IF(AF10<=3,"P",IF(AF10<=3,"P")))))))))) ->  | AF10: =IF(N10=0,"",IF(N10="","",N10-AG10)) ->  | AG10: =NOW() -> 2023-12-10T23:19:37.230
K22: =IF($U$2="","",IF($B$6="","",IF($U$6="","",IF('J01'!$Y$20="","",IF(Suivi!$O$16>0,"Championnat en cours",IF(Suivi!$O$16=0,"Saison régulière terminée")))))) -> Championnat en cours
K24: =IF('Tableau Final'!C3="","",IF(COUNTBLANK('Tableau Final'!AZ1:AZ5)>=1,"Tableau final en cours","Championnat terminé")) -> 
G26: Match à rejouer | H26: Match annulé | I26: Match arrêté | J26: Match avec réserves | K26: Match reporté | L26: Match reprogrammé | N26: Equipe exclue | O26: Forfait gagnant | P26: Forfait général | Q26: Forfait perdant | R26: Gagné sur tapis vert | S26: Perdu sur tapis vert
G27: =IF(G28="","",IF(COUNTA(G28:G507)<=1,"Match à rejouer","Matchs à rejouer")) ->  | H27: =IF(H28="","",IF(COUNTA(H28:H507)<=1,"Match annulé","Matchs annulés")) ->  | I27: =IF(I28="","",IF(COUNTA(I28:I507)<=1,"Match arrêté","Matchs arrêtés")) ->  | J27: =IF(J28="","",IF(COUNTA(J28:J507)<=1,"Match avec réserves","Matchs avec réserves")) -> Match avec réserves | K27: =IF(K28="","",IF(COUNTA(K28:K507)<=1,"Match reporté","Matchs reportés")) ->  | L27: =IF(L28="","",IF(COUNTA(L28:L507)<=1,"Match reprogrammé","Matchs reprogrammés")) ->  | N27: =IF(N28="","",IF(COUNTA(N28:N507)<=1,"Equipe exclue","Equipes exclues")) ->  | O27: =IF(O28="","",IF(COUNTA(O28:O507)<=1,"Forfait gagnant","Forfaits gagnants")) ->  | P27: =IF(P28="","",IF(COUNTA(P28:P507)<=1,"Forfait général","Forfaits généraux")) ->  | Q27: =IF(Q28="","",IF(COUNTA(Q28:Q507)<=1,"Forfait perdant","Forfaits perdants")) ->  | R27: =IF(R28="","",IF(COUNTA(R28:R507)<=1,"Gagné sur tapis vert","Gagnés sur tapis vert")) ->  | S27: =IF(S28="","",IF(COUNTA(S28:S507)<=1,"Perdu sur tapis vert","Perdus sur tapis vert")) -> 
G28: =_xlfn._xlws.FILTER(Données!$J$2:$J$241,Données!$I$2:$I$241=Accueil!G26,"") ->  | H28: =_xlfn._xlws.FILTER(Données!$J$2:$J$241,Données!$I$2:$I$241=Accueil!H26,"") ->  | I28: =_xlfn._xlws.FILTER(Données!$J$2:$J$241,Données!$I$2:$I$241=Accueil!I26,"") ->  | J28: =_xlfn._xlws.FILTER(Données!$J$2:$J$241,Données!$I$2:$I$241=Accueil!J26,"") -> Journée 12 | K28: =_xlfn._xlws.FILTER(Données!$J$2:$J$241,Données!$I$2:$I$241=Accueil!K26,"") ->  | L28: =_xlfn._xlws.FILTER(Données!$J$2:$J$241,Données!$I$2:$I$241=Accueil!L26,"") ->  | N28: =_xlfn._xlws.FILTER(Données!$L$2:$L$481,Données!$K$2:$K$481=Accueil!N26,"") ->  | O28: =_xlfn._xlws.FILTER(Données!$L$2:$L$481,Données!$K$2:$K$481=Accueil!O26,"") ->  | P28: =_xlfn._xlws.FILTER(Données!$L$2:$L$481,Données!$K$2:$K$481=Accueil!P26,"") ->  | Q28: =_xlfn._xlws.FILTER(Données!$L$2:$L$481,Données!$K$2:$K$481=Accueil!Q26,"") ->  | R28: =_xlfn._xlws.FILTER(Données!$L$2:$L$481,Données!$K$2:$K$481=Accueil!R26,"") ->  | S28: =_xlfn._xlws.FILTER(Données!$L$2:$L$481,Données!$K$2:$K$481=Accueil!S26,"") -> 

Sheet Equipes
C1: Equipes du Championnat
C2: Albi
C3: Blagnac
C4: Bourg-en-Bresse
C5: Bourgoin-Jallieu
C6: Carcassonne
C7: Chambéry
C8: Hyères | M8: =IF(Accueil!$U$2="","",Accueil!$U$2) -> Nous sommes le dimanche 10 décembre 2023
C9: Massy
C10: Narbonne
C11: Nice
C12: Périgueux
C13: Suresnes
C14: Tarbes
C15: Vienne
M16: =IF(Accueil!$H$2="","",IF(Accueil!$H$2="Choix du Championnat de Rugby","",Accueil!$H$2)) -> Championnat de France de Rugby à 15 - Nationale
O18: =IF(Accueil!$B$2="","",IF(Accueil!$D$2="","",IF(Accueil!$D$2="Choix de la saison","",_xlfn.CONCAT(Accueil!$B$2," ",Accueil!$D$2)))) -> Saison du Championnat : 2023 - 2024
M20: =IF(Accueil!$D$2="","",IF(Accueil!$D$2="Choix de la saison","",IF(Accueil!$B$4="","",IF(Accueil!$B$6="","",_xlfn.CONCAT(Accueil!$B$4," : ",TEXT(Accueil!$B$6,"jjjj jj mmmm aaaa")))))) -> Date du début du Championnat : vendredi 25 août 2023
M22: =IF(Accueil!$D$2="","",IF(Accueil!$D$2="Choix de la saison","",IF(Accueil!$U$4="","",IF(Accueil!$U$6="","",_xlfn.CONCAT(Accueil!$U$4," : ",TEXT(Accueil!$U$6,"jjjj jj mmmm aaaa")))))) -> Date de la fin du Championnat : samedi 27 avril 2024

Sheet Suivi
A1: Journées "Aller" | B1: Matchs inscrits ou non-inscrits | C1: Dates complètes ou incomplètes | D1: Horaires complets ou incomplets | E1: Résultats complets ou incomplets | F1: Dates et heures du déroulement de chaque journée | G1: =IF(SUM(G2:G14)>1,"Matchs restant à jouer",IF(SUM(G2:G14)=1,"Match restant à jouer","Tous les matchs sont joués")) -> Tous les matchs sont joués | I1: Journées "Retour" | J1: Matchs inscrits ou non-inscrits | K1: Dates complètes ou incomplètes | L1: Horaires complets ou incomplets | M1: Résultats complets ou incomplets | N1: Dates et heures du déroulement de chaque journée | O1: =IF(SUM(O2:O14)>1,"Matchs restant à jouer",IF(SUM(O2:O14)=1,"Match restant à jouer","Tous les matchs sont joués")) -> Matchs restant à jouer | AY1: Journées | AZ1: Dates et heures du début de chaque journée | BB1: Journées | BC1: Dates et heures de la fin de chaque journée | BE1: Journées | BF1: Dates et heures du prochain match | BH1: Journées | BI1: Dates et heures du dernier match | BK1: Etats | BM1: Nombre de matchs | CG1: =TODAY() -> 2023-12-10 | CH1: =NOW() -> 2023-12-10T23:19:37.230 | CI1: Dates et heures de début | CJ1: Dates et heures de fin | CK1: Journées | CS1: Plus petites journées | CT1: Plus grandes journées | CV1: Plus petites journées | CW1: Plus grandes journées | CX1: Journées | DE1: Dates et heures du prochain match | DF1: Journées | DH1: Dates et heures du dernier match | DI1: Journées | DK1: Journées | DL1: du | DM1: Début de la journée | DN1: au | DO1: Fin de la journée
A2: =IF(CS2="","",IF(CT2="","",IF(AND(CS2>3,CT2>3),"J01",IF(AND(CS2<-3,CT2>3),"J01",IF(AND(CS2<-3,CT2<-3),"J01",IF(AND(CS2>3,CT2<-3),"J01",IF(AND(CS2>3,CT2<=3),"J01*",IF(AND(CS2<-3,CT2<=3),"J01*",IF(AND(CS2<=3,CT2>3),"J01*",IF(AND(CS2<=3,CT2<=3),"J01*",IF(AND(CS2<=3,CT2<-3),"J01*"))))))))))) ->  | B2: =IF(COUNTA('J01'!$C$3:$C$9)+COUNTA('J01'!$L$3:$L$9)<14,"Matchs non-inscrits","Matchs inscrits") -> Matchs inscrits | C2: =IF(COUNTA('J01'!$O$3:$O$9)<7,"Dates incomplètes","Dates complètes") -> Dates complètes | D2: =IF(COUNTA('J01'!$P$3:$P$9)<7,"Horaires incomplets","Horaires complets") -> Horaires complets | E2: =IF(SUM('J01'!$FT$3:$FU$9)="","Résultats incomplets",IF(SUM('J01'!$FT$3:$FU$9)<14,"Résultats incomplets","Résultats complets")) -> Résultats complets | F2: =IF(DM2="","",IF(DO2="","",_xlfn.CONCAT(DL2," ",TEXT(DM2,"jjjj jj mmmm aaaa - hh""h"":mm")," ",DN2," ",TEXT(DO2,"jjjj jj mmmm aaaa - hh""h"":mm")))) ->  | G2: =COUNTBLANK('J01'!$HC$3:$HD$9)/2 -> 0 | I2: =IF(CS15="","",IF(CT15="","",IF(AND(CS15>3,CT15>3),"J14",IF(AND(CS15<-3,CT15>3),"J14",IF(AND(CS15<-3,CT15<-3),"J14",IF(AND(CS15>3,CT15<-3),"J14",IF(AND(CS15>3,CT15<=3),"J14*",IF(AND(CS15<-3,CT15<=3),"J14*",IF(AND(CS15<=3,CT15>3),"J14*",IF(AND(CS15<=3,CT15<=3),"J14*",IF(AND(CS15<=3,CT15<-3),"J14*"))))))))))) ->  | J2: =IF(COUNTA('J14'!$C$3:$C$9)+COUNTA('J14'!$L$3:$L$9)<14,"Matchs non-inscrits","Matchs inscrits") -> Matchs inscrits | K2: =IF(COUNTA('J14'!$O$3:$O$9)<7,"Dates incomplètes","Dates complètes") -> Dates complètes | L2: =IF(COUNTA('J14'!$P$3:$P$9)<7,"Horaires incomplets","Horaires complets") -> Horaires complets | M2: =IF(SUM('J14'!$FT$3:$FU$9)="","Résultats incomplets",IF(SUM('J14'!$FT$3:$FU$9)<14,"Résultats incomplets","Résultats complets")) -> Résultats incomplets | N2: =IF(DM15="","",IF(DO15="","",_xlfn.CONCAT(DL15," ",TEXT(DM15,"jjjj jj mmmm aaaa - hh""h"":mm")," ",DN15," ",TEXT(DO15,"jjjj jj mmmm aaaa - hh""h"":mm")))) ->  | O2: =COUNTBLANK('J14'!$HC$3:$HD$9)/2 -> 7 | AY2: J01 | AZ2: =IF('J01'!$GX$3=0,"",IF('J01'!$GX$3="","",'J01'!$GX$3)) ->  | BB2: J01 | BC2: =IF('J01'!$GX$9=0,"",IF('J01'!$GX$9="","",'J01'!$GX$9)) ->  | BE2: J01 | BF2: =IF('J01'!$GZ$3=0,"",IF('J01'!$GZ$3="","",'J01'!$GZ$3)) ->  | BH2: J01 | BI2: =IF('J01'!$HA$3=0,"",IF('J01'!$HA$3="","",'J01'!$HA$3)) ->  | BK2: =IF(B2="Matchs inscrits",1)+IF(C2="Dates complètes",1)+IF(D2="Horaires complets",1)+IF(E2="Résultats complets",1) -> 4 | BM2: =G2 -> 0 | CI2: =IF(AZ2=0,"",IF(AZ2="","",AZ2)) ->  | CJ2: =IF(BC2=0,"",IF(BC2="","",BC2)) ->  | CK2: Journée 01 | CS2: =IF(CV2="","",CV2-$CH$1) ->  | CT2: =IF(CW2="","",CW2-$CH$1) ->  | CV2: =IF('J01'!$GX$3="","",SMALL('J01'!$GX$3:$GX$9,1)) ->  | CW2: =IF('J01'!$GX$3="","",LARGE('J01'!$GX$3:$GX$9,1)) ->  | CX2: Journée 01 | DE2: =IF(BF2=0,"",IF(BF2="","",BF2)) ->  | DF2: Journée 01 | DH2: =IF(BI2=0,"",IF(BI2="","",BI2)) ->  | DI2: Journée 01 | DK2: J01 | DL2: du | DM2: =IF('J01'!$GX$3="","",IF(COUNTA('J01'!$GX$3:$GX$9)<7,"",MIN('J01'!$GX$3:$GX$9))) ->  | DN2: au | DO2: =IF('J01'!$GX$3="","",IF(COUNTA('J01'!$GX$3:$GX$9)<7,"",MAX('J01'!$GX$3:$GX$9))) -> 
A3: =IF(CS3="","",IF(CT3="","",IF(AND(CS3>3,CT3>3),"J02",IF(AND(CS3<-3,CT3>3),"J02",IF(AND(CS3<-3,CT3<-3),"J02",IF(AND(CS3>3,CT3<-3),"J02",IF(AND(CS3>3,CT3<=3),"J02*",IF(AND(CS3<-3,CT3<=3),"J02*",IF(AND(CS3<=3,CT3>3),"J02*",IF(AND(CS3<=3,CT3<=3),"J02*",IF(AND(CS3<=3,CT3<-3),"J02*"))))))))))) ->  | B3: =IF(COUNTA('J02'!$C$3:$C$9)+COUNTA('J02'!$L$3:$L$9)<14,"Matchs non-inscrits","Matchs inscrits") -> Matchs inscrits | C3: =IF(COUNTA('J02'!$O$3:$O$9)<7,"Dates incomplètes","Dates complètes") -> Dates complètes | D3: =IF(COUNTA('J02'!$P$3:$P$9)<7,"Horaires incomplets","Horaires complets") -> Horaires complets | E3: =IF(SUM('J02'!$FT$3:$FU$9)="","Résultats incomplets",IF(SUM('J02'!$FT$3:$FU$9)<14,"Résultats incomplets","Résultats complets")) -> Résultats complets | F3: =IF(DM3="","",IF(DO3="","",_xlfn.CONCAT(DL3," ",TEXT(DM3,"jjjj jj mmmm aaaa - hh""h"":mm")," ",DN3," ",TEXT(DO3,"jjjj jj mmmm aaaa - hh""h"":mm")))) ->  | G3: =COUNTBLANK('J02'!$HC$3:$HD$9)/2 -> 0 | I3: =IF(CS16="","",IF(CT16="","",IF(AND(CS16>3,CT16>3),"J15",IF(AND(CS16<-3,CT16>3),"J15",IF(AND(CS16<-3,CT16<-3),"J15",IF(AND(CS16>3,CT16<-3),"J15",IF(AND(CS16>3,CT16<=3),"J15*",IF(AND(CS16<-3,CT16<=3),"J15*",IF(AND(CS16<=3,CT16>3),"J15*",IF(AND(CS16<=3,CT16<=3),"J15*",IF(AND(CS16<=3,CT16<-3),"J15*"))))))))))) ->  | J3: =IF(COUNTA('J15'!$C$3:$C$9)+COUNTA('J15'!$L$3:$L$9)<14,"Matchs non-inscrits","Matchs inscrits") -> Matchs inscrits | K3: =IF(COUNTA('J15'!$O$3:$O$9)<7,"Dates incomplètes","Dates complètes") -> Dates complètes | L3: =IF(COUNTA('J15'!$P$3:$P$9)<7,"Horaires incomplets","Horaires complets") -> Horaires complets | M3: =IF(SUM('J15'!$FT$3:$FU$9)="","Résultats incomplets",IF(SUM('J15'!$FT$3:$FU$9)<14,"Résultats incomplets","Résultats complets")) -> Résultats incomplets | O3: =COUNTBLANK('J15'!$HC$3:$HD$9)/2 -> 7 | AY3: J02 | AZ3: =IF('J02'!$GX$3=0,"",IF('J02'!$GX$3="","",'J02'!$GX$3)) ->  | BB3: J02 | BC3: =IF('J02'!$GX$9=0,"",IF('J02'!$GX$9="","",'J02'!$GX$9)) ->  | BE3: J02 | BF3: =IF('J02'!$GZ$3=0,"",IF('J02'!$GZ$3="","",'J02'!$GZ$3)) ->  | BH3: J02 | BI3: =IF('J02'!$HA$3=0,"",IF('J02'!$HA$3="","",'J02'!$HA$3)) ->  | BK3: =IF(B3="Matchs inscrits",1)+IF(C3="Dates complètes",1)+IF(D3="Horaires complets",1)+IF(E3="Résultats complets",1) -> 4 | BM3: =G3 -> 0 | CI3: =IF(AZ3=0,"",IF(AZ3="","",AZ3)) ->  | CJ3: =IF(BC3=0,"",IF(BC3="","",BC3)) ->  | CK3: Journée 02 | CS3: =IF(CV3="","",CV3-$CH$1) ->  | CT3: =IF(CW3="","",CW3-$CH$1) ->  | CV3: =IF('J02'!$GX$3="","",SMALL('J02'!$GX$3:$GX$9,1)) ->  | CW3: =IF('J02'!$GX$3="","",LARGE('J02'!$GX$3:$GX$9,1)) ->  | CX3: Journée 02 | DE3: =IF(BF3=0,"",IF(BF3="","",BF3)) ->  | DF3: Journée 02 | DH3: =IF(BI3=0,"",IF(BI3="","",BI3)) ->  | DI3: Journée 02 | DK3: J02 | DL3: du | DM3: =IF('J02'!$GX$3="","",IF(COUNTA('J02'!$GX$3:$GX$9)<7,"",MIN('J02'!$GX$3:$GX$9))) ->  | DN3: au | DO3: =IF('J02'!$GX$3="","",IF(COUNTA('J02'!$GX$3:$GX$9)<7,"",MAX('J02'!$GX$3:$GX$9))) -> 
A4: =IF(CS4="","",IF(CT4="","",IF(AND(CS4>3,CT4>3),"J03",IF(AND(CS4<-3,CT4>3),"J03",IF(AND(CS4<-3,CT4<-3),"J03",IF(AND(CS4>3,CT4<-3),"J03",IF(AND(CS4>3,CT4<=3),"J03*",IF(AND(CS4<-3,CT4<=3),"J03*",IF(AND(CS4<=3,CT4>3),"J03*",IF(AND(CS4<=3,CT4<=3),"J03*",IF(AND(CS4<=3,CT4<-3),"J03*"))))))))))) ->  | B4: =IF(COUNTA('J03'!$C$3:$C$9)+COUNTA('J03'!$L$3:$L$9)<14,"Matchs non-inscrits","Matchs inscrits") -> Matchs inscrits | C4: =IF(COUNTA('J03'!$O$3:$O$9)<7,"Dates incomplètes","Dates complètes") -> Dates complètes | D4: =IF(COUNTA('J03'!$P$3:$P$9)<7,"Horaires incomplets","Horaires complets") -> Horaires complets | E4: =IF(SUM('J03'!$FT$3:$FU$9)="","Résultats incomplets",IF(SUM('J03'!$FT$3:$FU$9)<14,"Résultats incomplets","Résultats complets")) -> Résultats complets | G4: =COUNTBLANK('J03'!$HC$3:$HD$9)/2 -> 0 | I4: =IF(CS17="","",IF(CT17="","",IF(AND(CS17>3,CT17>3),"J16",IF(AND(CS17<-3,CT17>3),"J16",IF(AND(CS17<-3,CT17<-3),"J16",IF(AND(CS17>3,CT17<-3),"J16",IF(AND(CS17>3,CT17<=3),"J16*",IF(AND(CS17<-3,CT17<=3),"J16*",IF(AND(CS17<=3,CT17>3),"J16*",IF(AND(CS17<=3,CT17<=3),"J16*",IF(AND(CS17<=3,CT17<-3),"J16*"))))))))))) ->  | J4: =IF(COUNTA('J16'!$C$3:$C$9)+COUNTA('J16'!$L$3:$L$9)<14,"Matchs non-inscrits","Matchs inscrits") -> Matchs inscrits | K4: =IF(COUNTA('J16'!$O$3:$O$9)<7,"Dates incomplètes","Dates complètes") -> Dates complètes | L4: =IF(COUNTA('J16'!$P$3:$P$9)<7,"Horaires incomplets","Horaires complets") -> Horaires complets | M4: =IF(SUM('J16'!$FT$3:$FU$9)="","Résultats incomplets",IF(SUM('J16'!$FT$3:$FU$9)<14,"Résultats incomplets","Résultats complets")) -> Résultats incomplets | O4: =COUNTBLANK('J16'!$HC$3:$HD$9)/2 -> 7 | AY4: J03 | AZ4: =IF('J03'!$GX$3=0,"",IF('J03'!$GX$3="","",'J03'!$GX$3)) ->  | BB4: J03 | BC4: =IF('J03'!$GX$9=0,"",IF('J03'!$GX$9="","",'J03'!$GX$9)) ->  | BE4: J03 | BF4: =IF('J03'!$GZ$3=0,"",IF('J03'!$GZ$3="","",'J03'!$GZ$3)) ->  | BH4: J03 | BI4: =IF('J03'!$HA$3=0,"",IF('J03'!$HA$3="","",'J03'!$HA$3)) ->  | BK4: 4 | BM4: 0 | CK4: Journée 03 | CV4: =IF('J03'!$GX$3="","",SMALL('J03'!$GX$3:$GX$9,1)) ->  | CW4: =IF('J03'!$GX$3="","",LARGE('J03'!$GX$3:$GX$9,1)) ->  | CX4: Journée 03 | DF4: Journée 03 | DI4: Journée 03 | DK4: J03 | DL4: du | DM4: =IF('J03'!$GX$3="","",IF(COUNTA('J03'!$GX$3:$GX$9)<7,"",MIN('J03'!$GX$3:$GX$9))) ->  | DN4: au | DO4: =IF('J03'!$GX$3="","",IF(COUNTA('J03'!$GX$3:$GX$9)<7,"",MAX('J03'!$GX$3:$GX$9))) -> 
A5: =IF(CS5="","",IF(CT5="","",IF(AND(CS5>3,CT5>3),"J04",IF(AND(CS5<-3,CT5>3),"J04",IF(AND(CS5<-3,CT5<-3),"J04",IF(AND(CS5>3,CT5<-3),"J04",IF(AND(CS5>3,CT5<=3),"J04*",IF(AND(CS5<-3,CT5<=3),"J04*",IF(AND(CS5<=3,CT5>3),"J04*",IF(AND(CS5<=3,CT5<=3),"J04*",IF(AND(CS5<=3,CT5<-3),"J04*"))))))))))) ->  | B5: =IF(COUNTA('J04'!$C$3:$C$9)+COUNTA('J04'!$L$3:$L$9)<14,"Matchs non-inscrits","Matchs inscrits") -> Matchs inscrits | C5: =IF(COUNTA('J04'!$O$3:$O$9)<7,"Dates incomplètes","Dates complètes") -> Dates complètes | D5: =IF(COUNTA('J04'!$P$3:$P$9)<7,"Horaires incomplets","Horaires complets") -> Horaires complets | E5: =IF(SUM('J04'!$FT$3:$FU$9)="","Résultats incomplets",IF(SUM('J04'!$FT$3:$FU$9)<14,"Résultats incomplets","Résultats complets")) -> Résultats complets | G5: =COUNTBLANK('J04'!$HC$3:$HD$9)/2 -> 0 | I5: =IF(CS18="","",IF(CT18="","",IF(AND(CS18>3,CT18>3),"J17",IF(AND(CS18<-3,CT18>3),"J17",IF(AND(CS18<-3,CT18<-3),"J17",IF(AND(CS18>3,CT18<-3),"J17",IF(AND(CS18>3,CT18<=3),"J17*",IF(AND(CS18<-3,CT18<=3),"J17*",IF(AND(CS18<=3,CT18>3),"J17*",IF(AND(CS18<=3,CT18<=3),"J17*",IF(AND(CS18<=3,CT18<-3),"J17*"))))))))))) ->  | J5: =IF(COUNTA('J17'!$C$3:$C$9)+COUNTA('J17'!$L$3:$L$9)<14,"Matchs non-inscrits","Matchs inscrits") -> Matchs inscrits | K5: =IF(COUNTA('J17'!$O$3:$O$9)<7,"Dates incomplètes","Dates complètes") -> Dates complètes | L5: =IF(COUNTA('J17'!$P$3:$P$9)<7,"Horaires incomplets","Horaires complets") -> Horaires complets | M5: =IF(SUM('J17'!$FT$3:$FU$9)="","Résultats incomplets",IF(SUM('J17'!$FT$3:$FU$9)<14,"Résultats incomplets","Résultats complets")) -> Résultats incomplets | O5: =COUNTBLANK('J17'!$HC$3:$HD$9)/2 -> 7 | AY5: J04 | AZ5: =IF('J04'!$GX$3=0,"",IF('J04'!$GX$3="","",'J04'!$GX$3)) ->  | BB5: J04 | BC5: =IF('J04'!$GX$9=0,"",IF('J04'!$GX$9="","",'J04'!$GX$9)) ->  | BE5: J04 | BF5: =IF('J04'!$GZ$3=0,"",IF('J04'!$GZ$3="","",'J04'!$GZ$3)) ->  | BH5: J04 | BI5: =IF('J04'!$HA$3=0,"",IF('J04'!$HA$3="","",'J04'!$HA$3)) ->  | BK5: 4 | BM5: 0 | CK5: Journée 04 | CV5: =IF('J04'!$GX$3="","",SMALL('J04'!$GX$3:$GX$9,1)) ->  | CW5: =IF('J04'!$GX$3="","",LARGE('J04'!$GX$3:$GX$9,1)) ->  | CX5: Journée 04 | DF5: Journée 04 | DI5: Journée 04 | DK5: J04 | DL5: du | DM5: =IF('J04'!$GX$3="","",IF(COUNTA('J04'!$GX$3:$GX$9)<7,"",MIN('J04'!$GX$3:$GX$9))) ->  | DN5: au | DO5: =IF('J04'!$GX$3="","",IF(COUNTA('J04'!$GX$3:$GX$9)<7,"",MAX('J04'!$GX$3:$GX$9))) -> 
A6: =IF(CS6="","",IF(CT6="","",IF(AND(CS6>3,CT6>3),"J05",IF(AND(CS6<-3,CT6>3),"J05",IF(AND(CS6<-3,CT6<-3),"J05",IF(AND(CS6>3,CT6<-3),"J05",IF(AND(CS6>3,CT6<=3),"J05*",IF(AND(CS6<-3,CT6<=3),"J05*",IF(AND(CS6<=3,CT6>3),"J05*",IF(AND(CS6<=3,CT6<=3),"J05*",IF(AND(CS6<=3,CT6<-3),"J05*"))))))))))) ->  | B6: =IF(COUNTA('J05'!$C$3:$C$9)+COUNTA('J05'!$L$3:$L$9)<14,"Matchs non-inscrits","Matchs inscrits") -> Matchs inscrits | C6: =IF(COUNTA('J05'!$O$3:$O$9)<7,"Dates incomplètes","Dates complètes") -> Dates complètes | D6: =IF(COUNTA('J05'!$P$3:$P$9)<7,"Horaires incomplets","Horaires complets") -> Horaires complets | E6: =IF(SUM('J05'!$FT$3:$FU$9)="","Résultats incomplets",IF(SUM('J05'!$FT$3:$FU$9)<14,"Résultats incomplets","Résultats complets")) -> Résultats complets | G6: =COUNTBLANK('J05'!$HC$3:$HD$9)/2 -> 0 | I6: =IF(CS19="","",IF(CT19="","",IF(AND(CS19>3,CT19>3),"J18",IF(AND(CS19<-3,CT19>3),"J18",IF(AND(CS19<-3,CT19<-3),"J18",IF(AND(CS19>3,CT19<-3),"J18",IF(AND(CS19>3,CT19<=3),"J18*",IF(AND(CS19<-3,CT19<=3),"J18*",IF(AND(CS19<=3,CT19>3),"J18*",IF(AND(CS19<=3,CT19<=3),"J18*",IF(AND(CS19<=3,CT19<-3),"J18*"))))))))))) ->  | J6: =IF(COUNTA('J18'!$C$3:$C$9)+COUNTA('J18'!$L$3:$L$9)<14,"Matchs non-inscrits","Matchs inscrits") -> Matchs inscrits | K6: =IF(COUNTA('J18'!$O$3:$O$9)<7,"Dates incomplètes","Dates complètes") -> Dates complètes | L6: =IF(COUNTA('J18'!$P$3:$P$9)<7,"Horaires incomplets","Horaires complets") -> Horaires complets | M6: =IF(SUM('J18'!$FT$3:$FU$9)="","Résultats incomplets",IF(SUM('J18'!$FT$3:$FU$9)<14,"Résultats incomplets","Résultats complets")) -> Résultats incomplets | O6: =COUNTBLANK('J18'!$HC$3:$HD$9)/2 -> 7 | AY6: J05 | AZ6: =IF('J05'!$GX$3=0,"",IF('J05'!$GX$3="","",'J05'!$GX$3)) ->  | BB6: J05 | BC6: =IF('J05'!$GX$9=0,"",IF('J05'!$GX$9="","",'J05'!$GX$9)) ->  | BE6: J05 | BF6: =IF('J05'!$GZ$3=0,"",IF('J05'!$GZ$3="","",'J05'!$GZ$3)) ->  | BH6: J05 | BI6: =IF('J05'!$HA$3=0,"",IF('J05'!$HA$3="","",'J05'!$HA$3)) ->  | BK6: 4 | BM6: 0 | CK6: Journée 05 | CV6: =IF('J05'!$GX$3="","",SMALL('J05'!$GX$3:$GX$9,1)) ->  | CW6: =IF('J05'!$GX$3="","",LARGE('J05'!$GX$3:$GX$9,1)) ->  | CX6: Journée 05 | DF6: Journée 05 | DI6: Journée 05 | DK6: J05 | DL6: du | DM6: =IF('J05'!$GX$3="","",IF(COUNTA('J05'!$GX$3:$GX$9)<7,"",MIN('J05'!$GX$3:$GX$9))) ->  | DN6: au | DO6: =IF('J05'!$GX$3="","",IF(COUNTA('J05'!$GX$3:$GX$9)<7,"",MAX('J05'!$GX$3:$GX$9))) -> 
A7: =IF(CS7="","",IF(CT7="","",IF(AND(CS7>3,CT7>3),"J06",IF(AND(CS7<-3,CT7>3),"J06",IF(AND(CS7<-3,CT7<-3),"J06",IF(AND(CS7>3,CT7<-3),"J06",IF(AND(CS7>3,CT7<=3),"J06*",IF(AND(CS7<-3,CT7<=3),"J06*",IF(AND(CS7<=3,CT7>3),"J06*",IF(AND(CS7<=3,CT7<=3),"J06*",IF(AND(CS7<=3,CT7<-3),"J06*"))))))))))) ->  | B7: =IF(COUNTA('J06'!$C$3:$C$9)+COUNTA('J06'!$L$3:$L$9)<14,"Matchs non-inscrits","Matchs inscrits") -> Matchs inscrits | C7: =IF(COUNTA('J06'!$O$3:$O$9)<7,"Dates incomplètes","Dates complètes") -> Dates complètes | D7: =IF(COUNTA('J06'!$P$3:$P$9)<7,"Horaires incomplets","Horaires complets") -> Horaires complets | E7: =IF(SUM('J06'!$FT$3:$FU$9)="","Résultats incomplets",IF(SUM('J06'!$FT$3:$FU$9)<14,"Résultats incomplets","Résultats complets")) -> Résultats complets | G7: =COUNTBLANK('J06'!$HC$3:$HD$9)/2 -> 0 | I7: =IF(CS20="","",IF(CT20="","",IF(AND(CS20>3,CT20>3),"J19",IF(AND(CS20<-3,CT20>3),"J19",IF(AND(CS20<-3,CT20<-3),"J19",IF(AND(CS20>3,CT20<-3),"J19",IF(AND(CS20>3,CT20<=3),"J19*",IF(AND(CS20<-3,CT20<=3),"J19*",IF(AND(CS20<=3,CT20>3),"J19*",IF(AND(CS20<=3,CT20<=3),"J19*",IF(AND(CS20<=3,CT20<-3),"J19*"))))))))))) ->  | J7: =IF(COUNTA('J19'!$C$3:$C$9)+COUNTA('J19'!$L$3:$L$9)<14,"Matchs non-inscrits","Matchs inscrits") -> Matchs inscrits | K7: =IF(COUNTA('J19'!$O$3:$O$9)<7,"Dates incomplètes","Dates complètes") -> Dates complètes | L7: =IF(COUNTA('J19'!$P$3:$P$9)<7,"Horaires incomplets","Horaires complets") -> Horaires complets | M7: =IF(SUM('J19'!$FT$3:$FU$9)="","Résultats incomplets",IF(SUM('J19'!$FT$3:$FU$9)<14,"Résultats incomplets","Résultats complets")) -> Résultats incomplets | O7: =COUNTBLANK('J19'!$HC$3:$HD$9)/2 -> 7 | AY7: J06 | AZ7: =IF('J06'!$GX$3=0,"",IF('J06'!$GX$3="","",'J06'!$GX$3)) ->  | BB7: J06 | BC7: =IF('J06'!$GX$9=0,"",IF('J06'!$GX$9="","",'J06'!$GX$9)) ->  | BE7: J06 | BF7: =IF('J06'!$GZ$3=0,"",IF('J06'!$GZ$3="","",'J06'!$GZ$3)) ->  | BH7: J06 | BI7: =IF('J06'!$HA$3=0,"",IF('J06'!$HA$3="","",'J06'!$HA$3)) ->  | BK7: 4 | BM7: 0 | CK7: Journée 06 | CV7: =IF('J06'!$GX$3="","",SMALL('J06'!$GX$3:$GX$9,1)) ->  | CW7: =IF('J06'!$GX$3="","",LARGE('J06'!$GX$3:$GX$9,1)) ->  | CX7: Journée 06 | DF7: Journée 06 | DI7: Journée 06 | DK7: J06 | DL7: du | DM7: =IF('J06'!$GX$3="","",IF(COUNTA('J06'!$GX$3:$GX$9)<7,"",MIN('J06'!$GX$3:$GX$9))) ->  | DN7: au | DO7: =IF('J06'!$GX$3="","",IF(COUNTA('J06'!$GX$3:$GX$9)<7,"",MAX('J06'!$GX$3:$GX$9))) -> 
A8: =IF(CS8="","",IF(CT8="","",IF(AND(CS8>3,CT8>3),"J07",IF(AND(CS8<-3,CT8>3),"J07",IF(AND(CS8<-3,CT8<-3),"J07",IF(AND(CS8>3,CT8<-3),"J07",IF(AND(CS8>3,CT8<=3),"J07*",IF(AND(CS8<-3,CT8<=3),"J07*",IF(AND(CS8<=3,CT8>3),"J07*",IF(AND(CS8<=3,CT8<=3),"J07*",IF(AND(CS8<=3,CT8<-3),"J07*"))))))))))) ->  | B8: =IF(COUNTA('J07'!$C$3:$C$9)+COUNTA('J07'!$L$3:$L$9)<14,"Matchs non-inscrits","Matchs inscrits") -> Matchs inscrits | C8: =IF(COUNTA('J07'!$O$3:$O$9)<7,"Dates incomplètes","Dates complètes") -> Dates complètes | D8: =IF(COUNTA('J07'!$P$3:$P$9)<7,"Horaires incomplets","Horaires complets") -> Horaires complets | E8: =IF(SUM('J07'!$FT$3:$FU$9)="","Résultats incomplets",IF(SUM('J07'!$FT$3:$FU$9)<14,"Résultats incomplets","Résultats complets")) -> Résultats complets | G8: =COUNTBLANK('J07'!$HC$3:$HD$9)/2 -> 0 | I8: =IF(CS21="","",IF(CT21="","",IF(AND(CS21>3,CT21>3),"J20",IF(AND(CS21<-3,CT21>3),"J20",IF(AND(CS21<-3,CT21<-3),"J20",IF(AND(CS21>3,CT21<-3),"J20",IF(AND(CS21>3,CT21<=3),"J20*",IF(AND(CS21<-3,CT21<=3),"J20*",IF(AND(CS21<=3,CT21>3),"J20*",IF(AND(CS21<=3,CT21<=3),"J20*",IF(AND(CS21<=3,CT21<-3),"J20*"))))))))))) ->  | J8: =IF(COUNTA('J20'!$C$3:$C$9)+COUNTA('J20'!$L$3:$L$9)<14,"Matchs non-inscrits","Matchs inscrits") -> Matchs inscrits | K8: =IF(COUNTA('J20'!$O$3:$O$9)<7,"Dates incomplètes","Dates complètes") -> Dates complètes | L8: =IF(COUNTA('J20'!$P$3:$P$9)<7,"Horaires incomplets","Horaires complets") -> Horaires complets | M8: =IF(SUM('J20'!$FT$3:$FU$9)="","Résultats incomplets",IF(SUM('J20'!$FT$3:$FU$9)<14,"Résultats incomplets","Résultats complets")) -> Résultats incomplets | O8: =COUNTBLANK('J20'!$HC$3:$HD$9)/2 -> 7 | AY8: J07 | AZ8: =IF('J07'!$GX$3=0,"",IF('J07'!$GX$3="","",'J07'!$GX$3)) ->  | BB8: J07 | BC8: =IF('J07'!$GX$9=0,"",IF('J07'!$GX$9="","",'J07'!$GX$9)) ->  | BE8: J07 | BF8: =IF('J07'!$GZ$3=0,"",IF('J07'!$GZ$3="","",'J07'!$GZ$3)) ->  | BH8: J07 | BI8: =IF('J07'!$HA$3=0,"",IF('J07'!$HA$3="","",'J07'!$HA$3)) ->  | BK8: 4 | BM8: 0 | CK8: Journée 07 | CV8: =IF('J07'!$GX$3="","",SMALL('J07'!$GX$3:$GX$9,1)) ->  | CW8: =IF('J07'!$GX$3="","",LARGE('J07'!$GX$3:$GX$9,1)) ->  | CX8: Journée 07 | DF8: Journée 07 | DI8: Journée 07 | DK8: J07 | DL8: du | DM8: =IF('J07'!$GX$3="","",IF(COUNTA('J07'!$GX$3:$GX$9)<7,"",MIN('J07'!$GX$3:$GX$9))) ->  | DN8: au | DO8: =IF('J07'!$GX$3="","",IF(COUNTA('J07'!$GX$3:$GX$9)<7,"",MAX('J07'!$GX$3:$GX$9))) -> 
A9: =IF(CS9="","",IF(CT9="","",IF(AND(CS9>3,CT9>3),"J08",IF(AND(CS9<-3,CT9>3),"J08",IF(AND(CS9<-3,CT9<-3),"J08",IF(AND(CS9>3,CT9<-3),"J08",IF(AND(CS9>3,CT9<=3),"J08*",IF(AND(CS9<-3,CT9<=3),"J08*",IF(AND(CS9<=3,CT9>3),"J08*",IF(AND(CS9<=3,CT9<=3),"J08*",IF(AND(CS9<=3,CT9<-3),"J08*"))))))))))) ->  | B9: =IF(COUNTA('J08'!$C$3:$C$9)+COUNTA('J08'!$L$3:$L$9)<14,"Matchs non-inscrits","Matchs inscrits") -> Matchs inscrits | C9: =IF(COUNTA('J08'!$O$3:$O$9)<7,"Dates incomplètes","Dates complètes") -> Dates complètes | D9: =IF(COUNTA('J08'!$P$3:$P$9)<7,"Horaires incomplets","Horaires complets") -> Horaires complets | E9: =IF(SUM('J08'!$FT$3:$FU$9)="","Résultats incomplets",IF(SUM('J08'!$FT$3:$FU$9)<14,"Résultats incomplets","Résultats complets")) -> Résultats complets | G9: =COUNTBLANK('J08'!$HC$3:$HD$9)/2 -> 0 | I9: =IF(CS22="","",IF(CT22="","",IF(AND(CS22>3,CT22>3),"J21",IF(AND(CS22<-3,CT22>3),"J21",IF(AND(CS22<-3,CT22<-3),"J21",IF(AND(CS22>3,CT22<-3),"J21",IF(AND(CS22>3,CT22<=3),"J21*",IF(AND(CS22<-3,CT22<=3),"J21*",IF(AND(CS22<=3,CT22>3),"J21*",IF(AND(CS22<=3,CT22<=3),"J21*",IF(AND(CS22<=3,CT22<-3),"J21*"))))))))))) ->  | J9: =IF(COUNTA('J21'!$C$3:$C$9)+COUNTA('J21'!$L$3:$L$9)<14,"Matchs non-inscrits","Matchs inscrits") -> Matchs inscrits | K9: =IF(COUNTA('J21'!$O$3:$O$9)<7,"Dates incomplètes","Dates complètes") -> Dates complètes | L9: =IF(COUNTA('J21'!$P$3:$P$9)<7,"Horaires incomplets","Horaires complets") -> Horaires complets | M9: =IF(SUM('J21'!$FT$3:$FU$9)="","Résultats incomplets",IF(SUM('J21'!$FT$3:$FU$9)<14,"Résultats incomplets","Résultats complets")) -> Résultats incomplets | O9: =COUNTBLANK('J21'!$HC$3:$HD$9)/2 -> 7 | AY9: J08 | AZ9: =IF('J08'!$GX$3=0,"",IF('J08'!$GX$3="","",'J08'!$GX$3)) ->  | BB9: J08 | BC9: =IF('J08'!$GX$9=0,"",IF('J08'!$GX$9="","",'J08'!$GX$9)) ->  | BE9: J08 | BF9: =IF('J08'!$GZ$3=0,"",IF('J08'!$GZ$3="","",'J08'!$GZ$3)) ->  | BH9: J08 | BI9: =IF('J08'!$HA$3=0,"",IF('J08'!$HA$3="","",'J08'!$HA$3)) ->  | BK9: 4 | BM9: 0 | CK9: Journée 08 | CV9: =IF('J08'!$GX$3="","",SMALL('J08'!$GX$3:$GX$9,1)) ->  | CW9: =IF('J08'!$GX$3="","",LARGE('J08'!$GX$3:$GX$9,1)) ->  | CX9: Journée 08 | DF9: Journée 08 | DI9: Journée 08 | DK9: J08 | DL9: du | DM9: =IF('J08'!$GX$3="","",IF(COUNTA('J08'!$GX$3:$GX$9)<7,"",MIN('J08'!$GX$3:$GX$9))) ->  | DN9: au | DO9: =IF('J08'!$GX$3="","",IF(COUNTA('J08'!$GX$3:$GX$9)<7,"",MAX('J08'!$GX$3:$GX$9))) -> 
A10: =IF(CS10="","",IF(CT10="","",IF(AND(CS10>3,CT10>3),"J09",IF(AND(CS10<-3,CT10>3),"J09",IF(AND(CS10<-3,CT10<-3),"J09",IF(AND(CS10>3,CT10<-3),"J09",IF(AND(CS10>3,CT10<=3),"J09*",IF(AND(CS10<-3,CT10<=3),"J09*",IF(AND(CS10<=3,CT10>3),"J09*",IF(AND(CS10<=3,CT10<=3),"J09*",IF(AND(CS10<=3,CT10<-3),"J09*"))))))))))) ->  | B10: =IF(COUNTA('J09'!$C$3:$C$9)+COUNTA('J09'!$L$3:$L$9)<14,"Matchs non-inscrits","Matchs inscrits") -> Matchs inscrits | C10: =IF(COUNTA('J09'!$O$3:$O$9)<7,"Dates incomplètes","Dates complètes") -> Dates complètes | D10: =IF(COUNTA('J09'!$P$3:$P$9)<7,"Horaires incomplets","Horaires complets") -> Horaires complets | E10: =IF(SUM('J09'!$FT$3:$FU$9)="","Résultats incomplets",IF(SUM('J09'!$FT$3:$FU$9)<14,"Résultats incomplets","Résultats complets")) -> Résultats complets | G10: =COUNTBLANK('J09'!$HC$3:$HD$9)/2 -> 0 | I10: =IF(CS23="","",IF(CT23="","",IF(AND(CS23>3,CT23>3),"J22",IF(AND(CS23<-3,CT23>3),"J22",IF(AND(CS23<-3,CT23<-3),"J22",IF(AND(CS23>3,CT23<-3),"J22",IF(AND(CS23>3,CT23<=3),"J22*",IF(AND(CS23<-3,CT23<=3),"J22*",IF(AND(CS23<=3,CT23>3),"J22*",IF(AND(CS23<=3,CT23<=3),"J22*",IF(AND(CS23<=3,CT23<-3),"J22*"))))))))))) ->  | J10: =IF(COUNTA('J22'!$C$3:$C$9)+COUNTA('J22'!$L$3:$L$9)<14,"Matchs non-inscrits","Matchs inscrits") -> Matchs inscrits | K10: =IF(COUNTA('J22'!$O$3:$O$9)<7,"Dates incomplètes","Dates complètes") -> Dates complètes | L10: =IF(COUNTA('J22'!$P$3:$P$9)<7,"Horaires incomplets","Horaires complets") -> Horaires complets | M10: =IF(SUM('J22'!$FT$3:$FU$9)="","Résultats incomplets",IF(SUM('J22'!$FT$3:$FU$9)<14,"Résultats incomplets","Résultats complets")) -> Résultats incomplets | O10: =COUNTBLANK('J22'!$HC$3:$HD$9)/2 -> 7 | AY10: J09 | AZ10: =IF('J09'!$GX$3=0,"",IF('J09'!$GX$3="","",'J09'!$GX$3)) ->  | BB10: J09 | BC10: =IF('J09'!$GX$9=0,"",IF('J09'!$GX$9="","",'J09'!$GX$9)) ->  | BE10: J09 | BF10: =IF('J09'!$GZ$3=0,"",IF('J09'!$GZ$3="","",'J09'!$GZ$3)) ->  | BH10: J09 | BI10: =IF('J09'!$HA$3=0,"",IF('J09'!$HA$3="","",'J09'!$HA$3)) ->  | BK10: 4 | BM10: 0 | CK10: Journée 09 | CV10: =IF('J09'!$GX$3="","",SMALL('J09'!$GX$3:$GX$9,1)) ->  | CW10: =IF('J09'!$GX$3="","",LARGE('J09'!$GX$3:$GX$9,1)) ->  | CX10: Journée 09 | DF10: Journée 09 | DI10: Journée 09 | DK10: J09 | DL10: du | DM10: =IF('J09'!$GX$3="","",IF(COUNTA('J09'!$GX$3:$GX$9)<7,"",MIN('J09'!$GX$3:$GX$9))) ->  | DN10: au | DO10: =IF('J09'!$GX$3="","",IF(COUNTA('J09'!$GX$3:$GX$9)<7,"",MAX('J09'!$GX$3:$GX$9))) -> 
A11: =IF(CS11="","",IF(CT11="","",IF(AND(CS11>3,CT11>3),"J10",IF(AND(CS11<-3,CT11>3),"J10",IF(AND(CS11<-3,CT11<-3),"J10",IF(AND(CS11>3,CT11<-3),"J10",IF(AND(CS11>3,CT11<=3),"J10*",IF(AND(CS11<-3,CT11<=3),"J10*",IF(AND(CS11<=3,CT11>3),"J10*",IF(AND(CS11<=3,CT11<=3),"J10*",IF(AND(CS11<=3,CT11<-3),"J10*"))))))))))) ->  | B11: =IF(COUNTA('J10'!$C$3:$C$9)+COUNTA('J10'!$L$3:$L$9)<14,"Matchs non-inscrits","Matchs inscrits") -> Matchs inscrits | C11: =IF(COUNTA('J10'!$O$3:$O$9)<7,"Dates incomplètes","Dates complètes") -> Dates complètes | D11: =IF(COUNTA('J10'!$P$3:$P$9)<7,"Horaires incomplets","Horaires complets") -> Horaires complets | E11: =IF(SUM('J10'!$FT$3:$FU$9)="","Résultats incomplets",IF(SUM('J10'!$FT$3:$FU$9)<14,"Résultats incomplets","Résultats complets")) -> Résultats complets | G11: =COUNTBLANK('J10'!$HC$3:$HD$9)/2 -> 0 | I11: =IF(CS24="","",IF(CT24="","",IF(AND(CS24>3,CT24>3),"J23",IF(AND(CS24<-3,CT24>3),"J23",IF(AND(CS24<-3,CT24<-3),"J23",IF(AND(CS24>3,CT24<-3),"J23",IF(AND(CS24>3,CT24<=3),"J23*",IF(AND(CS24<-3,CT24<=3),"J23*",IF(AND(CS24<=3,CT24>3),"J23*",IF(AND(CS24<=3,CT24<=3),"J23*",IF(AND(CS24<=3,CT24<-3),"J23*"))))))))))) ->  | J11: =IF(COUNTA('J23'!$C$3:$C$9)+COUNTA('J23'!$L$3:$L$9)<14,"Matchs non-inscrits","Matchs inscrits") -> Matchs inscrits | K11: =IF(COUNTA('J23'!$O$3:$O$9)<7,"Dates incomplètes","Dates complètes") -> Dates complètes | L11: =IF(COUNTA('J23'!$P$3:$P$9)<7,"Horaires incomplets","Horaires complets") -> Horaires complets | M11: =IF(SUM('J23'!$FT$3:$FU$9)="","Résultats incomplets",IF(SUM('J23'!$FT$3:$FU$9)<14,"Résultats incomplets","Résultats complets")) -> Résultats incomplets | O11: =COUNTBLANK('J23'!$HC$3:$HD$9)/2 -> 7 | AY11: J10 | AZ11: =IF('J10'!$GX$3=0,"",IF('J10'!$GX$3="","",'J10'!$GX$3)) ->  | BB11: J10 | BC11: =IF('J10'!$GX$9=0,"",IF('J10'!$GX$9="","",'J10'!$GX$9)) ->  | BE11: J10 | BF11: =IF('J10'!$GZ$3=0,"",IF('J10'!$GZ$3="","",'J10'!$GZ$3)) ->  | BH11: J10 | BI11: =IF('J10'!$HA$3=0,"",IF('J10'!$HA$3="","",'J10'!$HA$3)) ->  | BK11: 4 | BM11: 0 | CK11: Journée 10 | CV11: =IF('J10'!$GX$3="","",SMALL('J10'!$GX$3:$GX$9,1)) ->  | CW11: =IF('J10'!$GX$3="","",LARGE('J10'!$GX$3:$GX$9,1)) ->  | CX11: Journée 10 | DF11: Journée 10 | DI11: Journée 10 | DK11: J10 | DL11: du | DM11: =IF('J10'!$GX$3="","",IF(COUNTA('J10'!$GX$3:$GX$9)<7,"",MIN('J10'!$GX$3:$GX$9))) ->  | DN11: au | DO11: =IF('J10'!$GX$3="","",IF(COUNTA('J10'!$GX$3:$GX$9)<7,"",MAX('J10'!$GX$3:$GX$9))) -> 
A12: =IF(CS12="","",IF(CT12="","",IF(AND(CS12>3,CT12>3),"J11",IF(AND(CS12<-3,CT12>3),"J11",IF(AND(CS12<-3,CT12<-3),"J11",IF(AND(CS12>3,CT12<-3),"J11",IF(AND(CS12>3,CT12<=3),"J11*",IF(AND(CS12<-3,CT12<=3),"J11*",IF(AND(CS12<=3,CT12>3),"J11*",IF(AND(CS12<=3,CT12<=3),"J11*",IF(AND(CS12<=3,CT12<-3),"J11*"))))))))))) ->  | B12: =IF(COUNTA('J11'!$C$3:$C$9)+COUNTA('J11'!$L$3:$L$9)<14,"Matchs non-inscrits","Matchs inscrits") -> Matchs inscrits | C12: =IF(COUNTA('J11'!$O$3:$O$9)<7,"Dates incomplètes","Dates complètes") -> Dates complètes | D12: =IF(COUNTA('J11'!$P$3:$P$9)<7,"Horaires incomplets","Horaires complets") -> Horaires complets | E12: =IF(SUM('J11'!$FT$3:$FU$9)="","Résultats incomplets",IF(SUM('J11'!$FT$3:$FU$9)<14,"Résultats incomplets","Résultats complets")) -> Résultats complets | G12: =COUNTBLANK('J11'!$HC$3:$HD$9)/2 -> 0 | I12: =IF(CS25="","",IF(CT25="","",IF(AND(CS25>3,CT25>3),"J24",IF(AND(CS25<-3,CT25>3),"J24",IF(AND(CS25<-3,CT25<-3),"J24",IF(AND(CS25>3,CT25<-3),"J24",IF(AND(CS25>3,CT25<=3),"J24*",IF(AND(CS25<-3,CT25<=3),"J24*",IF(AND(CS25<=3,CT25>3),"J24*",IF(AND(CS25<=3,CT25<=3),"J24*",IF(AND(CS25<=3,CT25<-3),"J24*"))))))))))) ->  | J12: =IF(COUNTA('J24'!$C$3:$C$9)+COUNTA('J24'!$L$3:$L$9)<14,"Matchs non-inscrits","Matchs inscrits") -> Matchs inscrits | K12: =IF(COUNTA('J24'!$O$3:$O$9)<7,"Dates incomplètes","Dates complètes") -> Dates complètes | L12: =IF(COUNTA('J24'!$P$3:$P$9)<7,"Horaires incomplets","Horaires complets") -> Horaires complets | M12: =IF(SUM('J24'!$FT$3:$FU$9)="","Résultats incomplets",IF(SUM('J24'!$FT$3:$FU$9)<14,"Résultats incomplets","Résultats complets")) -> Résultats incomplets | O12: =COUNTBLANK('J24'!$HC$3:$HD$9)/2 -> 7 | AY12: J11 | AZ12: =IF('J11'!$GX$3=0,"",IF('J11'!$GX$3="","",'J11'!$GX$3)) ->  | BB12: J11 | BC12: =IF('J11'!$GX$9=0,"",IF('J11'!$GX$9="","",'J11'!$GX$9)) ->  | BE12: J11 | BF12: =IF('J11'!$GZ$3=0,"",IF('J11'!$GZ$3="","",'J11'!$GZ$3)) ->  | BH12: J11 | BI12: =IF('J11'!$HA$3=0,"",IF('J11'!$HA$3="","",'J11'!$HA$3)) ->  | BK12: 4 | BM12: 0 | CK12: Journée 11 | CV12: =IF('J11'!$GX$3="","",SMALL('J11'!$GX$3:$GX$9,1)) ->  | CW12: =IF('J11'!$GX$3="","",LARGE('J11'!$GX$3:$GX$9,1)) ->  | CX12: Journée 11 | DF12: Journée 11 | DI12: Journée 11 | DK12: J11 | DL12: du | DM12: =IF('J11'!$GX$3="","",IF(COUNTA('J11'!$GX$3:$GX$9)<7,"",MIN('J11'!$GX$3:$GX$9))) ->  | DN12: au | DO12: =IF('J11'!$GX$3="","",IF(COUNTA('J11'!$GX$3:$GX$9)<7,"",MAX('J11'!$GX$3:$GX$9))) -> 
A13: =IF(CS13="","",IF(CT13="","",IF(AND(CS13>3,CT13>3),"J12",IF(AND(CS13<-3,CT13>3),"J12",IF(AND(CS13<-3,CT13<-3),"J12",IF(AND(CS13>3,CT13<-3),"J12",IF(AND(CS13>3,CT13<=3),"J12*",IF(AND(CS13<-3,CT13<=3),"J12*",IF(AND(CS13<=3,CT13>3),"J12*",IF(AND(CS13<=3,CT13<=3),"J12*",IF(AND(CS13<=3,CT13<-3),"J12*"))))))))))) ->  | B13: =IF(COUNTA('J12'!$C$3:$C$9)+COUNTA('J12'!$L$3:$L$9)<14,"Matchs non-inscrits","Matchs inscrits") -> Matchs inscrits | C13: =IF(COUNTA('J12'!$O$3:$O$9)<7,"Dates incomplètes","Dates complètes") -> Dates complètes | D13: =IF(COUNTA('J12'!$P$3:$P$9)<7,"Horaires incomplets","Horaires complets") -> Horaires complets | E13: =IF(SUM('J12'!$FW$3:$FX$9)="","Résultats incomplets",IF(SUM('J12'!$FW$3:$FX$9)<14,"Résultats incomplets","Résultats complets")) -> Résultats complets | G13: =COUNTBLANK('J12'!$HF$3:$HG$9)/2 -> 0 | I13: =IF(CS26="","",IF(CT26="","",IF(AND(CS26>3,CT26>3),"J25",IF(AND(CS26<-3,CT26>3),"J25",IF(AND(CS26<-3,CT26<-3),"J25",IF(AND(CS26>3,CT26<-3),"J25",IF(AND(CS26>3,CT26<=3),"J25*",IF(AND(CS26<-3,CT26<=3),"J25*",IF(AND(CS26<=3,CT26>3),"J25*",IF(AND(CS26<=3,CT26<=3),"J25*",IF(AND(CS26<=3,CT26<-3),"J25*"))))))))))) ->  | J13: =IF(COUNTA('J25'!$C$3:$C$9)+COUNTA('J25'!$L$3:$L$9)<14,"Matchs non-inscrits","Matchs inscrits") -> Matchs inscrits | K13: =IF(COUNTA('J25'!$O$3:$O$9)<7,"Dates incomplètes","Dates complètes") -> Dates complètes | L13: =IF(COUNTA('J25'!$P$3:$P$9)<7,"Horaires incomplets","Horaires complets") -> Horaires complets | M13: =IF(SUM('J25'!$FT$3:$FU$9)="","Résultats incomplets",IF(SUM('J25'!$FT$3:$FU$9)<14,"Résultats incomplets","Résultats complets")) -> Résultats incomplets | O13: =COUNTBLANK('J25'!$HC$3:$HD$9)/2 -> 7 | AY13: J12 | AZ13: =IF('J12'!$HA$3=0,"",IF('J12'!$HA$3="","",'J12'!$HA$3)) ->  | BB13: J12 | BC13: =IF('J12'!$HA$9=0,"",IF('J12'!$HA$9="","",'J12'!$HA$9)) ->  | BE13: J12 | BF13: =IF('J12'!$HC$3=0,"",IF('J12'!$HC$3="","",'J12'!$HC$3)) ->  | BH13: J12 | BI13: =IF('J12'!$HD$3=0,"",IF('J12'!$HD$3="","",'J12'!$HD$3)) ->  | BK13: 4 | BM13: 0 | CK13: Journée 12 | CV13: =IF('J12'!$HA$3="","",SMALL('J12'!$HA$3:$HA$9,1)) ->  | CW13: =IF('J12'!$HA$3="","",LARGE('J12'!$HA$3:$HA$9,1)) ->  | CX13: Journée 12 | DF13: Journée 12 | DI13: Journée 12 | DK13: J12 | DL13: du | DM13: =IF('J12'!$HA$3="","",IF(COUNTA('J12'!$HA$3:$HA$9)<7,"",MIN('J12'!$HA$3:$HA$9))) ->  | DN13: au | DO13: =IF('J12'!$HA$3="","",IF(COUNTA('J12'!$HA$3:$HA$9)<7,"",MAX('J12'!$HA$3:$HA$9))) -> 
A14: =IF(CS14="","",IF(CT14="","",IF(AND(CS14>3,CT14>3),"J13",IF(AND(CS14<-3,CT14>3),"J13",IF(AND(CS14<-3,CT14<-3),"J13",IF(AND(CS14>3,CT14<-3),"J13",IF(AND(CS14>3,CT14<=3),"J13*",IF(AND(CS14<-3,CT14<=3),"J13*",IF(AND(CS14<=3,CT14>3),"J13*",IF(AND(CS14<=3,CT14<=3),"J13*",IF(AND(CS14<=3,CT14<-3),"J13*"))))))))))) ->  | B14: =IF(COUNTA('J13'!$C$3:$C$9)+COUNTA('J13'!$L$3:$L$9)<14,"Matchs non-inscrits","Matchs inscrits") -> Matchs inscrits | C14: =IF(COUNTA('J13'!$O$3:$O$9)<7,"Dates incomplètes","Dates complètes") -> Dates complètes | D14: =IF(COUNTA('J13'!$P$3:$P$9)<7,"Horaires incomplets","Horaires complets") -> Horaires complets | E14: =IF(SUM('J13'!$FT$3:$FU$9)="","Résultats incomplets",IF(SUM('J13'!$FT$3:$FU$9)<14,"Résultats incomplets","Résultats complets")) -> Résultats complets | G14: =COUNTBLANK('J13'!$HC$3:$HD$9)/2 -> 0 | I14: =IF(CS27="","",IF(CT27="","",IF(AND(CS27>3,CT27>3),"J26",IF(AND(CS27<-3,CT27>3),"J26",IF(AND(CS27<-3,CT27<-3),"J26",IF(AND(CS27>3,CT27<-3),"J26",IF(AND(CS27>3,CT27<=3),"J26*",IF(AND(CS27<-3,CT27<=3),"J26*",IF(AND(CS27<=3,CT27>3),"J26*",IF(AND(CS27<=3,CT27<=3),"J26*",IF(AND(CS27<=3,CT27<-3),"J26*"))))))))))) ->  | J14: =IF(COUNTA('J26'!$C$3:$C$9)+COUNTA('J26'!$L$3:$L$9)<14,"Matchs non-inscrits","Matchs inscrits") -> Matchs inscrits | K14: =IF(COUNTA('J26'!$O$3:$O$9)<7,"Dates incomplètes","Dates complètes") -> Dates complètes | L14: =IF(COUNTA('J26'!$P$3:$P$9)<7,"Horaires incomplets","Horaires complets") -> Horaires incomplets | M14: =IF(SUM('J26'!$FT$3:$FU$9)="","Résultats incomplets",IF(SUM('J26'!$FT$3:$FU$9)<14,"Résultats incomplets","Résultats complets")) -> Résultats incomplets | O14: =COUNTBLANK('J26'!$HC$3:$HD$9)/2 -> 7 | AY14: J13 | AZ14: =IF('J13'!$GX$3=0,"",IF('J13'!$GX$3="","",'J13'!$GX$3)) ->  | BB14: J13 | BC14: =IF('J13'!$GX$9=0,"",IF('J13'!$GX$9="","",'J13'!$GX$9)) ->  | BE14: J13 | BF14: =IF('J13'!$GZ$3=0,"",IF('J13'!$GZ$3="","",'J13'!$GZ$3)) ->  | BH14: J13 | BI14: =IF('J13'!$HA$3=0,"",IF('J13'!$HA$3="","",'J13'!$HA$3)) ->  | BK14: 4 | BM14: 0 | CK14: Journée 13 | CV14: =IF('J13'!$GX$3="","",SMALL('J13'!$GX$3:$GX$9,1)) ->  | CW14: =IF('J13'!$GX$3="","",LARGE('J13'!$GX$3:$GX$9,1)) ->  | CX14: Journée 13 | DF14: Journée 13 | DI14: Journée 13 | DK14: J13 | DL14: du | DM14: =IF('J13'!$GX$3="","",IF(COUNTA('J13'!$GX$3:$GX$9)<7,"",MIN('J13'!$GX$3:$GX$9))) ->  | DN14: au | DO14: =IF('J13'!$GX$3="","",IF(COUNTA('J13'!$GX$3:$GX$9)<7,"",MAX('J13'!$GX$3:$GX$9))) -> 
A15: J00* : Le début ou la fin des journées ayant été ou devant être jouées dans les derniers/prochains 3 jours. | I15: J00* : Le début ou la fin des journées ayant été ou devant être jouées dans les derniers/prochains 3 jours. | AY15: J14 | AZ15: =IF('J14'!$GX$3=0,"",IF('J14'!$GX$3="","",'J14'!$GX$3)) ->  | BB15: J14 | BC15: =IF('J14'!$GX$9=0,"",IF('J14'!$GX$9="","",'J14'!$GX$9)) ->  | BE15: J14 | BF15: =IF('J14'!$GZ$3=0,"",IF('J14'!$GZ$3="","",'J14'!$GZ$3)) ->  | BH15: J14 | BI15: =IF('J14'!$HA$3=0,"",IF('J14'!$HA$3="","",'J14'!$HA$3)) ->  | BK15: =IF(J2="Matchs inscrits",1)+IF(K2="Dates complètes",1)+IF(L2="Horaires complets",1)+IF(M2="Résultats complets",1) -> 3 | BM15: =O2 -> 7 | CK15: Journée 14 | CV15: =IF('J14'!$GX$3="","",SMALL('J14'!$GX$3:$GX$9,1)) ->  | CW15: =IF('J14'!$GX$3="","",LARGE('J14'!$GX$3:$GX$9,1)) ->  | CX15: Journée 14 | DF15: Journée 14 | DI15: Journée 14 | DK15: J14 | DL15: du | DM15: =IF('J14'!$GX$3="","",IF(COUNTA('J14'!$GX$3:$GX$9)<7,"",MIN('J14'!$GX$3:$GX$9))) ->  | DN15: au | DO15: =IF('J14'!$GX$3="","",IF(COUNTA('J14'!$GX$3:$GX$9)<7,"",MAX('J14'!$GX$3:$GX$9))) -> 
A16: =IF(Accueil!$U$2="","",Accueil!$U$2) -> Nous sommes le dimanche 10 décembre 2023 | N16: =IF(O16=0,"",IF(O16="","",IF(O16=1,"Nombre de match restant à jouer :","Nombre de matchs restant à jouer :"))) -> Nombre de matchs restant à jouer : | O16: =BM33 -> 91 | AY16: J15 | AZ16: =IF('J15'!$GX$3=0,"",IF('J15'!$GX$3="","",'J15'!$GX$3)) ->  | BB16: J15 | BC16: =IF('J15'!$GX$9=0,"",IF('J15'!$GX$9="","",'J15'!$GX$9)) ->  | BE16: J15 | BF16: =IF('J15'!$GZ$3=0,"",IF('J15'!$GZ$3="","",'J15'!$GZ$3)) ->  | BH16: J15 | BI16: =IF('J15'!$HA$3=0,"",IF('J15'!$HA$3="","",'J15'!$HA$3)) ->  | BK16: 3 | BM16: 7 | CK16: Journée 15 | CV16: =IF('J15'!$GX$3="","",SMALL('J15'!$GX$3:$GX$9,1)) ->  | CW16: =IF('J15'!$GX$3="","",LARGE('J15'!$GX$3:$GX$9,1)) ->  | CX16: Journée 15 | DF16: Journée 15 | DI16: Journée 15 | DK16: J15 | DL16: du | DM16: =IF('J15'!$GX$3="","",IF(COUNTA('J15'!$GX$3:$GX$9)<7,"",MIN('J15'!$GX$3:$GX$9))) ->  | DN16: au | DO16: =IF('J15'!$GX$3="","",IF(COUNTA('J15'!$GX$3:$GX$9)<7,"",MAX('J15'!$GX$3:$GX$9))) -> 
AY17: J16 | AZ17: =IF('J16'!$GX$3=0,"",IF('J16'!$GX$3="","",'J16'!$GX$3)) ->  | BB17: J16 | BC17: =IF('J16'!$GX$9=0,"",IF('J16'!$GX$9="","",'J16'!$GX$9)) ->  | BE17: J16 | BF17: =IF('J16'!$GZ$3=0,"",IF('J16'!$GZ$3="","",'J16'!$GZ$3)) ->  | BH17: J16 | BI17: =IF('J16'!$HA$3=0,"",IF('J16'!$HA$3="","",'J16'!$HA$3)) ->  | BK17: 3 | BM17: 7 | CK17: Journée 16 | CV17: =IF('J16'!$GX$3="","",SMALL('J16'!$GX$3:$GX$9,1)) ->  | CW17: =IF('J16'!$GX$3="","",LARGE('J16'!$GX$3:$GX$9,1)) ->  | CX17: Journée 16 | DF17: Journée 16 | DI17: Journée 16 | DK17: J16 | DL17: du | DM17: =IF('J16'!$GX$3="","",IF(COUNTA('J16'!$GX$3:$GX$9)<7,"",MIN('J16'!$GX$3:$GX$9))) ->  | DN17: au | DO17: =IF('J16'!$GX$3="","",IF(COUNTA('J16'!$GX$3:$GX$9)<7,"",MAX('J16'!$GX$3:$GX$9))) -> 
A18: =IF(Equipes!$M$16="","",Equipes!$M$16) -> Championnat de France de Rugby à 15 - Nationale | N18: =IF(Equipes!$M$20="","",Equipes!$M$20) -> Date du début du Championnat : vendredi 25 août 2023 | AY18: J17 | AZ18: =IF('J17'!$GX$3=0,"",IF('J17'!$GX$3="","",'J17'!$GX$3)) ->  | BB18: J17 | BC18: =IF('J17'!$GX$9=0,"",IF('J17'!$GX$9="","",'J17'!$GX$9)) ->  | BE18: J17 | BF18: =IF('J17'!$GZ$3=0,"",IF('J17'!$GZ$3="","",'J17'!$GZ$3)) ->  | BH18: J17 | BI18: =IF('J17'!$HA$3=0,"",IF('J17'!$HA$3="","",'J17'!$HA$3)) ->  | BK18: 3 | BM18: 7 | CK18: Journée 17 | CV18: =IF('J17'!$GX$3="","",SMALL('J17'!$GX$3:$GX$9,1)) ->  | CW18: =IF('J17'!$GX$3="","",LARGE('J17'!$GX$3:$GX$9,1)) ->  | CX18: Journée 17 | DF18: Journée 17 | DI18: Journée 17 | DK18: J17 | DL18: du | DM18: =IF('J17'!$GX$3="","",IF(COUNTA('J17'!$GX$3:$GX$9)<7,"",MIN('J17'!$GX$3:$GX$9))) ->  | DN18: au | DO18: =IF('J17'!$GX$3="","",IF(COUNTA('J17'!$GX$3:$GX$9)<7,"",MAX('J17'!$GX$3:$GX$9))) -> 
AY19: J18 | AZ19: =IF('J18'!$GX$3=0,"",IF('J18'!$GX$3="","",'J18'!$GX$3)) ->  | BB19: J18 | BC19: =IF('J18'!$GX$9=0,"",IF('J18'!$GX$9="","",'J18'!$GX$9)) ->  | BE19: J18 | BF19: =IF('J18'!$GZ$3=0,"",IF('J18'!$GZ$3="","",'J18'!$GZ$3)) ->  | BH19: J18 | BI19: =IF('J18'!$HA$3=0,"",IF('J18'!$HA$3="","",'J18'!$HA$3)) ->  | BK19: 3 | BM19: 7 | CK19: Journée 18 | CV19: =IF('J18'!$GX$3="","",SMALL('J18'!$GX$3:$GX$9,1)) ->  | CW19: =IF('J18'!$GX$3="","",LARGE('J18'!$GX$3:$GX$9,1)) ->  | CX19: Journée 18 | DF19: Journée 18 | DI19: Journée 18 | DK19: J18 | DL19: du | DM19: =IF('J18'!$GX$3="","",IF(COUNTA('J18'!$GX$3:$GX$9)<7,"",MIN('J18'!$GX$3:$GX$9))) ->  | DN19: au | DO19: =IF('J18'!$GX$3="","",IF(COUNTA('J18'!$GX$3:$GX$9)<7,"",MAX('J18'!$GX$3:$GX$9))) -> 
A20: =IF(Equipes!$O$18="","",Equipes!$O$18) -> Saison du Championnat : 2023 - 2024 | N20: =IF(Equipes!$M$22="","",Equipes!$M$22) -> Date de la fin du Championnat : samedi 27 avril 2024 | AY20: J19 | AZ20: =IF('J19'!$GX$3=0,"",IF('J19'!$GX$3="","",'J19'!$GX$3)) ->  | BB20: J19 | BC20: =IF('J19'!$GX$9=0,"",IF('J19'!$GX$9="","",'J19'!$GX$9)) ->  | BE20: J19 | BF20: =IF('J19'!$GZ$3=0,"",IF('J19'!$GZ$3="","",'J19'!$GZ$3)) ->  | BH20: J19 | BI20: =IF('J19'!$HA$3=0,"",IF('J19'!$HA$3="","",'J19'!$HA$3)) ->  | BK20: 3 | BM20: 7 | CK20: Journée 19 | CV20: =IF('J19'!$GX$3="","",SMALL('J19'!$GX$3:$GX$9,1)) ->  | CW20: =IF('J19'!$GX$3="","",LARGE('J19'!$GX$3:$GX$9,1)) ->  | CX20: Journée 19 | DF20: Journée 19 | DI20: Journée 19 | DK20: J19 | DL20: du | DM20: =IF('J19'!$GX$3="","",IF(COUNTA('J19'!$GX$3:$GX$9)<7,"",MIN('J19'!$GX$3:$GX$9))) ->  | DN20: au | DO20: =IF('J19'!$GX$3="","",IF(COUNTA('J19'!$GX$3:$GX$9)<7,"",MAX('J19'!$GX$3:$GX$9))) -> 
AY21: J20 | AZ21: =IF('J20'!$GX$3=0,"",IF('J20'!$GX$3="","",'J20'!$GX$3)) ->  | BB21: J20 | BC21: =IF('J20'!$GX$9=0,"",IF('J20'!$GX$9="","",'J20'!$GX$9)) ->  | BE21: J20 | BF21: =IF('J20'!$GZ$3=0,"",IF('J20'!$GZ$3="","",'J20'!$GZ$3)) ->  | BH21: J20 | BI21: =IF('J20'!$HA$3=0,"",IF('J20'!$HA$3="","",'J20'!$HA$3)) ->  | BK21: 3 | BM21: 7 | CK21: Journée 20 | CV21: =IF('J20'!$GX$3="","",SMALL('J20'!$GX$3:$GX$9,1)) ->  | CW21: =IF('J20'!$GX$3="","",LARGE('J20'!$GX$3:$GX$9,1)) ->  | CX21: Journée 20 | DF21: Journée 20 | DI21: Journée 20 | DK21: J20 | DL21: du | DM21: =IF('J20'!$GX$3="","",IF(COUNTA('J20'!$GX$3:$GX$9)<7,"",MIN('J20'!$GX$3:$GX$9))) ->  | DN21: au | DO21: =IF('J20'!$GX$3="","",IF(COUNTA('J20'!$GX$3:$GX$9)<7,"",MAX('J20'!$GX$3:$GX$9))) -> 
AY22: J21 | AZ22: =IF('J21'!$GX$3=0,"",IF('J21'!$GX$3="","",'J21'!$GX$3)) ->  | BB22: J21 | BC22: =IF('J21'!$GX$9=0,"",IF('J21'!$GX$9="","",'J21'!$GX$9)) ->  | BE22: J21 | BF22: =IF('J21'!$GZ$3=0,"",IF('J21'!$GZ$3="","",'J21'!$GZ$3)) ->  | BH22: J21 | BI22: =IF('J21'!$HA$3=0,"",IF('J21'!$HA$3="","",'J21'!$HA$3)) ->  | BK22: 3 | BM22: 7 | CK22: Journée 21 | CV22: =IF('J21'!$GX$3="","",SMALL('J21'!$GX$3:$GX$9,1)) ->  | CW22: =IF('J21'!$GX$3="","",LARGE('J21'!$GX$3:$GX$9,1)) ->  | CX22: Journée 21 | DF22: Journée 21 | DI22: Journée 21 | DK22: J21 | DL22: du | DM22: =IF('J21'!$GX$3="","",IF(COUNTA('J21'!$GX$3:$GX$9)<7,"",MIN('J21'!$GX$3:$GX$9))) ->  | DN22: au | DO22: =IF('J21'!$GX$3="","",IF(COUNTA('J21'!$GX$3:$GX$9)<7,"",MAX('J21'!$GX$3:$GX$9))) -> 
AY23: J22 | AZ23: =IF('J22'!$GX$3=0,"",IF('J22'!$GX$3="","",'J22'!$GX$3)) ->  | BB23: J22 | BC23: =IF('J22'!$GX$9=0,"",IF('J22'!$GX$9="","",'J22'!$GX$9)) ->  | BE23: J22 | BF23: =IF('J22'!$GZ$3=0,"",IF('J22'!$GZ$3="","",'J22'!$GZ$3)) ->  | BH23: J22 | BI23: =IF('J22'!$HA$3=0,"",IF('J22'!$HA$3="","",'J22'!$HA$3)) ->  | BK23: 3 | BM23: 7 | CK23: Journée 22 | CV23: =IF('J22'!$GX$3="","",SMALL('J22'!$GX$3:$GX$9,1)) ->  | CW23: =IF('J22'!$GX$3="","",LARGE('J22'!$GX$3:$GX$9,1)) ->  | CX23: Journée 22 | DF23: Journée 22 | DI23: Journée 22 | DK23: J22 | DL23: du | DM23: =IF('J22'!$GX$3="","",IF(COUNTA('J22'!$GX$3:$GX$9)<7,"",MIN('J22'!$GX$3:$GX$9))) ->  | DN23: au | DO23: =IF('J22'!$GX$3="","",IF(COUNTA('J22'!$GX$3:$GX$9)<7,"",MAX('J22'!$GX$3:$GX$9))) -> 
AY24: J23 | AZ24: =IF('J23'!$GX$3=0,"",IF('J23'!$GX$3="","",'J23'!$GX$3)) ->  | BB24: J23 | BC24: =IF('J23'!$GX$9=0,"",IF('J23'!$GX$9="","",'J23'!$GX$9)) ->  | BE24: J23 | BF24: =IF('J23'!$GZ$3=0,"",IF('J23'!$GZ$3="","",'J23'!$GZ$3)) ->  | BH24: J23 | BI24: =IF('J23'!$HA$3=0,"",IF('J23'!$HA$3="","",'J23'!$HA$3)) ->  | BK24: 3 | BM24: 7 | CK24: Journée 23 | CV24: =IF('J23'!$GX$3="","",SMALL('J23'!$GX$3:$GX$9,1)) ->  | CW24: =IF('J23'!$GX$3="","",LARGE('J23'!$GX$3:$GX$9,1)) ->  | CX24: Journée 23 | DF24: Journée 23 | DI24: Journée 23 | DK24: J23 | DL24: du | DM24: =IF('J23'!$GX$3="","",IF(COUNTA('J23'!$GX$3:$GX$9)<7,"",MIN('J23'!$GX$3:$GX$9))) ->  | DN24: au | DO24: =IF('J23'!$GX$3="","",IF(COUNTA('J23'!$GX$3:$GX$9)<7,"",MAX('J23'!$GX$3:$GX$9))) -> 
AY25: J24 | AZ25: =IF('J24'!$GX$3=0,"",IF('J24'!$GX$3="","",'J24'!$GX$3)) ->  | BB25: J24 | BC25: =IF('J24'!$GX$9=0,"",IF('J24'!$GX$9="","",'J24'!$GX$9)) ->  | BE25: J24 | BF25: =IF('J24'!$GZ$3=0,"",IF('J24'!$GZ$3="","",'J24'!$GZ$3)) ->  | BH25: J24 | BI25: =IF('J24'!$HA$3=0,"",IF('J24'!$HA$3="","",'J24'!$HA$3)) ->  | BK25: 3 | BM25: 7 | CK25: Journée 24 | CV25: =IF('J24'!$GX$3="","",SMALL('J24'!$GX$3:$GX$9,1)) ->  | CW25: =IF('J24'!$GX$3="","",LARGE('J24'!$GX$3:$GX$9,1)) ->  | CX25: Journée 24 | DF25: Journée 24 | DI25: Journée 24 | DK25: J24 | DL25: du | DM25: =IF('J24'!$GX$3="","",IF(COUNTA('J24'!$GX$3:$GX$9)<7,"",MIN('J24'!$GX$3:$GX$9))) ->  | DN25: au | DO25: =IF('J24'!$GX$3="","",IF(COUNTA('J24'!$GX$3:$GX$9)<7,"",MAX('J24'!$GX$3:$GX$9))) -> 
AY26: J25 | AZ26: =IF('J25'!$GX$3=0,"",IF('J25'!$GX$3="","",'J25'!$GX$3)) ->  | BB26: J25 | BC26: =IF('J25'!$GX$9=0,"",IF('J25'!$GX$9="","",'J25'!$GX$9)) ->  | BE26: J25 | BF26: =IF('J25'!$GZ$3=0,"",IF('J25'!$GZ$3="","",'J25'!$GZ$3)) ->  | BH26: J25 | BI26: =IF('J25'!$HA$3=0,"",IF('J25'!$HA$3="","",'J25'!$HA$3)) ->  | BK26: 3 | BM26: 7 | CK26: Journée 25 | CV26: =IF('J25'!$GX$3="","",SMALL('J25'!$GX$3:$GX$9,1)) ->  | CW26: =IF('J25'!$GX$3="","",LARGE('J25'!$GX$3:$GX$9,1)) ->  | CX26: Journée 25 | DF26: Journée 25 | DI26: Journée 25 | DK26: J25 | DL26: du | DM26: =IF('J25'!$GX$3="","",IF(COUNTA('J25'!$GX$3:$GX$9)<7,"",MIN('J25'!$GX$3:$GX$9))) ->  | DN26: au | DO26: =IF('J25'!$GX$3="","",IF(COUNTA('J25'!$GX$3:$GX$9)<7,"",MAX('J25'!$GX$3:$GX$9))) -> 
AY27: J26 | AZ27: =IF('J26'!$GX$3=0,"",IF('J26'!$GX$3="","",'J26'!$GX$3)) ->  | BB27: J26 | BC27: =IF('J26'!$GX$9=0,"",IF('J26'!$GX$9="","",'J26'!$GX$9)) ->  | BE27: J26 | BF27: =IF('J26'!$GZ$3=0,"",IF('J26'!$GZ$3="","",'J26'!$GZ$3)) ->  | BH27: J26 | BI27: =IF('J26'!$HA$3=0,"",IF('J26'!$HA$3="","",'J26'!$HA$3)) ->  | BK27: 2 | BM27: 7 | CK27: Journée 26 | CV27: =IF('J26'!$GX$3="","",SMALL('J26'!$GX$3:$GX$9,1)) ->  | CW27: =IF('J26'!$GX$3="","",LARGE('J26'!$GX$3:$GX$9,1)) ->  | CX27: Journée 26 | DF27: Journée 26 | DI27: Journée 26 | DK27: J26 | DL27: du | DM27: =IF('J26'!$GX$3="","",IF(COUNTA('J26'!$GX$3:$GX$9)<7,"",MIN('J26'!$GX$3:$GX$9))) ->  | DN27: au | DO27: =IF('J26'!$GX$3="","",IF(COUNTA('J26'!$GX$3:$GX$9)<7,"",MAX('J26'!$GX$3:$GX$9))) -> 
BM33: =SUM(BM2:BM31) -> 91

Sheet J01
A1: =IF(Accueil!$H$2="","",IF(Accueil!$H$2="Choix du Championnat de Rugby","",IF(Accueil!$B$2="","",IF(Accueil!$D$2="","",IF(Accueil!$D$2="Choix de la saison","",_xlfn.CONCAT(Accueil!$H$2," / ",Accueil!$B$2," ",Accueil!$D$2)))))) -> Championnat de France de Rugby à 15 - Nationale / Saison du Championnat : 2023 - 2024 | Q1: 1 | S1: CLASSEMENT GENERAL | AO1: CLASSEMENT A DOMICILE | BK1: CLASSEMENT A L'EXTERIEUR | CG1: =S1 -> CLASSEMENT GENERAL | CI1: =AO1 -> CLASSEMENT A DOMICILE | CK1: =BK1 -> CLASSEMENT A L'EXTERIEUR | CM1: =S1 -> CLASSEMENT GENERAL | DH1: =AO1 -> CLASSEMENT A DOMICILE | EC1: =BK1 -> CLASSEMENT A L'EXTERIEUR | EX1: =S1 -> CLASSEMENT GENERAL | EZ1: =AO1 -> CLASSEMENT A DOMICILE | FB1: =BK1 -> CLASSEMENT A L'EXTERIEUR | FD1: Dom. | FE1: Ext. | FF1: Dom. | FG1: Ext. | FH1: Dom. | FI1: Ext. | FJ1: Dom. | FK1: Ext. | FL1: Dom. | FM1: Ext. | FN1: Dom. | FO1: Ext. | FP1: Dom. | FQ1: Ext. | FR1: Dom. | FS1: Ext. | FT1: Dom. | FU1: Ext. | FV1: Dom. | FW1: Ext. | FX1: Dom. | FY1: Ext. | FZ1: Dom. | GA1: Ext. | GB1: Dom. | GC1: Ext. | GD1: Dom. | GE1: Ext. | GF1: Dom. | GG1: Ext. | GH1: Dom. | GI1: Ext. | GJ1: =S1 -> CLASSEMENT GENERAL | GN1: =AO1 -> CLASSEMENT A DOMICILE | GR1: =BK1 -> CLASSEMENT A L'EXTERIEUR
A2: Points de pénalités | B2: Equipes exclues, forfaits, matchs gagnés ou perdus sur tapis vert | C2: Equipes | D2: Points | E2: Bonus défensif Bd | F2: Essais | G2: Bonus offensif Bo | H2: Points | I2: Bonus défensif Bd | J2: Essais | K2: Bonus offensif Bo | L2: Equipes | M2: Equipes exclues, forfaits, matchs gagnés ou perdus sur tapis vert | N2: Points de pénalités | O2: Dates | P2: Horaires | Q2: Matchs à rejouer, annulés, arrêtés, avec réserves, reportés ou reprogrammés | S2: Place | T2: Equipes | U2: Logo | V2: Points | W2: Evolution | Y2: Joués | Z2: Gagnés | AA2: Nuls | AB2: Perdus | AC2: Points marqués | AD2: Moyenne par match | AE2: Points encaissés | AF2: Moyenne par match | AG2: +/- | AH2: Tous les bonus | AI2: Bonus offensif | AJ2: Bonus défensif | AK2: Bonus fédération | AL2: Essais marqués | AM2: Essais encaissés | AN2: +/- | AO2: Place | AP2: Equipes | AQ2: Logo | AR2: Points | AS2: Evolution | AU2: Joués | AV2: Gagnés | AW2: Nuls | AX2: Perdus | AY2: Points marqués | AZ2: Moyenne par match | BA2: Points encaissés | BB2: Moyenne par match | BC2: +/- | BD2: Tous les bonus | BE2: Bonus offensif | BF2: Bonus défensif | BG2: Bonus fédération | BH2: Essais marqués | BI2: Essais encaissés | BJ2: +/- | BK2: Place | BL2: Equipes | BM2: Logo | BN2: Points | BO2: Evolution | BQ2: Joués | BR2: Gagnés | BS2: Nuls | BT2: Perdus | BU2: Points marqués | BV2: Moyenne par match | BW2: Points encaissés | BX2: Moyenne par match | BY2: +/- | BZ2: Tous les bonus | CA2: Bonus offensif | CB2: Bonus défensif | CC2: Bonus fédération | CD2: Essais marqués | CE2: Essais encaissés | CF2: +/- | CG2: Rang | CH2: Place | CI2: Rang | CJ2: Place | CK2: Rang | CL2: Place | CM2: Equipes | CN2: Rang | CO2: Evolution | CQ2: Place | CR2: Points | CS2: Joués | CT2: Gagnés | CU2: Nuls | CV2: Perdus | CW2: Points marqués | CX2: Moyenne par match | CY2: Points encaissés | CZ2: Moyene par match | DA2: +/- | DB2: Bonus offensif | DC2: Bonus défensif | DD2: Bonus fédération | DE2: Essais marqués | DF2: Essais encaissés | DG2: +/- | DH2: Equipes | DI2: Rang | DJ2: Evolution | DL2: Place | DM2: Points | DN2: Joués | DO2: Gagnés | DP2: Nuls | DQ2: Perdus | DR2: Points marqués | DS2: Moyenne par match | DT2: Points encaissés | DU2: Moyenne par match | DV2: +/- | DW2: Bonus offensif | DX2: Bonus défensif | DY2: Bonus fédération | DZ2: Essais marqués | EA2: Essais encaissés | EB2: +/- | EC2: Equipes | ED2: Rang | EE2: Evolution | EG2: Place | EH2: Points | EI2: Joués | EJ2: Gagnés | EK2: Nuls | EL2: Perdus | EM2: Points marqués | EN2: Moyenne par match | EO2: Points encaissés | EP2: Moyenne par match | EQ2: +/- | ER2: Bonus offensif | ES2: Bonus défensif | ET2: Bonus fédération | EU2: Essais marqués | EV2: Essais encaissés | EW2: +/- | EX2: Rang | EY2: Place | EZ2: Rang | FA2: Place | FB2: Rang | FC2: Place | FD2: Points de pénalités | FE2: Points de pénalités | FF2: Pts | FG2: Pts | FH2: Bo | FI2: Bo | FJ2: Bd | FK2: Bd | FL2: T Pts | FM2: T Pts | FN2: T Pts | FO2: TPts | FP2: J annulé | FQ2: J annulé | FR2: J | FS2: J | FT2: Total J | FU2: Total J | FV2: G | FW2: G | FX2: N | FY2: N | FZ2: P | GA2: P | GB2: Pts + | GC2: Pts + | GD2: Pts - | GE2: Pts - | GF2: Essais + | GG2: Essais + | GH2: Essais - | GI2: Essais - | GJ2: Equipes | GK2: Rang | GL2: Place | GM2: Equipes | GN2: Equipes | GO2: Rang | GP2: Place | GQ2: Equipes | GR2: Equipes | GS2: Rang | GT2: Place | GU2: Equipes | GW2: ok | GX2: Dates et horaires des matchs prévus | GY2: Dates et horaires des matchs restant à jouer | GZ2: Date et horaire minimum à jouer | HA2: Date et horaire maximum à jouer | HC2: Total J | HD2: Total J
C3: Hyères | D3: 24 | E3: =IF(D3="","",IF(H3="","",IF(D3>H3,"",IF(D3=H3,"",IF(D3<H3,IF(SUM(H3-D3)<=7,"Bd","")))))) ->  | F3: 2 | G3: =IF(F3="","",IF(J3="","",IF(SUM(F3-J3)>=3,"Bo",""))) ->  | H3: 10 | I3: =IF(H3="","",IF(D3="","",IF(H3>D3,"",IF(H3=D3,"",IF(H3<D3,IF(SUM(D3-H3)<=7,"Bd","")))))) ->  | J3: 1 | K3: =IF(J3="","",IF(F3="","",IF(SUM(J3-F3)>=3,"Bo",""))) ->  | L3: Suresnes | O3: samedi 26 août 2023 | P3: 15:30:00 | S3: 1 | T3: =IFERROR(_xlfn.XLOOKUP(CG3,$CH$3:$CH$18,$CM$3:$CM$18),"") -> Blagnac | V3: =IFERROR(_xlfn.XLOOKUP(T3,$CM$3:$CM$18,$CR$3:$CR$18),"") -> 5 | W3: =IFERROR(_xlfn.XLOOKUP(T3,$CM$3:$CM$18,$CO$3:$CO$18),"") -> 0 | X3: =IFERROR(_xlfn.XLOOKUP(T3,$CM$3:$CM$18,$CP$3:$CP$18),"") -> u | Y3: =IFERROR(_xlfn.XLOOKUP(T3,$CM$3:$CM$18,$CS$3:$CS$18),"") -> 1 | Z3: =IFERROR(_xlfn.XLOOKUP(T3,$CM$3:$CM$18,$CT$3:$CT$18),"") -> 1 | AA3: =IFERROR(_xlfn.XLOOKUP(T3,$CM$3:$CM$18,$CU$3:$CU$18),"") -> 0 | AB3: =IFERROR(_xlfn.XLOOKUP(T3,$CM$3:$CM$18,$CV$3:$CV$18),"") -> 0 | AC3: =IFERROR(_xlfn.XLOOKUP(T3,$CM$3:$CM$18,$CW$3:$CW$18),"") -> 53 | AD3: =ROUND(AC3/Y3,0) -> 53 | AE3: =IFERROR(_xlfn.XLOOKUP(T3,$CM$3:$CM$18,$CY$3:$CY$18),"") -> 16 | AF3: =ROUND(AE3/Y3,0) -> 16 | AG3: =IFERROR(_xlfn.XLOOKUP(T3,$CM$3:$CM$18,$DA$3:$DA$18),"") -> 37 | AH3: =SUM(AI3:AK3) -> 1 | AI3: =IFERROR(_xlfn.XLOOKUP(T3,$CM$3:$CM$18,$DB$3:$DB$18),"") -> 1 | AJ3: =IFERROR(_xlfn.XLOOKUP(T3,$CM$3:$CM$18,$DC$3:$DC$18),"") -> 0 | AK3: 0 | AL3: =IFERROR(_xlfn.XLOOKUP(T3,$CM$3:$CM$18,$DE$3:$DE$18),"") -> 7 | AM3: =IFERROR(_xlfn.XLOOKUP(T3,$CM$3:$CM$18,$DF$3:$DF$18),"") -> 1 | AN3: =IFERROR(_xlfn.XLOOKUP(T3,$CM$3:$CM$18,$DG$3:$DG$18),"") -> 6 | AO3: 1 | AP3: =IFERROR(_xlfn.XLOOKUP(CI3,$CJ$3:$CJ$18,$DH$3:$DH$18),"") -> Blagnac | AR3: =IFERROR(_xlfn.XLOOKUP(AP3,$DH$3:$DH$18,$DM$3:$DM$18),"") -> 5 | AS3: =IFERROR(_xlfn.XLOOKUP(AP3,$DH$3:$DH$18,$DJ$3:$DJ$18),"") -> 0 | AT3: =IFERROR(_xlfn.XLOOKUP(AP3,$DH$3:$DH$18,$DK$3:$DK$18),"") -> u | AU3: =IFERROR(_xlfn.XLOOKUP(AP3,$DH$3:$DH$18,$DN$3:$DN$18),"") -> 1 | AV3: =IFERROR(_xlfn.XLOOKUP(AP3,$DH$3:$DH$18,$DO$3:$DO$18),"") -> 1 | AW3: =IFERROR(_xlfn.XLOOKUP(AP3,$DH$3:$DH$18,$DP$3:$DP$18),"") -> 0 | AX3: =IFERROR(_xlfn.XLOOKUP(AP3,$DH$3:$DH$18,$DQ$3:$DQ$18),"") -> 0 | AY3: =IFERROR(_xlfn.XLOOKUP(AP3,$DH$3:$DH$18,$DR$3:$DR$18),"") -> 53 | AZ3: =IFERROR(AY3/AU3,0) -> 53 | BA3: =IFERROR(_xlfn.XLOOKUP(AP3,$DH$3:$DH$18,$DT$3:$DT$18),"") -> 16 | BB3: =IFERROR(BA3/AU3,0) -> 16 | BC3: =IFERROR(_xlfn.XLOOKUP(AP3,$DH$3:$DH$18,$DV$3:$DV$18),"") -> 37 | BD3: =SUM(BE3:BG3) -> 1 | BE3: =IFERROR(_xlfn.XLOOKUP(AP3,$DH$3:$DH$18,$DW$3:$DW$18),"") -> 1 | BF3: =IFERROR(_xlfn.XLOOKUP(AP3,$DH$3:$DH$18,$DX$3:$DX$18),"") -> 0 | BG3: 0 | BH3: =IFERROR(_xlfn.XLOOKUP(AP3,$DH$3:$DH$18,$DZ$3:$DZ$18),"") -> 7 | BI3: =IFERROR(_xlfn.XLOOKUP(AP3,$DH$3:$DH$18,$EA$3:$EA$18),"") -> 1 | BJ3: =IFERROR(_xlfn.XLOOKUP(AP3,$DH$3:$DH$18,$EB$3:$EB$18),"") -> 6 | BK3: 1 | BL3: =IFERROR(_xlfn.XLOOKUP(CK3,$CL$3:$CL$18,$EC$3:$EC$18),"") -> Carcassonne | BN3: =IFERROR(_xlfn.XLOOKUP(BL3,$EC$3:$EC$18,$EH$3:$EH$18),"") -> 4 | BO3: =IFERROR(_xlfn.XLOOKUP(BL3,$EC$3:$EC$18,$EE$3:$EE$18),"") -> 0 | BP3: =IFERROR(_xlfn.XLOOKUP(BL3,$EC$3:$EC$18,$EF$3:$EF$18),"") -> u | BQ3: =IFERROR(_xlfn.XLOOKUP(BL3,$EC$3:$EC$18,$EI$3:$EI$18),"") -> 1 | BR3: =IFERROR(_xlfn.XLOOKUP(BL3,$EC$3:$EC$18,$EJ$3:$EJ$18),"") -> 1 | BS3: =IFERROR(_xlfn.XLOOKUP(BL3,$EC$3:$EC$18,$EK$3:$EK$18),"") -> 0 | BT3: =IFERROR(_xlfn.XLOOKUP(BL3,$EC$3:$EC$18,$EL$3:$EL$18),"") -> 0 | BU3: =IFERROR(_xlfn.XLOOKUP(BL3,$EC$3:$EC$18,$EM$3:$EM$18),"") -> 12 | BV3: =IFERROR(ROUND(BU3/BQ3,0),0) -> 12 | BW3: =IFERROR(_xlfn.XLOOKUP(BL3,$EC$3:$EC$18,$EO$3:$EO$18),"") -> 10 | BX3: =IFERROR(ROUND(BW3/BQ3,0),0) -> 10 | BY3: =IFERROR(_xlfn.XLOOKUP(BL3,$EC$3:$EC$18,$EQ$3:$EQ$18),"") -> 2 | BZ3: =SUM(CA3:CC3) -> 0 | CA3: =IFERROR(_xlfn.XLOOKUP(BL3,$EC$3:$EC$18,$ER$3:$ER$18),"") -> 0 | CB3: =IFERROR(_xlfn.XLOOKUP(BL3,$EC$3:$EC$18,$ES$3:$ES$18),"") -> 0 | CC3: 0 | CD3: =IFERROR(_xlfn.XLOOKUP(BL3,$EC$3:$EC$18,$EU$3:$EU$18),"") -> 0 | CE3: =IFERROR(_xlfn.XLOOKUP(BL3,$EC$3:$EC$18,$EV$3:$EV$18),"") -> 1 | CF3: =IFERROR(_xlfn.XLOOKUP(BL3,$EC$3:$EC$18,$EW$3:$EW$18),"") -> -1 | CG3: 1 | CH3: =CQ3 -> 12 | CI3: 1 | CJ3: =DL3 -> 8 | CK3: 1 | CL3: =EG3 -> 12 | CM3: =IF(Equipes!$C$2="","",Equipes!$C$2) -> Albi | CN3: =_xlfn.RANK.EQ(EX3,$EX$3:$EX$18) -> 12 | CO3: =CN3-CN3 -> 0 | CP3: u | CQ3: =_xlfn.RANK.EQ(EY3,$EY$3:$EY$18) -> 12 | CR3: =SUMPRODUCT(($C$3:$C$10=CM3)*($FN$3:$FN$10))+SUMPRODUCT(($L$3:$L$10=CM3)*($FO$3:$FO$10)) -> 0 | CS3: =SUMPRODUCT(($C$3:$C$10=CM3)*($FR$3:$FR$10))+SUMPRODUCT(($L$3:$L$10=CM3)*($FS$3:$FS$10)) -> 1 | CT3: =SUMPRODUCT(($C$3:$C$10=CM3)*($FV$3:$FV$10))+SUMPRODUCT(($L$3:$L$10=CM3)*($FW$3:$FW$10)) -> 0 | CU3: =SUMPRODUCT(($C$3:$C$10=CM3)*($FX$3:$FX$10))+SUMPRODUCT(($L$3:$L$10=CM3)*($FY$3:$FY$10)) -> 0 | CV3: =SUMPRODUCT(($C$3:$C$10=CM3)*($FZ$3:$FZ$10))+SUMPRODUCT(($L$3:$L$10=CM3)*($GA$3:$GA$10)) -> 1 | CW3: =SUMPRODUCT(($C$3:$C$10=CM3)*($GB$3:$GB$10))+SUMPRODUCT(($L$3:$L$10=CM3)*($GC$3:$GC$10)) -> 6 | CX3: =ROUND(CW3/CS3,0) -> 6 | CY3: =SUMPRODUCT(($C$3:$C$10=CM3)*($GD$3:$GD$10))+SUMPRODUCT(($L$3:$L$10=CM3)*($GE$3:$GE$10)) -> 17 | CZ3: =ROUND(CY3/CS3,0) -> 17 | DA3: =CW3-CY3 -> -11 | DB3: =SUMPRODUCT(($C$3:$C$10=CM3)*($FH$3:$FH$10))+SUMPRODUCT(($L$3:$L$10=CM3)*($FI$3:$FI$10)) -> 0 | DC3: =SUMPRODUCT(($C$3:$C$10=CM3)*($FJ$3:$FJ$10))+SUMPRODUCT(($L$3:$L$10=CM3)*($FK$3:$FK$10)) -> 0 | DD3: 0 | DE3: =SUMPRODUCT(($C$3:$C$10=CM3)*($GF$3:$GF$10))+SUMPRODUCT(($L$3:$L$10=CM3)*($GG$3:$GG$10)) -> 0 | DF3: =SUMPRODUCT(($C$3:$C$10=CM3)*($GH$3:$GH$10))+SUMPRODUCT(($L$3:$L$10=CM3)*($GI$3:$GI$10)) -> 1 | DG3: =DE3-DF3 -> -1 | DH3: =IF(Equipes!$C$2="","",Equipes!$C$2) -> Albi | DI3: =_xlfn.RANK.EQ(EZ3,$EZ$3:$EZ$18) -> 8 | DJ3: =DI3-DI3 -> 0 | DK3: u | DL3: =_xlfn.RANK.EQ(FA3,$FA$3:$FA$18) -> 8 | DM3: =SUMPRODUCT(($C$3:$C$10=DH3)*($FL$3:$FL$10)) -> 0 | DN3: =SUMPRODUCT(($C$3:$C$10=DH3)*($FR$3:$FR$10)) -> 0 | DO3: =SUMPRODUCT(($C$3:$C$10=DH3)*($FV$3:$FV$10)) -> 0 | DP3: =SUMPRODUCT(($C$3:$C$10=DH3)*($FX$3:$FX$10)) -> 0 | DQ3: =SUMPRODUCT(($C$3:$C$10=DH3)*($FZ$3:$FZ$10)) -> 0 | DR3: =SUMPRODUCT(($C$3:$C$10=DH3)*($GB$3:$GB$10)) -> 0 | DS3: =IFERROR(ROUND(DR3/DN3,0),0) -> 0 | DT3: =SUMPRODUCT(($C$3:$C$10=DH3)*($GD$3:$GD$10)) -> 0 | DU3: =IFERROR(ROUND(DT3/DN3,0),0) -> 0 | DV3: =DR3-DT3 -> 0 | DW3: =SUMPRODUCT(($C$3:$C$10=DH3)*($FH$3:$FH$10)) -> 0 | DX3: =SUMPRODUCT(($C$3:$C$10=DH3)*($FJ$3:$FJ$10)) -> 0 | DY3: 0 | DZ3: =SUMPRODUCT(($C$3:$C$10=DH3)*($GF$3:$GF$10)) -> 0 | EA3: =SUMPRODUCT(($C$3:$C$10=DH3)*($GH$3:$GH$10)) -> 0 | EB3: =DZ3-EA3 -> 0 | EC3: =IF(Equipes!$C$2="","",Equipes!$C$2) -> Albi | ED3: =_xlfn.RANK.EQ(FB3,$FB$3:$FB$18) -> 12 | EE3: =ED3-ED3 -> 0 | EF3: u | EG3: =_xlfn.RANK.EQ(FC3,$FC$3:$FC$18) -> 12 | EH3: =SUMPRODUCT(($L$3:$L$10=EC3)*($FM$3:$FM$10)) -> 0 | EI3: =SUMPRODUCT(($L$3:$L$10=EC3)*($FS$3:$FS$10)) -> 1 | EJ3: =SUMPRODUCT(($L$3:$L$10=EC3)*($FW$3:$FW$10)) -> 0 | EK3: =SUMPRODUCT(($L$3:$L$10=EC3)*($FY$3:$FY$10)) -> 0 | EL3: =SUMPRODUCT(($L$3:$L$10=EC3)*($GA$3:$GA$10)) -> 1 | EM3: =SUMPRODUCT(($L$3:$L$10=EC3)*($GC$3:$GC$10)) -> 6 | EN3: =IFERROR(ROUND(EM3/EI3,0),0) -> 6 | EO3: =SUMPRODUCT(($L$3:$L$10=EC3)*($GE$3:$GE$10)) -> 17 | EP3: =IFERROR(ROUND(EO3/EI3,0),0) -> 17 | EQ3: =EM3-EO3 -> -11 | ER3: =SUMPRODUCT(($L$3:$L$10=EC3)*($FI$3:$FI$10)) -> 0 | ES3: =SUMPRODUCT(($L$3:$L$10=EC3)*($FK$3:$FK$10)) -> 0 | ET3: 0 | EU3: =SUMPRODUCT(($L$3:$L$10=EC3)*($GG$3:$GG$10)) -> 0 | EV3: =SUMPRODUCT(($L$3:$L$10=EC3)*($GI$3:$GI$10)) -> 1 | EW3: =EU3-EV3 -> -1 | EX3: =SUM(CR3*1000)+(DA3/100)+(CW3/10000) -> -0.1094 | EY3: =EX3+0.00000014 -> -0.10939986 | EZ3: =SUM(DM3*1000)+(DV3/100)+(DR3/10000) -> 0 | FA3: =EZ3+0.00000014 -> 1.4e-07 | FB3: =SUM(EH3*1000)+(EQ3/100)+(EM3/10000) -> -0.1094 | FC3: =FB3+0.00000014 -> -0.10939986 | FD3: =A3 -> 0 | FE3: =N3 -> 0 | FF3: =IF(D3="",0,IF(H3="",0,IF(D3>H3,4,IF(D3=H3,2,IF(D3<H3,0))))) -> 4 | FG3: =IF(H3="",0,IF(D3="",0,IF(H3>D3,4,IF(H3=D3,2,IF(H3<D3,0))))) -> 0 | FH3: =IF(F3<>"",IF(SUM(F3-J3)>=3,1)) -> FALSE | FI3: =IF(J3<>"",IF(SUM(J3-F3)>=3,1)) -> FALSE | FJ3: =IF(D3<>"",IF(D3<H3,IF(SUM(H3-D3)<=7,1))) -> FALSE | FK3: =IF(H3<>"",IF(H3<D3,IF(SUM(D3-H3)<=7,1))) -> FALSE | FL3: =SUM(FF3,FH3,FJ3) -> 4 | FM3: 0 | FN3: =FL3-FD3 -> 4 | FO3: 0 | FP3: =IF(Q3="Match annulé",1,"") ->  | FQ3: =IF(Q3="Match annulé",1,"") ->  | FR3: =IF(D3="",0,1) -> 1 | FS3: =IF(H3="",0,1) -> 1 | FT3: =IF(SUM(FP3,FR3)<>0,SUM(FP3,FR3),0) -> 1 | FU3: 1 | FV3: =IF(D3<>"",IF(D3>H3,1)) -> 1 | FW3: =IF(H3<>"",IF(H3>D3,1)) -> FALSE | FX3: =IF(D3<>"",IF(D3=H3,1)) -> FALSE | FY3: =IF(H3<>"",IF(H3=D3,1)) -> FALSE | FZ3: =IF(D3<>"",IF(D3<H3,1)) -> FALSE | GA3: =IF(H3<>"",IF(H3<D3,1)) -> 1 | GB3: =D3 -> 24 | GC3: =H3 -> 10 | GD3: =H3 -> 10 | GE3: =D3 -> 24 | GF3: =F3 -> 2 | GG3: =J3 -> 1 | GH3: =J3 -> 1 | GI3: =F3 -> 2 | GJ3: =IFERROR(_xlfn.XLOOKUP(CG3,$CH$3:$CH$18,$CM$3:$CM$18),"") -> Blagnac | GK3: =IFERROR(_xlfn.XLOOKUP(GJ3,$CM$3:$CM$18,$EX$3:$EX$18),"") -> 5000.3753 | GL3: =IF(GK3="","",_xlfn.RANK.EQ(GK3,GK3:GK18)) -> 1 | GM3: =IF(CM3="","",CM3) -> Albi | GN3: =IFERROR(_xlfn.XLOOKUP(CI3,$CJ$3:$CJ$18,$DH$3:$DH$18),"") -> Blagnac | GO3: =IFERROR(_xlfn.XLOOKUP(GN3,$DH$3:$DH$18,$EZ$3:$EZ$18),"") -> 5000.3753 | GP3: =IF(GO3="","",_xlfn.RANK.EQ(GO3,GO3:GO18)) -> 1 | GQ3: =IF(DH3="","",DH3) -> Albi | GR3: =IFERROR(_xlfn.XLOOKUP(CK3,$CL$3:$CL$18,$EC$3:$EC$18),"") -> Carcassonne | GS3: =IFERROR(_xlfn.XLOOKUP(GR3,$EC$3:$EC$18,$FB$3:$FB$18),"") -> 4000.0212 | GT3: =IF(GS3="","",_xlfn.RANK.EQ(GS3,GS3:GS18)) -> 1 | GU3: =IF(EC3="","",EC3) -> Albi | GW3: =IF(AND(H3="",Q3=""),"",IF(AND(H3>=0,Q3=""),"ok",IF(AND(H3="",Q3="Match à rejouer"),"ok",IF(AND(H3="",Q3="Match annulé"),"ok",IF(AND(H3="",Q3="Match arrêté"),"ok",IF(AND(H3="",Q3="Match avec réserves"),"ok",IF(AND(H3="",Q3="Match reporté"),"ok",IF(AND(H3="",Q3="Match reprogrammé"),"")))))))) -> ok | GX3: =IF(O3="","",IF(P3="","",O3+P3)) ->  | GY3: =IF(O3="","",IF(P3="","",IF(GW3="ok","",O3+P3))) ->  | GZ3: =MIN(GY3:GY9) -> 00:00:00 | HA3: =MAX(GY3:GY9) -> 00:00:00 | HC3: =IF(SUM(FP3,FR3)<>0,SUM(FP3,FR3),"") -> 1 | HD3: =IF(SUM(FQ3,FS3)<>0,SUM(FQ3,FS3),"") -> 1
C4: Massy | D4: 20 | F4: 2 | H4: 13 | I4: Bd | J4: 1 | L4: Tarbes | O4: samedi 26 août 2023 | P4: 17:30:00 | S4: =IF(GK4=GK3,GL3,GL4) -> 2 | T4: Hyères | V4: 4 | W4: 0 | X4: u | Y4: 1 | Z4: 1 | AA4: 0 | AB4: 0 | AC4: 24 | AD4: =ROUND(AC4/Y4,0) -> 24 | AE4: 10 | AF4: =ROUND(AE4/Y4,0) -> 10 | AG4: 14 | AH4: =SUM(AI4:AK4) -> 0 | AI4: 0 | AJ4: 0 | AK4: 0 | AL4: 2 | AM4: 1 | AN4: 1 | AO4: =IF(GO4=GO3,GP3,GP4) -> 2 | AP4: Hyères | AR4: 4 | AS4: 0 | AT4: u | AU4: 1 | AV4: 1 | AW4: 0 | AX4: 0 | AY4: 24 | AZ4: =IFERROR(AY4/AU4,0) -> 24 | BA4: 10 | BB4: =IFERROR(BA4/AU4,0) -> 10 | BC4: 14 | BD4: =SUM(BE4:BG4) -> 0 | BE4: 0 | BF4: 0 | BG4: 0 | BH4: 2 | BI4: 1 | BJ4: 1 | BK4: =IF(GS4=GS3,GT3,GT4) -> 2 | BL4: Tarbes | BN4: 1 | BO4: 0 | BP4: u | BQ4: 1 | BR4: 0 | BS4: 0 | BT4: 1 | BU4: 13 | BV4: =IFERROR(ROUND(BU4/BQ4,0),0) -> 13 | BW4: 20 | BX4: =IFERROR(ROUND(BW4/BQ4,0),0) -> 20 | BY4: -7 | BZ4: =SUM(CA4:CC4) -> 1 | CA4: 0 | CB4: 1 | CC4: 0 | CD4: 1 | CE4: 2 | CF4: -1 | CG4: 2 | CH4: 1 | CI4: 2 | CJ4: 1 | CK4: 2 | CL4: 3 | CM4: =IF(Equipes!$C$3="","",Equipes!$C$3) -> Blagnac | CN4: 1 | CO4: 0 | CP4: u | CQ4: 1 | CR4: =SUMPRODUCT(($C$3:$C$10=CM4)*($FN$3:$FN$10))+SUMPRODUCT(($L$3:$L$10=CM4)*($FO$3:$FO$10)) -> 5 | CS4: =SUMPRODUCT(($C$3:$C$10=CM4)*($FR$3:$FR$10))+SUMPRODUCT(($L$3:$L$10=CM4)*($FS$3:$FS$10)) -> 1 | CT4: =SUMPRODUCT(($C$3:$C$10=CM4)*($FV$3:$FV$10))+SUMPRODUCT(($L$3:$L$10=CM4)*($FW$3:$FW$10)) -> 1 | CU4: =SUMPRODUCT(($C$3:$C$10=CM4)*($FX$3:$FX$10))+SUMPRODUCT(($L$3:$L$10=CM4)*($FY$3:$FY$10)) -> 0 | CV4: =SUMPRODUCT(($C$3:$C$10=CM4)*($FZ$3:$FZ$10))+SUMPRODUCT(($L$3:$L$10=CM4)*($GA$3:$GA$10)) -> 0 | CW4: =SUMPRODUCT(($C$3:$C$10=CM4)*($GB$3:$GB$10))+SUMPRODUCT(($L$3:$L$10=CM4)*($GC$3:$GC$10)) -> 53 | CX4: =ROUND(CW4/CS4,0) -> 53 | CY4: =SUMPRODUCT(($C$3:$C$10=CM4)*($GD$3:$GD$10))+SUMPRODUCT(($L$3:$L$10=CM4)*($GE$3:$GE$10)) -> 16 | CZ4: =ROUND(CY4/CS4,0) -> 16 | DA4: 37 | DB4: =SUMPRODUCT(($C$3:$C$10=CM4)*($FH$3:$FH$10))+SUMPRODUCT(($L$3:$L$10=CM4)*($FI$3:$FI$10)) -> 1 | DC4: =SUMPRODUCT(($C$3:$C$10=CM4)*($FJ$3:$FJ$10))+SUMPRODUCT(($L$3:$L$10=CM4)*($FK$3:$FK$10)) -> 0 | DD4: 0 | DE4: =SUMPRODUCT(($C$3:$C$10=CM4)*($GF$3:$GF$10))+SUMPRODUCT(($L$3:$L$10=CM4)*($GG$3:$GG$10)) -> 7 | DF4: =SUMPRODUCT(($C$3:$C$10=CM4)*($GH$3:$GH$10))+SUMPRODUCT(($L$3:$L$10=CM4)*($GI$3:$GI$10)) -> 1 | DG4: 6 | DH4: =IF(Equipes!$C$3="","",Equipes!$C$3) -> Blagnac | DI4: 1 | DJ4: 0 | DK4: u | DL4: 1 | DM4: =SUMPRODUCT(($C$3:$C$10=DH4)*($FL$3:$FL$10)) -> 5 | DN4: =SUMPRODUCT(($C$3:$C$10=DH4)*($FR$3:$FR$10)) -> 1 | DO4: =SUMPRODUCT(($C$3:$C$10=DH4)*($FV$3:$FV$10)) -> 1 | DP4: =SUMPRODUCT(($C$3:$C$10=DH4)*($FX$3:$FX$10)) -> 0 | DQ4: =SUMPRODUCT(($C$3:$C$10=DH4)*($FZ$3:$FZ$10)) -> 0 | DR4: =SUMPRODUCT(($C$3:$C$10=DH4)*($GB$3:$GB$10)) -> 53 | DS4: =IFERROR(ROUND(DR4/DN4,0),0) -> 53 | DT4: =SUMPRODUCT(($C$3:$C$10=DH4)*($GD$3:$GD$10)) -> 16 | DU4: =IFERROR(ROUND(DT4/DN4,0),0) -> 16 | DV4: 37 | DW4: =SUMPRODUCT(($C$3:$C$10=DH4)*($FH$3:$FH$10)) -> 1 | DX4: =SUMPRODUCT(($C$3:$C$10=DH4)*($FJ$3:$FJ$10)) -> 0 | DY4: 0 | DZ4: =SUMPRODUCT(($C$3:$C$10=DH4)*($GF$3:$GF$10)) -> 7 | EA4: =SUMPRODUCT(($C$3:$C$10=DH4)*($GH$3:$GH$10)) -> 1 | EB4: 6 | EC4: =IF(Equipes!$C$3="","",Equipes!$C$3) -> Blagnac | ED4: 3 | EE4: 0 | EF4: u | EG4: 3 | EH4: =SUMPRODUCT(($L$3:$L$10=EC4)*($FM$3:$FM$10)) -> 0 | EI4: =SUMPRODUCT(($L$3:$L$10=EC4)*($FS$3:$FS$10)) -> 0 | EJ4: =SUMPRODUCT(($L$3:$L$10=EC4)*($FW$3:$FW$10)) -> 0 | EK4: =SUMPRODUCT(($L$3:$L$10=EC4)*($FY$3:$FY$10)) -> 0 | EL4: =SUMPRODUCT(($L$3:$L$10=EC4)*($GA$3:$GA$10)) -> 0 | EM4: =SUMPRODUCT(($L$3:$L$10=EC4)*($GC$3:$GC$10)) -> 0 | EN4: =IFERROR(ROUND(EM4/EI4,0),0) -> 0 | EO4: =SUMPRODUCT(($L$3:$L$10=EC4)*($GE$3:$GE$10)) -> 0 | EP4: =IFERROR(ROUND(EO4/EI4,0),0) -> 0 | EQ4: 0 | ER4: 1 | ES4: =SUMPRODUCT(($L$3:$L$10=EC4)*($FK$3:$FK$10)) -> 0 | ET4: 0 | EU4: =SUMPRODUCT(($L$3:$L$10=EC4)*($GG$3:$GG$10)) -> 0 | EV4: =SUMPRODUCT(($L$3:$L$10=EC4)*($GI$3:$GI$10)) -> 0 | EW4: 0 | EX4: 5000.3753 | EY4: =EX4+0.00000013 -> 5000.3753 | EZ4: =SUM(DM4*1000)+(DV4/100)+(DR4/10000) -> 5000.3753 | FA4: =EZ4+0.00000013 -> 5000.3753 | FB4: =SUM(EH4*1000)+(EQ4/100)+(EM4/10000) -> 0 | FC4: =FB4+0.00000013 -> 1.3e-07 | FD4: 0 | FE4: 0 | FF4: 4 | FG4: 0 | FH4: FALSE | FI4: FALSE | FJ4: FALSE | FK4: 1 | FL4: 4 | FM4: 1 | FN4: 4 | FO4: 1 | FR4: 1 | FS4: 1 | FT4: 1 | FU4: 1 | FV4: 1 | FW4: FALSE | FX4: FALSE | FY4: FALSE | FZ4: FALSE | GA4: 1 | GB4: 20 | GC4: 13 | GD4: 13 | GE4: 20 | GF4: 2 | GG4: 1 | GH4: 1 | GI4: 2 | GJ4: Hyères | GK4: 4000.1424 | GL4: =IF(GK4="","",_xlfn.RANK.EQ(GK4,GK3:GK18)) -> 2 | GM4: Blagnac | GN4: Hyères | GO4: =IFERROR(_xlfn.XLOOKUP(GN4,$DH$3:$DH$18,$EZ$3:$EZ$18),"") -> 4000.1424 | GP4: =IF(GO4="","",_xlfn.RANK.EQ(GO4,GO3:GO18)) -> 2 | GQ4: =IF(DH4="","",DH4) -> Blagnac | GR4: Tarbes | GS4: =IFERROR(_xlfn.XLOOKUP(GR4,$EC$3:$EC$18,$FB$3:$FB$18),"") -> 999.9313 | GT4: =IF(GS4="","",_xlfn.RANK.EQ(GS4,GS3:GS18)) -> 2 | GU4: =IF(EC4="","",EC4) -> Blagnac | GW4: ok | HC4: =IF(SUM(FP4,FR4)<>0,SUM(FP4,FR4),"") -> 1 | HD4: =IF(SUM(FQ4,FS4)<>0,SUM(FQ4,FS4),"") -> 1
C5: Blagnac | D5: 53 | F5: 7 | G5: Bo | H5: 16 | J5: 1 | L5: Vienne | O5: samedi 26 août 2023 | P5: 18:00:00 | S5: 3 | T5: Périgueux | V5: 4 | W5: 0 | X5: u | Y5: 1 | Z5: 1 | AA5: 0 | AB5: 0 | AC5: 25 | AD5: 25 | AE5: 14 | AF5: 14 | AG5: 11 | AH5: 0 | AI5: 0 | AJ5: 0 | AK5: 0 | AL5: 3 | AM5: 2 | AN5: 1 | AO5: 3 | AP5: Périgueux | AR5: 4 | AS5: 0 | AT5: u | AU5: 1 | AV5: 1 | AW5: 0 | AX5: 0 | AY5: 25 | AZ5: 25 | BA5: 14 | BB5: 14 | BC5: 11 | BD5: 0 | BE5: 0 | BF5: 0 | BG5: 0 | BH5: 3 | BI5: 2 | BJ5: 1 | BK5: 3 | BL5: Blagnac | BN5: 0 | BO5: 0 | BP5: u | BQ5: 0 | BR5: 0 | BS5: 0 | BT5: 0 | BU5: 0 | BV5: 0 | BW5: 0 | BX5: 0 | BY5: 0 | BZ5: 1 | CA5: 1 | CB5: 0 | CC5: 0 | CD5: 0 | CE5: 0 | CF5: 0 | CG5: 3 | CH5: 8 | CI5: 3 | CJ5: 7 | CK5: 3 | CL5: 4 | CM5: =IF(Equipes!$C$4="","",Equipes!$C$4) -> Bourg-en-Bresse | CN5: 8 | CO5: 0 | CP5: u | CQ5: 8 | CR5: =SUMPRODUCT(($C$3:$C$10=CM5)*($FN$3:$FN$10))+SUMPRODUCT(($L$3:$L$10=CM5)*($FO$3:$FO$10)) -> 1 | CS5: =SUMPRODUCT(($C$3:$C$10=CM5)*($FR$3:$FR$10))+SUMPRODUCT(($L$3:$L$10=CM5)*($FS$3:$FS$10)) -> 1 | CT5: =SUMPRODUCT(($C$3:$C$10=CM5)*($FV$3:$FV$10))+SUMPRODUCT(($L$3:$L$10=CM5)*($FW$3:$FW$10)) -> 0 | CU5: =SUMPRODUCT(($C$3:$C$10=CM5)*($FX$3:$FX$10))+SUMPRODUCT(($L$3:$L$10=CM5)*($FY$3:$FY$10)) -> 0 | CV5: =SUMPRODUCT(($C$3:$C$10=CM5)*($FZ$3:$FZ$10))+SUMPRODUCT(($L$3:$L$10=CM5)*($GA$3:$GA$10)) -> 1 | CW5: =SUMPRODUCT(($C$3:$C$10=CM5)*($GB$3:$GB$10))+SUMPRODUCT(($L$3:$L$10=CM5)*($GC$3:$GC$10)) -> 10 | CX5: 10 | CY5: =SUMPRODUCT(($C$3:$C$10=CM5)*($GD$3:$GD$10))+SUMPRODUCT(($L$3:$L$10=CM5)*($GE$3:$GE$10)) -> 12 | CZ5: 12 | DA5: -2 | DB5: =SUMPRODUCT(($C$3:$C$10=CM5)*($FH$3:$FH$10))+SUMPRODUCT(($L$3:$L$10=CM5)*($FI$3:$FI$10)) -> 0 | DC5: =SUMPRODUCT(($C$3:$C$10=CM5)*($FJ$3:$FJ$10))+SUMPRODUCT(($L$3:$L$10=CM5)*($FK$3:$FK$10)) -> 1 | DD5: 0 | DE5: =SUMPRODUCT(($C$3:$C$10=CM5)*($GF$3:$GF$10))+SUMPRODUCT(($L$3:$L$10=CM5)*($GG$3:$GG$10)) -> 1 | DF5: =SUMPRODUCT(($C$3:$C$10=CM5)*($GH$3:$GH$10))+SUMPRODUCT(($L$3:$L$10=CM5)*($GI$3:$GI$10)) -> 0 | DG5: 1 | DH5: =IF(Equipes!$C$4="","",Equipes!$C$4) -> Bourg-en-Bresse | DI5: 7 | DJ5: 0 | DK5: u | DL5: 7 | DM5: =SUMPRODUCT(($C$3:$C$10=DH5)*($FL$3:$FL$10)) -> 1 | DN5: =SUMPRODUCT(($C$3:$C$10=DH5)*($FR$3:$FR$10)) -> 1 | DO5: =SUMPRODUCT(($C$3:$C$10=DH5)*($FV$3:$FV$10)) -> 0 | DP5: =SUMPRODUCT(($C$3:$C$10=DH5)*($FX$3:$FX$10)) -> 0 | DQ5: =SUMPRODUCT(($C$3:$C$10=DH5)*($FZ$3:$FZ$10)) -> 1 | DR5: =SUMPRODUCT(($C$3:$C$10=DH5)*($GB$3:$GB$10)) -> 10 | DS5: 10 | DT5: =SUMPRODUCT(($C$3:$C$10=DH5)*($GD$3:$GD$10)) -> 12 | DU5: 12 | DV5: -2 | DW5: =SUMPRODUCT(($C$3:$C$10=DH5)*($FH$3:$FH$10)) -> 0 | DX5: =SUMPRODUCT(($C$3:$C$10=DH5)*($FJ$3:$FJ$10)) -> 1 | DY5: 0 | DZ5: =SUMPRODUCT(($C$3:$C$10=DH5)*($GF$3:$GF$10)) -> 1 | EA5: =SUMPRODUCT(($C$3:$C$10=DH5)*($GH$3:$GH$10)) -> 0 | EB5: 1 | EC5: =IF(Equipes!$C$4="","",Equipes!$C$4) -> Bourg-en-Bresse | ED5: 3 | EE5: 0 | EF5: u | EG5: 4 | EH5: =SUMPRODUCT(($L$3:$L$10=EC5)*($FM$3:$FM$10)) -> 0 | EI5: =SUMPRODUCT(($L$3:$L$10=EC5)*($FS$3:$FS$10)) -> 0 | EJ5: =SUMPRODUCT(($L$3:$L$10=EC5)*($FW$3:$FW$10)) -> 0 | EK5: =SUMPRODUCT(($L$3:$L$10=EC5)*($FY$3:$FY$10)) -> 0 | EL5: =SUMPRODUCT(($L$3:$L$10=EC5)*($GA$3:$GA$10)) -> 0 | EM5: =SUMPRODUCT(($L$3:$L$10=EC5)*($GC$3:$GC$10)) -> 0 | EN5: 0 | EO5: =SUMPRODUCT(($L$3:$L$10=EC5)*($GE$3:$GE$10)) -> 0 | EP5: 0 | EQ5: 0 | ER5: =SUMPRODUCT(($L$3:$L$10=EC5)*($FI$3:$FI$10)) -> 0 | ES5: 1 | ET5: 0 | EU5: =SUMPRODUCT(($L$3:$L$10=EC5)*($GG$3:$GG$10)) -> 0 | EV5: =SUMPRODUCT(($L$3:$L$10=EC5)*($GI$3:$GI$10)) -> 0 | EW5: 0 | EX5: 999.981 | EY5: =EX5+0.00000012 -> 999.9810001 | EZ5: 999.981 | FA5: =EZ5+0.00000012 -> 999.9810001 | FB5: 0 | FC5: =FB5+0.00000012 -> 1.2e-07 | FD5: 0 | FE5: 0 | FF5: 4 | FG5: 0 | FH5: 1 | FI5: FALSE | FJ5: FALSE | FK5: FALSE | FL5: 5 | FM5: 0 | FN5: 5 | FO5: 0 | FR5: 1 | FS5: 1 | FT5: 1 | FU5: 1 | FV5: 1 | FW5: FALSE | FX5: FALSE | FY5: FALSE | FZ5: FALSE | GA5: 1 | GB5: 53 | GC5: 16 | GD5: 16 | GE5: 53 | GF5: 7 | GG5: 1 | GH5: 1 | GI5: 7 | GJ5: Périgueux | GK5: 4000.1125 | GL5: =IF(GK5="","",_xlfn.RANK.EQ(GK5,GK3:GK18)) -> 3 | GM5: Bourg-en-Bresse | GN5: Périgueux | GO5: 4000.1125 | GP5: =IF(GO5="","",_xlfn.RANK.EQ(GO5,GO3:GO18)) -> 3 | GQ5: Bourg-en-Bresse | GR5: Blagnac | GS5: 0 | GT5: =IF(GS5="","",_xlfn.RANK.EQ(GS5,GS3:GS18)) -> 3 | GU5: Bourg-en-Bresse | GW5: ok | HC5: 1 | HD5: 1
C6: Périgueux | D6: 25 | F6: 3 | H6: 14 | J6: 2 | L6: Nice | O6: samedi 26 août 2023 | P6: 18:00:00 | S6: 4 | T6: Bourgoin-Jallieu | V6: 4 | W6: 0 | X6: u | Y6: 1 | Z6: 1 | AA6: 0 | AB6: 0 | AC6: 17 | AD6: 17 | AE6: 6 | AF6: 6 | AG6: 11 | AH6: 0 | AI6: 0 | AJ6: 0 | AK6: 0 | AL6: 1 | AM6: 0 | AN6: 1 | AO6: 4 | AP6: Bourgoin-Jallieu | AR6: 4 | AS6: 0 | AT6: u | AU6: 1 | AV6: 1 | AW6: 0 | AX6: 0 | AY6: 17 | AZ6: 17 | BA6: 6 | BB6: 6 | BC6: 11 | BD6: 0 | BE6: 0 | BF6: 0 | BG6: 0 | BH6: 1 | BI6: 0 | BJ6: 1 | BK6: 3 | BL6: Bourg-en-Bresse | BN6: 0 | BO6: 0 | BP6: u | BQ6: 0 | BR6: 0 | BS6: 0 | BT6: 0 | BU6: 0 | BV6: 0 | BW6: 0 | BX6: 0 | BY6: 0 | BZ6: 1 | CA6: 0 | CB6: 1 | CC6: 0 | CD6: 0 | CE6: 0 | CF6: 0 | CG6: 4 | CH6: 4 | CI6: 4 | CJ6: 4 | CK6: 4 | CL6: 5 | CM6: =IF(Equipes!$C$5="","",Equipes!$C$5) -> Bourgoin-Jallieu | CN6: 4 | CO6: 0 | CP6: u | CQ6: 4 | CR6: =SUMPRODUCT(($C$3:$C$10=CM6)*($FN$3:$FN$10))+SUMPRODUCT(($L$3:$L$10=CM6)*($FO$3:$FO$10)) -> 4 | CS6: =SUMPRODUCT(($C$3:$C$10=CM6)*($FR$3:$FR$10))+SUMPRODUCT(($L$3:$L$10=CM6)*($FS$3:$FS$10)) -> 1 | CT6: =SUMPRODUCT(($C$3:$C$10=CM6)*($FV$3:$FV$10))+SUMPRODUCT(($L$3:$L$10=CM6)*($FW$3:$FW$10)) -> 1 | CU6: =SUMPRODUCT(($C$3:$C$10=CM6)*($FX$3:$FX$10))+SUMPRODUCT(($L$3:$L$10=CM6)*($FY$3:$FY$10)) -> 0 | CV6: =SUMPRODUCT(($C$3:$C$10=CM6)*($FZ$3:$FZ$10))+SUMPRODUCT(($L$3:$L$10=CM6)*($GA$3:$GA$10)) -> 0 | CW6: =SUMPRODUCT(($C$3:$C$10=CM6)*($GB$3:$GB$10))+SUMPRODUCT(($L$3:$L$10=CM6)*($GC$3:$GC$10)) -> 17 | CX6: 17 | CY6: =SUMPRODUCT(($C$3:$C$10=CM6)*($GD$3:$GD$10))+SUMPRODUCT(($L$3:$L$10=CM6)*($GE$3:$GE$10)) -> 6 | CZ6: 6 | DA6: 11 | DB6: =SUMPRODUCT(($C$3:$C$10=CM6)*($FH$3:$FH$10))+SUMPRODUCT(($L$3:$L$10=CM6)*($FI$3:$FI$10)) -> 0 | DC6: =SUMPRODUCT(($C$3:$C$10=CM6)*($FJ$3:$FJ$10))+SUMPRODUCT(($L$3:$L$10=CM6)*($FK$3:$FK$10)) -> 0 | DD6: 0 | DE6: =SUMPRODUCT(($C$3:$C$10=CM6)*($GF$3:$GF$10))+SUMPRODUCT(($L$3:$L$10=CM6)*($GG$3:$GG$10)) -> 1 | DF6: =SUMPRODUCT(($C$3:$C$10=CM6)*($GH$3:$GH$10))+SUMPRODUCT(($L$3:$L$10=CM6)*($GI$3:$GI$10)) -> 0 | DG6: 1 | DH6: =IF(Equipes!$C$5="","",Equipes!$C$5) -> Bourgoin-Jallieu | DI6: 4 | DJ6: 0 | DK6: u | DL6: 4 | DM6: =SUMPRODUCT(($C$3:$C$10=DH6)*($FL$3:$FL$10)) -> 4 | DN6: =SUMPRODUCT(($C$3:$C$10=DH6)*($FR$3:$FR$10)) -> 1 | DO6: =SUMPRODUCT(($C$3:$C$10=DH6)*($FV$3:$FV$10)) -> 1 | DP6: =SUMPRODUCT(($C$3:$C$10=DH6)*($FX$3:$FX$10)) -> 0 | DQ6: =SUMPRODUCT(($C$3:$C$10=DH6)*($FZ$3:$FZ$10)) -> 0 | DR6: =SUMPRODUCT(($C$3:$C$10=DH6)*($GB$3:$GB$10)) -> 17 | DS6: 17 | DT6: =SUMPRODUCT(($C$3:$C$10=DH6)*($GD$3:$GD$10)) -> 6 | DU6: 6 | DV6: 11 | DW6: =SUMPRODUCT(($C$3:$C$10=DH6)*($FH$3:$FH$10)) -> 0 | DX6: =SUMPRODUCT(($C$3:$C$10=DH6)*($FJ$3:$FJ$10)) -> 0 | DY6: 0 | DZ6: =SUMPRODUCT(($C$3:$C$10=DH6)*($GF$3:$GF$10)) -> 1 | EA6: =SUMPRODUCT(($C$3:$C$10=DH6)*($GH$3:$GH$10)) -> 0 | EB6: 1 | EC6: =IF(Equipes!$C$5="","",Equipes!$C$5) -> Bourgoin-Jallieu | ED6: 3 | EE6: 0 | EF6: u | EG6: 5 | EH6: =SUMPRODUCT(($L$3:$L$10=EC6)*($FM$3:$FM$10)) -> 0 | EI6: =SUMPRODUCT(($L$3:$L$10=EC6)*($FS$3:$FS$10)) -> 0 | EJ6: =SUMPRODUCT(($L$3:$L$10=EC6)*($FW$3:$FW$10)) -> 0 | EK6: =SUMPRODUCT(($L$3:$L$10=EC6)*($FY$3:$FY$10)) -> 0 | EL6: =SUMPRODUCT(($L$3:$L$10=EC6)*($GA$3:$GA$10)) -> 0 | EM6: =SUMPRODUCT(($L$3:$L$10=EC6)*($GC$3:$GC$10)) -> 0 | EN6: 0 | EO6: =SUMPRODUCT(($L$3:$L$10=EC6)*($GE$3:$GE$10)) -> 0 | EP6: 0 | EQ6: 0 | ER6: =SUMPRODUCT(($L$3:$L$10=EC6)*($FI$3:$FI$10)) -> 0 | ES6: =SUMPRODUCT(($L$3:$L$10=EC6)*($FK$3:$FK$10)) -> 0 | ET6: 0 | EU6: =SUMPRODUCT(($L$3:$L$10=EC6)*($GG$3:$GG$10)) -> 0 | EV6: =SUMPRODUCT(($L$3:$L$10=EC6)*($GI$3:$GI$10)) -> 0 | EW6: 0 | EX6: 4000.1117 | EY6: =EX6+0.00000011 -> 4000.1117 | EZ6: 4000.1117 | FA6: =EZ6+0.00000011 -> 4000.1117 | FB6: 0 | FC6: =FB6+0.00000011 -> 1.1e-07 | FD6: 0 | FE6: 0 | FF6: 4 | FG6: 0 | FH6: FALSE | FI6: FALSE | FJ6: FALSE | FK6: FALSE | FL6: 4 | FM6: 0 | FN6: 4 | FO6: 0 | FR6: 1 | FS6: 1 | FT6: 1 | FU6: 1 | FV6: 1 | FW6: FALSE | FX6: FALSE | FY6: FALSE | FZ6: FALSE | GA6: 1 | GB6: 25 | GC6: 14 | GD6: 14 | GE6: 25 | GF6: 3 | GG6: 2 | GH6: 2 | GI6: 3 | GJ6: Bourgoin-Jallieu | GK6: 4000.1117 | GL6: =IF(GK6="","",_xlfn.RANK.EQ(GK6,GK3:GK18)) -> 4 | GM6: Bourgoin-Jallieu | GN6: Bourgoin-Jallieu | GO6: 4000.1117 | GP6: =IF(GO6="","",_xlfn.RANK.EQ(GO6,GO3:GO18)) -> 4 | GQ6: Bourgoin-Jallieu | GR6: Bourg-en-Bresse | GS6: 0 | GT6: =IF(GS6="","",_xlfn.RANK.EQ(GS6,GS3:GS18)) -> 3 | GU6: Bourgoin-Jallieu | GW6: ok | HC6: 1 | HD6: 1
C7: Bourgoin-Jallieu | D7: 17 | F7: 1 | H7: 6 | J7: 0 | L7: Albi | O7: samedi 26 août 2023 | P7: 19:00:00 | S7: 5 | T7: Narbonne | V7: 4 | W7: 0 | X7: u | Y7: 1 | Z7: 1 | AA7: 0 | AB7: 0 | AC7: 17 | AD7: 17 | AE7: 9 | AF7: 9 | AG7: 8 | AH7: 0 | AI7: 0 | AJ7: 0 | AK7: 0 | AL7: 2 | AM7: 0 | AN7: 2 | AO7: 5 | AP7: Narbonne | AR7: 4 | AS7: 0 | AT7: u | AU7: 1 | AV7: 1 | AW7: 0 | AX7: 0 | AY7: 17 | AZ7: 17 | BA7: 9 | BB7: 9 | BC7: 8 | BD7: 0 | BE7: 0 | BF7: 0 | BG7: 0 | BH7: 2 | BI7: 0 | BJ7: 2 | BK7: 3 | BL7: Bourgoin-Jallieu | BN7: 0 | BO7: 0 | BP7: u | BQ7: 0 | BR7: 0 | BS7: 0 | BT7: 0 | BU7: 0 | BV7: 0 | BW7: 0 | BX7: 0 | BY7: 0 | BZ7: 0 | CA7: 0 | CB7: 0 | CC7: 0 | CD7: 0 | CE7: 0 | CF7: 0 | CG7: 5 | CH7: 7 | CI7: 5 | CJ7: 9 | CK7: 5 | CL7: 1 | CM7: =IF(Equipes!$C$6="","",Equipes!$C$6) -> Carcassonne | CN7: 7 | CO7: 0 | CP7: u | CQ7: 7 | CR7: =SUMPRODUCT(($C$3:$C$10=CM7)*($FN$3:$FN$10))+SUMPRODUCT(($L$3:$L$10=CM7)*($FO$3:$FO$10)) -> 4 | CS7: =SUMPRODUCT(($C$3:$C$10=CM7)*($FR$3:$FR$10))+SUMPRODUCT(($L$3:$L$10=CM7)*($FS$3:$FS$10)) -> 1 | CT7: =SUMPRODUCT(($C$3:$C$10=CM7)*($FV$3:$FV$10))+SUMPRODUCT(($L$3:$L$10=CM7)*($FW$3:$FW$10)) -> 1 | CU7: =SUMPRODUCT(($C$3:$C$10=CM7)*($FX$3:$FX$10))+SUMPRODUCT(($L$3:$L$10=CM7)*($FY$3:$FY$10)) -> 0 | CV7: =SUMPRODUCT(($C$3:$C$10=CM7)*($FZ$3:$FZ$10))+SUMPRODUCT(($L$3:$L$10=CM7)*($GA$3:$GA$10)) -> 0 | CW7: =SUMPRODUCT(($C$3:$C$10=CM7)*($GB$3:$GB$10))+SUMPRODUCT(($L$3:$L$10=CM7)*($GC$3:$GC$10)) -> 12 | CX7: 12 | CY7: =SUMPRODUCT(($C$3:$C$10=CM7)*($GD$3:$GD$10))+SUMPRODUCT(($L$3:$L$10=CM7)*($GE$3:$GE$10)) -> 10 | CZ7: 10 | DA7: 2 | DB7: =SUMPRODUCT(($C$3:$C$10=CM7)*($FH$3:$FH$10))+SUMPRODUCT(($L$3:$L$10=CM7)*($FI$3:$FI$10)) -> 0 | DC7: =SUMPRODUCT(($C$3:$C$10=CM7)*($FJ$3:$FJ$10))+SUMPRODUCT(($L$3:$L$10=CM7)*($FK$3:$FK$10)) -> 0 | DD7: 0 | DE7: =SUMPRODUCT(($C$3:$C$10=CM7)*($GF$3:$GF$10))+SUMPRODUCT(($L$3:$L$10=CM7)*($GG$3:$GG$10)) -> 0 | DF7: =SUMPRODUCT(($C$3:$C$10=CM7)*($GH$3:$GH$10))+SUMPRODUCT(($L$3:$L$10=CM7)*($GI$3:$GI$10)) -> 1 | DG7: -1 | DH7: =IF(Equipes!$C$6="","",Equipes!$C$6) -> Carcassonne | DI7: 8 | DJ7: 0 | DK7: u | DL7: 9 | DM7: =SUMPRODUCT(($C$3:$C$10=DH7)*($FL$3:$FL$10)) -> 0 | DN7: =SUMPRODUCT(($C$3:$C$10=DH7)*($FR$3:$FR$10)) -> 0 | DO7: =SUMPRODUCT(($C$3:$C$10=DH7)*($FV$3:$FV$10)) -> 0 | DP7: =SUMPRODUCT(($C$3:$C$10=DH7)*($FX$3:$FX$10)) -> 0 | DQ7: =SUMPRODUCT(($C$3:$C$10=DH7)*($FZ$3:$FZ$10)) -> 0 | DR7: =SUMPRODUCT(($C$3:$C$10=DH7)*($GB$3:$GB$10)) -> 0 | DS7: 0 | DT7: =SUMPRODUCT(($C$3:$C$10=DH7)*($GD$3:$GD$10)) -> 0 | DU7: 0 | DV7: 0 | DW7: =SUMPRODUCT(($C$3:$C$10=DH7)*($FH$3:$FH$10)) -> 0 | DX7: =SUMPRODUCT(($C$3:$C$10=DH7)*($FJ$3:$FJ$10)) -> 0 | DY7: 0 | DZ7: =SUMPRODUCT(($C$3:$C$10=DH7)*($GF$3:$GF$10)) -> 0 | EA7: =SUMPRODUCT(($C$3:$C$10=DH7)*($GH$3:$GH$10)) -> 0 | EB7: 0 | EC7: =IF(Equipes!$C$6="","",Equipes!$C$6) -> Carcassonne | ED7: 1 | EE7: 0 | EF7: u | EG7: 1 | EH7: =SUMPRODUCT(($L$3:$L$10=EC7)*($FM$3:$FM$10)) -> 4 | EI7: =SUMPRODUCT(($L$3:$L$10=EC7)*($FS$3:$FS$10)) -> 1 | EJ7: =SUMPRODUCT(($L$3:$L$10=EC7)*($FW$3:$FW$10)) -> 1 | EK7: =SUMPRODUCT(($L$3:$L$10=EC7)*($FY$3:$FY$10)) -> 0 | EL7: =SUMPRODUCT(($L$3:$L$10=EC7)*($GA$3:$GA$10)) -> 0 | EM7: =SUMPRODUCT(($L$3:$L$10=EC7)*($GC$3:$GC$10)) -> 12 | EN7: 12 | EO7: =SUMPRODUCT(($L$3:$L$10=EC7)*($GE$3:$GE$10)) -> 10 | EP7: 10 | EQ7: 2 | ER7: =SUMPRODUCT(($L$3:$L$10=EC7)*($FI$3:$FI$10)) -> 0 | ES7: =SUMPRODUCT(($L$3:$L$10=EC7)*($FK$3:$FK$10)) -> 0 | ET7: 0 | EU7: =SUMPRODUCT(($L$3:$L$10=EC7)*($GG$3:$GG$10)) -> 0 | EV7: =SUMPRODUCT(($L$3:$L$10=EC7)*($GI$3:$GI$10)) -> 1 | EW7: -1 | EX7: 4000.0212 | EY7: =EX7+0.0000001 -> 4000.0212 | EZ7: 0 | FA7: =EZ7+0.0000001 -> 1e-07 | FB7: 4000.0212 | FC7: =FB7+0.0000001 -> 4000.0212 | FD7: 0 | FE7: 0 | FF7: 4 | FG7: 0 | FH7: FALSE | FI7: FALSE | FJ7: FALSE | FK7: FALSE | FL7: 4 | FM7: 0 | FN7: 4 | FO7: 0 | FR7: 1 | FS7: 1 | FT7: 1 | FU7: 1 | FV7: 1 | FW7: FALSE | FX7: FALSE | FY7: FALSE | FZ7: FALSE | GA7: 1 | GB7: 17 | GC7: 6 | GD7: 6 | GE7: 17 | GF7: 1 | GG7: 0 | GH7: 0 | GI7: 1 | GJ7: Narbonne | GK7: 4000.0817 | GL7: =IF(GK7="","",_xlfn.RANK.EQ(GK7,GK3:GK18)) -> 5 | GM7: Carcassonne | GN7: Narbonne | GO7: 4000.0817 | GP7: =IF(GO7="","",_xlfn.RANK.EQ(GO7,GO3:GO18)) -> 5 | GQ7: Carcassonne | GR7: Bourgoin-Jallieu | GS7: 0 | GT7: =IF(GS7="","",_xlfn.RANK.EQ(GS7,GS3:GS18)) -> 3 | GU7: Carcassonne | GW7: ok | HC7: 1 | HD7: 1
C8: Narbonne | D8: 17 | F8: 2 | H8: 9 | J8: 0 | L8: Chambéry | O8: samedi 26 août 2023 | P8: 19:00:00 | S8: 6 | T8: Massy | V8: 4 | W8: 0 | X8: u | Y8: 1 | Z8: 1 | AA8: 0 | AB8: 0 | AC8: 20 | AD8: 20 | AE8: 13 | AF8: 13 | AG8: 7 | AH8: 0 | AI8: 0 | AJ8: 0 | AK8: 0 | AL8: 2 | AM8: 1 | AN8: 1 | AO8: 6 | AP8: Massy | AR8: 4 | AS8: 0 | AT8: u | AU8: 1 | AV8: 1 | AW8: 0 | AX8: 0 | AY8: 20 | AZ8: 20 | BA8: 13 | BB8: 13 | BC8: 7 | BD8: 0 | BE8: 0 | BF8: 0 | BG8: 0 | BH8: 2 | BI8: 1 | BJ8: 1 | BK8: 3 | BL8: Hyères | BN8: 0 | BO8: 0 | BP8: u | BQ8: 0 | BR8: 0 | BS8: 0 | BT8: 0 | BU8: 0 | BV8: 0 | BW8: 0 | BX8: 0 | BY8: 0 | BZ8: 0 | CA8: 0 | CB8: 0 | CC8: 0 | CD8: 0 | CE8: 0 | CF8: 0 | CG8: 6 | CH8: 10 | CI8: 6 | CJ8: 10 | CK8: 6 | CL8: 10 | CM8: =IF(Equipes!$C$7="","",Equipes!$C$7) -> Chambéry | CN8: 10 | CO8: 0 | CP8: u | CQ8: 10 | CR8: =SUMPRODUCT(($C$3:$C$10=CM8)*($FN$3:$FN$10))+SUMPRODUCT(($L$3:$L$10=CM8)*($FO$3:$FO$10)) -> 0 | CS8: =SUMPRODUCT(($C$3:$C$10=CM8)*($FR$3:$FR$10))+SUMPRODUCT(($L$3:$L$10=CM8)*($FS$3:$FS$10)) -> 1 | CT8: =SUMPRODUCT(($C$3:$C$10=CM8)*($FV$3:$FV$10))+SUMPRODUCT(($L$3:$L$10=CM8)*($FW$3:$FW$10)) -> 0 | CU8: =SUMPRODUCT(($C$3:$C$10=CM8)*($FX$3:$FX$10))+SUMPRODUCT(($L$3:$L$10=CM8)*($FY$3:$FY$10)) -> 0 | CV8: =SUMPRODUCT(($C$3:$C$10=CM8)*($FZ$3:$FZ$10))+SUMPRODUCT(($L$3:$L$10=CM8)*($GA$3:$GA$10)) -> 1 | CW8: =SUMPRODUCT(($C$3:$C$10=CM8)*($GB$3:$GB$10))+SUMPRODUCT(($L$3:$L$10=CM8)*($GC$3:$GC$10)) -> 9 | CX8: 9 | CY8: =SUMPRODUCT(($C$3:$C$10=CM8)*($GD$3:$GD$10))+SUMPRODUCT(($L$3:$L$10=CM8)*($GE$3:$GE$10)) -> 17 | CZ8: 17 | DA8: -8 | DB8: =SUMPRODUCT(($C$3:$C$10=CM8)*($FH$3:$FH$10))+SUMPRODUCT(($L$3:$L$10=CM8)*($FI$3:$FI$10)) -> 0 | DC8: =SUMPRODUCT(($C$3:$C$10=CM8)*($FJ$3:$FJ$10))+SUMPRODUCT(($L$3:$L$10=CM8)*($FK$3:$FK$10)) -> 0 | DD8: 0 | DE8: =SUMPRODUCT(($C$3:$C$10=CM8)*($GF$3:$GF$10))+SUMPRODUCT(($L$3:$L$10=CM8)*($GG$3:$GG$10)) -> 0 | DF8: =SUMPRODUCT(($C$3:$C$10=CM8)*($GH$3:$GH$10))+SUMPRODUCT(($L$3:$L$10=CM8)*($GI$3:$GI$10)) -> 2 | DG8: -2 | DH8: =IF(Equipes!$C$7="","",Equipes!$C$7) -> Chambéry | DI8: 8 | DJ8: 0 | DK8: u | DL8: 10 | DM8: =SUMPRODUCT(($C$3:$C$10=DH8)*($FL$3:$FL$10)) -> 0 | DN8: =SUMPRODUCT(($C$3:$C$10=DH8)*($FR$3:$FR$10)) -> 0 | DO8: =SUMPRODUCT(($C$3:$C$10=DH8)*($FV$3:$FV$10)) -> 0 | DP8: =SUMPRODUCT(($C$3:$C$10=DH8)*($FX$3:$FX$10)) -> 0 | DQ8: =SUMPRODUCT(($C$3:$C$10=DH8)*($FZ$3:$FZ$10)) -> 0 | DR8: =SUMPRODUCT(($C$3:$C$10=DH8)*($GB$3:$GB$10)) -> 0 | DS8: 0 | DT8: =SUMPRODUCT(($C$3:$C$10=DH8)*($GD$3:$GD$10)) -> 0 | DU8: 0 | DV8: 0 | DW8: =SUMPRODUCT(($C$3:$C$10=DH8)*($FH$3:$FH$10)) -> 0 | DX8: =SUMPRODUCT(($C$3:$C$10=DH8)*($FJ$3:$FJ$10)) -> 0 | DY8: 0 | DZ8: =SUMPRODUCT(($C$3:$C$10=DH8)*($GF$3:$GF$10)) -> 0 | EA8: =SUMPRODUCT(($C$3:$C$10=DH8)*($GH$3:$GH$10)) -> 0 | EB8: 0 | EC8: =IF(Equipes!$C$7="","",Equipes!$C$7) -> Chambéry | ED8: 10 | EE8: 0 | EF8: u | EG8: 10 | EH8: =SUMPRODUCT(($L$3:$L$10=EC8)*($FM$3:$FM$10)) -> 0 | EI8: =SUMPRODUCT(($L$3:$L$10=EC8)*($FS$3:$FS$10)) -> 1 | EJ8: =SUMPRODUCT(($L$3:$L$10=EC8)*($FW$3:$FW$10)) -> 0 | EK8: =SUMPRODUCT(($L$3:$L$10=EC8)*($FY$3:$FY$10)) -> 0 | EL8: =SUMPRODUCT(($L$3:$L$10=EC8)*($GA$3:$GA$10)) -> 1 | EM8: =SUMPRODUCT(($L$3:$L$10=EC8)*($GC$3:$GC$10)) -> 9 | EN8: 9 | EO8: =SUMPRODUCT(($L$3:$L$10=EC8)*($GE$3:$GE$10)) -> 17 | EP8: 17 | EQ8: -8 | ER8: =SUMPRODUCT(($L$3:$L$10=EC8)*($FI$3:$FI$10)) -> 0 | ES8: =SUMPRODUCT(($L$3:$L$10=EC8)*($FK$3:$FK$10)) -> 0 | ET8: 0 | EU8: =SUMPRODUCT(($L$3:$L$10=EC8)*($GG$3:$GG$10)) -> 0 | EV8: =SUMPRODUCT(($L$3:$L$10=EC8)*($GI$3:$GI$10)) -> 2 | EW8: -2 | EX8: -0.0791 | EY8: =EX8+0.00000009 -> -0.07909991 | EZ8: 0 | FA8: =EZ8+0.00000009 -> 9e-08 | FB8: -0.0791 | FC8: =FB8+0.00000009 -> -0.07909991 | FD8: 0 | FE8: 0 | FF8: 4 | FG8: 0 | FH8: FALSE | FI8: FALSE | FJ8: FALSE | FK8: FALSE | FL8: 4 | FM8: 0 | FN8: 4 | FO8: 0 | FR8: 1 | FS8: 1 | FT8: 1 | FU8: 1 | FV8: 1 | FW8: FALSE | FX8: FALSE | FY8: FALSE | FZ8: FALSE | GA8: 1 | GB8: 17 | GC8: 9 | GD8: 9 | GE8: 17 | GF8: 2 | GG8: 0 | GH8: 0 | GI8: 2 | GJ8: Massy | GK8: 4000.072 | GL8: =IF(GK8="","",_xlfn.RANK.EQ(GK8,GK3:GK18)) -> 6 | GM8: Chambéry | GN8: Massy | GO8: 4000.072 | GP8: =IF(GO8="","",_xlfn.RANK.EQ(GO8,GO3:GO18)) -> 6 | GQ8: Chambéry | GR8: Hyères | GS8: 0 | GT8: =IF(GS8="","",_xlfn.RANK.EQ(GS8,GS3:GS18)) -> 3 | GU8: Chambéry | GW8: ok | HC8: 1 | HD8: 1
C9: Bourg-en-Bresse | D9: 10 | E9: Bd | F9: 1 | H9: 12 | I9: =IF(H9="","",IF(D9="","",IF(H9>D9,"",IF(H9=D9,"",IF(H9<D9,IF(SUM(D9-H9)<=K10,"Bd","")))))) ->  | J9: 0 | L9: Carcassonne | O9: vendredi 25 août 2023 | P9: 19:30:00 | S9: 7 | T9: Carcassonne | V9: 4 | W9: 0 | X9: u | Y9: 1 | Z9: 1 | AA9: 0 | AB9: 0 | AC9: 12 | AD9: 12 | AE9: 10 | AF9: 10 | AG9: 2 | AH9: 0 | AI9: 0 | AJ9: 0 | AK9: 0 | AL9: 0 | AM9: 1 | AN9: -1 | AO9: 7 | AP9: Bourg-en-Bresse | AR9: 1 | AS9: 0 | AT9: u | AU9: 1 | AV9: 0 | AW9: 0 | AX9: 1 | AY9: 10 | AZ9: 10 | BA9: 12 | BB9: 12 | BC9: -2 | BD9: 1 | BE9: 0 | BF9: 1 | BG9: 0 | BH9: 1 | BI9: 0 | BJ9: 1 | BK9: 3 | BL9: Massy | BN9: 0 | BO9: 0 | BP9: u | BQ9: 0 | BR9: 0 | BS9: 0 | BT9: 0 | BU9: 0 | BV9: 0 | BW9: 0 | BX9: 0 | BY9: 0 | BZ9: 0 | CA9: 0 | CB9: 0 | CC9: 0 | CD9: 0 | CE9: 0 | CF9: 0 | CG9: 7 | CH9: 2 | CI9: 7 | CJ9: 2 | CK9: 7 | CL9: 6 | CM9: =IF(Equipes!$C$8="","",Equipes!$C$8) -> Hyères | CN9: 2 | CO9: 0 | CP9: u | CQ9: 2 | CR9: =SUMPRODUCT(($C$3:$C$10=CM9)*($FN$3:$FN$10))+SUMPRODUCT(($L$3:$L$10=CM9)*($FO$3:$FO$10)) -> 4 | CS9: =SUMPRODUCT(($C$3:$C$10=CM9)*($FR$3:$FR$10))+SUMPRODUCT(($L$3:$L$10=CM9)*($FS$3:$FS$10)) -> 1 | CT9: =SUMPRODUCT(($C$3:$C$10=CM9)*($FV$3:$FV$10))+SUMPRODUCT(($L$3:$L$10=CM9)*($FW$3:$FW$10)) -> 1 | CU9: =SUMPRODUCT(($C$3:$C$10=CM9)*($FX$3:$FX$10))+SUMPRODUCT(($L$3:$L$10=CM9)*($FY$3:$FY$10)) -> 0 | CV9: =SUMPRODUCT(($C$3:$C$10=CM9)*($FZ$3:$FZ$10))+SUMPRODUCT(($L$3:$L$10=CM9)*($GA$3:$GA$10)) -> 0 | CW9: =SUMPRODUCT(($C$3:$C$10=CM9)*($GB$3:$GB$10))+SUMPRODUCT(($L$3:$L$10=CM9)*($GC$3:$GC$10)) -> 24 | CX9: 24 | CY9: =SUMPRODUCT(($C$3:$C$10=CM9)*($GD$3:$GD$10))+SUMPRODUCT(($L$3:$L$10=CM9)*($GE$3:$GE$10)) -> 10 | CZ9: 10 | DA9: 14 | DB9: =SUMPRODUCT(($C$3:$C$10=CM9)*($FH$3:$FH$10))+SUMPRODUCT(($L$3:$L$10=CM9)*($FI$3:$FI$10)) -> 0 | DC9: =SUMPRODUCT(($C$3:$C$10=CM9)*($FJ$3:$FJ$10))+SUMPRODUCT(($L$3:$L$10=CM9)*($FK$3:$FK$10)) -> 0 | DD9: 0 | DE9: =SUMPRODUCT(($C$3:$C$10=CM9)*($GF$3:$GF$10))+SUMPRODUCT(($L$3:$L$10=CM9)*($GG$3:$GG$10)) -> 2 | DF9: =SUMPRODUCT(($C$3:$C$10=CM9)*($GH$3:$GH$10))+SUMPRODUCT(($L$3:$L$10=CM9)*($GI$3:$GI$10)) -> 1 | DG9: 1 | DH9: =IF(Equipes!$C$8="","",Equipes!$C$8) -> Hyères | DI9: 2 | DJ9: 0 | DK9: u | DL9: 2 | DM9: =SUMPRODUCT(($C$3:$C$10=DH9)*($FL$3:$FL$10)) -> 4 | DN9: =SUMPRODUCT(($C$3:$C$10=DH9)*($FR$3:$FR$10)) -> 1 | DO9: =SUMPRODUCT(($C$3:$C$10=DH9)*($FV$3:$FV$10)) -> 1 | DP9: =SUMPRODUCT(($C$3:$C$10=DH9)*($FX$3:$FX$10)) -> 0 | DQ9: =SUMPRODUCT(($C$3:$C$10=DH9)*($FZ$3:$FZ$10)) -> 0 | DR9: =SUMPRODUCT(($C$3:$C$10=DH9)*($GB$3:$GB$10)) -> 24 | DS9: 24 | DT9: =SUMPRODUCT(($C$3:$C$10=DH9)*($GD$3:$GD$10)) -> 10 | DU9: 10 | DV9: 14 | DW9: =SUMPRODUCT(($C$3:$C$10=DH9)*($FH$3:$FH$10)) -> 0 | DX9: =SUMPRODUCT(($C$3:$C$10=DH9)*($FJ$3:$FJ$10)) -> 0 | DY9: 0 | DZ9: =SUMPRODUCT(($C$3:$C$10=DH9)*($GF$3:$GF$10)) -> 2 | EA9: =SUMPRODUCT(($C$3:$C$10=DH9)*($GH$3:$GH$10)) -> 1 | EB9: 1 | EC9: =IF(Equipes!$C$8="","",Equipes!$C$8) -> Hyères | ED9: 3 | EE9: 0 | EF9: u | EG9: 6 | EH9: =SUMPRODUCT(($L$3:$L$10=EC9)*($FM$3:$FM$10)) -> 0 | EI9: =SUMPRODUCT(($L$3:$L$10=EC9)*($FS$3:$FS$10)) -> 0 | EJ9: =SUMPRODUCT(($L$3:$L$10=EC9)*($FW$3:$FW$10)) -> 0 | EK9: =SUMPRODUCT(($L$3:$L$10=EC9)*($FY$3:$FY$10)) -> 0 | EL9: =SUMPRODUCT(($L$3:$L$10=EC9)*($GA$3:$GA$10)) -> 0 | EM9: =SUMPRODUCT(($L$3:$L$10=EC9)*($GC$3:$GC$10)) -> 0 | EN9: 0 | EO9: =SUMPRODUCT(($L$3:$L$10=EC9)*($GE$3:$GE$10)) -> 0 | EP9: 0 | EQ9: 0 | ER9: =SUMPRODUCT(($L$3:$L$10=EC9)*($FI$3:$FI$10)) -> 0 | ES9: =SUMPRODUCT(($L$3:$L$10=EC9)*($FK$3:$FK$10)) -> 0 | ET9: 0 | EU9: =SUMPRODUCT(($L$3:$L$10=EC9)*($GG$3:$GG$10)) -> 0 | EV9: =SUMPRODUCT(($L$3:$L$10=EC9)*($GI$3:$GI$10)) -> 0 | EW9: 0 | EX9: 4000.1424 | EY9: =EX9+0.00000008 -> 4000.1424 | EZ9: 4000.1424 | FA9: =EZ9+0.00000008 -> 4000.1424 | FB9: 0 | FC9: =FB9+0.00000008 -> 8e-08 | FD9: 0 | FE9: 0 | FF9: 0 | FG9: 4 | FH9: FALSE | FI9: FALSE | FJ9: 1 | FK9: FALSE | FL9: 1 | FM9: 4 | FN9: 1 | FO9: 4 | FR9: 1 | FS9: 1 | FT9: 1 | FU9: 1 | FV9: FALSE | FW9: 1 | FX9: FALSE | FY9: FALSE | FZ9: 1 | GA9: FALSE | GB9: 10 | GC9: 12 | GD9: 12 | GE9: 10 | GF9: 1 | GG9: 0 | GH9: 0 | GI9: 1 | GJ9: Carcassonne | GK9: 4000.0212 | GL9: =IF(GK9="","",_xlfn.RANK.EQ(GK9,GK3:GK18)) -> 7 | GM9: Hyères | GN9: Bourg-en-Bresse | GO9: 999.981 | GP9: =IF(GO9="","",_xlfn.RANK.EQ(GO9,GO3:GO18)) -> 7 | GQ9: Hyères | GR9: Massy | GS9: 0 | GT9: =IF(GS9="","",_xlfn.RANK.EQ(GS9,GS3:GS18)) -> 3 | GU9: Hyères | GW9: ok | HC9: 1 | HD9: 1
S10: 8 | T10: Bourg-en-Bresse | V10: 1 | W10: 0 | X10: u | Y10: 1 | Z10: 0 | AA10: 0 | AB10: 1 | AC10: 10 | AD10: 10 | AE10: 12 | AF10: 12 | AG10: -2 | AH10: 1 | AI10: 0 | AJ10: 1 | AK10: 0 | AL10: 1 | AM10: 0 | AN10: 1 | AO10: 8 | AP10: Albi | AR10: 0 | AS10: 0 | AT10: u | AU10: 0 | AV10: 0 | AW10: 0 | AX10: 0 | AY10: 0 | AZ10: 0 | BA10: 0 | BB10: 0 | BC10: 0 | BD10: 0 | BE10: 0 | BF10: 0 | BG10: 0 | BH10: 0 | BI10: 0 | BJ10: 0 | BK10: 3 | BL10: Narbonne | BN10: 0 | BO10: 0 | BP10: u | BQ10: 0 | BR10: 0 | BS10: 0 | BT10: 0 | BU10: 0 | BV10: 0 | BW10: 0 | BX10: 0 | BY10: 0 | BZ10: 0 | CA10: 0 | CB10: 0 | CC10: 0 | CD10: 0 | CE10: 0 | CF10: 0 | CG10: 8 | CH10: 6 | CI10: 8 | CJ10: 6 | CK10: 8 | CL10: 7 | CM10: =IF(Equipes!$C$9="","",Equipes!$C$9) -> Massy | CN10: 6 | CO10: 0 | CP10: u | CQ10: 6 | CR10: =SUMPRODUCT(($C$3:$C$10=CM10)*($FN$3:$FN$10))+SUMPRODUCT(($L$3:$L$10=CM10)*($FO$3:$FO$10)) -> 4 | CS10: =SUMPRODUCT(($C$3:$C$10=CM10)*($FR$3:$FR$10))+SUMPRODUCT(($L$3:$L$10=CM10)*($FS$3:$FS$10)) -> 1 | CT10: =SUMPRODUCT(($C$3:$C$10=CM10)*($FV$3:$FV$10))+SUMPRODUCT(($L$3:$L$10=CM10)*($FW$3:$FW$10)) -> 1 | CU10: =SUMPRODUCT(($C$3:$C$10=CM10)*($FX$3:$FX$10))+SUMPRODUCT(($L$3:$L$10=CM10)*($FY$3:$FY$10)) -> 0 | CV10: =SUMPRODUCT(($C$3:$C$10=CM10)*($FZ$3:$FZ$10))+SUMPRODUCT(($L$3:$L$10=CM10)*($GA$3:$GA$10)) -> 0 | CW10: =SUMPRODUCT(($C$3:$C$10=CM10)*($GB$3:$GB$10))+SUMPRODUCT(($L$3:$L$10=CM10)*($GC$3:$GC$10)) -> 20 | CX10: 20 | CY10: =SUMPRODUCT(($C$3:$C$10=CM10)*($GD$3:$GD$10))+SUMPRODUCT(($L$3:$L$10=CM10)*($GE$3:$GE$10)) -> 13 | CZ10: 13 | DA10: 7 | DB10: =SUMPRODUCT(($C$3:$C$10=CM10)*($FH$3:$FH$10))+SUMPRODUCT(($L$3:$L$10=CM10)*($FI$3:$FI$10)) -> 0 | DC10: =SUMPRODUCT(($C$3:$C$10=CM10)*($FJ$3:$FJ$10))+SUMPRODUCT(($L$3:$L$10=CM10)*($FK$3:$FK$10)) -> 0 | DD10: 0 | DE10: =SUMPRODUCT(($C$3:$C$10=CM10)*($GF$3:$GF$10))+SUMPRODUCT(($L$3:$L$10=CM10)*($GG$3:$GG$10)) -> 2 | DF10: =SUMPRODUCT(($C$3:$C$10=CM10)*($GH$3:$GH$10))+SUMPRODUCT(($L$3:$L$10=CM10)*($GI$3:$GI$10)) -> 1 | DG10: 1 | DH10: =IF(Equipes!$C$9="","",Equipes!$C$9) -> Massy | DI10: 6 | DJ10: 0 | DK10: u | DL10: 6 | DM10: =SUMPRODUCT(($C$3:$C$10=DH10)*($FL$3:$FL$10)) -> 4 | DN10: =SUMPRODUCT(($C$3:$C$10=DH10)*($FR$3:$FR$10)) -> 1 | DO10: =SUMPRODUCT(($C$3:$C$10=DH10)*($FV$3:$FV$10)) -> 1 | DP10: =SUMPRODUCT(($C$3:$C$10=DH10)*($FX$3:$FX$10)) -> 0 | DQ10: =SUMPRODUCT(($C$3:$C$10=DH10)*($FZ$3:$FZ$10)) -> 0 | DR10: =SUMPRODUCT(($C$3:$C$10=DH10)*($GB$3:$GB$10)) -> 20 | DS10: 20 | DT10: =SUMPRODUCT(($C$3:$C$10=DH10)*($GD$3:$GD$10)) -> 13 | DU10: 13 | DV10: 7 | DW10: =SUMPRODUCT(($C$3:$C$10=DH10)*($FH$3:$FH$10)) -> 0 | DX10: =SUMPRODUCT(($C$3:$C$10=DH10)*($FJ$3:$FJ$10)) -> 0 | DY10: 0 | DZ10: =SUMPRODUCT(($C$3:$C$10=DH10)*($GF$3:$GF$10)) -> 2 | EA10: =SUMPRODUCT(($C$3:$C$10=DH10)*($GH$3:$GH$10)) -> 1 | EB10: 1 | EC10: =IF(Equipes!$C$9="","",Equipes!$C$9) -> Massy | ED10: 3 | EE10: 0 | EF10: u | EG10: 7 | EH10: =SUMPRODUCT(($L$3:$L$10=EC10)*($FM$3:$FM$10)) -> 0 | EI10: =SUMPRODUCT(($L$3:$L$10=EC10)*($FS$3:$FS$10)) -> 0 | EJ10: =SUMPRODUCT(($L$3:$L$10=EC10)*($FW$3:$FW$10)) -> 0 | EK10: =SUMPRODUCT(($L$3:$L$10=EC10)*($FY$3:$FY$10)) -> 0 | EL10: =SUMPRODUCT(($L$3:$L$10=EC10)*($GA$3:$GA$10)) -> 0 | EM10: =SUMPRODUCT(($L$3:$L$10=EC10)*($GC$3:$GC$10)) -> 0 | EN10: 0 | EO10: =SUMPRODUCT(($L$3:$L$10=EC10)*($GE$3:$GE$10)) -> 0 | EP10: 0 | EQ10: 0 | ER10: =SUMPRODUCT(($L$3:$L$10=EC10)*($FI$3:$FI$10)) -> 0 | ES10: =SUMPRODUCT(($L$3:$L$10=EC10)*($FK$3:$FK$10)) -> 0 | ET10: 0 | EU10: =SUMPRODUCT(($L$3:$L$10=EC10)*($GG$3:$GG$10)) -> 0 | EV10: =SUMPRODUCT(($L$3:$L$10=EC10)*($GI$3:$GI$10)) -> 0 | EW10: 0 | EX10: 4000.072 | EY10: =EX10+0.00000007 -> 4000.072 | EZ10: 4000.072 | FA10: =EZ10+0.00000007 -> 4000.072 | FB10: 0 | FC10: =FB10+0.00000007 -> 7e-08 | GJ10: Bourg-en-Bresse | GK10: 999.981 | GL10: =IF(GK10="","",_xlfn.RANK.EQ(GK10,GK3:GK18)) -> 8 | GM10: Massy | GN10: Albi | GO10: 0 | GP10: =IF(GO10="","",_xlfn.RANK.EQ(GO10,GO3:GO18)) -> 8 | GQ10: Massy | GR10: Narbonne | GS10: 0 | GT10: =IF(GS10="","",_xlfn.RANK.EQ(GS10,GS3:GS18)) -> 3 | GU10: Massy
S11: 9 | T11: Tarbes | V11: 1 | W11: 0 | X11: u | Y11: 1 | Z11: 0 | AA11: 0 | AB11: 1 | AC11: 13 | AD11: 13 | AE11: 20 | AF11: 20 | AG11: -7 | AH11: 1 | AI11: 0 | AJ11: 1 | AK11: 0 | AL11: 1 | AM11: 2 | AN11: -1 | AO11: 8 | AP11: Carcassonne | AR11: 0 | AS11: 0 | AT11: u | AU11: 0 | AV11: 0 | AW11: 0 | AX11: 0 | AY11: 0 | AZ11: 0 | BA11: 0 | BB11: 0 | BC11: 0 | BD11: 0 | BE11: 0 | BF11: 0 | BG11: 0 | BH11: 0 | BI11: 0 | BJ11: 0 | BK11: 3 | BL11: Périgueux | BN11: 0 | BO11: 0 | BP11: u | BQ11: 0 | BR11: 0 | BS11: 0 | BT11: 0 | BU11: 0 | BV11: 0 | BW11: 0 | BX11: 0 | BY11: 0 | BZ11: 0 | CA11: 0 | CB11: 0 | CC11: 0 | CD11: 0 | CE11: 0 | CF11: 0 | CG11: 9 | CH11: 5 | CI11: 9 | CJ11: 5 | CK11: 9 | CL11: 8 | CM11: =IF(Equipes!$C$10="","",Equipes!$C$10) -> Narbonne | CN11: 5 | CO11: 0 | CP11: u | CQ11: 5 | CR11: =SUMPRODUCT(($C$3:$C$10=CM11)*($FN$3:$FN$10))+SUMPRODUCT(($L$3:$L$10=CM11)*($FO$3:$FO$10)) -> 4 | CS11: =SUMPRODUCT(($C$3:$C$10=CM11)*($FR$3:$FR$10))+SUMPRODUCT(($L$3:$L$10=CM11)*($FS$3:$FS$10)) -> 1 | CT11: =SUMPRODUCT(($C$3:$C$10=CM11)*($FV$3:$FV$10))+SUMPRODUCT(($L$3:$L$10=CM11)*($FW$3:$FW$10)) -> 1 | CU11: =SUMPRODUCT(($C$3:$C$10=CM11)*($FX$3:$FX$10))+SUMPRODUCT(($L$3:$L$10=CM11)*($FY$3:$FY$10)) -> 0 | CV11: =SUMPRODUCT(($C$3:$C$10=CM11)*($FZ$3:$FZ$10))+SUMPRODUCT(($L$3:$L$10=CM11)*($GA$3:$GA$10)) -> 0 | CW11: =SUMPRODUCT(($C$3:$C$10=CM11)*($GB$3:$GB$10))+SUMPRODUCT(($L$3:$L$10=CM11)*($GC$3:$GC$10)) -> 17 | CX11: 17 | CY11: =SUMPRODUCT(($C$3:$C$10=CM11)*($GD$3:$GD$10))+SUMPRODUCT(($L$3:$L$10=CM11)*($GE$3:$GE$10)) -> 9 | CZ11: 9 | DA11: 8 | DB11: =SUMPRODUCT(($C$3:$C$10=CM11)*($FH$3:$FH$10))+SUMPRODUCT(($L$3:$L$10=CM11)*($FI$3:$FI$10)) -> 0 | DC11: =SUMPRODUCT(($C$3:$C$10=CM11)*($FJ$3:$FJ$10))+SUMPRODUCT(($L$3:$L$10=CM11)*($FK$3:$FK$10)) -> 0 | DD11: 0 | DE11: =SUMPRODUCT(($C$3:$C$10=CM11)*($GF$3:$GF$10))+SUMPRODUCT(($L$3:$L$10=CM11)*($GG$3:$GG$10)) -> 2 | DF11: =SUMPRODUCT(($C$3:$C$10=CM11)*($GH$3:$GH$10))+SUMPRODUCT(($L$3:$L$10=CM11)*($GI$3:$GI$10)) -> 0 | DG11: 2 | DH11: =IF(Equipes!$C$10="","",Equipes!$C$10) -> Narbonne | DI11: 5 | DJ11: 0 | DK11: u | DL11: 5 | DM11: =SUMPRODUCT(($C$3:$C$10=DH11)*($FL$3:$FL$10)) -> 4 | DN11: =SUMPRODUCT(($C$3:$C$10=DH11)*($FR$3:$FR$10)) -> 1 | DO11: =SUMPRODUCT(($C$3:$C$10=DH11)*($FV$3:$FV$10)) -> 1 | DP11: =SUMPRODUCT(($C$3:$C$10=DH11)*($FX$3:$FX$10)) -> 0 | DQ11: =SUMPRODUCT(($C$3:$C$10=DH11)*($FZ$3:$FZ$10)) -> 0 | DR11: =SUMPRODUCT(($C$3:$C$10=DH11)*($GB$3:$GB$10)) -> 17 | DS11: 17 | DT11: =SUMPRODUCT(($C$3:$C$10=DH11)*($GD$3:$GD$10)) -> 9 | DU11: 9 | DV11: 8 | DW11: =SUMPRODUCT(($C$3:$C$10=DH11)*($FH$3:$FH$10)) -> 0 | DX11: =SUMPRODUCT(($C$3:$C$10=DH11)*($FJ$3:$FJ$10)) -> 0 | DY11: 0 | DZ11: =SUMPRODUCT(($C$3:$C$10=DH11)*($GF$3:$GF$10)) -> 2 | EA11: =SUMPRODUCT(($C$3:$C$10=DH11)*($GH$3:$GH$10)) -> 0 | EB11: 2 | EC11: =IF(Equipes!$C$10="","",Equipes!$C$10) -> Narbonne | ED11: 3 | EE11: 0 | EF11: u | EG11: 8 | EH11: =SUMPRODUCT(($L$3:$L$10=EC11)*($FM$3:$FM$10)) -> 0 | EI11: =SUMPRODUCT(($L$3:$L$10=EC11)*($FS$3:$FS$10)) -> 0 | EJ11: =SUMPRODUCT(($L$3:$L$10=EC11)*($FW$3:$FW$10)) -> 0 | EK11: =SUMPRODUCT(($L$3:$L$10=EC11)*($FY$3:$FY$10)) -> 0 | EL11: =SUMPRODUCT(($L$3:$L$10=EC11)*($GA$3:$GA$10)) -> 0 | EM11: =SUMPRODUCT(($L$3:$L$10=EC11)*($GC$3:$GC$10)) -> 0 | EN11: 0 | EO11: =SUMPRODUCT(($L$3:$L$10=EC11)*($GE$3:$GE$10)) -> 0 | EP11: 0 | EQ11: 0 | ER11: =SUMPRODUCT(($L$3:$L$10=EC11)*($FI$3:$FI$10)) -> 0 | ES11: =SUMPRODUCT(($L$3:$L$10=EC11)*($FK$3:$FK$10)) -> 0 | ET11: 0 | EU11: =SUMPRODUCT(($L$3:$L$10=EC11)*($GG$3:$GG$10)) -> 0 | EV11: =SUMPRODUCT(($L$3:$L$10=EC11)*($GI$3:$GI$10)) -> 0 | EW11: 0 | EX11: 4000.0817 | EY11: =EX11+0.00000006 -> 4000.0817 | EZ11: 4000.0817 | FA11: =EZ11+0.00000006 -> 4000.0817 | FB11: 0 | FC11: =FB11+0.00000006 -> 6e-08 | GJ11: Tarbes | GK11: 999.9313 | GL11: =IF(GK11="","",_xlfn.RANK.EQ(GK11,GK3:GK18)) -> 9 | GM11: Narbonne | GN11: Carcassonne | GO11: 0 | GP11: =IF(GO11="","",_xlfn.RANK.EQ(GO11,GO3:GO18)) -> 8 | GQ11: Narbonne | GR11: Périgueux | GS11: 0 | GT11: =IF(GS11="","",_xlfn.RANK.EQ(GS11,GS3:GS18)) -> 3 | GU11: Narbonne
S12: 10 | T12: Chambéry | V12: 0 | W12: 0 | X12: u | Y12: 1 | Z12: 0 | AA12: 0 | AB12: 1 | AC12: 9 | AD12: 9 | AE12: 17 | AF12: 17 | AG12: -8 | AH12: 0 | AI12: 0 | AJ12: 0 | AK12: 0 | AL12: 0 | AM12: 2 | AN12: -2 | AO12: 8 | AP12: Chambéry | AR12: 0 | AS12: 0 | AT12: u | AU12: 0 | AV12: 0 | AW12: 0 | AX12: 0 | AY12: 0 | AZ12: 0 | BA12: 0 | BB12: 0 | BC12: 0 | BD12: 0 | BE12: 0 | BF12: 0 | BG12: 0 | BH12: 0 | BI12: 0 | BJ12: 0 | BK12: 10 | BL12: Chambéry | BN12: 0 | BO12: 0 | BP12: u | BQ12: 1 | BR12: 0 | BS12: 0 | BT12: 1 | BU12: 9 | BV12: 9 | BW12: 17 | BX12: 17 | BY12: -8 | BZ12: 0 | CA12: 0 | CB12: 0 | CC12: 0 | CD12: 0 | CE12: 2 | CF12: -2 | CG12: 10 | CH12: 11 | CI12: 10 | CJ12: 11 | CK12: 10 | CL12: 11 | CM12: =IF(Equipes!$C$11="","",Equipes!$C$11) -> Nice | CN12: 11 | CO12: 0 | CP12: u | CQ12: 11 | CR12: =SUMPRODUCT(($C$3:$C$10=CM12)*($FN$3:$FN$10))+SUMPRODUCT(($L$3:$L$10=CM12)*($FO$3:$FO$10)) -> 0 | CS12: =SUMPRODUCT(($C$3:$C$10=CM12)*($FR$3:$FR$10))+SUMPRODUCT(($L$3:$L$10=CM12)*($FS$3:$FS$10)) -> 1 | CT12: =SUMPRODUCT(($C$3:$C$10=CM12)*($FV$3:$FV$10))+SUMPRODUCT(($L$3:$L$10=CM12)*($FW$3:$FW$10)) -> 0 | CU12: =SUMPRODUCT(($C$3:$C$10=CM12)*($FX$3:$FX$10))+SUMPRODUCT(($L$3:$L$10=CM12)*($FY$3:$FY$10)) -> 0 | CV12: =SUMPRODUCT(($C$3:$C$10=CM12)*($FZ$3:$FZ$10))+SUMPRODUCT(($L$3:$L$10=CM12)*($GA$3:$GA$10)) -> 1 | CW12: =SUMPRODUCT(($C$3:$C$10=CM12)*($GB$3:$GB$10))+SUMPRODUCT(($L$3:$L$10=CM12)*($GC$3:$GC$10)) -> 14 | CX12: 14 | CY12: =SUMPRODUCT(($C$3:$C$10=CM12)*($GD$3:$GD$10))+SUMPRODUCT(($L$3:$L$10=CM12)*($GE$3:$GE$10)) -> 25 | CZ12: 25 | DA12: -11 | DB12: =SUMPRODUCT(($C$3:$C$10=CM12)*($FH$3:$FH$10))+SUMPRODUCT(($L$3:$L$10=CM12)*($FI$3:$FI$10)) -> 0 | DC12: =SUMPRODUCT(($C$3:$C$10=CM12)*($FJ$3:$FJ$10))+SUMPRODUCT(($L$3:$L$10=CM12)*($FK$3:$FK$10)) -> 0 | DD12: 0 | DE12: =SUMPRODUCT(($C$3:$C$10=CM12)*($GF$3:$GF$10))+SUMPRODUCT(($L$3:$L$10=CM12)*($GG$3:$GG$10)) -> 2 | DF12: =SUMPRODUCT(($C$3:$C$10=CM12)*($GH$3:$GH$10))+SUMPRODUCT(($L$3:$L$10=CM12)*($GI$3:$GI$10)) -> 3 | DG12: -1 | DH12: =IF(Equipes!$C$11="","",Equipes!$C$11) -> Nice | DI12: 8 | DJ12: 0 | DK12: u | DL12: 11 | DM12: =SUMPRODUCT(($C$3:$C$10=DH12)*($FL$3:$FL$10)) -> 0 | DN12: =SUMPRODUCT(($C$3:$C$10=DH12)*($FR$3:$FR$10)) -> 0 | DO12: =SUMPRODUCT(($C$3:$C$10=DH12)*($FV$3:$FV$10)) -> 0 | DP12: =SUMPRODUCT(($C$3:$C$10=DH12)*($FX$3:$FX$10)) -> 0 | DQ12: =SUMPRODUCT(($C$3:$C$10=DH12)*($FZ$3:$FZ$10)) -> 0 | DR12: =SUMPRODUCT(($C$3:$C$10=DH12)*($GB$3:$GB$10)) -> 0 | DS12: 0 | DT12: =SUMPRODUCT(($C$3:$C$10=DH12)*($GD$3:$GD$10)) -> 0 | DU12: 0 | DV12: 0 | DW12: =SUMPRODUCT(($C$3:$C$10=DH12)*($FH$3:$FH$10)) -> 0 | DX12: =SUMPRODUCT(($C$3:$C$10=DH12)*($FJ$3:$FJ$10)) -> 0 | DY12: 0 | DZ12: =SUMPRODUCT(($C$3:$C$10=DH12)*($GF$3:$GF$10)) -> 0 | EA12: =SUMPRODUCT(($C$3:$C$10=DH12)*($GH$3:$GH$10)) -> 0 | EB12: 0 | EC12: =IF(Equipes!$C$11="","",Equipes!$C$11) -> Nice | ED12: 11 | EE12: 0 | EF12: u | EG12: 11 | EH12: =SUMPRODUCT(($L$3:$L$10=EC12)*($FM$3:$FM$10)) -> 0 | EI12: =SUMPRODUCT(($L$3:$L$10=EC12)*($FS$3:$FS$10)) -> 1 | EJ12: =SUMPRODUCT(($L$3:$L$10=EC12)*($FW$3:$FW$10)) -> 0 | EK12: =SUMPRODUCT(($L$3:$L$10=EC12)*($FY$3:$FY$10)) -> 0 | EL12: =SUMPRODUCT(($L$3:$L$10=EC12)*($GA$3:$GA$10)) -> 1 | EM12: =SUMPRODUCT(($L$3:$L$10=EC12)*($GC$3:$GC$10)) -> 14 | EN12: 14 | EO12: =SUMPRODUCT(($L$3:$L$10=EC12)*($GE$3:$GE$10)) -> 25 | EP12: 25 | EQ12: -11 | ER12: =SUMPRODUCT(($L$3:$L$10=EC12)*($FI$3:$FI$10)) -> 0 | ES12: =SUMPRODUCT(($L$3:$L$10=EC12)*($FK$3:$FK$10)) -> 0 | ET12: 0 | EU12: =SUMPRODUCT(($L$3:$L$10=EC12)*($GG$3:$GG$10)) -> 2 | EV12: =SUMPRODUCT(($L$3:$L$10=EC12)*($GI$3:$GI$10)) -> 3 | EW12: -1 | EX12: -0.1086 | EY12: =EX12+0.00000005 -> -0.10859995 | EZ12: 0 | FA12: =EZ12+0.00000005 -> 5e-08 | FB12: -0.1086 | FC12: =FB12+0.00000005 -> -0.10859995 | GJ12: Chambéry | GK12: -0.0791 | GL12: =IF(GK12="","",_xlfn.RANK.EQ(GK12,GK3:GK18)) -> 10 | GM12: Nice | GN12: Chambéry | GO12: 0 | GP12: =IF(GO12="","",_xlfn.RANK.EQ(GO12,GO3:GO18)) -> 8 | GQ12: Nice | GR12: Chambéry | GS12: -0.0791 | GT12: =IF(GS12="","",_xlfn.RANK.EQ(GS12,GS3:GS18)) -> 10 | GU12: Nice
S13: 11 | T13: Nice | V13: 0 | W13: 0 | X13: u | Y13: 1 | Z13: 0 | AA13: 0 | AB13: 1 | AC13: 14 | AD13: 14 | AE13: 25 | AF13: 25 | AG13: -11 | AH13: 0 | AI13: 0 | AJ13: 0 | AK13: 0 | AL13: 2 | AM13: 3 | AN13: -1 | AO13: 8 | AP13: Nice | AR13: 0 | AS13: 0 | AT13: u | AU13: 0 | AV13: 0 | AW13: 0 | AX13: 0 | AY13: 0 | AZ13: 0 | BA13: 0 | BB13: 0 | BC13: 0 | BD13: 0 | BE13: 0 | BF13: 0 | BG13: 0 | BH13: 0 | BI13: 0 | BJ13: 0 | BK13: 11 | BL13: Nice | BN13: 0 | BO13: 0 | BP13: u | BQ13: 1 | BR13: 0 | BS13: 0 | BT13: 1 | BU13: 14 | BV13: 14 | BW13: 25 | BX13: 25 | BY13: -11 | BZ13: 0 | CA13: 0 | CB13: 0 | CC13: 0 | CD13: 2 | CE13: 3 | CF13: -1 | CG13: 11 | CH13: 3 | CI13: 11 | CJ13: 3 | CK13: 11 | CL13: 9 | CM13: =IF(Equipes!$C$12="","",Equipes!$C$12) -> Périgueux | CN13: 3 | CO13: 0 | CP13: u | CQ13: 3 | CR13: =SUMPRODUCT(($C$3:$C$10=CM13)*($FN$3:$FN$10))+SUMPRODUCT(($L$3:$L$10=CM13)*($FO$3:$FO$10)) -> 4 | CS13: =SUMPRODUCT(($C$3:$C$10=CM13)*($FR$3:$FR$10))+SUMPRODUCT(($L$3:$L$10=CM13)*($FS$3:$FS$10)) -> 1 | CT13: =SUMPRODUCT(($C$3:$C$10=CM13)*($FV$3:$FV$10))+SUMPRODUCT(($L$3:$L$10=CM13)*($FW$3:$FW$10)) -> 1 | CU13: =SUMPRODUCT(($C$3:$C$10=CM13)*($FX$3:$FX$10))+SUMPRODUCT(($L$3:$L$10=CM13)*($FY$3:$FY$10)) -> 0 | CV13: =SUMPRODUCT(($C$3:$C$10=CM13)*($FZ$3:$FZ$10))+SUMPRODUCT(($L$3:$L$10=CM13)*($GA$3:$GA$10)) -> 0 | CW13: =SUMPRODUCT(($C$3:$C$10=CM13)*($GB$3:$GB$10))+SUMPRODUCT(($L$3:$L$10=CM13)*($GC$3:$GC$10)) -> 25 | CX13: 25 | CY13: =SUMPRODUCT(($C$3:$C$10=CM13)*($GD$3:$GD$10))+SUMPRODUCT(($L$3:$L$10=CM13)*($GE$3:$GE$10)) -> 14 | CZ13: 14 | DA13: 11 | DB13: =SUMPRODUCT(($C$3:$C$10=CM13)*($FH$3:$FH$10))+SUMPRODUCT(($L$3:$L$10=CM13)*($FI$3:$FI$10)) -> 0 | DC13: =SUMPRODUCT(($C$3:$C$10=CM13)*($FJ$3:$FJ$10))+SUMPRODUCT(($L$3:$L$10=CM13)*($FK$3:$FK$10)) -> 0 | DD13: 0 | DE13: =SUMPRODUCT(($C$3:$C$10=CM13)*($GF$3:$GF$10))+SUMPRODUCT(($L$3:$L$10=CM13)*($GG$3:$GG$10)) -> 3 | DF13: =SUMPRODUCT(($C$3:$C$10=CM13)*($GH$3:$GH$10))+SUMPRODUCT(($L$3:$L$10=CM13)*($GI$3:$GI$10)) -> 2 | DG13: 1 | DH13: =IF(Equipes!$C$12="","",Equipes!$C$12) -> Périgueux | DI13: 3 | DJ13: 0 | DK13: u | DL13: 3 | DM13: =SUMPRODUCT(($C$3:$C$10=DH13)*($FL$3:$FL$10)) -> 4 | DN13: =SUMPRODUCT(($C$3:$C$10=DH13)*($FR$3:$FR$10)) -> 1 | DO13: =SUMPRODUCT(($C$3:$C$10=DH13)*($FV$3:$FV$10)) -> 1 | DP13: =SUMPRODUCT(($C$3:$C$10=DH13)*($FX$3:$FX$10)) -> 0 | DQ13: =SUMPRODUCT(($C$3:$C$10=DH13)*($FZ$3:$FZ$10)) -> 0 | DR13: =SUMPRODUCT(($C$3:$C$10=DH13)*($GB$3:$GB$10)) -> 25 | DS13: 25 | DT13: =SUMPRODUCT(($C$3:$C$10=DH13)*($GD$3:$GD$10)) -> 14 | DU13: 14 | DV13: 11 | DW13: =SUMPRODUCT(($C$3:$C$10=DH13)*($FH$3:$FH$10)) -> 0 | DX13: =SUMPRODUCT(($C$3:$C$10=DH13)*($FJ$3:$FJ$10)) -> 0 | DY13: 0 | DZ13: =SUMPRODUCT(($C$3:$C$10=DH13)*($GF$3:$GF$10)) -> 3 | EA13: =SUMPRODUCT(($C$3:$C$10=DH13)*($GH$3:$GH$10)) -> 2 | EB13: 1 | EC13: =IF(Equipes!$C$12="","",Equipes!$C$12) -> Périgueux | ED13: 3 | EE13: 0 | EF13: u | EG13: 9 | EH13: =SUMPRODUCT(($L$3:$L$10=EC13)*($FM$3:$FM$10)) -> 0 | EI13: =SUMPRODUCT(($L$3:$L$10=EC13)*($FS$3:$FS$10)) -> 0 | EJ13: =SUMPRODUCT(($L$3:$L$10=EC13)*($FW$3:$FW$10)) -> 0 | EK13: =SUMPRODUCT(($L$3:$L$10=EC13)*($FY$3:$FY$10)) -> 0 | EL13: =SUMPRODUCT(($L$3:$L$10=EC13)*($GA$3:$GA$10)) -> 0 | EM13: =SUMPRODUCT(($L$3:$L$10=EC13)*($GC$3:$GC$10)) -> 0 | EN13: 0 | EO13: =SUMPRODUCT(($L$3:$L$10=EC13)*($GE$3:$GE$10)) -> 0 | EP13: 0 | EQ13: 0 | ER13: =SUMPRODUCT(($L$3:$L$10=EC13)*($FI$3:$FI$10)) -> 0 | ES13: =SUMPRODUCT(($L$3:$L$10=EC13)*($FK$3:$FK$10)) -> 0 | ET13: 0 | EU13: =SUMPRODUCT(($L$3:$L$10=EC13)*($GG$3:$GG$10)) -> 0 | EV13: =SUMPRODUCT(($L$3:$L$10=EC13)*($GI$3:$GI$10)) -> 0 | EW13: 0 | EX13: 4000.1125 | EY13: =EX13+0.00000004 -> 4000.1125 | EZ13: 4000.1125 | FA13: =EZ13+0.00000004 -> 4000.1125 | FB13: 0 | FC13: =FB13+0.00000004 -> 4e-08 | GJ13: Nice | GK13: -0.1086 | GL13: =IF(GK13="","",_xlfn.RANK.EQ(GK13,GK3:GK18)) -> 11 | GM13: Périgueux | GN13: Nice | GO13: 0 | GP13: =IF(GO13="","",_xlfn.RANK.EQ(GO13,GO3:GO18)) -> 8 | GQ13: Périgueux | GR13: Nice | GS13: -0.1086 | GT13: =IF(GS13="","",_xlfn.RANK.EQ(GS13,GS3:GS18)) -> 11 | GU13: Périgueux
M14: =IF(Accueil!$D$2="","",IF(Accueil!$D$2="Choix de la saison","","Aujourd'hui, nous sommes le "&TEXT(TODAY(),"jjjj jj mmmm aaaa"))) -> Aujourd'hui, nous sommes le dimanche 10 décembre 2023 | S14: 12 | T14: Albi | V14: 0 | W14: 0 | X14: u | Y14: 1 | Z14: 0 | AA14: 0 | AB14: 1 | AC14: 6 | AD14: 6 | AE14: 17 | AF14: 17 | AG14: -11 | AH14: 0 | AI14: 0 | AJ14: 0 | AK14: 0 | AL14: 0 | AM14: 1 | AN14: -1 | AO14: 8 | AP14: Suresnes | AR14: 0 | AS14: 0 | AT14: u | AU14: 0 | AV14: 0 | AW14: 0 | AX14: 0 | AY14: 0 | AZ14: 0 | BA14: 0 | BB14: 0 | BC14: 0 | BD14: 0 | BE14: 0 | BF14: 0 | BG14: 0 | BH14: 0 | BI14: 0 | BJ14: 0 | BK14: 12 | BL14: Albi | BN14: 0 | BO14: 0 | BP14: u | BQ14: 1 | BR14: 0 | BS14: 0 | BT14: 1 | BU14: 6 | BV14: 6 | BW14: 17 | BX14: 17 | BY14: -11 | BZ14: 0 | CA14: 0 | CB14: 0 | CC14: 0 | CD14: 0 | CE14: 1 | CF14: -1 | CG14: 12 | CH14: 13 | CI14: 12 | CJ14: 12 | CK14: 12 | CL14: 13 | CM14: =IF(Equipes!$C$13="","",Equipes!$C$13) -> Suresnes | CN14: 13 | CO14: 0 | CP14: u | CQ14: 13 | CR14: =SUMPRODUCT(($C$3:$C$10=CM14)*($FN$3:$FN$10))+SUMPRODUCT(($L$3:$L$10=CM14)*($FO$3:$FO$10)) -> 0 | CS14: =SUMPRODUCT(($C$3:$C$10=CM14)*($FR$3:$FR$10))+SUMPRODUCT(($L$3:$L$10=CM14)*($FS$3:$FS$10)) -> 1 | CT14: =SUMPRODUCT(($C$3:$C$10=CM14)*($FV$3:$FV$10))+SUMPRODUCT(($L$3:$L$10=CM14)*($FW$3:$FW$10)) -> 0 | CU14: =SUMPRODUCT(($C$3:$C$10=CM14)*($FX$3:$FX$10))+SUMPRODUCT(($L$3:$L$10=CM14)*($FY$3:$FY$10)) -> 0 | CV14: =SUMPRODUCT(($C$3:$C$10=CM14)*($FZ$3:$FZ$10))+SUMPRODUCT(($L$3:$L$10=CM14)*($GA$3:$GA$10)) -> 1 | CW14: =SUMPRODUCT(($C$3:$C$10=CM14)*($GB$3:$GB$10))+SUMPRODUCT(($L$3:$L$10=CM14)*($GC$3:$GC$10)) -> 10 | CX14: 10 | CY14: =SUMPRODUCT(($C$3:$C$10=CM14)*($GD$3:$GD$10))+SUMPRODUCT(($L$3:$L$10=CM14)*($GE$3:$GE$10)) -> 24 | CZ14: 24 | DA14: -14 | DB14: =SUMPRODUCT(($C$3:$C$10=CM14)*($FH$3:$FH$10))+SUMPRODUCT(($L$3:$L$10=CM14)*($FI$3:$FI$10)) -> 0 | DC14: =SUMPRODUCT(($C$3:$C$10=CM14)*($FJ$3:$FJ$10))+SUMPRODUCT(($L$3:$L$10=CM14)*($FK$3:$FK$10)) -> 0 | DD14: 0 | DE14: =SUMPRODUCT(($C$3:$C$10=CM14)*($GF$3:$GF$10))+SUMPRODUCT(($L$3:$L$10=CM14)*($GG$3:$GG$10)) -> 1 | DF14: =SUMPRODUCT(($C$3:$C$10=CM14)*($GH$3:$GH$10))+SUMPRODUCT(($L$3:$L$10=CM14)*($GI$3:$GI$10)) -> 2 | DG14: -1 | DH14: =IF(Equipes!$C$13="","",Equipes!$C$13) -> Suresnes | DI14: 8 | DJ14: 0 | DK14: u | DL14: 12 | DM14: =SUMPRODUCT(($C$3:$C$10=DH14)*($FL$3:$FL$10)) -> 0 | DN14: =SUMPRODUCT(($C$3:$C$10=DH14)*($FR$3:$FR$10)) -> 0 | DO14: =SUMPRODUCT(($C$3:$C$10=DH14)*($FV$3:$FV$10)) -> 0 | DP14: =SUMPRODUCT(($C$3:$C$10=DH14)*($FX$3:$FX$10)) -> 0 | DQ14: =SUMPRODUCT(($C$3:$C$10=DH14)*($FZ$3:$FZ$10)) -> 0 | DR14: =SUMPRODUCT(($C$3:$C$10=DH14)*($GB$3:$GB$10)) -> 0 | DS14: 0 | DT14: =SUMPRODUCT(($C$3:$C$10=DH14)*($GD$3:$GD$10)) -> 0 | DU14: 0 | DV14: 0 | DW14: =SUMPRODUCT(($C$3:$C$10=DH14)*($FH$3:$FH$10)) -> 0 | DX14: =SUMPRODUCT(($C$3:$C$10=DH14)*($FJ$3:$FJ$10)) -> 0 | DY14: 0 | DZ14: =SUMPRODUCT(($C$3:$C$10=DH14)*($GF$3:$GF$10)) -> 0 | EA14: =SUMPRODUCT(($C$3:$C$10=DH14)*($GH$3:$GH$10)) -> 0 | EB14: 0 | EC14: =IF(Equipes!$C$13="","",Equipes!$C$13) -> Suresnes | ED14: 13 | EE14: 0 | EF14: u | EG14: 13 | EH14: =SUMPRODUCT(($L$3:$L$10=EC14)*($FM$3:$FM$10)) -> 0 | EI14: =SUMPRODUCT(($L$3:$L$10=EC14)*($FS$3:$FS$10)) -> 1 | EJ14: =SUMPRODUCT(($L$3:$L$10=EC14)*($FW$3:$FW$10)) -> 0 | EK14: =SUMPRODUCT(($L$3:$L$10=EC14)*($FY$3:$FY$10)) -> 0 | EL14: =SUMPRODUCT(($L$3:$L$10=EC14)*($GA$3:$GA$10)) -> 1 | EM14: =SUMPRODUCT(($L$3:$L$10=EC14)*($GC$3:$GC$10)) -> 10 | EN14: 10 | EO14: =SUMPRODUCT(($L$3:$L$10=EC14)*($GE$3:$GE$10)) -> 24 | EP14: 24 | EQ14: -14 | ER14: =SUMPRODUCT(($L$3:$L$10=EC14)*($FI$3:$FI$10)) -> 0 | ES14: =SUMPRODUCT(($L$3:$L$10=EC14)*($FK$3:$FK$10)) -> 0 | ET14: 0 | EU14: =SUMPRODUCT(($L$3:$L$10=EC14)*($GG$3:$GG$10)) -> 1 | EV14: =SUMPRODUCT(($L$3:$L$10=EC14)*($GI$3:$GI$10)) -> 2 | EW14: -1 | EX14: -0.139 | EY14: =EX14+0.00000003 -> -0.13899997 | EZ14: 0 | FA14: =EZ14+0.00000003 -> 3e-08 | FB14: -0.139 | FC14: =FB14+0.00000003 -> -0.13899997 | GJ14: Albi | GK14: -0.1094 | GL14: =IF(GK14="","",_xlfn.RANK.EQ(GK14,GK3:GK18)) -> 12 | GM14: Suresnes | GN14: Suresnes | GO14: 0 | GP14: =IF(GO14="","",_xlfn.RANK.EQ(GO14,GO3:GO18)) -> 8 | GQ14: Suresnes | GR14: Albi | GS14: -0.1094 | GT14: =IF(GS14="","",_xlfn.RANK.EQ(GS14,GS3:GS18)) -> 12 | GU14: Suresnes
S15: 13 | T15: Suresnes | V15: 0 | W15: 0 | X15: u | Y15: 1 | Z15: 0 | AA15: 0 | AB15: 1 | AC15: 10 | AD15: 10 | AE15: 24 | AF15: 24 | AG15: -14 | AH15: 0 | AI15: 0 | AJ15: 0 | AK15: 0 | AL15: 1 | AM15: 2 | AN15: -1 | AO15: 8 | AP15: Tarbes | AR15: 0 | AS15: 0 | AT15: u | AU15: 0 | AV15: 0 | AW15: 0 | AX15: 0 | AY15: 0 | AZ15: 0 | BA15: 0 | BB15: 0 | BC15: 0 | BD15: 1 | BE15: 0 | BF15: 1 | BG15: 0 | BH15: 0 | BI15: 0 | BJ15: 0 | BK15: 13 | BL15: Suresnes | BN15: 0 | BO15: 0 | BP15: u | BQ15: 1 | BR15: 0 | BS15: 0 | BT15: 1 | BU15: 10 | BV15: 10 | BW15: 24 | BX15: 24 | BY15: -14 | BZ15: 0 | CA15: 0 | CB15: 0 | CC15: 0 | CD15: 1 | CE15: 2 | CF15: -1 | CG15: 13 | CH15: 9 | CI15: 13 | CJ15: 13 | CK15: 13 | CL15: 2 | CM15: =IF(Equipes!$C$14="","",Equipes!$C$14) -> Tarbes | CN15: 9 | CO15: 0 | CP15: u | CQ15: 9 | CR15: =SUMPRODUCT(($C$3:$C$10=CM15)*($FN$3:$FN$10))+SUMPRODUCT(($L$3:$L$10=CM15)*($FO$3:$FO$10)) -> 1 | CS15: =SUMPRODUCT(($C$3:$C$10=CM15)*($FR$3:$FR$10))+SUMPRODUCT(($L$3:$L$10=CM15)*($FS$3:$FS$10)) -> 1 | CT15: =SUMPRODUCT(($C$3:$C$10=CM15)*($FV$3:$FV$10))+SUMPRODUCT(($L$3:$L$10=CM15)*($FW$3:$FW$10)) -> 0 | CU15: =SUMPRODUCT(($C$3:$C$10=CM15)*($FX$3:$FX$10))+SUMPRODUCT(($L$3:$L$10=CM15)*($FY$3:$FY$10)) -> 0 | CV15: =SUMPRODUCT(($C$3:$C$10=CM15)*($FZ$3:$FZ$10))+SUMPRODUCT(($L$3:$L$10=CM15)*($GA$3:$GA$10)) -> 1 | CW15: =SUMPRODUCT(($C$3:$C$10=CM15)*($GB$3:$GB$10))+SUMPRODUCT(($L$3:$L$10=CM15)*($GC$3:$GC$10)) -> 13 | CX15: 13 | CY15: =SUMPRODUCT(($C$3:$C$10=CM15)*($GD$3:$GD$10))+SUMPRODUCT(($L$3:$L$10=CM15)*($GE$3:$GE$10)) -> 20 | CZ15: 20 | DA15: -7 | DB15: =SUMPRODUCT(($C$3:$C$10=CM15)*($FH$3:$FH$10))+SUMPRODUCT(($L$3:$L$10=CM15)*($FI$3:$FI$10)) -> 0 | DC15: =SUMPRODUCT(($C$3:$C$10=CM15)*($FJ$3:$FJ$10))+SUMPRODUCT(($L$3:$L$10=CM15)*($FK$3:$FK$10)) -> 1 | DD15: 0 | DE15: =SUMPRODUCT(($C$3:$C$10=CM15)*($GF$3:$GF$10))+SUMPRODUCT(($L$3:$L$10=CM15)*($GG$3:$GG$10)) -> 1 | DF15: =SUMPRODUCT(($C$3:$C$10=CM15)*($GH$3:$GH$10))+SUMPRODUCT(($L$3:$L$10=CM15)*($GI$3:$GI$10)) -> 2 | DG15: -1 | DH15: =IF(Equipes!$C$14="","",Equipes!$C$14) -> Tarbes | DI15: 8 | DJ15: 0 | DK15: u | DL15: 13 | DM15: =SUMPRODUCT(($C$3:$C$10=DH15)*($FL$3:$FL$10)) -> 0 | DN15: =SUMPRODUCT(($C$3:$C$10=DH15)*($FR$3:$FR$10)) -> 0 | DO15: =SUMPRODUCT(($C$3:$C$10=DH15)*($FV$3:$FV$10)) -> 0 | DP15: =SUMPRODUCT(($C$3:$C$10=DH15)*($FX$3:$FX$10)) -> 0 | DQ15: =SUMPRODUCT(($C$3:$C$10=DH15)*($FZ$3:$FZ$10)) -> 0 | DR15: =SUMPRODUCT(($C$3:$C$10=DH15)*($GB$3:$GB$10)) -> 0 | DS15: 0 | DT15: =SUMPRODUCT(($C$3:$C$10=DH15)*($GD$3:$GD$10)) -> 0 | DU15: 0 | DV15: 0 | DW15: =SUMPRODUCT(($C$3:$C$10=DH15)*($FH$3:$FH$10)) -> 0 | DX15: 1 | DY15: 0 | DZ15: =SUMPRODUCT(($C$3:$C$10=DH15)*($GF$3:$GF$10)) -> 0 | EA15: =SUMPRODUCT(($C$3:$C$10=DH15)*($GH$3:$GH$10)) -> 0 | EB15: 0 | EC15: =IF(Equipes!$C$14="","",Equipes!$C$14) -> Tarbes | ED15: 2 | EE15: 0 | EF15: u | EG15: 2 | EH15: =SUMPRODUCT(($L$3:$L$10=EC15)*($FM$3:$FM$10)) -> 1 | EI15: =SUMPRODUCT(($L$3:$L$10=EC15)*($FS$3:$FS$10)) -> 1 | EJ15: =SUMPRODUCT(($L$3:$L$10=EC15)*($FW$3:$FW$10)) -> 0 | EK15: =SUMPRODUCT(($L$3:$L$10=EC15)*($FY$3:$FY$10)) -> 0 | EL15: =SUMPRODUCT(($L$3:$L$10=EC15)*($GA$3:$GA$10)) -> 1 | EM15: =SUMPRODUCT(($L$3:$L$10=EC15)*($GC$3:$GC$10)) -> 13 | EN15: 13 | EO15: =SUMPRODUCT(($L$3:$L$10=EC15)*($GE$3:$GE$10)) -> 20 | EP15: 20 | EQ15: -7 | ER15: =SUMPRODUCT(($L$3:$L$10=EC15)*($FI$3:$FI$10)) -> 0 | ES15: =SUMPRODUCT(($L$3:$L$10=EC15)*($FK$3:$FK$10)) -> 1 | ET15: 0 | EU15: =SUMPRODUCT(($L$3:$L$10=EC15)*($GG$3:$GG$10)) -> 1 | EV15: =SUMPRODUCT(($L$3:$L$10=EC15)*($GI$3:$GI$10)) -> 2 | EW15: -1 | EX15: 999.9313 | EY15: =EX15+0.00000002 -> 999.9313 | EZ15: 0 | FA15: =EZ15+0.00000002 -> 2e-08 | FB15: 999.9313 | FC15: =FB15+0.00000002 -> 999.9313 | GJ15: Suresnes | GK15: -0.139 | GL15: =IF(GK15="","",_xlfn.RANK.EQ(GK15,GK3:GK18)) -> 13 | GM15: Tarbes | GN15: Tarbes | GO15: 0 | GP15: =IF(GO15="","",_xlfn.RANK.EQ(GO15,GO3:GO18)) -> 8 | GQ15: Tarbes | GR15: Suresnes | GS15: -0.139 | GT15: =IF(GS15="","",_xlfn.RANK.EQ(GS15,GS3:GS18)) -> 13 | GU15: Tarbes
M16: =IF(Equipes!$M$20="","",Equipes!$M$20) -> Date du début du Championnat : vendredi 25 août 2023 | S16: 14 | T16: Vienne | V16: 0 | W16: 0 | X16: u | Y16: 1 | Z16: 0 | AA16: 0 | AB16: 1 | AC16: 16 | AD16: 16 | AE16: 53 | AF16: 53 | AG16: -37 | AH16: 0 | AI16: 0 | AJ16: 0 | AK16: 0 | AL16: 1 | AM16: 7 | AN16: -6 | AO16: 8 | AP16: Vienne | AR16: 0 | AS16: 0 | AT16: u | AU16: 0 | AV16: 0 | AW16: 0 | AX16: 0 | AY16: 0 | AZ16: 0 | BA16: 0 | BB16: 0 | BC16: 0 | BD16: 0 | BE16: 0 | BF16: 0 | BG16: 0 | BH16: 0 | BI16: 0 | BJ16: 0 | BK16: 14 | BL16: Vienne | BN16: 0 | BO16: 0 | BP16: u | BQ16: 1 | BR16: 0 | BS16: 0 | BT16: 1 | BU16: 16 | BV16: 16 | BW16: 53 | BX16: 53 | BY16: -37 | BZ16: 0 | CA16: 0 | CB16: 0 | CC16: 0 | CD16: 1 | CE16: 7 | CF16: -6 | CG16: 14 | CH16: 14 | CI16: 14 | CJ16: 14 | CK16: 14 | CL16: 14 | CM16: =IF(Equipes!$C$15="","",Equipes!$C$15) -> Vienne | CN16: 14 | CO16: 0 | CP16: u | CQ16: 14 | CR16: =SUMPRODUCT(($C$3:$C$10=CM16)*($FN$3:$FN$10))+SUMPRODUCT(($L$3:$L$10=CM16)*($FO$3:$FO$10)) -> 0 | CS16: =SUMPRODUCT(($C$3:$C$10=CM16)*($FR$3:$FR$10))+SUMPRODUCT(($L$3:$L$10=CM16)*($FS$3:$FS$10)) -> 1 | CT16: =SUMPRODUCT(($C$3:$C$10=CM16)*($FV$3:$FV$10))+SUMPRODUCT(($L$3:$L$10=CM16)*($FW$3:$FW$10)) -> 0 | CU16: =SUMPRODUCT(($C$3:$C$10=CM16)*($FX$3:$FX$10))+SUMPRODUCT(($L$3:$L$10=CM16)*($FY$3:$FY$10)) -> 0 | CV16: =SUMPRODUCT(($C$3:$C$10=CM16)*($FZ$3:$FZ$10))+SUMPRODUCT(($L$3:$L$10=CM16)*($GA$3:$GA$10)) -> 1 | CW16: =SUMPRODUCT(($C$3:$C$10=CM16)*($GB$3:$GB$10))+SUMPRODUCT(($L$3:$L$10=CM16)*($GC$3:$GC$10)) -> 16 | CX16: 16 | CY16: =SUMPRODUCT(($C$3:$C$10=CM16)*($GD$3:$GD$10))+SUMPRODUCT(($L$3:$L$10=CM16)*($GE$3:$GE$10)) -> 53 | CZ16: 53 | DA16: -37 | DB16: =SUMPRODUCT(($C$3:$C$10=CM16)*($FH$3:$FH$10))+SUMPRODUCT(($L$3:$L$10=CM16)*($FI$3:$FI$10)) -> 0 | DC16: =SUMPRODUCT(($C$3:$C$10=CM16)*($FJ$3:$FJ$10))+SUMPRODUCT(($L$3:$L$10=CM16)*($FK$3:$FK$10)) -> 0 | DD16: 0 | DE16: =SUMPRODUCT(($C$3:$C$10=CM16)*($GF$3:$GF$10))+SUMPRODUCT(($L$3:$L$10=CM16)*($GG$3:$GG$10)) -> 1 | DF16: =SUMPRODUCT(($C$3:$C$10=CM16)*($GH$3:$GH$10))+SUMPRODUCT(($L$3:$L$10=CM16)*($GI$3:$GI$10)) -> 7 | DG16: -6 | DH16: =IF(Equipes!$C$15="","",Equipes!$C$15) -> Vienne | DI16: 8 | DJ16: 0 | DK16: u | DL16: 14 | DM16: =SUMPRODUCT(($C$3:$C$10=DH16)*($FL$3:$FL$10)) -> 0 | DN16: =SUMPRODUCT(($C$3:$C$10=DH16)*($FR$3:$FR$10)) -> 0 | DO16: =SUMPRODUCT(($C$3:$C$10=DH16)*($FV$3:$FV$10)) -> 0 | DP16: =SUMPRODUCT(($C$3:$C$10=DH16)*($FX$3:$FX$10)) -> 0 | DQ16: =SUMPRODUCT(($C$3:$C$10=DH16)*($FZ$3:$FZ$10)) -> 0 | DR16: =SUMPRODUCT(($C$3:$C$10=DH16)*($GB$3:$GB$10)) -> 0 | DS16: 0 | DT16: =SUMPRODUCT(($C$3:$C$10=DH16)*($GD$3:$GD$10)) -> 0 | DU16: 0 | DV16: 0 | DW16: =SUMPRODUCT(($C$3:$C$10=DH16)*($FH$3:$FH$10)) -> 0 | DX16: =SUMPRODUCT(($C$3:$C$10=DH16)*($FJ$3:$FJ$10)) -> 0 | DY16: 0 | DZ16: =SUMPRODUCT(($C$3:$C$10=DH16)*($GF$3:$GF$10)) -> 0 | EA16: =SUMPRODUCT(($C$3:$C$10=DH16)*($GH$3:$GH$10)) -> 0 | EB16: 0 | EC16: =IF(Equipes!$C$15="","",Equipes!$C$15) -> Vienne | ED16: 14 | EE16: 0 | EF16: u | EG16: 14 | EH16: =SUMPRODUCT(($L$3:$L$10=EC16)*($FM$3:$FM$10)) -> 0 | EI16: =SUMPRODUCT(($L$3:$L$10=EC16)*($FS$3:$FS$10)) -> 1 | EJ16: =SUMPRODUCT(($L$3:$L$10=EC16)*($FW$3:$FW$10)) -> 0 | EK16: =SUMPRODUCT(($L$3:$L$10=EC16)*($FY$3:$FY$10)) -> 0 | EL16: =SUMPRODUCT(($L$3:$L$10=EC16)*($GA$3:$GA$10)) -> 1 | EM16: =SUMPRODUCT(($L$3:$L$10=EC16)*($GC$3:$GC$10)) -> 16 | EN16: 16 | EO16: =SUMPRODUCT(($L$3:$L$10=EC16)*($GE$3:$GE$10)) -> 53 | EP16: 53 | EQ16: -37 | ER16: =SUMPRODUCT(($L$3:$L$10=EC16)*($FI$3:$FI$10)) -> 0 | ES16: =SUMPRODUCT(($L$3:$L$10=EC16)*($FK$3:$FK$10)) -> 0 | ET16: 0 | EU16: =SUMPRODUCT(($L$3:$L$10=EC16)*($GG$3:$GG$10)) -> 1 | EV16: =SUMPRODUCT(($L$3:$L$10=EC16)*($GI$3:$GI$10)) -> 7 | EW16: -6 | EX16: -0.3684 | EY16: =EX16+0.00000001 -> -0.36839999 | EZ16: 0 | FA16: =EZ16+0.00000001 -> 1e-08 | FB16: -0.3684 | FC16: =FB16+0.00000001 -> -0.36839999 | GJ16: Vienne | GK16: -0.3684 | GL16: =IF(GK16="","",_xlfn.RANK.EQ(GK16,GK3:GK18)) -> 14 | GM16: Vienne | GN16: Vienne | GO16: 0 | GP16: =IF(GO16="","",_xlfn.RANK.EQ(GO16,GO3:GO18)) -> 8 | GQ16: Vienne | GR16: Vienne | GS16: -0.3684 | GT16: =IF(GS16="","",_xlfn.RANK.EQ(GS16,GS3:GS18)) -> 14 | GU16: Vienne
M18: =IF(Equipes!$M$22="","",Equipes!$M$22) -> Date de la fin du Championnat : samedi 27 avril 2024
Y20: =IF(SUM(Y3:Y16)<>0,SUM(Y3:Y16),"") -> 14 | CN20: p | CO20: u | CP20: q | DI20: p | DJ20: u | DK20: q | ED20: p | EE20: u | EF20: q
CN21: p | CO21: u | CP21: q | DI21: p | DJ21: u | DK21: q | ED21: p | EE21: u | EF21: q

Sheet J02
A1: =IF(Accueil!$H$2="","",IF(Accueil!$H$2="Choix du Championnat de Rugby","",IF(Accueil!$B$2="","",IF(Accueil!$D$2="","",IF(Accueil!$D$2="Choix de la saison","",_xlfn.CONCAT(Accueil!$H$2," / ",Accueil!$B$2," ",Accueil!$D$2)))))) -> Championnat de France de Rugby à 15 - Nationale / Saison du Championnat : 2023 - 2024 | Q1: ='J01'!Q1+1 -> 2 | S1: CLASSEMENT GENERAL | AO1: CLASSEMENT A DOMICILE | BK1: CLASSEMENT A L'EXTERIEUR | CG1: =S1 -> CLASSEMENT GENERAL | CI1: =AO1 -> CLASSEMENT A DOMICILE | CK1: =BK1 -> CLASSEMENT A L'EXTERIEUR | CM1: =S1 -> CLASSEMENT GENERAL | DH1: =AO1 -> CLASSEMENT A DOMICILE | EC1: =BK1 -> CLASSEMENT A L'EXTERIEUR | EX1: =S1 -> CLASSEMENT GENERAL | EZ1: =AO1 -> CLASSEMENT A DOMICILE | FB1: =BK1 -> CLASSEMENT A L'EXTERIEUR | FD1: Dom. | FE1: Ext. | FF1: Dom. | FG1: Ext. | FH1: Dom. | FI1: Ext. | FJ1: Dom. | FK1: Ext. | FL1: Dom. | FM1: Ext. | FN1: Dom. | FO1: Ext. | FP1: Dom. | FQ1: Ext. | FR1: Dom. | FS1: Ext. | FT1: Dom. | FU1: Ext. | FV1: Dom. | FW1: Ext. | FX1: Dom. | FY1: Ext. | FZ1: Dom. | GA1: Ext. | GB1: Dom. | GC1: Ext. | GD1: Dom. | GE1: Ext. | GF1: Dom. | GG1: Ext. | GH1: Dom. | GI1: Ext. | GJ1: =S1 -> CLASSEMENT GENERAL | GN1: =AO1 -> CLASSEMENT A DOMICILE | GR1: =BK1 -> CLASSEMENT A L'EXTERIEUR
A2: Points de pénalités | B2: Equipes exclues, forfaits, matchs gagnés ou perdus sur tapis vert | C2: Equipes | D2: Points | E2: Bonus défensif Bd | F2: Essais | G2: Bonus offensif Bo | H2: Points | I2: Bonus défensif Bd | J2: Essais | K2: Bonus offensif Bo | L2: Equipes | M2: Equipes exclues, forfaits, matchs gagnés ou perdus sur tapis vert | N2: Points de pénalités | O2: Dates | P2: Horaires | Q2: Matchs à rejouer, annulés, arrêtés, avec réserves, reportés ou reprogrammés | S2: Place | T2: Equipes | U2: Logo | V2: Points | W2: Evolution | Y2: Joués | Z2: Gagnés | AA2: Nuls | AB2: Perdus | AC2: Points marqués | AD2: Moyenne par match | AE2: Points encaissés | AF2: Moyenne par match | AG2: +/- | AH2: Tous les bonus | AI2: Bonus offensif | AJ2: Bonus défensif | AK2: Bonus fédération | AL2: Essais marqués | AM2: Essais encaissés | AN2: +/- | AO2: Place | AP2: Equipes | AQ2: Logo | AR2: Points | AS2: Evolution | AU2: Joués | AV2: Gagnés | AW2: Nuls | AX2: Perdus | AY2: Points marqués | AZ2: Moyenne par match | BA2: Points encaissés | BB2: Moyenne par match | BC2: +/- | BD2: Tous les bonus | BE2: Bonus offensif | BF2: Bonus défensif | BG2: Bonus fédération | BH2: Essais marqués | BI2: Essais encaissés | BJ2: +/- | BK2: Place | BL2: Equipes | BM2: Logo | BN2: Points | BO2: Evolution | BQ2: Joués | BR2: Gagnés | BS2: Nuls | BT2: Perdus | BU2: Points marqués | BV2: Moyenne par match | BW2: Points encaissés | BX2: Moyenne par match | BY2: +/- | BZ2: Tous les bonus | CA2: Bonus offensif | CB2: Bonus défensif | CC2: Bonus fédération | CD2: Essais marqués | CE2: Essais encaissés | CF2: +/- | CG2: Rang | CH2: Place | CI2: Rang | CJ2: Place | CK2: Rang | CL2: Place | CM2: Equipes | CN2: Rang | CO2: Evolution | CQ2: Place | CR2: Points | CS2: Joués | CT2: Gagnés | CU2: Nuls | CV2: Perdus | CW2: Points marqués | CX2: Moyenne par match | CY2: Points encaissés | CZ2: Moyenne par match | DA2: +/- | DB2: Bonus offensif | DC2: Bonus défensif | DD2: Bonus fédération | DE2: Essais marqués | DF2: Essais encaissés | DG2: +/- | DH2: Equipes | DI2: Rang | DJ2: Evolution | DL2: Place | DM2: Points | DN2: Joués | DO2: Gagnés | DP2: Nuls | DQ2: Perdus | DR2: Points marqués | DS2: Moyenne par match | DT2: Points encaissés | DU2: Moyenne par match | DV2: +/- | DW2: Bonus offensif | DX2: Bonus défensif | DY2: Bonus fédération | DZ2: Essais marqués | EA2: Essais encaissés | EB2: +/- | EC2: Equipes | ED2: Rang | EE2: Evolution | EG2: Place | EH2: Points | EI2: Joués | EJ2: Gagnés | EK2: Nuls | EL2: Perdus | EM2: Points marqués | EN2: Moyenne par match | EO2: Points encaissés | EP2: Moyenne par match | EQ2: +/- | ER2: Bonus offensif | ES2: Bonus défensif | ET2: Bonus fédération | EU2: Essais marqués | EV2: Essais encaissés | EW2: +/- | EX2: Rang | EY2: Place | EZ2: Rang | FA2: Place | FB2: Rang | FC2: Place | FD2: Points de pénalités | FE2: Points de pénalités | FF2: Pts | FG2: Pts | FH2: Bo | FI2: Bo | FJ2: Bd | FK2: Bd | FL2: T Pts | FM2: T Pts | FN2: T Pts | FO2: TPts | FP2: J annulé | FQ2: J annulé | FR2: J | FS2: J | FT2: Total J | FU2: Total J | FV2: G | FW2: G | FX2: N | FY2: N | FZ2: P | GA2: P | GB2: Pts + | GC2: Pts + | GD2: Pts - | GE2: Pts - | GF2: Essais + | GG2: Essais + | GH2: Essais - | GI2: Essais - | GJ2: Equipes | GK2: Rang | GL2: Place | GM2: Equipes | GN2: Equipes | GO2: Rang | GP2: Place | GQ2: Equipes | GR2: Equipes | GS2: Rang | GT2: Place | GU2: Equipes | GW2: ok | GX2: Dates et horaires des matchs prévus | GY2: Dates et horaires des matchs restant à jouer | GZ2: Date et horaire minimum à jouer | HA2: Date et horaire maximum à jouer | HC2: Total J | HD2: Total J
C3: Hyères | D3: 16 | E3: =IF(D3="","",IF(H3="","",IF(D3>H3,"",IF(D3=H3,"",IF(D3<H3,IF(SUM(H3-D3)<=7,"Bd","")))))) ->  | F3: 1 | G3: =IF(F3="","",IF(J3="","",IF(SUM(F3-J3)>=3,"Bo",""))) ->  | H3: 16 | I3: =IF(H3="","",IF(D3="","",IF(H3>D3,"",IF(H3=D3,"",IF(H3<D3,IF(SUM(D3-H3)<=7,"Bd","")))))) ->  | J3: 1 | K3: =IF(J3="","",IF(F3="","",IF(SUM(J3-F3)>=3,"Bo",""))) ->  | L3: Chambéry | O3: Samedi 2 septembre 2023 | P3: 15:30:00 | S3: 1 | T3: =IFERROR(_xlfn.XLOOKUP(CG3,$CH$3:$CH$18,$CM$3:$CM$18),"") -> Périgueux | V3: =IFERROR(_xlfn.XLOOKUP(T3,$CM$3:$CM$18,$CR$3:$CR$18),"") -> 8 | W3: =IFERROR(_xlfn.XLOOKUP(T3,$CM$3:$CM$18,$CO$3:$CO$18),"") -> 2 | X3: =IFERROR(_xlfn.XLOOKUP(T3,$CM$3:$CM$18,$CP$3:$CP$18),"") -> p | Y3: =IFERROR(_xlfn.XLOOKUP(T3,$CM$3:$CM$18,$CS$3:$CS$18),"") -> 2 | Z3: =IFERROR(_xlfn.XLOOKUP(T3,$CM$3:$CM$18,$CT$3:$CT$18),"") -> 2 | AA3: =IFERROR(_xlfn.XLOOKUP(T3,$CM$3:$CM$18,$CU$3:$CU$18),"") -> 0 | AB3: =IFERROR(_xlfn.XLOOKUP(T3,$CM$3:$CM$18,$CV$3:$CV$18),"") -> 0 | AC3: =IFERROR(_xlfn.XLOOKUP(T3,$CM$3:$CM$18,$CW$3:$CW$18),"") -> 47 | AD3: =ROUND(AC3/Y3,0) -> 24 | AE3: =IFERROR(_xlfn.XLOOKUP(T3,$CM$3:$CM$18,$CY$3:$CY$18),"") -> 21 | AF3: =ROUND(AE3/Y3,0) -> 11 | AG3: =IFERROR(_xlfn.XLOOKUP(T3,$CM$3:$CM$18,$DA$3:$DA$18),"") -> 26 | AH3: =SUM(AI3:AK3) -> 0 | AI3: =IFERROR(_xlfn.XLOOKUP(T3,$CM$3:$CM$18,$DB$3:$DB$18),"") -> 0 | AJ3: =IFERROR(_xlfn.XLOOKUP(T3,$CM$3:$CM$18,$DC$3:$DC$18),"") -> 0 | AK3: 0 | AL3: =IFERROR(_xlfn.XLOOKUP(T3,$CM$3:$CM$18,$DE$3:$DE$18),"") -> 6 | AM3: =IFERROR(_xlfn.XLOOKUP(T3,$CM$3:$CM$18,$DF$3:$DF$18),"") -> 3 | AN3: =IFERROR(_xlfn.XLOOKUP(T3,$CM$3:$CM$18,$DG$3:$DG$18),"") -> 3 | AO3: 1 | AP3: =IFERROR(_xlfn.XLOOKUP(CI3,$CJ$3:$CJ$18,$DH$3:$DH$18),"") -> Périgueux | AR3: =IFERROR(_xlfn.XLOOKUP(AP3,$DH$3:$DH$18,$DM$3:$DM$18),"") -> 8 | AS3: =IFERROR(_xlfn.XLOOKUP(AP3,$DH$3:$DH$18,$DJ$3:$DJ$18),"") -> 2 | AT3: =IFERROR(_xlfn.XLOOKUP(AP3,$DH$3:$DH$18,$DK$3:$DK$18),"") -> p | AU3: =IFERROR(_xlfn.XLOOKUP(AP3,$DH$3:$DH$18,$DN$3:$DN$18),"") -> 2 | AV3: =IFERROR(_xlfn.XLOOKUP(AP3,$DH$3:$DH$18,$DO$3:$DO$18),"") -> 2 | AW3: =IFERROR(_xlfn.XLOOKUP(AP3,$DH$3:$DH$18,$DP$3:$DP$18),"") -> 0 | AX3: =IFERROR(_xlfn.XLOOKUP(AP3,$DH$3:$DH$18,$DQ$3:$DQ$18),"") -> 0 | AY3: =IFERROR(_xlfn.XLOOKUP(AP3,$DH$3:$DH$18,$DR$3:$DR$18),"") -> 47 | AZ3: =IFERROR(ROUND(AY3/AU3,0),0) -> 24 | BA3: =IFERROR(_xlfn.XLOOKUP(AP3,$DH$3:$DH$18,$DT$3:$DT$18),"") -> 21 | BB3: =IFERROR(ROUND(BA3/AU3,0),0) -> 11 | BC3: =IFERROR(_xlfn.XLOOKUP(AP3,$DH$3:$DH$18,$DV$3:$DV$18),"") -> 26 | BD3: =SUM(BE3:BG3) -> 0 | BE3: =IFERROR(_xlfn.XLOOKUP(AP3,$DH$3:$DH$18,$DW$3:$DW$18),"") -> 0 | BF3: =IFERROR(_xlfn.XLOOKUP(AP3,$DH$3:$DH$18,$DX$3:$DX$18),"") -> 0 | BG3: 0 | BH3: =IFERROR(_xlfn.XLOOKUP(AP3,$DH$3:$DH$18,$DZ$3:$DZ$18),"") -> 6 | BI3: =IFERROR(_xlfn.XLOOKUP(AP3,$DH$3:$DH$18,$EA$3:$EA$18),"") -> 3 | BJ3: =IFERROR(_xlfn.XLOOKUP(AP3,$DH$3:$DH$18,$EB$3:$EB$18),"") -> 3 | BK3: 1 | BL3: =IFERROR(_xlfn.XLOOKUP(CK3,$CL$3:$CL$18,$EC$3:$EC$18),"") -> Nice | BN3: =IFERROR(_xlfn.XLOOKUP(BL3,$EC$3:$EC$18,$EH$3:$EH$18),"") -> 5 | BO3: =IFERROR(_xlfn.XLOOKUP(BL3,$EC$3:$EC$18,$EE$3:$EE$18),"") -> 10 | BP3: =IFERROR(_xlfn.XLOOKUP(BL3,$EC$3:$EC$18,$EF$3:$EF$18),"") -> p | BQ3: =IFERROR(_xlfn.XLOOKUP(BL3,$EC$3:$EC$18,$EI$3:$EI$18),"") -> 2 | BR3: =IFERROR(_xlfn.XLOOKUP(BL3,$EC$3:$EC$18,$EJ$3:$EJ$18),"") -> 1 | BS3: =IFERROR(_xlfn.XLOOKUP(BL3,$EC$3:$EC$18,$EK$3:$EK$18),"") -> 0 | BT3: =IFERROR(_xlfn.XLOOKUP(BL3,$EC$3:$EC$18,$EL$3:$EL$18),"") -> 1 | BU3: =IFERROR(_xlfn.XLOOKUP(BL3,$EC$3:$EC$18,$EM$3:$EM$18),"") -> 39 | BV3: =IFERROR(ROUND(BU3/BQ3,0),0) -> 20 | BW3: =IFERROR(_xlfn.XLOOKUP(BL3,$EC$3:$EC$18,$EO$3:$EO$18),"") -> 28 | BX3: =IFERROR(ROUND(BW3/BQ3,0),0) -> 14 | BY3: =IFERROR(_xlfn.XLOOKUP(BL3,$EC$3:$EC$18,$EQ$3:$EQ$18),"") -> 11 | BZ3: =SUM(CA3:CC3) -> 1 | CA3: =IFERROR(_xlfn.XLOOKUP(BL3,$EC$3:$EC$18,$ER$3:$ER$18),"") -> 1 | CB3: =IFERROR(_xlfn.XLOOKUP(BL3,$EC$3:$EC$18,$ES$3:$ES$18),"") -> 0 | CC3: 0 | CD3: =IFERROR(_xlfn.XLOOKUP(BL3,$EC$3:$EC$18,$EU$3:$EU$18),"") -> 5 | CE3: =IFERROR(_xlfn.XLOOKUP(BL3,$EC$3:$EC$18,$EV$3:$EV$18),"") -> 3 | CF3: =IFERROR(_xlfn.XLOOKUP(BL3,$EC$3:$EC$18,$EW$3:$EW$18),"") -> 2 | CG3: 1 | CH3: =CQ3 -> 9 | CI3: 1 | CJ3: =DL3 -> 5 | CK3: 1 | CL3: =EG3 -> 12 | CM3: =IF(Equipes!$C$2="","",Equipes!$C$2) -> Albi | CN3: =_xlfn.RANK.EQ(EX3,$EX$3:$EX$18) -> 9 | CO3: ='J01'!CN3-CN3 -> 3 | CP3: =IF(CN3>'J01'!CN3,'J01'!$CP$20,IF(CN3='J01'!CN3,'J01'!$CO$20,IF(CN3<'J01'!CN3,'J01'!$CN$20))) -> p | CQ3: =_xlfn.RANK.EQ(EY3,$EY$3:$EY$18) -> 9 | CR3: =SUMPRODUCT(($C$3:$C$10=CM3)*($FN$3:$FN$10))+SUMPRODUCT(($L$3:$L$10=CM3)*($FO$3:$FO$10))+'J01'!CR3+DD3 -> 4 | CS3: =SUMPRODUCT(($C$3:$C$10=CM3)*($FR$3:$FR$10))+SUMPRODUCT(($L$3:$L$10=CM3)*($FS$3:$FS$10))+'J01'!CS3 -> 2 | CT3: =SUMPRODUCT(($C$3:$C$10=CM3)*($FV$3:$FV$10))+SUMPRODUCT(($L$3:$L$10=CM3)*($FW$3:$FW$10))+'J01'!CT3 -> 1 | CU3: =SUMPRODUCT(($C$3:$C$10=CM3)*($FX$3:$FX$10))+SUMPRODUCT(($L$3:$L$10=CM3)*($FY$3:$FY$10))+'J01'!CU3 -> 0 | CV3: =SUMPRODUCT(($C$3:$C$10=CM3)*($FZ$3:$FZ$10))+SUMPRODUCT(($L$3:$L$10=CM3)*($GA$3:$GA$10))+'J01'!CV3 -> 1 | CW3: =SUMPRODUCT(($C$3:$C$10=CM3)*($GB$3:$GB$10))+SUMPRODUCT(($L$3:$L$10=CM3)*($GC$3:$GC$10))+'J01'!CW3 -> 33 | CX3: =ROUND(CW3/CS3,0) -> 17 | CY3: =SUMPRODUCT(($C$3:$C$10=CM3)*($GD$3:$GD$10))+SUMPRODUCT(($L$3:$L$10=CM3)*($GE$3:$GE$10))+'J01'!CY3 -> 33 | CZ3: =ROUND(CY3/CS3,0) -> 17 | DA3: =CW3-CY3 -> 0 | DB3: =SUMPRODUCT(($C$3:$C$10=CM3)*($FH$3:$FH$10))+SUMPRODUCT(($L$3:$L$10=CM3)*($FI$3:$FI$10))+'J01'!DB3 -> 0 | DC3: =SUMPRODUCT(($C$3:$C$10=CM3)*($FJ$3:$FJ$10))+SUMPRODUCT(($L$3:$L$10=CM3)*($FK$3:$FK$10))+'J01'!DC3 -> 0 | DD3: 0 | DE3: =SUMPRODUCT(($C$3:$C$10=CM3)*($GF$3:$GF$10))+SUMPRODUCT(($L$3:$L$10=CM3)*($GG$3:$GG$10))+'J01'!DE3 -> 3 | DF3: =SUMPRODUCT(($C$3:$C$10=CM3)*($GH$3:$GH$10))+SUMPRODUCT(($L$3:$L$10=CM3)*($GI$3:$GI$10))+'J01'!DF3 -> 2 | DG3: =DE3-DF3 -> 1 | DH3: =IF(Equipes!$C$2="","",Equipes!$C$2) -> Albi | DI3: =_xlfn.RANK.EQ(EZ3,$EZ$3:$EZ$18) -> 5 | DJ3: ='J01'!DI3-DI3 -> 3 | DK3: =IF(DI3>'J01'!DI3,'J01'!$DK$20,IF(DI3='J01'!DI3,'J01'!$DJ$20,IF(DI3<'J01'!DI3,'J01'!$DI$20))) -> p | DL3: =_xlfn.RANK.EQ(FA3,$FA$3:$FA$18) -> 5 | DM3: =SUMPRODUCT(($C$3:$C$10=DH3)*($FL$3:$FL$10))+'J01'!DM3+DY3 -> 4 | DN3: =SUMPRODUCT(($C$3:$C$10=DH3)*($FR$3:$FR$10))+'J01'!DN3 -> 1 | DO3: =SUMPRODUCT(($C$3:$C$10=DH3)*($FV$3:$FV$10))+'J01'!DO3 -> 1 | DP3: =SUMPRODUCT(($C$3:$C$10=DH3)*($FX$3:$FX$10))+'J01'!DP3 -> 0 | DQ3: =SUMPRODUCT(($C$3:$C$10=DH3)*($FZ$3:$FZ$10))+'J01'!DQ3 -> 0 | DR3: =SUMPRODUCT(($C$3:$C$10=DH3)*($GB$3:$GB$10))+'J01'!DR3 -> 27 | DS3: =IFERROR(ROUND(DR3/DN3,0),0) -> 27 | DT3: =SUMPRODUCT(($C$3:$C$10=DH3)*($GD$3:$GD$10))+'J01'!DT3 -> 16 | DU3: =IFERROR(ROUND(DT3/DN3,0),0) -> 16 | DV3: =DR3-DT3 -> 11 | DW3: =SUMPRODUCT(($C$3:$C$10=DH3)*($FH$3:$FH$10))+'J01'!DW3 -> 0 | DX3: =SUMPRODUCT(($C$3:$C$10=DH3)*($FJ$3:$FJ$10))+'J01'!DX3 -> 0 | DY3: 0 | DZ3: =SUMPRODUCT(($C$3:$C$10=DH3)*($GF$3:$GF$10))+'J01'!DZ3 -> 3 | EA3: =SUMPRODUCT(($C$3:$C$10=DH3)*($GH$3:$GH$10))+'J01'!EA3 -> 1 | EB3: =DZ3-EA3 -> 2 | EC3: =IF(Equipes!$C$2="","",Equipes!$C$2) -> Albi | ED3: =_xlfn.RANK.EQ(FB3,$FB$3:$FB$18) -> 12 | EE3: ='J01'!ED3-ED3 -> 0 | EF3: =IF(ED3>'J01'!ED3,'J01'!$EF$20,IF(ED3='J01'!ED3,'J01'!$EE$20,IF(ED3<'J01'!ED3,'J01'!$ED$20))) -> u | EG3: =_xlfn.RANK.EQ(FC3,$FC$3:$FC$18) -> 12 | EH3: =SUMPRODUCT(($L$3:$L$10=EC3)*($FM$3:$FM$10))+'J01'!EH3+ET3 -> 0 | EI3: =SUMPRODUCT(($L$3:$L$10=EC3)*($FS$3:$FS$10))+'J01'!EI3 -> 1 | EJ3: =SUMPRODUCT(($L$3:$L$10=EC3)*($FW$3:$FW$10))+'J01'!EJ3 -> 0 | EK3: =SUMPRODUCT(($L$3:$L$10=EC3)*($FY$3:$FY$10))+'J01'!EK3 -> 0 | EL3: =SUMPRODUCT(($L$3:$L$10=EC3)*($GA$3:$GA$10))+'J01'!EL3 -> 1 | EM3: =SUMPRODUCT(($L$3:$L$10=EC3)*($GC$3:$GC$10))+'J01'!EM3 -> 6 | EN3: =IFERROR(EM3/EI3,0) -> 6 | EO3: =SUMPRODUCT(($L$3:$L$10=EC3)*($GE$3:$GE$10))+'J01'!EO3 -> 17 | EP3: =IFERROR(EO3/EI3,0) -> 17 | EQ3: =EM3-EO3 -> -11 | ER3: =SUMPRODUCT(($L$3:$L$10=EC3)*($FI$3:$FI$10))+'J01'!ER3 -> 0 | ES3: =SUMPRODUCT(($L$3:$L$10=EC3)*($FK$3:$FK$10))+'J01'!ES3 -> 0 | ET3: 0 | EU3: =SUMPRODUCT(($L$3:$L$10=EC3)*($GG$3:$GG$10))+'J01'!EU3 -> 0 | EV3: =SUMPRODUCT(($L$3:$L$10=EC3)*($GI$3:$GI$10))+'J01'!EV3 -> 1 | EW3: =EU3-EV3 -> -1 | EX3: =SUM(CR3*1000)+(DA3/100)+(CW3/10000) -> 4000.0033 | EY3: =EX3+0.00000014 -> 4000.0033 | EZ3: =SUM(DM3*1000)+(DV3/100)+(DR3/10000) -> 4000.1127 | FA3: =EZ3+0.00000014 -> 4000.1127 | FB3: =SUM(EH3*1000)+(EQ3/100)+(EM3/10000) -> -0.1094 | FC3: =FB3+0.00000014 -> -0.10939986 | FD3: =A3 -> 0 | FE3: =N3 -> 0 | FF3: =IF(D3="",0,IF(H3="",0,IF(D3>H3,4,IF(D3=H3,2,IF(D3<H3,0))))) -> 2 | FG3: =IF(H3="",0,IF(D3="",0,IF(H3>D3,4,IF(H3=D3,2,IF(H3<D3,0))))) -> 2 | FH3: =IF(F3<>"",IF(SUM(F3-J3)>=3,1)) -> FALSE | FI3: =IF(J3<>"",IF(SUM(J3-F3)>=3,1)) -> FALSE | FJ3: =IF(D3<>"",IF(D3<H3,IF(SUM(H3-D3)<=7,1))) -> FALSE | FK3: =IF(H3<>"",IF(H3<D3,IF(SUM(D3-H3)<=7,1))) -> FALSE | FL3: =SUM(FF3,FH3,FJ3) -> 2 | FM3: =SUM(FG3,FI3,FK3) -> 2 | FN3: =FL3-FD3 -> 2 | FO3: =FM3-FE3 -> 2 | FP3: =IF(Q3="Match annulé",1,"") ->  | FQ3: =IF(Q3="Match annulé",1,"") ->  | FR3: =IF(D3="",0,1) -> 1 | FS3: =IF(H3="",0,1) -> 1 | FT3: =IF(SUM(FP3,FR3)<>0,SUM(FP3,FR3),0) -> 1 | FU3: =IF(SUM(FQ3,FS3)<>0,SUM(FQ3,FS3),0) -> 1 | FV3: =IF(D3<>"",IF(D3>H3,1)) -> FALSE | FW3: =IF(H3<>"",IF(H3>D3,1)) -> FALSE | FX3: =IF(D3<>"",IF(D3=H3,1)) -> 1 | FY3: =IF(H3<>"",IF(H3=D3,1)) -> 1 | FZ3: =IF(D3<>"",IF(D3<H3,1)) -> FALSE | GA3: =IF(H3<>"",IF(H3<D3,1)) -> FALSE | GB3: =D3 -> 16 | GC3: =H3 -> 16 | GD3: =H3 -> 16 | GE3: =D3 -> 16 | GF3: =F3 -> 1 | GG3: =J3 -> 1 | GH3: =J3 -> 1 | GI3: =F3 -> 1 | GJ3: =IFERROR(_xlfn.XLOOKUP(CG3,$CH$3:$CH$18,$CM$3:$CM$18),"") -> Périgueux | GK3: =IFERROR(_xlfn.XLOOKUP(GJ3,$CM$3:$CM$18,$EX$3:$EX$18),"") -> 8000.2647 | GL3: =IF(GK3="","",_xlfn.RANK.EQ(GK3,GK3:GK18)) -> 1 | GM3: =IF(CM3="","",CM3) -> Albi | GN3: =IFERROR(_xlfn.XLOOKUP(CI3,$CJ$3:$CJ$18,$DH$3:$DH$18),"") -> Périgueux | GO3: =IFERROR(_xlfn.XLOOKUP(GN3,$DH$3:$DH$18,$EZ$3:$EZ$18),"") -> 8000.2647 | GP3: =IF(GO3="","",_xlfn.RANK.EQ(GO3,GO3:GO18)) -> 1 | GQ3: =IF(DH3="","",DH3) -> Albi | GR3: =IFERROR(_xlfn.XLOOKUP(CK3,$CL$3:$CL$18,$EC$3:$EC$18),"") -> Nice | GS3: =IFERROR(_xlfn.XLOOKUP(GR3,$EC$3:$EC$18,$FB$3:$FB$18),"") -> 5000.1139 | GT3: =IF(GS3="","",_xlfn.RANK.EQ(GS3,GS3:GS18)) -> 1 | GU3: =IF(EC3="","",EC3) -> Albi | GW3: =IF(AND(H3="",Q3=""),"",IF(AND(H3>=0,Q3=""),"ok",IF(AND(H3="",Q3="Match à rejouer"),"ok",IF(AND(H3="",Q3="Match annulé"),"ok",IF(AND(H3="",Q3="Match arrêté"),"ok",IF(AND(H3="",Q3="Match avec réserves"),"ok",IF(AND(H3="",Q3="Match reporté"),"ok",IF(AND(H3="",Q3="Match reprogrammé"),"")))))))) -> ok | GX3: =IF(O3="","",IF(P3="","",O3+P3)) ->  | GY3: =IF(O3="","",IF(P3="","",IF(GW3="ok","",O3+P3))) ->  | GZ3: =MIN(GY3:GY9) -> 00:00:00 | HA3: =MAX(GY3:GY9) -> 00:00:00 | HC3: =IF(SUM(FP3,FR3)<>0,SUM(FP3,FR3),"") -> 1 | HD3: =IF(SUM(FQ3,FS3)<>0,SUM(FQ3,FS3),"") -> 1
C4: Périgueux | D4: 22 | F4: 3 | H4: 7 | J4: 1 | L4: Bourgoin-Jallieu | O4: Samedi 2 septembre 2023 | P4: 17:00:00 | S4: =IF(GK4=GK3,GL3,GL4) -> 2 | T4: =IFERROR(_xlfn.XLOOKUP(CG4,$CH$3:$CH$18,$CM$3:$CM$18),"") -> Narbonne | V4: =IFERROR(_xlfn.XLOOKUP(T4,$CM$3:$CM$18,$CR$3:$CR$18),"") -> 8 | W4: =IFERROR(_xlfn.XLOOKUP(T4,$CM$3:$CM$18,$CO$3:$CO$18),"") -> 3 | X4: =IFERROR(_xlfn.XLOOKUP(T4,$CM$3:$CM$18,$CP$3:$CP$18),"") -> p | Y4: =IFERROR(_xlfn.XLOOKUP(T4,$CM$3:$CM$18,$CS$3:$CS$18),"") -> 2 | Z4: =IFERROR(_xlfn.XLOOKUP(T4,$CM$3:$CM$18,$CT$3:$CT$18),"") -> 2 | AA4: =IFERROR(_xlfn.XLOOKUP(T4,$CM$3:$CM$18,$CU$3:$CU$18),"") -> 0 | AB4: =IFERROR(_xlfn.XLOOKUP(T4,$CM$3:$CM$18,$CV$3:$CV$18),"") -> 0 | AC4: =IFERROR(_xlfn.XLOOKUP(T4,$CM$3:$CM$18,$CW$3:$CW$18),"") -> 44 | AD4: =ROUND(AC4/Y4,0) -> 22 | AE4: =IFERROR(_xlfn.XLOOKUP(T4,$CM$3:$CM$18,$CY$3:$CY$18),"") -> 32 | AF4: =ROUND(AE4/Y4,0) -> 16 | AG4: =IFERROR(_xlfn.XLOOKUP(T4,$CM$3:$CM$18,$DA$3:$DA$18),"") -> 12 | AH4: =SUM(AI4:AK4) -> 0 | AI4: 0 | AJ4: 0 | AK4: 0 | AL4: 5 | AM4: 3 | AN4: 2 | AO4: =IF(GO4=GO3,GP3,GP4) -> 2 | AP4: Hyères | AR4: 6 | AS4: 0 | AT4: u | AU4: 2 | AV4: 1 | AW4: 1 | AX4: 0 | AY4: 40 | AZ4: =IFERROR(ROUND(AY4/AU4,0),0) -> 20 | BA4: 26 | BB4: =IFERROR(ROUND(BA4/AU4,0),0) -> 13 | BC4: 14 | BD4: =SUM(BE4:BG4) -> 0 | BE4: 0 | BF4: 0 | BG4: 0 | BH4: 3 | BI4: 2 | BJ4: 1 | BK4: =IF(GS4=GS3,GT3,GT4) -> 2 | BL4: Narbonne | BN4: 4 | BO4: 1 | BP4: p | BQ4: 1 | BR4: 1 | BS4: 0 | BT4: 0 | BU4: 27 | BV4: =IFERROR(ROUND(BU4/BQ4,0),0) -> 27 | BW4: 23 | BX4: =IFERROR(ROUND(BW4/BQ4,0),0) -> 23 | BY4: 4 | BZ4: =SUM(CA4:CC4) -> 0 | CA4: 0 | CB4: 0 | CC4: 0 | CD4: 3 | CE4: 3 | CF4: 0 | CG4: 2 | CH4: =CQ4 -> 4 | CI4: 2 | CJ4: =DL4 -> 3 | CK4: 2 | CL4: =EG4 -> 5 | CM4: =IF(Equipes!$C$3="","",Equipes!$C$3) -> Blagnac | CN4: =_xlfn.RANK.EQ(EX4,$EX$3:$EX$18) -> 4 | CO4: ='J01'!CN4-CN4 -> -3 | CP4: =IF(CN4>'J01'!CN4,'J01'!$CP$20,IF(CN4='J01'!CN4,'J01'!$CO$20,IF(CN4<'J01'!CN4,'J01'!$CN$20))) -> q | CQ4: =_xlfn.RANK.EQ(EY4,$EY$3:$EY$18) -> 4 | CR4: =SUMPRODUCT(($C$3:$C$10=CM4)*($FN$3:$FN$10))+SUMPRODUCT(($L$3:$L$10=CM4)*($FO$3:$FO$10))+'J01'!CR4+DD4 -> 6 | CS4: =SUMPRODUCT(($C$3:$C$10=CM4)*($FR$3:$FR$10))+SUMPRODUCT(($L$3:$L$10=CM4)*($FS$3:$FS$10))+'J01'!CS4 -> 2 | CT4: =SUMPRODUCT(($C$3:$C$10=CM4)*($FV$3:$FV$10))+SUMPRODUCT(($L$3:$L$10=CM4)*($FW$3:$FW$10))+'J01'!CT4 -> 1 | CU4: =SUMPRODUCT(($C$3:$C$10=CM4)*($FX$3:$FX$10))+SUMPRODUCT(($L$3:$L$10=CM4)*($FY$3:$FY$10))+'J01'!CU4 -> 0 | CV4: =SUMPRODUCT(($C$3:$C$10=CM4)*($FZ$3:$FZ$10))+SUMPRODUCT(($L$3:$L$10=CM4)*($GA$3:$GA$10))+'J01'!CV4 -> 1 | CW4: =SUMPRODUCT(($C$3:$C$10=CM4)*($GB$3:$GB$10))+SUMPRODUCT(($L$3:$L$10=CM4)*($GC$3:$GC$10))+'J01'!CW4 -> 73 | CX4: =ROUND(CW4/CS4,0) -> 37 | CY4: =SUMPRODUCT(($C$3:$C$10=CM4)*($GD$3:$GD$10))+SUMPRODUCT(($L$3:$L$10=CM4)*($GE$3:$GE$10))+'J01'!CY4 -> 39 | CZ4: =ROUND(CY4/CS4,0) -> 20 | DA4: =CW4-CY4 -> 34 | DB4: =SUMPRODUCT(($C$3:$C$10=CM4)*($FH$3:$FH$10))+SUMPRODUCT(($L$3:$L$10=CM4)*($FI$3:$FI$10))+'J01'!DB4 -> 1 | DC4: =SUMPRODUCT(($C$3:$C$10=CM4)*($FJ$3:$FJ$10))+SUMPRODUCT(($L$3:$L$10=CM4)*($FK$3:$FK$10))+'J01'!DC4 -> 1 | DD4: 0 | DE4: =SUMPRODUCT(($C$3:$C$10=CM4)*($GF$3:$GF$10))+SUMPRODUCT(($L$3:$L$10=CM4)*($GG$3:$GG$10))+'J01'!DE4 -> 9 | DF4: =SUMPRODUCT(($C$3:$C$10=CM4)*($GH$3:$GH$10))+SUMPRODUCT(($L$3:$L$10=CM4)*($GI$3:$GI$10))+'J01'!DF4 -> 3 | DG4: =DE4-DF4 -> 6 | DH4: =IF(Equipes!$C$3="","",Equipes!$C$3) -> Blagnac | DI4: =_xlfn.RANK.EQ(EZ4,$EZ$3:$EZ$18) -> 3 | DJ4: ='J01'!DI4-DI4 -> -2 | DK4: =IF(DI4>'J01'!DI4,'J01'!$DK$20,IF(DI4='J01'!DI4,'J01'!$DJ$20,IF(DI4<'J01'!DI4,'J01'!$DI$20))) -> q | DL4: =_xlfn.RANK.EQ(FA4,$FA$3:$FA$18) -> 3 | DM4: =SUMPRODUCT(($C$3:$C$10=DH4)*($FL$3:$FL$10))+'J01'!DM4+DY4 -> 5 | DN4: =SUMPRODUCT(($C$3:$C$10=DH4)*($FR$3:$FR$10))+'J01'!DN4 -> 1 | DO4: =SUMPRODUCT(($C$3:$C$10=DH4)*($FV$3:$FV$10))+'J01'!DO4 -> 1 | DP4: =SUMPRODUCT(($C$3:$C$10=DH4)*($FX$3:$FX$10))+'J01'!DP4 -> 0 | DQ4: =SUMPRODUCT(($C$3:$C$10=DH4)*($FZ$3:$FZ$10))+'J01'!DQ4 -> 0 | DR4: =SUMPRODUCT(($C$3:$C$10=DH4)*($GB$3:$GB$10))+'J01'!DR4 -> 53 | DS4: =IFERROR(ROUND(DR4/DN4,0),0) -> 53 | DT4: =SUMPRODUCT(($C$3:$C$10=DH4)*($GD$3:$GD$10))+'J01'!DT4 -> 16 | DU4: =IFERROR(ROUND(DT4/DN4,0),0) -> 16 | DV4: =DR4-DT4 -> 37 | DW4: =SUMPRODUCT(($C$3:$C$10=DH4)*($FH$3:$FH$10))+'J01'!DW4 -> 1 | DX4: 1 | DY4: 0 | DZ4: =SUMPRODUCT(($C$3:$C$10=DH4)*($GF$3:$GF$10))+'J01'!DZ4 -> 7 | EA4: =SUMPRODUCT(($C$3:$C$10=DH4)*($GH$3:$GH$10))+'J01'!EA4 -> 1 | EB4: =DZ4-EA4 -> 6 | EC4: =IF(Equipes!$C$3="","",Equipes!$C$3) -> Blagnac | ED4: =_xlfn.RANK.EQ(FB4,$FB$3:$FB$18) -> 5 | EE4: ='J01'!ED4-ED4 -> -2 | EF4: =IF(ED4>'J01'!ED4,'J01'!$EF$20,IF(ED4='J01'!ED4,'J01'!$EE$20,IF(ED4<'J01'!ED4,'J01'!$ED$20))) -> q | EG4: =_xlfn.RANK.EQ(FC4,$FC$3:$FC$18) -> 5 | EH4: =SUMPRODUCT(($L$3:$L$10=EC4)*($FM$3:$FM$10))+'J01'!EH4+ET4 -> 1 | EI4: =SUMPRODUCT(($L$3:$L$10=EC4)*($FS$3:$FS$10))+'J01'!EI4 -> 1 | EJ4: =SUMPRODUCT(($L$3:$L$10=EC4)*($FW$3:$FW$10))+'J01'!EJ4 -> 0 | EK4: =SUMPRODUCT(($L$3:$L$10=EC4)*($FY$3:$FY$10))+'J01'!EK4 -> 0 | EL4: =SUMPRODUCT(($L$3:$L$10=EC4)*($GA$3:$GA$10))+'J01'!EL4 -> 1 | EM4: =SUMPRODUCT(($L$3:$L$10=EC4)*($GC$3:$GC$10))+'J01'!EM4 -> 20 | EN4: =IFERROR(EM4/EI4,0) -> 20 | EO4: =SUMPRODUCT(($L$3:$L$10=EC4)*($GE$3:$GE$10))+'J01'!EO4 -> 23 | EP4: =IFERROR(EO4/EI4,0) -> 23 | EQ4: =EM4-EO4 -> -3 | ER4: =SUMPRODUCT(($L$3:$L$10=EC4)*($FI$3:$FI$10))+'J01'!ER4 -> 1 | ES4: =SUMPRODUCT(($L$3:$L$10=EC4)*($FK$3:$FK$10))+'J01'!ES4 -> 1 | ET4: 0 | EU4: =SUMPRODUCT(($L$3:$L$10=EC4)*($GG$3:$GG$10))+'J01'!EU4 -> 2 | EV4: =SUMPRODUCT(($L$3:$L$10=EC4)*($GI$3:$GI$10))+'J01'!EV4 -> 2 | EW4: =EU4-EV4 -> 0 | EX4: 6000.3473 | EY4: =EX4+0.00000013 -> 6000.3473 | EZ4: 5000.3753 | FA4: =EZ4+0.00000013 -> 5000.3753 | FB4: 999.972 | FC4: =FB4+0.00000013 -> 999.9720001 | FD4: 0 | FE4: 0 | FF4: 4 | FG4: 0 | FH4: FALSE | FI4: FALSE | FJ4: FALSE | FK4: FALSE | FL4: =SUM(FF4,FH4,FJ4) -> 4 | FM4: 0 | FN4: =FL4-FD4 -> 4 | FO4: 0 | FR4: 1 | FS4: 1 | FT4: =IF(SUM(FP4,FR4)<>0,SUM(FP4,FR4),0) -> 1 | FU4: 1 | FV4: 1 | FW4: FALSE | FX4: FALSE | FY4: FALSE | FZ4: FALSE | GA4: 1 | GB4: 22 | GC4: 7 | GD4: 7 | GE4: 22 | GF4: 3 | GG4: 1 | GH4: 1 | GI4: 3 | GJ4: Narbonne | GK4: 8000.1244 | GL4: =IF(GK4="","",_xlfn.RANK.EQ(GK4,GK3:GK18)) -> 2 | GM4: Blagnac | GN4: Hyères | GO4: 6000.144 | GP4: =IF(GO4="","",_xlfn.RANK.EQ(GO4,GO3:GO18)) -> 2 | GQ4: Blagnac | GR4: Narbonne | GS4: 4000.0427 | GT4: =IF(GS4="","",_xlfn.RANK.EQ(GS4,GS3:GS18)) -> 2 | GU4: Blagnac | GW4: ok | HC4: =IF(SUM(FP4,FR4)<>0,SUM(FP4,FR4),"") -> 1 | HD4: 1
C5: Massy | D5: 23 | E5: =IF(D5="","",IF(H5="","",IF(D5>H5,"",IF(D5=H5,"",IF(D5<H5,IF(SUM(H5-D5)<=7,"Bd","")))))) -> Bd | F5: 3 | H5: 27 | J5: 3 | L5: Narbonne | O5: Samedi 2 septembre 2023 | P5: 19:00:00 | S5: =IF(GK5=GK4,GL4,GL5) -> 3 | T5: Carcassonne | V5: 8 | W5: 4 | X5: p | Y5: 2 | Z5: 2 | AA5: 0 | AB5: 0 | AC5: 33 | AD5: 17 | AE5: 24 | AF5: 12 | AG5: 9 | AH5: 0 | AI5: 0 | AJ5: 0 | AK5: 0 | AL5: 3 | AM5: 3 | AN5: 0 | AO5: =IF(GO5=GO4,GP4,GP5) -> 3 | AP5: Blagnac | AR5: 5 | AS5: -2 | AT5: q | AU5: 1 | AV5: 1 | AW5: 0 | AX5: 0 | AY5: 53 | AZ5: 53 | BA5: 16 | BB5: 16 | BC5: 37 | BD5: 2 | BE5: 1 | BF5: 1 | BG5: 0 | BH5: 7 | BI5: 1 | BJ5: 6 | BK5: =IF(GS5=GS4,GT4,GT5) -> 3 | BL5: Carcassonne | BN5: 4 | BO5: -2 | BP5: q | BQ5: 1 | BR5: 1 | BS5: 0 | BT5: 0 | BU5: 12 | BV5: 12 | BW5: 10 | BX5: 10 | BY5: 2 | BZ5: 0 | CA5: 0 | CB5: 0 | CC5: 0 | CD5: 0 | CE5: 1 | CF5: -1 | CG5: 3 | CH5: 12 | CI5: 3 | CJ5: 10 | CK5: 3 | CL5: 11 | CM5: =IF(Equipes!$C$4="","",Equipes!$C$4) -> Bourg-en-Bresse | CN5: 12 | CO5: ='J01'!CN5-CN5 -> -4 | CP5: =IF(CN5>'J01'!CN5,'J01'!$CP$20,IF(CN5='J01'!CN5,'J01'!$CO$20,IF(CN5<'J01'!CN5,'J01'!$CN$20))) -> q | CQ5: 12 | CR5: =SUMPRODUCT(($C$3:$C$10=CM5)*($FN$3:$FN$10))+SUMPRODUCT(($L$3:$L$10=CM5)*($FO$3:$FO$10))+'J01'!CR5+DD5 -> 1 | CS5: =SUMPRODUCT(($C$3:$C$10=CM5)*($FR$3:$FR$10))+SUMPRODUCT(($L$3:$L$10=CM5)*($FS$3:$FS$10))+'J01'!CS5 -> 2 | CT5: =SUMPRODUCT(($C$3:$C$10=CM5)*($FV$3:$FV$10))+SUMPRODUCT(($L$3:$L$10=CM5)*($FW$3:$FW$10))+'J01'!CT5 -> 0 | CU5: =SUMPRODUCT(($C$3:$C$10=CM5)*($FX$3:$FX$10))+SUMPRODUCT(($L$3:$L$10=CM5)*($FY$3:$FY$10))+'J01'!CU5 -> 0 | CV5: =SUMPRODUCT(($C$3:$C$10=CM5)*($FZ$3:$FZ$10))+SUMPRODUCT(($L$3:$L$10=CM5)*($GA$3:$GA$10))+'J01'!CV5 -> 2 | CW5: =SUMPRODUCT(($C$3:$C$10=CM5)*($GB$3:$GB$10))+SUMPRODUCT(($L$3:$L$10=CM5)*($GC$3:$GC$10))+'J01'!CW5 -> 26 | CX5: 13 | CY5: =SUMPRODUCT(($C$3:$C$10=CM5)*($GD$3:$GD$10))+SUMPRODUCT(($L$3:$L$10=CM5)*($GE$3:$GE$10))+'J01'!CY5 -> 39 | CZ5: 20 | DA5: -13 | DB5: =SUMPRODUCT(($C$3:$C$10=CM5)*($FH$3:$FH$10))+SUMPRODUCT(($L$3:$L$10=CM5)*($FI$3:$FI$10))+'J01'!DB5 -> 0 | DC5: =SUMPRODUCT(($C$3:$C$10=CM5)*($FJ$3:$FJ$10))+SUMPRODUCT(($L$3:$L$10=CM5)*($FK$3:$FK$10))+'J01'!DC5 -> 1 | DD5: 0 | DE5: =SUMPRODUCT(($C$3:$C$10=CM5)*($GF$3:$GF$10))+SUMPRODUCT(($L$3:$L$10=CM5)*($GG$3:$GG$10))+'J01'!DE5 -> 2 | DF5: =SUMPRODUCT(($C$3:$C$10=CM5)*($GH$3:$GH$10))+SUMPRODUCT(($L$3:$L$10=CM5)*($GI$3:$GI$10))+'J01'!DF5 -> 3 | DG5: -1 | DH5: =IF(Equipes!$C$4="","",Equipes!$C$4) -> Bourg-en-Bresse | DI5: 10 | DJ5: ='J01'!DI5-DI5 -> -3 | DK5: =IF(DI5>'J01'!DI5,'J01'!$DK$20,IF(DI5='J01'!DI5,'J01'!$DJ$20,IF(DI5<'J01'!DI5,'J01'!$DI$20))) -> q | DL5: 10 | DM5: =SUMPRODUCT(($C$3:$C$10=DH5)*($FL$3:$FL$10))+'J01'!DM5+DY5 -> 1 | DN5: =SUMPRODUCT(($C$3:$C$10=DH5)*($FR$3:$FR$10))+'J01'!DN5 -> 1 | DO5: =SUMPRODUCT(($C$3:$C$10=DH5)*($FV$3:$FV$10))+'J01'!DO5 -> 0 | DP5: =SUMPRODUCT(($C$3:$C$10=DH5)*($FX$3:$FX$10))+'J01'!DP5 -> 0 | DQ5: =SUMPRODUCT(($C$3:$C$10=DH5)*($FZ$3:$FZ$10))+'J01'!DQ5 -> 1 | DR5: =SUMPRODUCT(($C$3:$C$10=DH5)*($GB$3:$GB$10))+'J01'!DR5 -> 10 | DS5: 10 | DT5: =SUMPRODUCT(($C$3:$C$10=DH5)*($GD$3:$GD$10))+'J01'!DT5 -> 12 | DU5: 12 | DV5: -2 | DW5: =SUMPRODUCT(($C$3:$C$10=DH5)*($FH$3:$FH$10))+'J01'!DW5 -> 0 | DX5: =SUMPRODUCT(($C$3:$C$10=DH5)*($FJ$3:$FJ$10))+'J01'!DX5 -> 1 | DY5: 0 | DZ5: =SUMPRODUCT(($C$3:$C$10=DH5)*($GF$3:$GF$10))+'J01'!DZ5 -> 1 | EA5: =SUMPRODUCT(($C$3:$C$10=DH5)*($GH$3:$GH$10))+'J01'!EA5 -> 0 | EB5: 1 | EC5: =IF(Equipes!$C$4="","",Equipes!$C$4) -> Bourg-en-Bresse | ED5: 11 | EE5: ='J01'!ED5-ED5 -> -8 | EF5: =IF(ED5>'J01'!ED5,'J01'!$EF$20,IF(ED5='J01'!ED5,'J01'!$EE$20,IF(ED5<'J01'!ED5,'J01'!$ED$20))) -> q | EG5: 11 | EH5: =SUMPRODUCT(($L$3:$L$10=EC5)*($FM$3:$FM$10))+'J01'!EH5+ET5 -> 0 | EI5: =SUMPRODUCT(($L$3:$L$10=EC5)*($FS$3:$FS$10))+'J01'!EI5 -> 1 | EJ5: =SUMPRODUCT(($L$3:$L$10=EC5)*($FW$3:$FW$10))+'J01'!EJ5 -> 0 | EK5: =SUMPRODUCT(($L$3:$L$10=EC5)*($FY$3:$FY$10))+'J01'!EK5 -> 0 | EL5: =SUMPRODUCT(($L$3:$L$10=EC5)*($GA$3:$GA$10))+'J01'!EL5 -> 1 | EM5: =SUMPRODUCT(($L$3:$L$10=EC5)*($GC$3:$GC$10))+'J01'!EM5 -> 16 | EN5: 16 | EO5: =SUMPRODUCT(($L$3:$L$10=EC5)*($GE$3:$GE$10))+'J01'!EO5 -> 27 | EP5: 27 | EQ5: -11 | ER5: =SUMPRODUCT(($L$3:$L$10=EC5)*($FI$3:$FI$10))+'J01'!ER5 -> 0 | ES5: =SUMPRODUCT(($L$3:$L$10=EC5)*($FK$3:$FK$10))+'J01'!ES5 -> 1 | ET5: 0 | EU5: =SUMPRODUCT(($L$3:$L$10=EC5)*($GG$3:$GG$10))+'J01'!EU5 -> 1 | EV5: =SUMPRODUCT(($L$3:$L$10=EC5)*($GI$3:$GI$10))+'J01'!EV5 -> 3 | EW5: -2 | EX5: 999.8726 | EY5: =EX5+0.00000012 -> 999.8726001 | EZ5: 999.981 | FA5: =EZ5+0.00000012 -> 999.9810001 | FB5: -0.1084 | FC5: =FB5+0.00000012 -> -0.10839988 | FD5: 0 | FE5: 0 | FF5: 0 | FG5: 4 | FH5: FALSE | FI5: FALSE | FJ5: 1 | FK5: FALSE | FL5: 1 | FM5: 4 | FN5: 1 | FO5: 4 | FR5: 1 | FS5: 1 | FT5: 1 | FU5: 1 | FV5: FALSE | FW5: 1 | FX5: FALSE | FY5: FALSE | FZ5: 1 | GA5: FALSE | GB5: 23 | GC5: 27 | GD5: 27 | GE5: 23 | GF5: 3 | GG5: 3 | GH5: 3 | GI5: 3 | GJ5: Carcassonne | GK5: 8000.0933 | GL5: =IF(GK5="","",_xlfn.RANK.EQ(GK5,GK3:GK18)) -> 3 | GM5: Bourg-en-Bresse | GN5: Blagnac | GO5: 5000.3753 | GP5: =IF(GO5="","",_xlfn.RANK.EQ(GO5,GO3:GO18)) -> 3 | GQ5: Bourg-en-Bresse | GR5: Carcassonne | GS5: 4000.0212 | GT5: =IF(GS5="","",_xlfn.RANK.EQ(GS5,GS3:GS18)) -> 3 | GU5: Bourg-en-Bresse | GW5: ok | HC5: 1 | HD5: 1
C6: Vienne | D6: 3 | F6: 0 | H6: 25 | J6: 3 | K6: Bo | L6: Nice | O6: Samedi 2 septembre 2023 | P6: 19:00:00 | S6: 4 | T6: Blagnac | V6: 6 | W6: -3 | X6: q | Y6: 2 | Z6: 1 | AA6: 0 | AB6: 1 | AC6: 73 | AD6: 37 | AE6: 39 | AF6: 20 | AG6: 34 | AH6: 2 | AI6: 1 | AJ6: 1 | AK6: 0 | AL6: 9 | AM6: 3 | AN6: 6 | AO6: 4 | AP6: Massy | AR6: 5 | AS6: 2 | AT6: p | AU6: 2 | AV6: 1 | AW6: 0 | AX6: 1 | AY6: 43 | AZ6: 22 | BA6: 40 | BB6: 20 | BC6: 3 | BD6: 1 | BE6: 0 | BF6: 1 | BG6: 0 | BH6: 5 | BI6: 4 | BJ6: 1 | BK6: 4 | BL6: Chambéry | BN6: 2 | BO6: 6 | BP6: p | BQ6: 2 | BR6: 0 | BS6: 1 | BT6: 1 | BU6: 25 | BV6: 13 | BW6: 33 | BX6: 17 | BY6: -8 | BZ6: 0 | CA6: 0 | CB6: 0 | CC6: 0 | CD6: 1 | CE6: 3 | CF6: -2 | CG6: 4 | CH6: 10 | CI6: 4 | CJ6: 6 | CK6: 4 | CL6: 13 | CM6: =IF(Equipes!$C$5="","",Equipes!$C$5) -> Bourgoin-Jallieu | CN6: 10 | CO6: ='J01'!CN6-CN6 -> -6 | CP6: =IF(CN6>'J01'!CN6,'J01'!$CP$20,IF(CN6='J01'!CN6,'J01'!$CO$20,IF(CN6<'J01'!CN6,'J01'!$CN$20))) -> q | CQ6: 10 | CR6: =SUMPRODUCT(($C$3:$C$10=CM6)*($FN$3:$FN$10))+SUMPRODUCT(($L$3:$L$10=CM6)*($FO$3:$FO$10))+'J01'!CR6+DD6 -> 4 | CS6: =SUMPRODUCT(($C$3:$C$10=CM6)*($FR$3:$FR$10))+SUMPRODUCT(($L$3:$L$10=CM6)*($FS$3:$FS$10))+'J01'!CS6 -> 2 | CT6: =SUMPRODUCT(($C$3:$C$10=CM6)*($FV$3:$FV$10))+SUMPRODUCT(($L$3:$L$10=CM6)*($FW$3:$FW$10))+'J01'!CT6 -> 1 | CU6: =SUMPRODUCT(($C$3:$C$10=CM6)*($FX$3:$FX$10))+SUMPRODUCT(($L$3:$L$10=CM6)*($FY$3:$FY$10))+'J01'!CU6 -> 0 | CV6: =SUMPRODUCT(($C$3:$C$10=CM6)*($FZ$3:$FZ$10))+SUMPRODUCT(($L$3:$L$10=CM6)*($GA$3:$GA$10))+'J01'!CV6 -> 1 | CW6: =SUMPRODUCT(($C$3:$C$10=CM6)*($GB$3:$GB$10))+SUMPRODUCT(($L$3:$L$10=CM6)*($GC$3:$GC$10))+'J01'!CW6 -> 24 | CX6: 12 | CY6: =SUMPRODUCT(($C$3:$C$10=CM6)*($GD$3:$GD$10))+SUMPRODUCT(($L$3:$L$10=CM6)*($GE$3:$GE$10))+'J01'!CY6 -> 28 | CZ6: 14 | DA6: -4 | DB6: =SUMPRODUCT(($C$3:$C$10=CM6)*($FH$3:$FH$10))+SUMPRODUCT(($L$3:$L$10=CM6)*($FI$3:$FI$10))+'J01'!DB6 -> 0 | DC6: =SUMPRODUCT(($C$3:$C$10=CM6)*($FJ$3:$FJ$10))+SUMPRODUCT(($L$3:$L$10=CM6)*($FK$3:$FK$10))+'J01'!DC6 -> 0 | DD6: 0 | DE6: =SUMPRODUCT(($C$3:$C$10=CM6)*($GF$3:$GF$10))+SUMPRODUCT(($L$3:$L$10=CM6)*($GG$3:$GG$10))+'J01'!DE6 -> 2 | DF6: =SUMPRODUCT(($C$3:$C$10=CM6)*($GH$3:$GH$10))+SUMPRODUCT(($L$3:$L$10=CM6)*($GI$3:$GI$10))+'J01'!DF6 -> 3 | DG6: -1 | DH6: =IF(Equipes!$C$5="","",Equipes!$C$5) -> Bourgoin-Jallieu | DI6: 6 | DJ6: ='J01'!DI6-DI6 -> -2 | DK6: =IF(DI6>'J01'!DI6,'J01'!$DK$20,IF(DI6='J01'!DI6,'J01'!$DJ$20,IF(DI6<'J01'!DI6,'J01'!$DI$20))) -> q | DL6: 6 | DM6: =SUMPRODUCT(($C$3:$C$10=DH6)*($FL$3:$FL$10))+'J01'!DM6+DY6 -> 4 | DN6: =SUMPRODUCT(($C$3:$C$10=DH6)*($FR$3:$FR$10))+'J01'!DN6 -> 1 | DO6: =SUMPRODUCT(($C$3:$C$10=DH6)*($FV$3:$FV$10))+'J01'!DO6 -> 1 | DP6: =SUMPRODUCT(($C$3:$C$10=DH6)*($FX$3:$FX$10))+'J01'!DP6 -> 0 | DQ6: =SUMPRODUCT(($C$3:$C$10=DH6)*($FZ$3:$FZ$10))+'J01'!DQ6 -> 0 | DR6: =SUMPRODUCT(($C$3:$C$10=DH6)*($GB$3:$GB$10))+'J01'!DR6 -> 17 | DS6: 17 | DT6: =SUMPRODUCT(($C$3:$C$10=DH6)*($GD$3:$GD$10))+'J01'!DT6 -> 6 | DU6: 6 | DV6: 11 | DW6: =SUMPRODUCT(($C$3:$C$10=DH6)*($FH$3:$FH$10))+'J01'!DW6 -> 0 | DX6: =SUMPRODUCT(($C$3:$C$10=DH6)*($FJ$3:$FJ$10))+'J01'!DX6 -> 0 | DY6: 0 | DZ6: =SUMPRODUCT(($C$3:$C$10=DH6)*($GF$3:$GF$10))+'J01'!DZ6 -> 1 | EA6: =SUMPRODUCT(($C$3:$C$10=DH6)*($GH$3:$GH$10))+'J01'!EA6 -> 0 | EB6: 1 | EC6: =IF(Equipes!$C$5="","",Equipes!$C$5) -> Bourgoin-Jallieu | ED6: 13 | EE6: ='J01'!ED6-ED6 -> -10 | EF6: =IF(ED6>'J01'!ED6,'J01'!$EF$20,IF(ED6='J01'!ED6,'J01'!$EE$20,IF(ED6<'J01'!ED6,'J01'!$ED$20))) -> q | EG6: 13 | EH6: =SUMPRODUCT(($L$3:$L$10=EC6)*($FM$3:$FM$10))+'J01'!EH6+ET6 -> 0 | EI6: =SUMPRODUCT(($L$3:$L$10=EC6)*($FS$3:$FS$10))+'J01'!EI6 -> 1 | EJ6: =SUMPRODUCT(($L$3:$L$10=EC6)*($FW$3:$FW$10))+'J01'!EJ6 -> 0 | EK6: =SUMPRODUCT(($L$3:$L$10=EC6)*($FY$3:$FY$10))+'J01'!EK6 -> 0 | EL6: =SUMPRODUCT(($L$3:$L$10=EC6)*($GA$3:$GA$10))+'J01'!EL6 -> 1 | EM6: =SUMPRODUCT(($L$3:$L$10=EC6)*($GC$3:$GC$10))+'J01'!EM6 -> 7 | EN6: 7 | EO6: =SUMPRODUCT(($L$3:$L$10=EC6)*($GE$3:$GE$10))+'J01'!EO6 -> 22 | EP6: 22 | EQ6: -15 | ER6: =SUMPRODUCT(($L$3:$L$10=EC6)*($FI$3:$FI$10))+'J01'!ER6 -> 0 | ES6: =SUMPRODUCT(($L$3:$L$10=EC6)*($FK$3:$FK$10))+'J01'!ES6 -> 0 | ET6: 0 | EU6: =SUMPRODUCT(($L$3:$L$10=EC6)*($GG$3:$GG$10))+'J01'!EU6 -> 1 | EV6: =SUMPRODUCT(($L$3:$L$10=EC6)*($GI$3:$GI$10))+'J01'!EV6 -> 3 | EW6: -2 | EX6: 3999.9624 | EY6: =EX6+0.00000011 -> 3999.9624 | EZ6: 4000.1117 | FA6: =EZ6+0.00000011 -> 4000.1117 | FB6: -0.1493 | FC6: =FB6+0.00000011 -> -0.14929989 | FD6: 0 | FE6: 0 | FF6: 0 | FG6: 4 | FH6: FALSE | FI6: 1 | FJ6: FALSE | FK6: FALSE | FL6: 0 | FM6: 5 | FN6: 0 | FO6: 5 | FR6: 1 | FS6: 1 | FT6: 1 | FU6: 1 | FV6: FALSE | FW6: 1 | FX6: FALSE | FY6: FALSE | FZ6: 1 | GA6: FALSE | GB6: 3 | GC6: 25 | GD6: 25 | GE6: 3 | GF6: 0 | GG6: 3 | GH6: 3 | GI6: 0 | GJ6: Blagnac | GK6: 6000.3473 | GL6: =IF(GK6="","",_xlfn.RANK.EQ(GK6,GK3:GK18)) -> 4 | GM6: Bourgoin-Jallieu | GN6: Massy | GO6: 5000.0343 | GP6: =IF(GO6="","",_xlfn.RANK.EQ(GO6,GO3:GO18)) -> 4 | GQ6: Bourgoin-Jallieu | GR6: Chambéry | GS6: 1999.9225 | GT6: =IF(GS6="","",_xlfn.RANK.EQ(GS6,GS3:GS18)) -> 4 | GU6: Bourgoin-Jallieu | GW6: ok | HC6: 1 | HD6: 1
C7: Tarbes | D7: 23 | F7: 2 | H7: 20 | I7: Bd | J7: 2 | L7: Blagnac | O7: Samedi 2 septembre 2023 | P7: 19:30:00 | S7: 5 | T7: Hyères | V7: 6 | W7: -3 | X7: q | Y7: 2 | Z7: 1 | AA7: 1 | AB7: 0 | AC7: 40 | AD7: 20 | AE7: 26 | AF7: 13 | AG7: 14 | AH7: 0 | AI7: 0 | AJ7: 0 | AK7: 0 | AL7: 3 | AM7: 2 | AN7: 1 | AO7: 5 | AP7: Albi | AR7: 4 | AS7: 3 | AT7: p | AU7: 1 | AV7: 1 | AW7: 0 | AX7: 0 | AY7: 27 | AZ7: 27 | BA7: 16 | BB7: 16 | BC7: 11 | BD7: 0 | BE7: 0 | BF7: 0 | BG7: 0 | BH7: 3 | BI7: 1 | BJ7: 2 | BK7: 5 | BL7: Blagnac | BN7: 1 | BO7: -2 | BP7: q | BQ7: 1 | BR7: 0 | BS7: 0 | BT7: 1 | BU7: 20 | BV7: 20 | BW7: 23 | BX7: 23 | BY7: -3 | BZ7: 2 | CA7: 1 | CB7: 1 | CC7: 0 | CD7: 2 | CE7: 2 | CF7: 0 | CG7: 5 | CH7: 3 | CI7: 5 | CJ7: 8 | CK7: 5 | CL7: 3 | CM7: =IF(Equipes!$C$6="","",Equipes!$C$6) -> Carcassonne | CN7: 3 | CO7: ='J01'!CN7-CN7 -> 4 | CP7: =IF(CN7>'J01'!CN7,'J01'!$CP$20,IF(CN7='J01'!CN7,'J01'!$CO$20,IF(CN7<'J01'!CN7,'J01'!$CN$20))) -> p | CQ7: 3 | CR7: =SUMPRODUCT(($C$3:$C$10=CM7)*($FN$3:$FN$10))+SUMPRODUCT(($L$3:$L$10=CM7)*($FO$3:$FO$10))+'J01'!CR7+DD7 -> 8 | CS7: =SUMPRODUCT(($C$3:$C$10=CM7)*($FR$3:$FR$10))+SUMPRODUCT(($L$3:$L$10=CM7)*($FS$3:$FS$10))+'J01'!CS7 -> 2 | CT7: =SUMPRODUCT(($C$3:$C$10=CM7)*($FV$3:$FV$10))+SUMPRODUCT(($L$3:$L$10=CM7)*($FW$3:$FW$10))+'J01'!CT7 -> 2 | CU7: =SUMPRODUCT(($C$3:$C$10=CM7)*($FX$3:$FX$10))+SUMPRODUCT(($L$3:$L$10=CM7)*($FY$3:$FY$10))+'J01'!CU7 -> 0 | CV7: =SUMPRODUCT(($C$3:$C$10=CM7)*($FZ$3:$FZ$10))+SUMPRODUCT(($L$3:$L$10=CM7)*($GA$3:$GA$10))+'J01'!CV7 -> 0 | CW7: =SUMPRODUCT(($C$3:$C$10=CM7)*($GB$3:$GB$10))+SUMPRODUCT(($L$3:$L$10=CM7)*($GC$3:$GC$10))+'J01'!CW7 -> 33 | CX7: 17 | CY7: =SUMPRODUCT(($C$3:$C$10=CM7)*($GD$3:$GD$10))+SUMPRODUCT(($L$3:$L$10=CM7)*($GE$3:$GE$10))+'J01'!CY7 -> 24 | CZ7: 12 | DA7: 9 | DB7: =SUMPRODUCT(($C$3:$C$10=CM7)*($FH$3:$FH$10))+SUMPRODUCT(($L$3:$L$10=CM7)*($FI$3:$FI$10))+'J01'!DB7 -> 0 | DC7: =SUMPRODUCT(($C$3:$C$10=CM7)*($FJ$3:$FJ$10))+SUMPRODUCT(($L$3:$L$10=CM7)*($FK$3:$FK$10))+'J01'!DC7 -> 0 | DD7: 0 | DE7: =SUMPRODUCT(($C$3:$C$10=CM7)*($GF$3:$GF$10))+SUMPRODUCT(($L$3:$L$10=CM7)*($GG$3:$GG$10))+'J01'!DE7 -> 3 | DF7: =SUMPRODUCT(($C$3:$C$10=CM7)*($GH$3:$GH$10))+SUMPRODUCT(($L$3:$L$10=CM7)*($GI$3:$GI$10))+'J01'!DF7 -> 3 | DG7: 0 | DH7: =IF(Equipes!$C$6="","",Equipes!$C$6) -> Carcassonne | DI7: 8 | DJ7: ='J01'!DI7-DI7 -> 0 | DK7: =IF(DI7>'J01'!DI7,'J01'!$DK$20,IF(DI7='J01'!DI7,'J01'!$DJ$20,IF(DI7<'J01'!DI7,'J01'!$DI$20))) -> u | DL7: 8 | DM7: =SUMPRODUCT(($C$3:$C$10=DH7)*($FL$3:$FL$10))+'J01'!DM7+DY7 -> 4 | DN7: =SUMPRODUCT(($C$3:$C$10=DH7)*($FR$3:$FR$10))+'J01'!DN7 -> 1 | DO7: =SUMPRODUCT(($C$3:$C$10=DH7)*($FV$3:$FV$10))+'J01'!DO7 -> 1 | DP7: =SUMPRODUCT(($C$3:$C$10=DH7)*($FX$3:$FX$10))+'J01'!DP7 -> 0 | DQ7: =SUMPRODUCT(($C$3:$C$10=DH7)*($FZ$3:$FZ$10))+'J01'!DQ7 -> 0 | DR7: =SUMPRODUCT(($C$3:$C$10=DH7)*($GB$3:$GB$10))+'J01'!DR7 -> 21 | DS7: 21 | DT7: =SUMPRODUCT(($C$3:$C$10=DH7)*($GD$3:$GD$10))+'J01'!DT7 -> 14 | DU7: 14 | DV7: 7 | DW7: =SUMPRODUCT(($C$3:$C$10=DH7)*($FH$3:$FH$10))+'J01'!DW7 -> 0 | DX7: =SUMPRODUCT(($C$3:$C$10=DH7)*($FJ$3:$FJ$10))+'J01'!DX7 -> 0 | DY7: 0 | DZ7: =SUMPRODUCT(($C$3:$C$10=DH7)*($GF$3:$GF$10))+'J01'!DZ7 -> 3 | EA7: =SUMPRODUCT(($C$3:$C$10=DH7)*($GH$3:$GH$10))+'J01'!EA7 -> 2 | EB7: 1 | EC7: =IF(Equipes!$C$6="","",Equipes!$C$6) -> Carcassonne | ED7: 3 | EE7: ='J01'!ED7-ED7 -> -2 | EF7: =IF(ED7>'J01'!ED7,'J01'!$EF$20,IF(ED7='J01'!ED7,'J01'!$EE$20,IF(ED7<'J01'!ED7,'J01'!$ED$20))) -> q | EG7: 3 | EH7: =SUMPRODUCT(($L$3:$L$10=EC7)*($FM$3:$FM$10))+'J01'!EH7+ET7 -> 4 | EI7: =SUMPRODUCT(($L$3:$L$10=EC7)*($FS$3:$FS$10))+'J01'!EI7 -> 1 | EJ7: =SUMPRODUCT(($L$3:$L$10=EC7)*($FW$3:$FW$10))+'J01'!EJ7 -> 1 | EK7: =SUMPRODUCT(($L$3:$L$10=EC7)*($FY$3:$FY$10))+'J01'!EK7 -> 0 | EL7: =SUMPRODUCT(($L$3:$L$10=EC7)*($GA$3:$GA$10))+'J01'!EL7 -> 0 | EM7: =SUMPRODUCT(($L$3:$L$10=EC7)*($GC$3:$GC$10))+'J01'!EM7 -> 12 | EN7: 12 | EO7: =SUMPRODUCT(($L$3:$L$10=EC7)*($GE$3:$GE$10))+'J01'!EO7 -> 10 | EP7: 10 | EQ7: 2 | ER7: =SUMPRODUCT(($L$3:$L$10=EC7)*($FI$3:$FI$10))+'J01'!ER7 -> 0 | ES7: =SUMPRODUCT(($L$3:$L$10=EC7)*($FK$3:$FK$10))+'J01'!ES7 -> 0 | ET7: 0 | EU7: =SUMPRODUCT(($L$3:$L$10=EC7)*($GG$3:$GG$10))+'J01'!EU7 -> 0 | EV7: =SUMPRODUCT(($L$3:$L$10=EC7)*($GI$3:$GI$10))+'J01'!EV7 -> 1 | EW7: -1 | EX7: 8000.0933 | EY7: =EX7+0.0000001 -> 8000.0933 | EZ7: 4000.0721 | FA7: =EZ7+0.0000001 -> 4000.0721 | FB7: 4000.0212 | FC7: =FB7+0.0000001 -> 4000.0212 | FD7: 0 | FE7: 0 | FF7: 4 | FG7: 0 | FH7: FALSE | FI7: FALSE | FJ7: FALSE | FK7: 1 | FL7: 4 | FM7: 1 | FN7: 4 | FO7: 1 | FR7: 1 | FS7: 1 | FT7: 1 | FU7: 1 | FV7: 1 | FW7: FALSE | FX7: FALSE | FY7: FALSE | FZ7: FALSE | GA7: 1 | GB7: 23 | GC7: 20 | GD7: 20 | GE7: 23 | GF7: 2 | GG7: 2 | GH7: 2 | GI7: 2 | GJ7: Hyères | GK7: 6000.144 | GL7: =IF(GK7="","",_xlfn.RANK.EQ(GK7,GK3:GK18)) -> 5 | GM7: Carcassonne | GN7: Albi | GO7: 4000.1127 | GP7: =IF(GO7="","",_xlfn.RANK.EQ(GO7,GO3:GO18)) -> 5 | GQ7: Carcassonne | GR7: Blagnac | GS7: 999.972 | GT7: =IF(GS7="","",_xlfn.RANK.EQ(GS7,GS3:GS18)) -> 5 | GU7: Carcassonne | GW7: ok | HC7: 1 | HD7: 1
C8: Albi | D8: 27 | F8: 3 | H8: 16 | J8: 1 | L8: Bourg-en-Bresse | O8: Vendredi 1 septembre 2023 | P8: 19:30:00 | S8: 6 | T8: Nice | V8: 5 | W8: 5 | X8: p | Y8: 2 | Z8: 1 | AA8: 0 | AB8: 1 | AC8: 39 | AD8: 20 | AE8: 28 | AF8: 14 | AG8: 11 | AH8: 1 | AI8: 1 | AJ8: 0 | AK8: 0 | AL8: 5 | AM8: 3 | AN8: 2 | AO8: 6 | AP8: Bourgoin-Jallieu | AR8: 4 | AS8: -2 | AT8: q | AU8: 1 | AV8: 1 | AW8: 0 | AX8: 0 | AY8: 17 | AZ8: 17 | BA8: 6 | BB8: 6 | BC8: 11 | BD8: 0 | BE8: 0 | BF8: 0 | BG8: 0 | BH8: 1 | BI8: 0 | BJ8: 1 | BK8: 6 | BL8: Tarbes | BN8: 1 | BO8: -4 | BP8: q | BQ8: 1 | BR8: 0 | BS8: 0 | BT8: 1 | BU8: 13 | BV8: 13 | BW8: 20 | BX8: 20 | BY8: -7 | BZ8: 1 | CA8: 0 | CB8: 1 | CC8: 0 | CD8: 1 | CE8: 2 | CF8: -1 | CG8: 6 | CH8: 11 | CI8: 6 | CJ8: 11 | CK8: 6 | CL8: 4 | CM8: =IF(Equipes!$C$7="","",Equipes!$C$7) -> Chambéry | CN8: 11 | CO8: ='J01'!CN8-CN8 -> -1 | CP8: =IF(CN8>'J01'!CN8,'J01'!$CP$20,IF(CN8='J01'!CN8,'J01'!$CO$20,IF(CN8<'J01'!CN8,'J01'!$CN$20))) -> q | CQ8: 11 | CR8: =SUMPRODUCT(($C$3:$C$10=CM8)*($FN$3:$FN$10))+SUMPRODUCT(($L$3:$L$10=CM8)*($FO$3:$FO$10))+'J01'!CR8+DD8 -> 2 | CS8: =SUMPRODUCT(($C$3:$C$10=CM8)*($FR$3:$FR$10))+SUMPRODUCT(($L$3:$L$10=CM8)*($FS$3:$FS$10))+'J01'!CS8 -> 2 | CT8: =SUMPRODUCT(($C$3:$C$10=CM8)*($FV$3:$FV$10))+SUMPRODUCT(($L$3:$L$10=CM8)*($FW$3:$FW$10))+'J01'!CT8 -> 0 | CU8: =SUMPRODUCT(($C$3:$C$10=CM8)*($FX$3:$FX$10))+SUMPRODUCT(($L$3:$L$10=CM8)*($FY$3:$FY$10))+'J01'!CU8 -> 1 | CV8: =SUMPRODUCT(($C$3:$C$10=CM8)*($FZ$3:$FZ$10))+SUMPRODUCT(($L$3:$L$10=CM8)*($GA$3:$GA$10))+'J01'!CV8 -> 1 | CW8: =SUMPRODUCT(($C$3:$C$10=CM8)*($GB$3:$GB$10))+SUMPRODUCT(($L$3:$L$10=CM8)*($GC$3:$GC$10))+'J01'!CW8 -> 25 | CX8: 13 | CY8: =SUMPRODUCT(($C$3:$C$10=CM8)*($GD$3:$GD$10))+SUMPRODUCT(($L$3:$L$10=CM8)*($GE$3:$GE$10))+'J01'!CY8 -> 33 | CZ8: 17 | DA8: -8 | DB8: =SUMPRODUCT(($C$3:$C$10=CM8)*($FH$3:$FH$10))+SUMPRODUCT(($L$3:$L$10=CM8)*($FI$3:$FI$10))+'J01'!DB8 -> 0 | DC8: =SUMPRODUCT(($C$3:$C$10=CM8)*($FJ$3:$FJ$10))+SUMPRODUCT(($L$3:$L$10=CM8)*($FK$3:$FK$10))+'J01'!DC8 -> 0 | DD8: 0 | DE8: =SUMPRODUCT(($C$3:$C$10=CM8)*($GF$3:$GF$10))+SUMPRODUCT(($L$3:$L$10=CM8)*($GG$3:$GG$10))+'J01'!DE8 -> 1 | DF8: =SUMPRODUCT(($C$3:$C$10=CM8)*($GH$3:$GH$10))+SUMPRODUCT(($L$3:$L$10=CM8)*($GI$3:$GI$10))+'J01'!DF8 -> 3 | DG8: -2 | DH8: =IF(Equipes!$C$7="","",Equipes!$C$7) -> Chambéry | DI8: 11 | DJ8: ='J01'!DI8-DI8 -> -3 | DK8: =IF(DI8>'J01'!DI8,'J01'!$DK$20,IF(DI8='J01'!DI8,'J01'!$DJ$20,IF(DI8<'J01'!DI8,'J01'!$DI$20))) -> q | DL8: 11 | DM8: =SUMPRODUCT(($C$3:$C$10=DH8)*($FL$3:$FL$10))+'J01'!DM8+DY8 -> 0 | DN8: =SUMPRODUCT(($C$3:$C$10=DH8)*($FR$3:$FR$10))+'J01'!DN8 -> 0 | DO8: =SUMPRODUCT(($C$3:$C$10=DH8)*($FV$3:$FV$10))+'J01'!DO8 -> 0 | DP8: =SUMPRODUCT(($C$3:$C$10=DH8)*($FX$3:$FX$10))+'J01'!DP8 -> 0 | DQ8: =SUMPRODUCT(($C$3:$C$10=DH8)*($FZ$3:$FZ$10))+'J01'!DQ8 -> 0 | DR8: =SUMPRODUCT(($C$3:$C$10=DH8)*($GB$3:$GB$10))+'J01'!DR8 -> 0 | DS8: 0 | DT8: =SUMPRODUCT(($C$3:$C$10=DH8)*($GD$3:$GD$10))+'J01'!DT8 -> 0 | DU8: 0 | DV8: 0 | DW8: =SUMPRODUCT(($C$3:$C$10=DH8)*($FH$3:$FH$10))+'J01'!DW8 -> 0 | DX8: =SUMPRODUCT(($C$3:$C$10=DH8)*($FJ$3:$FJ$10))+'J01'!DX8 -> 0 | DY8: 0 | DZ8: =SUMPRODUCT(($C$3:$C$10=DH8)*($GF$3:$GF$10))+'J01'!DZ8 -> 0 | EA8: =SUMPRODUCT(($C$3:$C$10=DH8)*($GH$3:$GH$10))+'J01'!EA8 -> 0 | EB8: 0 | EC8: =IF(Equipes!$C$7="","",Equipes!$C$7) -> Chambéry | ED8: 4 | EE8: ='J01'!ED8-ED8 -> 6 | EF8: =IF(ED8>'J01'!ED8,'J01'!$EF$20,IF(ED8='J01'!ED8,'J01'!$EE$20,IF(ED8<'J01'!ED8,'J01'!$ED$20))) -> p | EG8: 4 | EH8: =SUMPRODUCT(($L$3:$L$10=EC8)*($FM$3:$FM$10))+'J01'!EH8+ET8 -> 2 | EI8: =SUMPRODUCT(($L$3:$L$10=EC8)*($FS$3:$FS$10))+'J01'!EI8 -> 2 | EJ8: =SUMPRODUCT(($L$3:$L$10=EC8)*($FW$3:$FW$10))+'J01'!EJ8 -> 0 | EK8: =SUMPRODUCT(($L$3:$L$10=EC8)*($FY$3:$FY$10))+'J01'!EK8 -> 1 | EL8: =SUMPRODUCT(($L$3:$L$10=EC8)*($GA$3:$GA$10))+'J01'!EL8 -> 1 | EM8: =SUMPRODUCT(($L$3:$L$10=EC8)*($GC$3:$GC$10))+'J01'!EM8 -> 25 | EN8: 12.5 | EO8: =SUMPRODUCT(($L$3:$L$10=EC8)*($GE$3:$GE$10))+'J01'!EO8 -> 33 | EP8: 16.5 | EQ8: -8 | ER8: =SUMPRODUCT(($L$3:$L$10=EC8)*($FI$3:$FI$10))+'J01'!ER8 -> 0 | ES8: =SUMPRODUCT(($L$3:$L$10=EC8)*($FK$3:$FK$10))+'J01'!ES8 -> 0 | ET8: 0 | EU8: =SUMPRODUCT(($L$3:$L$10=EC8)*($GG$3:$GG$10))+'J01'!EU8 -> 1 | EV8: =SUMPRODUCT(($L$3:$L$10=EC8)*($GI$3:$GI$10))+'J01'!EV8 -> 3 | EW8: -2 | EX8: 1999.9225 | EY8: =EX8+0.00000009 -> 1999.9225 | EZ8: 0 | FA8: =EZ8+0.00000009 -> 9e-08 | FB8: 1999.9225 | FC8: =FB8+0.00000009 -> 1999.9225 | FD8: 0 | FE8: 0 | FF8: 4 | FG8: 0 | FH8: FALSE | FI8: FALSE | FJ8: FALSE | FK8: FALSE | FL8: 4 | FM8: 0 | FN8: 4 | FO8: 0 | FR8: 1 | FS8: 1 | FT8: 1 | FU8: 1 | FV8: 1 | FW8: FALSE | FX8: FALSE | FY8: FALSE | FZ8: FALSE | GA8: 1 | GB8: 27 | GC8: 16 | GD8: 16 | GE8: 27 | GF8: 3 | GG8: 1 | GH8: 1 | GI8: 3 | GJ8: Nice | GK8: 5000.1139 | GL8: =IF(GK8="","",_xlfn.RANK.EQ(GK8,GK3:GK18)) -> 6 | GM8: Chambéry | GN8: Bourgoin-Jallieu | GO8: 4000.1117 | GP8: =IF(GO8="","",_xlfn.RANK.EQ(GO8,GO3:GO18)) -> 6 | GQ8: Chambéry | GR8: Tarbes | GS8: 999.9313 | GT8: =IF(GS8="","",_xlfn.RANK.EQ(GS8,GS3:GS18)) -> 6 | GU8: Chambéry | GW8: ok | HC8: 1 | HD8: 1
C9: Carcassonne | D9: 21 | F9: 3 | H9: 14 | I9: Bd | J9: 2 | L9: Suresnes | O9: Vendredi 1 septembre 2023 | P9: 19:30:00 | S9: 7 | T9: Massy | V9: 5 | W9: -1 | X9: q | Y9: 2 | Z9: 1 | AA9: 0 | AB9: 1 | AC9: 43 | AD9: 22 | AE9: 40 | AF9: 20 | AG9: 3 | AH9: 1 | AI9: 0 | AJ9: 1 | AK9: 0 | AL9: 5 | AM9: 4 | AN9: 1 | AO9: 7 | AP9: Narbonne | AR9: 4 | AS9: -2 | AT9: q | AU9: 1 | AV9: 1 | AW9: 0 | AX9: 0 | AY9: 17 | AZ9: 17 | BA9: 9 | BB9: 9 | BC9: 8 | BD9: 0 | BE9: 0 | BF9: 0 | BG9: 0 | BH9: 2 | BI9: 0 | BJ9: 2 | BK9: 7 | BL9: Suresnes | BN9: 1 | BO9: 6 | BP9: p | BQ9: 2 | BR9: 0 | BS9: 0 | BT9: 2 | BU9: 24 | BV9: 12 | BW9: 45 | BX9: 23 | BY9: -21 | BZ9: 1 | CA9: 0 | CB9: 1 | CC9: 0 | CD9: 3 | CE9: 5 | CF9: -2 | CG9: 7 | CH9: 5 | CI9: 7 | CJ9: 2 | CK9: 7 | CL9: 8 | CM9: =IF(Equipes!$C$8="","",Equipes!$C$8) -> Hyères | CN9: 5 | CO9: ='J01'!CN9-CN9 -> -3 | CP9: =IF(CN9>'J01'!CN9,'J01'!$CP$20,IF(CN9='J01'!CN9,'J01'!$CO$20,IF(CN9<'J01'!CN9,'J01'!$CN$20))) -> q | CQ9: 5 | CR9: =SUMPRODUCT(($C$3:$C$10=CM9)*($FN$3:$FN$10))+SUMPRODUCT(($L$3:$L$10=CM9)*($FO$3:$FO$10))+'J01'!CR9+DD9 -> 6 | CS9: =SUMPRODUCT(($C$3:$C$10=CM9)*($FR$3:$FR$10))+SUMPRODUCT(($L$3:$L$10=CM9)*($FS$3:$FS$10))+'J01'!CS9 -> 2 | CT9: =SUMPRODUCT(($C$3:$C$10=CM9)*($FV$3:$FV$10))+SUMPRODUCT(($L$3:$L$10=CM9)*($FW$3:$FW$10))+'J01'!CT9 -> 1 | CU9: =SUMPRODUCT(($C$3:$C$10=CM9)*($FX$3:$FX$10))+SUMPRODUCT(($L$3:$L$10=CM9)*($FY$3:$FY$10))+'J01'!CU9 -> 1 | CV9: =SUMPRODUCT(($C$3:$C$10=CM9)*($FZ$3:$FZ$10))+SUMPRODUCT(($L$3:$L$10=CM9)*($GA$3:$GA$10))+'J01'!CV9 -> 0 | CW9: =SUMPRODUCT(($C$3:$C$10=CM9)*($GB$3:$GB$10))+SUMPRODUCT(($L$3:$L$10=CM9)*($GC$3:$GC$10))+'J01'!CW9 -> 40 | CX9: 20 | CY9: =SUMPRODUCT(($C$3:$C$10=CM9)*($GD$3:$GD$10))+SUMPRODUCT(($L$3:$L$10=CM9)*($GE$3:$GE$10))+'J01'!CY9 -> 26 | CZ9: 13 | DA9: 14 | DB9: =SUMPRODUCT(($C$3:$C$10=CM9)*($FH$3:$FH$10))+SUMPRODUCT(($L$3:$L$10=CM9)*($FI$3:$FI$10))+'J01'!DB9 -> 0 | DC9: =SUMPRODUCT(($C$3:$C$10=CM9)*($FJ$3:$FJ$10))+SUMPRODUCT(($L$3:$L$10=CM9)*($FK$3:$FK$10))+'J01'!DC9 -> 0 | DD9: 0 | DE9: =SUMPRODUCT(($C$3:$C$10=CM9)*($GF$3:$GF$10))+SUMPRODUCT(($L$3:$L$10=CM9)*($GG$3:$GG$10))+'J01'!DE9 -> 3 | DF9: =SUMPRODUCT(($C$3:$C$10=CM9)*($GH$3:$GH$10))+SUMPRODUCT(($L$3:$L$10=CM9)*($GI$3:$GI$10))+'J01'!DF9 -> 2 | DG9: 1 | DH9: =IF(Equipes!$C$8="","",Equipes!$C$8) -> Hyères | DI9: 2 | DJ9: ='J01'!DI9-DI9 -> 0 | DK9: =IF(DI9>'J01'!DI9,'J01'!$DK$20,IF(DI9='J01'!DI9,'J01'!$DJ$20,IF(DI9<'J01'!DI9,'J01'!$DI$20))) -> u | DL9: 2 | DM9: =SUMPRODUCT(($C$3:$C$10=DH9)*($FL$3:$FL$10))+'J01'!DM9+DY9 -> 6 | DN9: =SUMPRODUCT(($C$3:$C$10=DH9)*($FR$3:$FR$10))+'J01'!DN9 -> 2 | DO9: =SUMPRODUCT(($C$3:$C$10=DH9)*($FV$3:$FV$10))+'J01'!DO9 -> 1 | DP9: =SUMPRODUCT(($C$3:$C$10=DH9)*($FX$3:$FX$10))+'J01'!DP9 -> 1 | DQ9: =SUMPRODUCT(($C$3:$C$10=DH9)*($FZ$3:$FZ$10))+'J01'!DQ9 -> 0 | DR9: =SUMPRODUCT(($C$3:$C$10=DH9)*($GB$3:$GB$10))+'J01'!DR9 -> 40 | DS9: 20 | DT9: =SUMPRODUCT(($C$3:$C$10=DH9)*($GD$3:$GD$10))+'J01'!DT9 -> 26 | DU9: 13 | DV9: 14 | DW9: =SUMPRODUCT(($C$3:$C$10=DH9)*($FH$3:$FH$10))+'J01'!DW9 -> 0 | DX9: =SUMPRODUCT(($C$3:$C$10=DH9)*($FJ$3:$FJ$10))+'J01'!DX9 -> 0 | DY9: 0 | DZ9: =SUMPRODUCT(($C$3:$C$10=DH9)*($GF$3:$GF$10))+'J01'!DZ9 -> 3 | EA9: =SUMPRODUCT(($C$3:$C$10=DH9)*($GH$3:$GH$10))+'J01'!EA9 -> 2 | EB9: 1 | EC9: =IF(Equipes!$C$8="","",Equipes!$C$8) -> Hyères | ED9: 8 | EE9: ='J01'!ED9-ED9 -> -5 | EF9: =IF(ED9>'J01'!ED9,'J01'!$EF$20,IF(ED9='J01'!ED9,'J01'!$EE$20,IF(ED9<'J01'!ED9,'J01'!$ED$20))) -> q | EG9: 8 | EH9: =SUMPRODUCT(($L$3:$L$10=EC9)*($FM$3:$FM$10))+'J01'!EH9+ET9 -> 0 | EI9: =SUMPRODUCT(($L$3:$L$10=EC9)*($FS$3:$FS$10))+'J01'!EI9 -> 0 | EJ9: =SUMPRODUCT(($L$3:$L$10=EC9)*($FW$3:$FW$10))+'J01'!EJ9 -> 0 | EK9: =SUMPRODUCT(($L$3:$L$10=EC9)*($FY$3:$FY$10))+'J01'!EK9 -> 0 | EL9: =SUMPRODUCT(($L$3:$L$10=EC9)*($GA$3:$GA$10))+'J01'!EL9 -> 0 | EM9: =SUMPRODUCT(($L$3:$L$10=EC9)*($GC$3:$GC$10))+'J01'!EM9 -> 0 | EN9: 0 | EO9: =SUMPRODUCT(($L$3:$L$10=EC9)*($GE$3:$GE$10))+'J01'!EO9 -> 0 | EP9: 0 | EQ9: 0 | ER9: =SUMPRODUCT(($L$3:$L$10=EC9)*($FI$3:$FI$10))+'J01'!ER9 -> 0 | ES9: =SUMPRODUCT(($L$3:$L$10=EC9)*($FK$3:$FK$10))+'J01'!ES9 -> 0 | ET9: 0 | EU9: =SUMPRODUCT(($L$3:$L$10=EC9)*($GG$3:$GG$10))+'J01'!EU9 -> 0 | EV9: =SUMPRODUCT(($L$3:$L$10=EC9)*($GI$3:$GI$10))+'J01'!EV9 -> 0 | EW9: 0 | EX9: 6000.144 | EY9: =EX9+0.00000008 -> 6000.144 | EZ9: 6000.144 | FA9: =EZ9+0.00000008 -> 6000.144 | FB9: 0 | FC9: =FB9+0.00000008 -> 8e-08 | FD9: 0 | FE9: 0 | FF9: 4 | FG9: 0 | FH9: FALSE | FI9: FALSE | FJ9: FALSE | FK9: 1 | FL9: 4 | FM9: 1 | FN9: 4 | FO9: 1 | FR9: 1 | FS9: 1 | FT9: 1 | FU9: 1 | FV9: 1 | FW9: FALSE | FX9: FALSE | FY9: FALSE | FZ9: FALSE | GA9: 1 | GB9: 21 | GC9: 14 | GD9: 14 | GE9: 21 | GF9: 3 | GG9: 2 | GH9: 2 | GI9: 3 | GJ9: Massy | GK9: 5000.0343 | GL9: =IF(GK9="","",_xlfn.RANK.EQ(GK9,GK3:GK18)) -> 7 | GM9: Hyères | GN9: Narbonne | GO9: 4000.0817 | GP9: =IF(GO9="","",_xlfn.RANK.EQ(GO9,GO3:GO18)) -> 7 | GQ9: Hyères | GR9: Suresnes | GS9: 999.7924 | GT9: =IF(GS9="","",_xlfn.RANK.EQ(GS9,GS3:GS18)) -> 7 | GU9: Hyères | GW9: ok | HC9: 1 | HD9: 1
S10: 8 | T10: Tarbes | V10: 5 | W10: 1 | X10: p | Y10: 2 | Z10: 1 | AA10: 0 | AB10: 1 | AC10: 36 | AD10: 18 | AE10: 40 | AF10: 20 | AG10: -4 | AH10: 1 | AI10: 0 | AJ10: 1 | AK10: 0 | AL10: 3 | AM10: 4 | AN10: -1 | AO10: 8 | AP10: Carcassonne | AR10: 4 | AS10: 0 | AT10: u | AU10: 1 | AV10: 1 | AW10: 0 | AX10: 0 | AY10: 21 | AZ10: 21 | BA10: 14 | BB10: 14 | BC10: 7 | BD10: 0 | BE10: 0 | BF10: 0 | BG10: 0 | BH10: 3 | BI10: 2 | BJ10: 1 | BK10: 8 | BL10: Hyères | BN10: 0 | BO10: -5 | BP10: q | BQ10: 0 | BR10: 0 | BS10: 0 | BT10: 0 | BU10: 0 | BV10: 0 | BW10: 0 | BX10: 0 | BY10: 0 | BZ10: 0 | CA10: 0 | CB10: 0 | CC10: 0 | CD10: 0 | CE10: 0 | CF10: 0 | CG10: 8 | CH10: 7 | CI10: 8 | CJ10: 4 | CK10: 8 | CL10: 9 | CM10: =IF(Equipes!$C$9="","",Equipes!$C$9) -> Massy | CN10: 7 | CO10: ='J01'!CN10-CN10 -> -1 | CP10: =IF(CN10>'J01'!CN10,'J01'!$CP$20,IF(CN10='J01'!CN10,'J01'!$CO$20,IF(CN10<'J01'!CN10,'J01'!$CN$20))) -> q | CQ10: 7 | CR10: =SUMPRODUCT(($C$3:$C$10=CM10)*($FN$3:$FN$10))+SUMPRODUCT(($L$3:$L$10=CM10)*($FO$3:$FO$10))+'J01'!CR10+DD10 -> 5 | CS10: =SUMPRODUCT(($C$3:$C$10=CM10)*($FR$3:$FR$10))+SUMPRODUCT(($L$3:$L$10=CM10)*($FS$3:$FS$10))+'J01'!CS10 -> 2 | CT10: =SUMPRODUCT(($C$3:$C$10=CM10)*($FV$3:$FV$10))+SUMPRODUCT(($L$3:$L$10=CM10)*($FW$3:$FW$10))+'J01'!CT10 -> 1 | CU10: =SUMPRODUCT(($C$3:$C$10=CM10)*($FX$3:$FX$10))+SUMPRODUCT(($L$3:$L$10=CM10)*($FY$3:$FY$10))+'J01'!CU10 -> 0 | CV10: =SUMPRODUCT(($C$3:$C$10=CM10)*($FZ$3:$FZ$10))+SUMPRODUCT(($L$3:$L$10=CM10)*($GA$3:$GA$10))+'J01'!CV10 -> 1 | CW10: =SUMPRODUCT(($C$3:$C$10=CM10)*($GB$3:$GB$10))+SUMPRODUCT(($L$3:$L$10=CM10)*($GC$3:$GC$10))+'J01'!CW10 -> 43 | CX10: 22 | CY10: =SUMPRODUCT(($C$3:$C$10=CM10)*($GD$3:$GD$10))+SUMPRODUCT(($L$3:$L$10=CM10)*($GE$3:$GE$10))+'J01'!CY10 -> 40 | CZ10: 20 | DA10: 3 | DB10: =SUMPRODUCT(($C$3:$C$10=CM10)*($FH$3:$FH$10))+SUMPRODUCT(($L$3:$L$10=CM10)*($FI$3:$FI$10))+'J01'!DB10 -> 0 | DC10: =SUMPRODUCT(($C$3:$C$10=CM10)*($FJ$3:$FJ$10))+SUMPRODUCT(($L$3:$L$10=CM10)*($FK$3:$FK$10))+'J01'!DC10 -> 1 | DD10: 0 | DE10: =SUMPRODUCT(($C$3:$C$10=CM10)*($GF$3:$GF$10))+SUMPRODUCT(($L$3:$L$10=CM10)*($GG$3:$GG$10))+'J01'!DE10 -> 5 | DF10: =SUMPRODUCT(($C$3:$C$10=CM10)*($GH$3:$GH$10))+SUMPRODUCT(($L$3:$L$10=CM10)*($GI$3:$GI$10))+'J01'!DF10 -> 4 | DG10: 1 | DH10: =IF(Equipes!$C$9="","",Equipes!$C$9) -> Massy | DI10: 4 | DJ10: ='J01'!DI10-DI10 -> 2 | DK10: =IF(DI10>'J01'!DI10,'J01'!$DK$20,IF(DI10='J01'!DI10,'J01'!$DJ$20,IF(DI10<'J01'!DI10,'J01'!$DI$20))) -> p | DL10: 4 | DM10: =SUMPRODUCT(($C$3:$C$10=DH10)*($FL$3:$FL$10))+'J01'!DM10+DY10 -> 5 | DN10: =SUMPRODUCT(($C$3:$C$10=DH10)*($FR$3:$FR$10))+'J01'!DN10 -> 2 | DO10: =SUMPRODUCT(($C$3:$C$10=DH10)*($FV$3:$FV$10))+'J01'!DO10 -> 1 | DP10: =SUMPRODUCT(($C$3:$C$10=DH10)*($FX$3:$FX$10))+'J01'!DP10 -> 0 | DQ10: =SUMPRODUCT(($C$3:$C$10=DH10)*($FZ$3:$FZ$10))+'J01'!DQ10 -> 1 | DR10: =SUMPRODUCT(($C$3:$C$10=DH10)*($GB$3:$GB$10))+'J01'!DR10 -> 43 | DS10: 22 | DT10: =SUMPRODUCT(($C$3:$C$10=DH10)*($GD$3:$GD$10))+'J01'!DT10 -> 40 | DU10: 20 | DV10: 3 | DW10: =SUMPRODUCT(($C$3:$C$10=DH10)*($FH$3:$FH$10))+'J01'!DW10 -> 0 | DX10: =SUMPRODUCT(($C$3:$C$10=DH10)*($FJ$3:$FJ$10))+'J01'!DX10 -> 1 | DY10: 0 | DZ10: =SUMPRODUCT(($C$3:$C$10=DH10)*($GF$3:$GF$10))+'J01'!DZ10 -> 5 | EA10: =SUMPRODUCT(($C$3:$C$10=DH10)*($GH$3:$GH$10))+'J01'!EA10 -> 4 | EB10: 1 | EC10: =IF(Equipes!$C$9="","",Equipes!$C$9) -> Massy | ED10: 8 | EE10: ='J01'!ED10-ED10 -> -5 | EF10: =IF(ED10>'J01'!ED10,'J01'!$EF$20,IF(ED10='J01'!ED10,'J01'!$EE$20,IF(ED10<'J01'!ED10,'J01'!$ED$20))) -> q | EG10: 9 | EH10: =SUMPRODUCT(($L$3:$L$10=EC10)*($FM$3:$FM$10))+'J01'!EH10+ET10 -> 0 | EI10: =SUMPRODUCT(($L$3:$L$10=EC10)*($FS$3:$FS$10))+'J01'!EI10 -> 0 | EJ10: =SUMPRODUCT(($L$3:$L$10=EC10)*($FW$3:$FW$10))+'J01'!EJ10 -> 0 | EK10: =SUMPRODUCT(($L$3:$L$10=EC10)*($FY$3:$FY$10))+'J01'!EK10 -> 0 | EL10: =SUMPRODUCT(($L$3:$L$10=EC10)*($GA$3:$GA$10))+'J01'!EL10 -> 0 | EM10: =SUMPRODUCT(($L$3:$L$10=EC10)*($GC$3:$GC$10))+'J01'!EM10 -> 0 | EN10: 0 | EO10: =SUMPRODUCT(($L$3:$L$10=EC10)*($GE$3:$GE$10))+'J01'!EO10 -> 0 | EP10: 0 | EQ10: 0 | ER10: =SUMPRODUCT(($L$3:$L$10=EC10)*($FI$3:$FI$10))+'J01'!ER10 -> 0 | ES10: 1 | ET10: 0 | EU10: =SUMPRODUCT(($L$3:$L$10=EC10)*($GG$3:$GG$10))+'J01'!EU10 -> 0 | EV10: =SUMPRODUCT(($L$3:$L$10=EC10)*($GI$3:$GI$10))+'J01'!EV10 -> 0 | EW10: 0 | EX10: 5000.0343 | EY10: =EX10+0.00000007 -> 5000.0343 | EZ10: 5000.0343 | FA10: =EZ10+0.00000007 -> 5000.0343 | FB10: 0 | FC10: =FB10+0.00000007 -> 7e-08 | GJ10: Tarbes | GK10: 4999.9636 | GL10: =IF(GK10="","",_xlfn.RANK.EQ(GK10,GK3:GK18)) -> 8 | GM10: Massy | GN10: Carcassonne | GO10: 4000.0721 | GP10: =IF(GO10="","",_xlfn.RANK.EQ(GO10,GO3:GO18)) -> 8 | GQ10: Massy | GR10: Hyères | GS10: 0 | GT10: =IF(GS10="","",_xlfn.RANK.EQ(GS10,GS3:GS18)) -> 8 | GU10: Massy
S11: 9 | T11: Albi | V11: 4 | W11: 3 | X11: p | Y11: 2 | Z11: 1 | AA11: 0 | AB11: 1 | AC11: 33 | AD11: 17 | AE11: 33 | AF11: 17 | AG11: 0 | AH11: 0 | AI11: 0 | AJ11: 0 | AK11: 0 | AL11: 3 | AM11: 2 | AN11: 1 | AO11: 9 | AP11: Tarbes | AR11: 4 | AS11: -1 | AT11: q | AU11: 1 | AV11: 1 | AW11: 0 | AX11: 0 | AY11: 23 | AZ11: 23 | BA11: 20 | BB11: 20 | BC11: 3 | BD11: 1 | BE11: 0 | BF11: 1 | BG11: 0 | BH11: 2 | BI11: 2 | BJ11: 0 | BK11: 8 | BL11: Massy | BN11: 0 | BO11: -5 | BP11: q | BQ11: 0 | BR11: 0 | BS11: 0 | BT11: 0 | BU11: 0 | BV11: 0 | BW11: 0 | BX11: 0 | BY11: 0 | BZ11: 1 | CA11: 0 | CB11: 1 | CC11: 0 | CD11: 0 | CE11: 0 | CF11: 0 | CG11: 9 | CH11: 2 | CI11: 9 | CJ11: 7 | CK11: 9 | CL11: 2 | CM11: =IF(Equipes!$C$10="","",Equipes!$C$10) -> Narbonne | CN11: 2 | CO11: ='J01'!CN11-CN11 -> 3 | CP11: =IF(CN11>'J01'!CN11,'J01'!$CP$20,IF(CN11='J01'!CN11,'J01'!$CO$20,IF(CN11<'J01'!CN11,'J01'!$CN$20))) -> p | CQ11: 2 | CR11: =SUMPRODUCT(($C$3:$C$10=CM11)*($FN$3:$FN$10))+SUMPRODUCT(($L$3:$L$10=CM11)*($FO$3:$FO$10))+'J01'!CR11+DD11 -> 8 | CS11: =SUMPRODUCT(($C$3:$C$10=CM11)*($FR$3:$FR$10))+SUMPRODUCT(($L$3:$L$10=CM11)*($FS$3:$FS$10))+'J01'!CS11 -> 2 | CT11: =SUMPRODUCT(($C$3:$C$10=CM11)*($FV$3:$FV$10))+SUMPRODUCT(($L$3:$L$10=CM11)*($FW$3:$FW$10))+'J01'!CT11 -> 2 | CU11: =SUMPRODUCT(($C$3:$C$10=CM11)*($FX$3:$FX$10))+SUMPRODUCT(($L$3:$L$10=CM11)*($FY$3:$FY$10))+'J01'!CU11 -> 0 | CV11: =SUMPRODUCT(($C$3:$C$10=CM11)*($FZ$3:$FZ$10))+SUMPRODUCT(($L$3:$L$10=CM11)*($GA$3:$GA$10))+'J01'!CV11 -> 0 | CW11: =SUMPRODUCT(($C$3:$C$10=CM11)*($GB$3:$GB$10))+SUMPRODUCT(($L$3:$L$10=CM11)*($GC$3:$GC$10))+'J01'!CW11 -> 44 | CX11: 22 | CY11: =SUMPRODUCT(($C$3:$C$10=CM11)*($GD$3:$GD$10))+SUMPRODUCT(($L$3:$L$10=CM11)*($GE$3:$GE$10))+'J01'!CY11 -> 32 | CZ11: 16 | DA11: 12 | DB11: =SUMPRODUCT(($C$3:$C$10=CM11)*($FH$3:$FH$10))+SUMPRODUCT(($L$3:$L$10=CM11)*($FI$3:$FI$10))+'J01'!DB11 -> 0 | DC11: =SUMPRODUCT(($C$3:$C$10=CM11)*($FJ$3:$FJ$10))+SUMPRODUCT(($L$3:$L$10=CM11)*($FK$3:$FK$10))+'J01'!DC11 -> 0 | DD11: 0 | DE11: =SUMPRODUCT(($C$3:$C$10=CM11)*($GF$3:$GF$10))+SUMPRODUCT(($L$3:$L$10=CM11)*($GG$3:$GG$10))+'J01'!DE11 -> 5 | DF11: =SUMPRODUCT(($C$3:$C$10=CM11)*($GH$3:$GH$10))+SUMPRODUCT(($L$3:$L$10=CM11)*($GI$3:$GI$10))+'J01'!DF11 -> 3 | DG11: 2 | DH11: =IF(Equipes!$C$10="","",Equipes!$C$10) -> Narbonne | DI11: 7 | DJ11: ='J01'!DI11-DI11 -> -2 | DK11: =IF(DI11>'J01'!DI11,'J01'!$DK$20,IF(DI11='J01'!DI11,'J01'!$DJ$20,IF(DI11<'J01'!DI11,'J01'!$DI$20))) -> q | DL11: 7 | DM11: =SUMPRODUCT(($C$3:$C$10=DH11)*($FL$3:$FL$10))+'J01'!DM11+DY11 -> 4 | DN11: =SUMPRODUCT(($C$3:$C$10=DH11)*($FR$3:$FR$10))+'J01'!DN11 -> 1 | DO11: =SUMPRODUCT(($C$3:$C$10=DH11)*($FV$3:$FV$10))+'J01'!DO11 -> 1 | DP11: =SUMPRODUCT(($C$3:$C$10=DH11)*($FX$3:$FX$10))+'J01'!DP11 -> 0 | DQ11: =SUMPRODUCT(($C$3:$C$10=DH11)*($FZ$3:$FZ$10))+'J01'!DQ11 -> 0 | DR11: =SUMPRODUCT(($C$3:$C$10=DH11)*($GB$3:$GB$10))+'J01'!DR11 -> 17 | DS11: 17 | DT11: =SUMPRODUCT(($C$3:$C$10=DH11)*($GD$3:$GD$10))+'J01'!DT11 -> 9 | DU11: 9 | DV11: 8 | DW11: =SUMPRODUCT(($C$3:$C$10=DH11)*($FH$3:$FH$10))+'J01'!DW11 -> 0 | DX11: =SUMPRODUCT(($C$3:$C$10=DH11)*($FJ$3:$FJ$10))+'J01'!DX11 -> 0 | DY11: 0 | DZ11: =SUMPRODUCT(($C$3:$C$10=DH11)*($GF$3:$GF$10))+'J01'!DZ11 -> 2 | EA11: =SUMPRODUCT(($C$3:$C$10=DH11)*($GH$3:$GH$10))+'J01'!EA11 -> 0 | EB11: 2 | EC11: =IF(Equipes!$C$10="","",Equipes!$C$10) -> Narbonne | ED11: 2 | EE11: ='J01'!ED11-ED11 -> 1 | EF11: =IF(ED11>'J01'!ED11,'J01'!$EF$20,IF(ED11='J01'!ED11,'J01'!$EE$20,IF(ED11<'J01'!ED11,'J01'!$ED$20))) -> p | EG11: 2 | EH11: =SUMPRODUCT(($L$3:$L$10=EC11)*($FM$3:$FM$10))+'J01'!EH11+ET11 -> 4 | EI11: =SUMPRODUCT(($L$3:$L$10=EC11)*($FS$3:$FS$10))+'J01'!EI11 -> 1 | EJ11: =SUMPRODUCT(($L$3:$L$10=EC11)*($FW$3:$FW$10))+'J01'!EJ11 -> 1 | EK11: =SUMPRODUCT(($L$3:$L$10=EC11)*($FY$3:$FY$10))+'J01'!EK11 -> 0 | EL11: =SUMPRODUCT(($L$3:$L$10=EC11)*($GA$3:$GA$10))+'J01'!EL11 -> 0 | EM11: =SUMPRODUCT(($L$3:$L$10=EC11)*($GC$3:$GC$10))+'J01'!EM11 -> 27 | EN11: 27 | EO11: =SUMPRODUCT(($L$3:$L$10=EC11)*($GE$3:$GE$10))+'J01'!EO11 -> 23 | EP11: 23 | EQ11: 4 | ER11: =SUMPRODUCT(($L$3:$L$10=EC11)*($FI$3:$FI$10))+'J01'!ER11 -> 0 | ES11: =SUMPRODUCT(($L$3:$L$10=EC11)*($FK$3:$FK$10))+'J01'!ES11 -> 0 | ET11: 0 | EU11: =SUMPRODUCT(($L$3:$L$10=EC11)*($GG$3:$GG$10))+'J01'!EU11 -> 3 | EV11: =SUMPRODUCT(($L$3:$L$10=EC11)*($GI$3:$GI$10))+'J01'!EV11 -> 3 | EW11: 0 | EX11: 8000.1244 | EY11: =EX11+0.00000006 -> 8000.1244 | EZ11: 4000.0817 | FA11: =EZ11+0.00000006 -> 4000.0817 | FB11: 4000.0427 | FC11: =FB11+0.00000006 -> 4000.0427 | GJ11: Albi | GK11: 4000.0033 | GL11: =IF(GK11="","",_xlfn.RANK.EQ(GK11,GK3:GK18)) -> 9 | GM11: Narbonne | GN11: Tarbes | GO11: 4000.0323 | GP11: =IF(GO11="","",_xlfn.RANK.EQ(GO11,GO3:GO18)) -> 9 | GQ11: Narbonne | GR11: Massy | GS11: 0 | GT11: =IF(GS11="","",_xlfn.RANK.EQ(GS11,GS3:GS18)) -> 8 | GU11: Narbonne
S12: 10 | T12: Bourgoin-Jallieu | V12: 4 | W12: -6 | X12: q | Y12: 2 | Z12: 1 | AA12: 0 | AB12: 1 | AC12: 24 | AD12: 12 | AE12: 28 | AF12: 14 | AG12: -4 | AH12: 0 | AI12: 0 | AJ12: 0 | AK12: 0 | AL12: 2 | AM12: 3 | AN12: -1 | AO12: 10 | AP12: Bourg-en-Bresse | AR12: 1 | AS12: -3 | AT12: q | AU12: 1 | AV12: 0 | AW12: 0 | AX12: 1 | AY12: 10 | AZ12: 10 | BA12: 12 | BB12: 12 | BC12: -2 | BD12: 1 | BE12: 0 | BF12: 1 | BG12: 0 | BH12: 1 | BI12: 0 | BJ12: 1 | BK12: 8 | BL12: Périgueux | BN12: 0 | BO12: -5 | BP12: q | BQ12: 0 | BR12: 0 | BS12: 0 | BT12: 0 | BU12: 0 | BV12: 0 | BW12: 0 | BX12: 0 | BY12: 0 | BZ12: 0 | CA12: 0 | CB12: 0 | CC12: 0 | CD12: 0 | CE12: 0 | CF12: 0 | CG12: 10 | CH12: 6 | CI12: 10 | CJ12: 12 | CK12: 10 | CL12: 1 | CM12: =IF(Equipes!$C$11="","",Equipes!$C$11) -> Nice | CN12: 6 | CO12: ='J01'!CN12-CN12 -> 5 | CP12: =IF(CN12>'J01'!CN12,'J01'!$CP$20,IF(CN12='J01'!CN12,'J01'!$CO$20,IF(CN12<'J01'!CN12,'J01'!$CN$20))) -> p | CQ12: 6 | CR12: =SUMPRODUCT(($C$3:$C$10=CM12)*($FN$3:$FN$10))+SUMPRODUCT(($L$3:$L$10=CM12)*($FO$3:$FO$10))+'J01'!CR12+DD12 -> 5 | CS12: =SUMPRODUCT(($C$3:$C$10=CM12)*($FR$3:$FR$10))+SUMPRODUCT(($L$3:$L$10=CM12)*($FS$3:$FS$10))+'J01'!CS12 -> 2 | CT12: =SUMPRODUCT(($C$3:$C$10=CM12)*($FV$3:$FV$10))+SUMPRODUCT(($L$3:$L$10=CM12)*($FW$3:$FW$10))+'J01'!CT12 -> 1 | CU12: =SUMPRODUCT(($C$3:$C$10=CM12)*($FX$3:$FX$10))+SUMPRODUCT(($L$3:$L$10=CM12)*($FY$3:$FY$10))+'J01'!CU12 -> 0 | CV12: =SUMPRODUCT(($C$3:$C$10=CM12)*($FZ$3:$FZ$10))+SUMPRODUCT(($L$3:$L$10=CM12)*($GA$3:$GA$10))+'J01'!CV12 -> 1 | CW12: =SUMPRODUCT(($C$3:$C$10=CM12)*($GB$3:$GB$10))+SUMPRODUCT(($L$3:$L$10=CM12)*($GC$3:$GC$10))+'J01'!CW12 -> 39 | CX12: 20 | CY12: =SUMPRODUCT(($C$3:$C$10=CM12)*($GD$3:$GD$10))+SUMPRODUCT(($L$3:$L$10=CM12)*($GE$3:$GE$10))+'J01'!CY12 -> 28 | CZ12: 14 | DA12: 11 | DB12: =SUMPRODUCT(($C$3:$C$10=CM12)*($FH$3:$FH$10))+SUMPRODUCT(($L$3:$L$10=CM12)*($FI$3:$FI$10))+'J01'!DB12 -> 1 | DC12: =SUMPRODUCT(($C$3:$C$10=CM12)*($FJ$3:$FJ$10))+SUMPRODUCT(($L$3:$L$10=CM12)*($FK$3:$FK$10))+'J01'!DC12 -> 0 | DD12: 0 | DE12: =SUMPRODUCT(($C$3:$C$10=CM12)*($GF$3:$GF$10))+SUMPRODUCT(($L$3:$L$10=CM12)*($GG$3:$GG$10))+'J01'!DE12 -> 5 | DF12: =SUMPRODUCT(($C$3:$C$10=CM12)*($GH$3:$GH$10))+SUMPRODUCT(($L$3:$L$10=CM12)*($GI$3:$GI$10))+'J01'!DF12 -> 3 | DG12: 2 | DH12: =IF(Equipes!$C$11="","",Equipes!$C$11) -> Nice | DI12: 11 | DJ12: ='J01'!DI12-DI12 -> -3 | DK12: =IF(DI12>'J01'!DI12,'J01'!$DK$20,IF(DI12='J01'!DI12,'J01'!$DJ$20,IF(DI12<'J01'!DI12,'J01'!$DI$20))) -> q | DL12: 12 | DM12: =SUMPRODUCT(($C$3:$C$10=DH12)*($FL$3:$FL$10))+'J01'!DM12+DY12 -> 0 | DN12: =SUMPRODUCT(($C$3:$C$10=DH12)*($FR$3:$FR$10))+'J01'!DN12 -> 0 | DO12: =SUMPRODUCT(($C$3:$C$10=DH12)*($FV$3:$FV$10))+'J01'!DO12 -> 0 | DP12: =SUMPRODUCT(($C$3:$C$10=DH12)*($FX$3:$FX$10))+'J01'!DP12 -> 0 | DQ12: =SUMPRODUCT(($C$3:$C$10=DH12)*($FZ$3:$FZ$10))+'J01'!DQ12 -> 0 | DR12: =SUMPRODUCT(($C$3:$C$10=DH12)*($GB$3:$GB$10))+'J01'!DR12 -> 0 | DS12: 0 | DT12: =SUMPRODUCT(($C$3:$C$10=DH12)*($GD$3:$GD$10))+'J01'!DT12 -> 0 | DU12: 0 | DV12: 0 | DW12: 1 | DX12: =SUMPRODUCT(($C$3:$C$10=DH12)*($FJ$3:$FJ$10))+'J01'!DX12 -> 0 | DY12: 0 | DZ12: =SUMPRODUCT(($C$3:$C$10=DH12)*($GF$3:$GF$10))+'J01'!DZ12 -> 0 | EA12: =SUMPRODUCT(($C$3:$C$10=DH12)*($GH$3:$GH$10))+'J01'!EA12 -> 0 | EB12: 0 | EC12: =IF(Equipes!$C$11="","",Equipes!$C$11) -> Nice | ED12: 1 | EE12: ='J01'!ED12-ED12 -> 10 | EF12: =IF(ED12>'J01'!ED12,'J01'!$EF$20,IF(ED12='J01'!ED12,'J01'!$EE$20,IF(ED12<'J01'!ED12,'J01'!$ED$20))) -> p | EG12: 1 | EH12: =SUMPRODUCT(($L$3:$L$10=EC12)*($FM$3:$FM$10))+'J01'!EH12+ET12 -> 5 | EI12: =SUMPRODUCT(($L$3:$L$10=EC12)*($FS$3:$FS$10))+'J01'!EI12 -> 2 | EJ12: =SUMPRODUCT(($L$3:$L$10=EC12)*($FW$3:$FW$10))+'J01'!EJ12 -> 1 | EK12: =SUMPRODUCT(($L$3:$L$10=EC12)*($FY$3:$FY$10))+'J01'!EK12 -> 0 | EL12: =SUMPRODUCT(($L$3:$L$10=EC12)*($GA$3:$GA$10))+'J01'!EL12 -> 1 | EM12: =SUMPRODUCT(($L$3:$L$10=EC12)*($GC$3:$GC$10))+'J01'!EM12 -> 39 | EN12: 19.5 | EO12: =SUMPRODUCT(($L$3:$L$10=EC12)*($GE$3:$GE$10))+'J01'!EO12 -> 28 | EP12: 14 | EQ12: 11 | ER12: =SUMPRODUCT(($L$3:$L$10=EC12)*($FI$3:$FI$10))+'J01'!ER12 -> 1 | ES12: =SUMPRODUCT(($L$3:$L$10=EC12)*($FK$3:$FK$10))+'J01'!ES12 -> 0 | ET12: 0 | EU12: =SUMPRODUCT(($L$3:$L$10=EC12)*($GG$3:$GG$10))+'J01'!EU12 -> 5 | EV12: =SUMPRODUCT(($L$3:$L$10=EC12)*($GI$3:$GI$10))+'J01'!EV12 -> 3 | EW12: 2 | EX12: 5000.1139 | EY12: =EX12+0.00000005 -> 5000.1139 | EZ12: 0 | FA12: =EZ12+0.00000005 -> 5e-08 | FB12: 5000.1139 | FC12: =FB12+0.00000005 -> 5000.1139 | GJ12: Bourgoin-Jallieu | GK12: 3999.9624 | GL12: =IF(GK12="","",_xlfn.RANK.EQ(GK12,GK3:GK18)) -> 10 | GM12: Nice | GN12: Bourg-en-Bresse | GO12: 999.981 | GP12: =IF(GO12="","",_xlfn.RANK.EQ(GO12,GO3:GO18)) -> 10 | GQ12: Nice | GR12: Périgueux | GS12: 0 | GT12: =IF(GS12="","",_xlfn.RANK.EQ(GS12,GS3:GS18)) -> 8 | GU12: Nice
S13: 11 | T13: Chambéry | V13: 2 | W13: -1 | X13: q | Y13: 2 | Z13: 0 | AA13: 1 | AB13: 1 | AC13: 25 | AD13: 13 | AE13: 33 | AF13: 17 | AG13: -8 | AH13: 0 | AI13: 0 | AJ13: 0 | AK13: 0 | AL13: 1 | AM13: 3 | AN13: -2 | AO13: 11 | AP13: Chambéry | AR13: 0 | AS13: -3 | AT13: q | AU13: 0 | AV13: 0 | AW13: 0 | AX13: 0 | AY13: 0 | AZ13: 0 | BA13: 0 | BB13: 0 | BC13: 0 | BD13: 0 | BE13: 0 | BF13: 0 | BG13: 0 | BH13: 0 | BI13: 0 | BJ13: 0 | BK13: 11 | BL13: Bourg-en-Bresse | BN13: 0 | BO13: -8 | BP13: q | BQ13: 1 | BR13: 0 | BS13: 0 | BT13: 1 | BU13: 16 | BV13: 16 | BW13: 27 | BX13: 27 | BY13: -11 | BZ13: 1 | CA13: 0 | CB13: 1 | CC13: 0 | CD13: 1 | CE13: 3 | CF13: -2 | CG13: 11 | CH13: 1 | CI13: 11 | CJ13: 1 | CK13: 11 | CL13: 10 | CM13: =IF(Equipes!$C$12="","",Equipes!$C$12) -> Périgueux | CN13: 1 | CO13: ='J01'!CN13-CN13 -> 2 | CP13: =IF(CN13>'J01'!CN13,'J01'!$CP$20,IF(CN13='J01'!CN13,'J01'!$CO$20,IF(CN13<'J01'!CN13,'J01'!$CN$20))) -> p | CQ13: 1 | CR13: =SUMPRODUCT(($C$3:$C$10=CM13)*($FN$3:$FN$10))+SUMPRODUCT(($L$3:$L$10=CM13)*($FO$3:$FO$10))+'J01'!CR13+DD13 -> 8 | CS13: =SUMPRODUCT(($C$3:$C$10=CM13)*($FR$3:$FR$10))+SUMPRODUCT(($L$3:$L$10=CM13)*($FS$3:$FS$10))+'J01'!CS13 -> 2 | CT13: =SUMPRODUCT(($C$3:$C$10=CM13)*($FV$3:$FV$10))+SUMPRODUCT(($L$3:$L$10=CM13)*($FW$3:$FW$10))+'J01'!CT13 -> 2 | CU13: =SUMPRODUCT(($C$3:$C$10=CM13)*($FX$3:$FX$10))+SUMPRODUCT(($L$3:$L$10=CM13)*($FY$3:$FY$10))+'J01'!CU13 -> 0 | CV13: =SUMPRODUCT(($C$3:$C$10=CM13)*($FZ$3:$FZ$10))+SUMPRODUCT(($L$3:$L$10=CM13)*($GA$3:$GA$10))+'J01'!CV13 -> 0 | CW13: =SUMPRODUCT(($C$3:$C$10=CM13)*($GB$3:$GB$10))+SUMPRODUCT(($L$3:$L$10=CM13)*($GC$3:$GC$10))+'J01'!CW13 -> 47 | CX13: 24 | CY13: =SUMPRODUCT(($C$3:$C$10=CM13)*($GD$3:$GD$10))+SUMPRODUCT(($L$3:$L$10=CM13)*($GE$3:$GE$10))+'J01'!CY13 -> 21 | CZ13: 11 | DA13: 26 | DB13: =SUMPRODUCT(($C$3:$C$10=CM13)*($FH$3:$FH$10))+SUMPRODUCT(($L$3:$L$10=CM13)*($FI$3:$FI$10))+'J01'!DB13 -> 0 | DC13: =SUMPRODUCT(($C$3:$C$10=CM13)*($FJ$3:$FJ$10))+SUMPRODUCT(($L$3:$L$10=CM13)*($FK$3:$FK$10))+'J01'!DC13 -> 0 | DD13: 0 | DE13: =SUMPRODUCT(($C$3:$C$10=CM13)*($GF$3:$GF$10))+SUMPRODUCT(($L$3:$L$10=CM13)*($GG$3:$GG$10))+'J01'!DE13 -> 6 | DF13: =SUMPRODUCT(($C$3:$C$10=CM13)*($GH$3:$GH$10))+SUMPRODUCT(($L$3:$L$10=CM13)*($GI$3:$GI$10))+'J01'!DF13 -> 3 | DG13: 3 | DH13: =IF(Equipes!$C$12="","",Equipes!$C$12) -> Périgueux | DI13: 1 | DJ13: ='J01'!DI13-DI13 -> 2 | DK13: =IF(DI13>'J01'!DI13,'J01'!$DK$20,IF(DI13='J01'!DI13,'J01'!$DJ$20,IF(DI13<'J01'!DI13,'J01'!$DI$20))) -> p | DL13: 1 | DM13: =SUMPRODUCT(($C$3:$C$10=DH13)*($FL$3:$FL$10))+'J01'!DM13+DY13 -> 8 | DN13: =SUMPRODUCT(($C$3:$C$10=DH13)*($FR$3:$FR$10))+'J01'!DN13 -> 2 | DO13: =SUMPRODUCT(($C$3:$C$10=DH13)*($FV$3:$FV$10))+'J01'!DO13 -> 2 | DP13: =SUMPRODUCT(($C$3:$C$10=DH13)*($FX$3:$FX$10))+'J01'!DP13 -> 0 | DQ13: =SUMPRODUCT(($C$3:$C$10=DH13)*($FZ$3:$FZ$10))+'J01'!DQ13 -> 0 | DR13: =SUMPRODUCT(($C$3:$C$10=DH13)*($GB$3:$GB$10))+'J01'!DR13 -> 47 | DS13: 24 | DT13: =SUMPRODUCT(($C$3:$C$10=DH13)*($GD$3:$GD$10))+'J01'!DT13 -> 21 | DU13: 11 | DV13: 26 | DW13: =SUMPRODUCT(($C$3:$C$10=DH13)*($FH$3:$FH$10))+'J01'!DW13 -> 0 | DX13: =SUMPRODUCT(($C$3:$C$10=DH13)*($FJ$3:$FJ$10))+'J01'!DX13 -> 0 | DY13: 0 | DZ13: =SUMPRODUCT(($C$3:$C$10=DH13)*($GF$3:$GF$10))+'J01'!DZ13 -> 6 | EA13: =SUMPRODUCT(($C$3:$C$10=DH13)*($GH$3:$GH$10))+'J01'!EA13 -> 3 | EB13: 3 | EC13: =IF(Equipes!$C$12="","",Equipes!$C$12) -> Périgueux | ED13: 8 | EE13: ='J01'!ED13-ED13 -> -5 | EF13: =IF(ED13>'J01'!ED13,'J01'!$EF$20,IF(ED13='J01'!ED13,'J01'!$EE$20,IF(ED13<'J01'!ED13,'J01'!$ED$20))) -> q | EG13: 10 | EH13: =SUMPRODUCT(($L$3:$L$10=EC13)*($FM$3:$FM$10))+'J01'!EH13+ET13 -> 0 | EI13: =SUMPRODUCT(($L$3:$L$10=EC13)*($FS$3:$FS$10))+'J01'!EI13 -> 0 | EJ13: =SUMPRODUCT(($L$3:$L$10=EC13)*($FW$3:$FW$10))+'J01'!EJ13 -> 0 | EK13: =SUMPRODUCT(($L$3:$L$10=EC13)*($FY$3:$FY$10))+'J01'!EK13 -> 0 | EL13: =SUMPRODUCT(($L$3:$L$10=EC13)*($GA$3:$GA$10))+'J01'!EL13 -> 0 | EM13: =SUMPRODUCT(($L$3:$L$10=EC13)*($GC$3:$GC$10))+'J01'!EM13 -> 0 | EN13: 0 | EO13: =SUMPRODUCT(($L$3:$L$10=EC13)*($GE$3:$GE$10))+'J01'!EO13 -> 0 | EP13: 0 | EQ13: 0 | ER13: =SUMPRODUCT(($L$3:$L$10=EC13)*($FI$3:$FI$10))+'J01'!ER13 -> 0 | ES13: =SUMPRODUCT(($L$3:$L$10=EC13)*($FK$3:$FK$10))+'J01'!ES13 -> 0 | ET13: 0 | EU13: =SUMPRODUCT(($L$3:$L$10=EC13)*($GG$3:$GG$10))+'J01'!EU13 -> 0 | EV13: =SUMPRODUCT(($L$3:$L$10=EC13)*($GI$3:$GI$10))+'J01'!EV13 -> 0 | EW13: 0 | EX13: 8000.2647 | EY13: =EX13+0.00000004 -> 8000.2647 | EZ13: 8000.2647 | FA13: =EZ13+0.00000004 -> 8000.2647 | FB13: 0 | FC13: =FB13+0.00000004 -> 4e-08 | GJ13: Chambéry | GK13: 1999.9225 | GL13: =IF(GK13="","",_xlfn.RANK.EQ(GK13,GK3:GK18)) -> 11 | GM13: Périgueux | GN13: Chambéry | GO13: 0 | GP13: =IF(GO13="","",_xlfn.RANK.EQ(GO13,GO3:GO18)) -> 11 | GQ13: Périgueux | GR13: Bourg-en-Bresse | GS13: -0.1084 | GT13: =IF(GS13="","",_xlfn.RANK.EQ(GS13,GS3:GS18)) -> 11 | GU13: Périgueux
M14: =IF(Accueil!$D$2="","",IF(Accueil!$D$2="Choix de la saison","","Aujourd'hui, nous sommes le "&TEXT(TODAY(),"jjjj jj mmmm aaaa"))) -> Aujourd'hui, nous sommes le dimanche 10 décembre 2023 | S14: 12 | T14: Bourg-en-Bresse | V14: 1 | W14: -4 | X14: q | Y14: 2 | Z14: 0 | AA14: 0 | AB14: 2 | AC14: 26 | AD14: 13 | AE14: 39 | AF14: 20 | AG14: -13 | AH14: 1 | AI14: 0 | AJ14: 1 | AK14: 0 | AL14: 2 | AM14: 3 | AN14: -1 | AO14: 11 | AP14: Nice | AR14: 0 | AS14: -3 | AT14: q | AU14: 0 | AV14: 0 | AW14: 0 | AX14: 0 | AY14: 0 | AZ14: 0 | BA14: 0 | BB14: 0 | BC14: 0 | BD14: 1 | BE14: 1 | BF14: 0 | BG14: 0 | BH14: 0 | BI14: 0 | BJ14: 0 | BK14: 12 | BL14: Albi | BN14: 0 | BO14: 0 | BP14: u | BQ14: 1 | BR14: 0 | BS14: 0 | BT14: 1 | BU14: 6 | BV14: 6 | BW14: 17 | BX14: 17 | BY14: -11 | BZ14: 0 | CA14: 0 | CB14: 0 | CC14: 0 | CD14: 0 | CE14: 1 | CF14: -1 | CG14: 12 | CH14: 13 | CI14: 12 | CJ14: 13 | CK14: 12 | CL14: 7 | CM14: =IF(Equipes!$C$13="","",Equipes!$C$13) -> Suresnes | CN14: 13 | CO14: ='J01'!CN14-CN14 -> 0 | CP14: =IF(CN14>'J01'!CN14,'J01'!$CP$20,IF(CN14='J01'!CN14,'J01'!$CO$20,IF(CN14<'J01'!CN14,'J01'!$CN$20))) -> u | CQ14: 13 | CR14: =SUMPRODUCT(($C$3:$C$10=CM14)*($FN$3:$FN$10))+SUMPRODUCT(($L$3:$L$10=CM14)*($FO$3:$FO$10))+'J01'!CR14+DD14 -> 1 | CS14: =SUMPRODUCT(($C$3:$C$10=CM14)*($FR$3:$FR$10))+SUMPRODUCT(($L$3:$L$10=CM14)*($FS$3:$FS$10))+'J01'!CS14 -> 2 | CT14: =SUMPRODUCT(($C$3:$C$10=CM14)*($FV$3:$FV$10))+SUMPRODUCT(($L$3:$L$10=CM14)*($FW$3:$FW$10))+'J01'!CT14 -> 0 | CU14: =SUMPRODUCT(($C$3:$C$10=CM14)*($FX$3:$FX$10))+SUMPRODUCT(($L$3:$L$10=CM14)*($FY$3:$FY$10))+'J01'!CU14 -> 0 | CV14: =SUMPRODUCT(($C$3:$C$10=CM14)*($FZ$3:$FZ$10))+SUMPRODUCT(($L$3:$L$10=CM14)*($GA$3:$GA$10))+'J01'!CV14 -> 2 | CW14: =SUMPRODUCT(($C$3:$C$10=CM14)*($GB$3:$GB$10))+SUMPRODUCT(($L$3:$L$10=CM14)*($GC$3:$GC$10))+'J01'!CW14 -> 24 | CX14: 12 | CY14: =SUMPRODUCT(($C$3:$C$10=CM14)*($GD$3:$GD$10))+SUMPRODUCT(($L$3:$L$10=CM14)*($GE$3:$GE$10))+'J01'!CY14 -> 45 | CZ14: 23 | DA14: -21 | DB14: =SUMPRODUCT(($C$3:$C$10=CM14)*($FH$3:$FH$10))+SUMPRODUCT(($L$3:$L$10=CM14)*($FI$3:$FI$10))+'J01'!DB14 -> 0 | DC14: =SUMPRODUCT(($C$3:$C$10=CM14)*($FJ$3:$FJ$10))+SUMPRODUCT(($L$3:$L$10=CM14)*($FK$3:$FK$10))+'J01'!DC14 -> 1 | DD14: 0 | DE14: =SUMPRODUCT(($C$3:$C$10=CM14)*($GF$3:$GF$10))+SUMPRODUCT(($L$3:$L$10=CM14)*($GG$3:$GG$10))+'J01'!DE14 -> 3 | DF14: =SUMPRODUCT(($C$3:$C$10=CM14)*($GH$3:$GH$10))+SUMPRODUCT(($L$3:$L$10=CM14)*($GI$3:$GI$10))+'J01'!DF14 -> 5 | DG14: -2 | DH14: =IF(Equipes!$C$13="","",Equipes!$C$13) -> Suresnes | DI14: 11 | DJ14: ='J01'!DI14-DI14 -> -3 | DK14: =IF(DI14>'J01'!DI14,'J01'!$DK$20,IF(DI14='J01'!DI14,'J01'!$DJ$20,IF(DI14<'J01'!DI14,'J01'!$DI$20))) -> q | DL14: 13 | DM14: =SUMPRODUCT(($C$3:$C$10=DH14)*($FL$3:$FL$10))+'J01'!DM14+DY14 -> 0 | DN14: =SUMPRODUCT(($C$3:$C$10=DH14)*($FR$3:$FR$10))+'J01'!DN14 -> 0 | DO14: =SUMPRODUCT(($C$3:$C$10=DH14)*($FV$3:$FV$10))+'J01'!DO14 -> 0 | DP14: =SUMPRODUCT(($C$3:$C$10=DH14)*($FX$3:$FX$10))+'J01'!DP14 -> 0 | DQ14: =SUMPRODUCT(($C$3:$C$10=DH14)*($FZ$3:$FZ$10))+'J01'!DQ14 -> 0 | DR14: =SUMPRODUCT(($C$3:$C$10=DH14)*($GB$3:$GB$10))+'J01'!DR14 -> 0 | DS14: 0 | DT14: =SUMPRODUCT(($C$3:$C$10=DH14)*($GD$3:$GD$10))+'J01'!DT14 -> 0 | DU14: 0 | DV14: 0 | DW14: =SUMPRODUCT(($C$3:$C$10=DH14)*($FH$3:$FH$10))+'J01'!DW14 -> 0 | DX14: 1 | DY14: 0 | DZ14: =SUMPRODUCT(($C$3:$C$10=DH14)*($GF$3:$GF$10))+'J01'!DZ14 -> 0 | EA14: =SUMPRODUCT(($C$3:$C$10=DH14)*($GH$3:$GH$10))+'J01'!EA14 -> 0 | EB14: 0 | EC14: =IF(Equipes!$C$13="","",Equipes!$C$13) -> Suresnes | ED14: 7 | EE14: ='J01'!ED14-ED14 -> 6 | EF14: =IF(ED14>'J01'!ED14,'J01'!$EF$20,IF(ED14='J01'!ED14,'J01'!$EE$20,IF(ED14<'J01'!ED14,'J01'!$ED$20))) -> p | EG14: 7 | EH14: =SUMPRODUCT(($L$3:$L$10=EC14)*($FM$3:$FM$10))+'J01'!EH14+ET14 -> 1 | EI14: =SUMPRODUCT(($L$3:$L$10=EC14)*($FS$3:$FS$10))+'J01'!EI14 -> 2 | EJ14: =SUMPRODUCT(($L$3:$L$10=EC14)*($FW$3:$FW$10))+'J01'!EJ14 -> 0 | EK14: =SUMPRODUCT(($L$3:$L$10=EC14)*($FY$3:$FY$10))+'J01'!EK14 -> 0 | EL14: =SUMPRODUCT(($L$3:$L$10=EC14)*($GA$3:$GA$10))+'J01'!EL14 -> 2 | EM14: =SUMPRODUCT(($L$3:$L$10=EC14)*($GC$3:$GC$10))+'J01'!EM14 -> 24 | EN14: 12 | EO14: =SUMPRODUCT(($L$3:$L$10=EC14)*($GE$3:$GE$10))+'J01'!EO14 -> 45 | EP14: 22.5 | EQ14: -21 | ER14: =SUMPRODUCT(($L$3:$L$10=EC14)*($FI$3:$FI$10))+'J01'!ER14 -> 0 | ES14: =SUMPRODUCT(($L$3:$L$10=EC14)*($FK$3:$FK$10))+'J01'!ES14 -> 1 | ET14: 0 | EU14: =SUMPRODUCT(($L$3:$L$10=EC14)*($GG$3:$GG$10))+'J01'!EU14 -> 3 | EV14: =SUMPRODUCT(($L$3:$L$10=EC14)*($GI$3:$GI$10))+'J01'!EV14 -> 5 | EW14: -2 | EX14: 999.7924 | EY14: =EX14+0.00000003 -> 999.7924 | EZ14: 0 | FA14: =EZ14+0.00000003 -> 3e-08 | FB14: 999.7924 | FC14: =FB14+0.00000003 -> 999.7924 | GJ14: Bourg-en-Bresse | GK14: 999.8726 | GL14: =IF(GK14="","",_xlfn.RANK.EQ(GK14,GK3:GK18)) -> 12 | GM14: Suresnes | GN14: Nice | GO14: 0 | GP14: =IF(GO14="","",_xlfn.RANK.EQ(GO14,GO3:GO18)) -> 11 | GQ14: Suresnes | GR14: Albi | GS14: -0.1094 | GT14: =IF(GS14="","",_xlfn.RANK.EQ(GS14,GS3:GS18)) -> 12 | GU14: Suresnes
S15: 13 | T15: Suresnes | V15: 1 | W15: 0 | X15: u | Y15: 2 | Z15: 0 | AA15: 0 | AB15: 2 | AC15: 24 | AD15: 12 | AE15: 45 | AF15: 23 | AG15: -21 | AH15: 1 | AI15: 0 | AJ15: 1 | AK15: 0 | AL15: 3 | AM15: 5 | AN15: -2 | AO15: 11 | AP15: Suresnes | AR15: 0 | AS15: -3 | AT15: q | AU15: 0 | AV15: 0 | AW15: 0 | AX15: 0 | AY15: 0 | AZ15: 0 | BA15: 0 | BB15: 0 | BC15: 0 | BD15: 1 | BE15: 0 | BF15: 1 | BG15: 0 | BH15: 0 | BI15: 0 | BJ15: 0 | BK15: 13 | BL15: Bourgoin-Jallieu | BN15: 0 | BO15: -10 | BP15: q | BQ15: 1 | BR15: 0 | BS15: 0 | BT15: 1 | BU15: 7 | BV15: 7 | BW15: 22 | BX15: 22 | BY15: -15 | BZ15: 0 | CA15: 0 | CB15: 0 | CC15: 0 | CD15: 1 | CE15: 3 | CF15: -2 | CG15: 13 | CH15: 8 | CI15: 13 | CJ15: 9 | CK15: 13 | CL15: 6 | CM15: =IF(Equipes!$C$14="","",Equipes!$C$14) -> Tarbes | CN15: 8 | CO15: ='J01'!CN15-CN15 -> 1 | CP15: =IF(CN15>'J01'!CN15,'J01'!$CP$20,IF(CN15='J01'!CN15,'J01'!$CO$20,IF(CN15<'J01'!CN15,'J01'!$CN$20))) -> p | CQ15: 8 | CR15: =SUMPRODUCT(($C$3:$C$10=CM15)*($FN$3:$FN$10))+SUMPRODUCT(($L$3:$L$10=CM15)*($FO$3:$FO$10))+'J01'!CR15+DD15 -> 5 | CS15: =SUMPRODUCT(($C$3:$C$10=CM15)*($FR$3:$FR$10))+SUMPRODUCT(($L$3:$L$10=CM15)*($FS$3:$FS$10))+'J01'!CS15 -> 2 | CT15: =SUMPRODUCT(($C$3:$C$10=CM15)*($FV$3:$FV$10))+SUMPRODUCT(($L$3:$L$10=CM15)*($FW$3:$FW$10))+'J01'!CT15 -> 1 | CU15: =SUMPRODUCT(($C$3:$C$10=CM15)*($FX$3:$FX$10))+SUMPRODUCT(($L$3:$L$10=CM15)*($FY$3:$FY$10))+'J01'!CU15 -> 0 | CV15: =SUMPRODUCT(($C$3:$C$10=CM15)*($FZ$3:$FZ$10))+SUMPRODUCT(($L$3:$L$10=CM15)*($GA$3:$GA$10))+'J01'!CV15 -> 1 | CW15: =SUMPRODUCT(($C$3:$C$10=CM15)*($GB$3:$GB$10))+SUMPRODUCT(($L$3:$L$10=CM15)*($GC$3:$GC$10))+'J01'!CW15 -> 36 | CX15: 18 | CY15: =SUMPRODUCT(($C$3:$C$10=CM15)*($GD$3:$GD$10))+SUMPRODUCT(($L$3:$L$10=CM15)*($GE$3:$GE$10))+'J01'!CY15 -> 40 | CZ15: 20 | DA15: -4 | DB15: =SUMPRODUCT(($C$3:$C$10=CM15)*($FH$3:$FH$10))+SUMPRODUCT(($L$3:$L$10=CM15)*($FI$3:$FI$10))+'J01'!DB15 -> 0 | DC15: =SUMPRODUCT(($C$3:$C$10=CM15)*($FJ$3:$FJ$10))+SUMPRODUCT(($L$3:$L$10=CM15)*($FK$3:$FK$10))+'J01'!DC15 -> 1 | DD15: 0 | DE15: =SUMPRODUCT(($C$3:$C$10=CM15)*($GF$3:$GF$10))+SUMPRODUCT(($L$3:$L$10=CM15)*($GG$3:$GG$10))+'J01'!DE15 -> 3 | DF15: =SUMPRODUCT(($C$3:$C$10=CM15)*($GH$3:$GH$10))+SUMPRODUCT(($L$3:$L$10=CM15)*($GI$3:$GI$10))+'J01'!DF15 -> 4 | DG15: -1 | DH15: =IF(Equipes!$C$14="","",Equipes!$C$14) -> Tarbes | DI15: 9 | DJ15: ='J01'!DI15-DI15 -> -1 | DK15: =IF(DI15>'J01'!DI15,'J01'!$DK$20,IF(DI15='J01'!DI15,'J01'!$DJ$20,IF(DI15<'J01'!DI15,'J01'!$DI$20))) -> q | DL15: 9 | DM15: =SUMPRODUCT(($C$3:$C$10=DH15)*($FL$3:$FL$10))+'J01'!DM15+DY15 -> 4 | DN15: =SUMPRODUCT(($C$3:$C$10=DH15)*($FR$3:$FR$10))+'J01'!DN15 -> 1 | DO15: =SUMPRODUCT(($C$3:$C$10=DH15)*($FV$3:$FV$10))+'J01'!DO15 -> 1 | DP15: =SUMPRODUCT(($C$3:$C$10=DH15)*($FX$3:$FX$10))+'J01'!DP15 -> 0 | DQ15: =SUMPRODUCT(($C$3:$C$10=DH15)*($FZ$3:$FZ$10))+'J01'!DQ15 -> 0 | DR15: =SUMPRODUCT(($C$3:$C$10=DH15)*($GB$3:$GB$10))+'J01'!DR15 -> 23 | DS15: 23 | DT15: =SUMPRODUCT(($C$3:$C$10=DH15)*($GD$3:$GD$10))+'J01'!DT15 -> 20 | DU15: 20 | DV15: 3 | DW15: =SUMPRODUCT(($C$3:$C$10=DH15)*($FH$3:$FH$10))+'J01'!DW15 -> 0 | DX15: =SUMPRODUCT(($C$3:$C$10=DH15)*($FJ$3:$FJ$10))+'J01'!DX15 -> 1 | DY15: 0 | DZ15: =SUMPRODUCT(($C$3:$C$10=DH15)*($GF$3:$GF$10))+'J01'!DZ15 -> 2 | EA15: =SUMPRODUCT(($C$3:$C$10=DH15)*($GH$3:$GH$10))+'J01'!EA15 -> 2 | EB15: 0 | EC15: =IF(Equipes!$C$14="","",Equipes!$C$14) -> Tarbes | ED15: 6 | EE15: ='J01'!ED15-ED15 -> -4 | EF15: =IF(ED15>'J01'!ED15,'J01'!$EF$20,IF(ED15='J01'!ED15,'J01'!$EE$20,IF(ED15<'J01'!ED15,'J01'!$ED$20))) -> q | EG15: 6 | EH15: =SUMPRODUCT(($L$3:$L$10=EC15)*($FM$3:$FM$10))+'J01'!EH15+ET15 -> 1 | EI15: =SUMPRODUCT(($L$3:$L$10=EC15)*($FS$3:$FS$10))+'J01'!EI15 -> 1 | EJ15: =SUMPRODUCT(($L$3:$L$10=EC15)*($FW$3:$FW$10))+'J01'!EJ15 -> 0 | EK15: =SUMPRODUCT(($L$3:$L$10=EC15)*($FY$3:$FY$10))+'J01'!EK15 -> 0 | EL15: =SUMPRODUCT(($L$3:$L$10=EC15)*($GA$3:$GA$10))+'J01'!EL15 -> 1 | EM15: =SUMPRODUCT(($L$3:$L$10=EC15)*($GC$3:$GC$10))+'J01'!EM15 -> 13 | EN15: 13 | EO15: =SUMPRODUCT(($L$3:$L$10=EC15)*($GE$3:$GE$10))+'J01'!EO15 -> 20 | EP15: 20 | EQ15: -7 | ER15: =SUMPRODUCT(($L$3:$L$10=EC15)*($FI$3:$FI$10))+'J01'!ER15 -> 0 | ES15: =SUMPRODUCT(($L$3:$L$10=EC15)*($FK$3:$FK$10))+'J01'!ES15 -> 1 | ET15: 0 | EU15: =SUMPRODUCT(($L$3:$L$10=EC15)*($GG$3:$GG$10))+'J01'!EU15 -> 1 | EV15: =SUMPRODUCT(($L$3:$L$10=EC15)*($GI$3:$GI$10))+'J01'!EV15 -> 2 | EW15: -1 | EX15: 4999.9636 | EY15: =EX15+0.00000002 -> 4999.9636 | EZ15: 4000.0323 | FA15: =EZ15+0.00000002 -> 4000.0323 | FB15: 999.9313 | FC15: =FB15+0.00000002 -> 999.9313 | GJ15: Suresnes | GK15: 999.7924 | GL15: =IF(GK15="","",_xlfn.RANK.EQ(GK15,GK3:GK18)) -> 13 | GM15: Tarbes | GN15: Suresnes | GO15: 0 | GP15: =IF(GO15="","",_xlfn.RANK.EQ(GO15,GO3:GO18)) -> 11 | GQ15: Tarbes | GR15: Bourgoin-Jallieu | GS15: -0.1493 | GT15: =IF(GS15="","",_xlfn.RANK.EQ(GS15,GS3:GS18)) -> 13 | GU15: Tarbes
M16: =IF(Equipes!$M$20="","",Equipes!$M$20) -> Date du début du Championnat : vendredi 25 août 2023 | S16: 14 | T16: Vienne | V16: 0 | W16: 0 | X16: u | Y16: 2 | Z16: 0 | AA16: 0 | AB16: 2 | AC16: 19 | AD16: 10 | AE16: 78 | AF16: 39 | AG16: -59 | AH16: 0 | AI16: 0 | AJ16: 0 | AK16: 0 | AL16: 1 | AM16: 10 | AN16: -9 | AO16: 14 | AP16: Vienne | AR16: 0 | AS16: -6 | AT16: q | AU16: 1 | AV16: 0 | AW16: 0 | AX16: 1 | AY16: 3 | AZ16: 3 | BA16: 25 | BB16: 25 | BC16: -22 | BD16: 0 | BE16: 0 | BF16: 0 | BG16: 0 | BH16: 0 | BI16: 3 | BJ16: -3 | BK16: 14 | BL16: Vienne | BN16: 0 | BO16: 0 | BP16: u | BQ16: 1 | BR16: 0 | BS16: 0 | BT16: 1 | BU16: 16 | BV16: 16 | BW16: 53 | BX16: 53 | BY16: -37 | BZ16: 0 | CA16: 0 | CB16: 0 | CC16: 0 | CD16: 1 | CE16: 7 | CF16: -6 | CG16: 14 | CH16: 14 | CI16: 14 | CJ16: 14 | CK16: 14 | CL16: 14 | CM16: =IF(Equipes!$C$15="","",Equipes!$C$15) -> Vienne | CN16: 14 | CO16: ='J01'!CN16-CN16 -> 0 | CP16: =IF(CN16>'J01'!CN16,'J01'!$CP$20,IF(CN16='J01'!CN16,'J01'!$CO$20,IF(CN16<'J01'!CN16,'J01'!$CN$20))) -> u | CQ16: 14 | CR16: =SUMPRODUCT(($C$3:$C$10=CM16)*($FN$3:$FN$10))+SUMPRODUCT(($L$3:$L$10=CM16)*($FO$3:$FO$10))+'J01'!CR16+DD16 -> 0 | CS16: =SUMPRODUCT(($C$3:$C$10=CM16)*($FR$3:$FR$10))+SUMPRODUCT(($L$3:$L$10=CM16)*($FS$3:$FS$10))+'J01'!CS16 -> 2 | CT16: =SUMPRODUCT(($C$3:$C$10=CM16)*($FV$3:$FV$10))+SUMPRODUCT(($L$3:$L$10=CM16)*($FW$3:$FW$10))+'J01'!CT16 -> 0 | CU16: =SUMPRODUCT(($C$3:$C$10=CM16)*($FX$3:$FX$10))+SUMPRODUCT(($L$3:$L$10=CM16)*($FY$3:$FY$10))+'J01'!CU16 -> 0 | CV16: =SUMPRODUCT(($C$3:$C$10=CM16)*($FZ$3:$FZ$10))+SUMPRODUCT(($L$3:$L$10=CM16)*($GA$3:$GA$10))+'J01'!CV16 -> 2 | CW16: =SUMPRODUCT(($C$3:$C$10=CM16)*($GB$3:$GB$10))+SUMPRODUCT(($L$3:$L$10=CM16)*($GC$3:$GC$10))+'J01'!CW16 -> 19 | CX16: 10 | CY16: =SUMPRODUCT(($C$3:$C$10=CM16)*($GD$3:$GD$10))+SUMPRODUCT(($L$3:$L$10=CM16)*($GE$3:$GE$10))+'J01'!CY16 -> 78 | CZ16: 39 | DA16: -59 | DB16: =SUMPRODUCT(($C$3:$C$10=CM16)*($FH$3:$FH$10))+SUMPRODUCT(($L$3:$L$10=CM16)*($FI$3:$FI$10))+'J01'!DB16 -> 0 | DC16: =SUMPRODUCT(($C$3:$C$10=CM16)*($FJ$3:$FJ$10))+SUMPRODUCT(($L$3:$L$10=CM16)*($FK$3:$FK$10))+'J01'!DC16 -> 0 | DD16: 0 | DE16: =SUMPRODUCT(($C$3:$C$10=CM16)*($GF$3:$GF$10))+SUMPRODUCT(($L$3:$L$10=CM16)*($GG$3:$GG$10))+'J01'!DE16 -> 1 | DF16: =SUMPRODUCT(($C$3:$C$10=CM16)*($GH$3:$GH$10))+SUMPRODUCT(($L$3:$L$10=CM16)*($GI$3:$GI$10))+'J01'!DF16 -> 10 | DG16: -9 | DH16: =IF(Equipes!$C$15="","",Equipes!$C$15) -> Vienne | DI16: 14 | DJ16: ='J01'!DI16-DI16 -> -6 | DK16: =IF(DI16>'J01'!DI16,'J01'!$DK$20,IF(DI16='J01'!DI16,'J01'!$DJ$20,IF(DI16<'J01'!DI16,'J01'!$DI$20))) -> q | DL16: 14 | DM16: =SUMPRODUCT(($C$3:$C$10=DH16)*($FL$3:$FL$10))+'J01'!DM16+DY16 -> 0 | DN16: =SUMPRODUCT(($C$3:$C$10=DH16)*($FR$3:$FR$10))+'J01'!DN16 -> 1 | DO16: =SUMPRODUCT(($C$3:$C$10=DH16)*($FV$3:$FV$10))+'J01'!DO16 -> 0 | DP16: =SUMPRODUCT(($C$3:$C$10=DH16)*($FX$3:$FX$10))+'J01'!DP16 -> 0 | DQ16: =SUMPRODUCT(($C$3:$C$10=DH16)*($FZ$3:$FZ$10))+'J01'!DQ16 -> 1 | DR16: =SUMPRODUCT(($C$3:$C$10=DH16)*($GB$3:$GB$10))+'J01'!DR16 -> 3 | DS16: 3 | DT16: =SUMPRODUCT(($C$3:$C$10=DH16)*($GD$3:$GD$10))+'J01'!DT16 -> 25 | DU16: 25 | DV16: -22 | DW16: =SUMPRODUCT(($C$3:$C$10=DH16)*($FH$3:$FH$10))+'J01'!DW16 -> 0 | DX16: =SUMPRODUCT(($C$3:$C$10=DH16)*($FJ$3:$FJ$10))+'J01'!DX16 -> 0 | DY16: 0 | DZ16: =SUMPRODUCT(($C$3:$C$10=DH16)*($GF$3:$GF$10))+'J01'!DZ16 -> 0 | EA16: =SUMPRODUCT(($C$3:$C$10=DH16)*($GH$3:$GH$10))+'J01'!EA16 -> 3 | EB16: -3 | EC16: =IF(Equipes!$C$15="","",Equipes!$C$15) -> Vienne | ED16: 14 | EE16: ='J01'!ED16-ED16 -> 0 | EF16: =IF(ED16>'J01'!ED16,'J01'!$EF$20,IF(ED16='J01'!ED16,'J01'!$EE$20,IF(ED16<'J01'!ED16,'J01'!$ED$20))) -> u | EG16: 14 | EH16: =SUMPRODUCT(($L$3:$L$10=EC16)*($FM$3:$FM$10))+'J01'!EH16+ET16 -> 0 | EI16: =SUMPRODUCT(($L$3:$L$10=EC16)*($FS$3:$FS$10))+'J01'!EI16 -> 1 | EJ16: =SUMPRODUCT(($L$3:$L$10=EC16)*($FW$3:$FW$10))+'J01'!EJ16 -> 0 | EK16: =SUMPRODUCT(($L$3:$L$10=EC16)*($FY$3:$FY$10))+'J01'!EK16 -> 0 | EL16: =SUMPRODUCT(($L$3:$L$10=EC16)*($GA$3:$GA$10))+'J01'!EL16 -> 1 | EM16: =SUMPRODUCT(($L$3:$L$10=EC16)*($GC$3:$GC$10))+'J01'!EM16 -> 16 | EN16: 16 | EO16: =SUMPRODUCT(($L$3:$L$10=EC16)*($GE$3:$GE$10))+'J01'!EO16 -> 53 | EP16: 53 | EQ16: -37 | ER16: =SUMPRODUCT(($L$3:$L$10=EC16)*($FI$3:$FI$10))+'J01'!ER16 -> 0 | ES16: =SUMPRODUCT(($L$3:$L$10=EC16)*($FK$3:$FK$10))+'J01'!ES16 -> 0 | ET16: 0 | EU16: =SUMPRODUCT(($L$3:$L$10=EC16)*($GG$3:$GG$10))+'J01'!EU16 -> 1 | EV16: =SUMPRODUCT(($L$3:$L$10=EC16)*($GI$3:$GI$10))+'J01'!EV16 -> 7 | EW16: -6 | EX16: -0.5881 | EY16: =EX16+0.00000001 -> -0.58809999 | EZ16: -0.2197 | FA16: =EZ16+0.00000001 -> -0.21969999 | FB16: -0.3684 | FC16: =FB16+0.00000001 -> -0.36839999 | GJ16: Vienne | GK16: -0.5881 | GL16: =IF(GK16="","",_xlfn.RANK.EQ(GK16,GK3:GK18)) -> 14 | GM16: Vienne | GN16: Vienne | GO16: -0.2197 | GP16: =IF(GO16="","",_xlfn.RANK.EQ(GO16,GO3:GO18)) -> 14 | GQ16: Vienne | GR16: Vienne | GS16: -0.3684 | GT16: =IF(GS16="","",_xlfn.RANK.EQ(GS16,GS3:GS18)) -> 14 | GU16: Vienne
M18: =IF(Equipes!$M$22="","",Equipes!$M$22) -> Date de la fin du Championnat : samedi 27 avril 2024
Y20: =IF(SUM(Y3:Y16)<>0,SUM(Y3:Y16),"") -> 28 | CN20: p | CO20: u | CP20: q | DI20: p | DJ20: u | DK20: q | ED20: p | EE20: u | EF20: q
CN21: p | CO21: u | CP21: q | DI21: p | DJ21: u | DK21: q | ED21: p | EE21: u | EF21: q

Sheet J03
A1: =IF(Accueil!$H$2="","",IF(Accueil!$H$2="Choix du Championnat de Rugby","",IF(Accueil!$B$2="","",IF(Accueil!$D$2="","",IF(Accueil!$D$2="Choix de la saison","",_xlfn.CONCAT(Accueil!$H$2," / ",Accueil!$B$2," ",Accueil!$D$2)))))) -> Championnat de France de Rugby à 15 - Nationale / Saison du Championnat : 2023 - 2024 | Q1: ='J02'!Q1+1 -> 3 | S1: CLASSEMENT GENERAL | AO1: CLASSEMENT A DOMICILE | BK1: CLASSEMENT A L'EXTERIEUR | CG1: =S1 -> CLASSEMENT GENERAL | CI1: =AO1 -> CLASSEMENT A DOMICILE | CK1: =BK1 -> CLASSEMENT A L'EXTERIEUR | CM1: =S1 -> CLASSEMENT GENERAL | DH1: =AO1 -> CLASSEMENT A DOMICILE | EC1: =BK1 -> CLASSEMENT A L'EXTERIEUR | EX1: =S1 -> CLASSEMENT GENERAL | EZ1: =AO1 -> CLASSEMENT A DOMICILE | FB1: =BK1 -> CLASSEMENT A L'EXTERIEUR | FD1: Dom. | FE1: Ext. | FF1: Dom. | FG1: Ext. | FH1: Dom. | FI1: Ext. | FJ1: Dom. | FK1: Ext. | FL1: Dom. | FM1: Ext. | FN1: Dom. | FO1: Ext. | FP1: Dom. | FQ1: Ext. | FR1: Dom. | FS1: Ext. | FT1: Dom. | FU1: Ext. | FV1: Dom. | FW1: Ext. | FX1: Dom. | FY1: Ext. | FZ1: Dom. | GA1: Ext. | GB1: Dom. | GC1: Ext. | GD1: Dom. | GE1: Ext. | GF1: Dom. | GG1: Ext. | GH1: Dom. | GI1: Ext. | GJ1: =S1 -> CLASSEMENT GENERAL | GN1: =AO1 -> CLASSEMENT A DOMICILE | GR1: =BK1 -> CLASSEMENT A L'EXTERIEUR
A2: Points de pénalités | B2: Equipes exclues, forfaits, matchs gagnés ou perdus sur tapis vert | C2: Equipes | D2: Points | E2: Bonus défensif Bd | F2: Essais | G2: Bonus offensif Bo | H2: Points | I2: Bonus défensif Bd | J2: Essais | K2: Bonus offensif Bo | L2: Equipes | M2: Equipes exclues, forfaits, matchs gagnés ou perdus sur tapis vert | N2: Points de pénalités | O2: Dates | P2: Horaires | Q2: Matchs à rejouer, annulés, arrêtés, avec réserves, reportés ou reprogrammés | S2: Place | T2: Equipes | U2: Logo | V2: Points | W2: Evolution | Y2: Joués | Z2: Gagnés | AA2: Nuls | AB2: Perdus | AC2: Points marqués | AD2: Moyenne par match | AE2: Points encaissés | AF2: Moyenne par match | AG2: +/- | AH2: Tous les bonus | AI2: Bonus offensif | AJ2: Bonus défensif | AK2: Bonus fédération | AL2: Essais marqués | AM2: Essais encaissés | AN2: +/- | AO2: Place | AP2: Equipes | AQ2: Logo | AR2: Points | AS2: Evolution | AU2: Joués | AV2: Gagnés | AW2: Nuls | AX2: Perdus | AY2: Points marqués | AZ2: Moyenne par match | BA2: Points encaissés | BB2: Moyenne par match | BC2: +/- | BD2: Tous les bonus | BE2: Bonus offensif | BF2: Bonus défensif | BG2: Bonus fédération | BH2: Essais marqués | BI2: Essais encaissés | BJ2: +/- | BK2: Place | BL2: Equipes | BM2: Logo | BN2: Points | BO2: Evolution | BQ2: Joués | BR2: Gagnés | BS2: Nuls | BT2: Perdus | BU2: Points marqués | BV2: Moyenne par match | BW2: Points encaissés | BX2: Moyenne par match | BY2: +/- | BZ2: Tous les bonus | CA2: Bonus offensif | CB2: Bonus défensif | CC2: Bonus fédération | CD2: Essais marqués | CE2: Essais encaissés | CF2: +/- | CG2: Rang | CH2: Place | CI2: Rang | CJ2: Place | CK2: Rang | CL2: Place | CM2: Equipes | CN2: Rang | CO2: Evolution | CQ2: Place | CR2: Points | CS2: Joués | CT2: Gagnés | CU2: Nuls | CV2: Perdus | CW2: Points marqués | CX2: Moyenne par match | CY2: Points encaissés | CZ2: Moyenne par match | DA2: +/- | DB2: Bonus offensif | DC2: Bonus défensif | DD2: Bonus fédération | DE2: Essais marqués | DF2: Essais encaissés | DG2: +/- | DH2: Equipes | DI2: Rang | DJ2: Evolution | DL2: Place | DM2: Points | DN2: Joués | DO2: Gagnés | DP2: Nuls | DQ2: Perdus | DR2: Points marqués | DS2: Moyenne par match | DT2: Points encaissés | DU2: Moyenne par match | DV2: +/- | DW2: Bonus offensif | DX2: Bonus défensif | DY2: Bonus fédération | DZ2: Essais marqués | EA2: Essais encaissés | EB2: +/- | EC2: Equipes | ED2: Rang | EE2: Evolution | EG2: Place | EH2: Points | EI2: Joués | EJ2: Gagnés | EK2: Nuls | EL2: Perdus | EM2: Points marqués | EN2: Moyenne par match | EO2: Points encaissés | EP2: Moyenne par match | EQ2: +/- | ER2: Bonus offensif | ES2: Bonus défensif | ET2: Bonus fédération | EU2: Essais marqués | EV2: Essais encaissés | EW2: +/- | EX2: Rang | EY2: Place | EZ2: Rang | FA2: Place | FB2: Rang | FC2: Place | FD2: Points de pénalités | FE2: Points de pénalités | FF2: Pts | FG2: Pts | FH2: Bo | FI2: Bo | FJ2: Bd | FK2: Bd | FL2: T Pts | FM2: T Pts | FN2: T Pts | FO2: TPts | FP2: J annulé | FQ2: J annulé | FR2: J | FS2: J | FT2: Total J | FU2: Total J | FV2: G | FW2: G | FX2: N | FY2: N | FZ2: P | GA2: P | GB2: Pts + | GC2: Pts + | GD2: Pts - | GE2: Pts - | GF2: Essais + | GG2: Essais + | GH2: Essais - | GI2: Essais - | GJ2: Equipes | GK2: Rang | GL2: Place | GM2: Equipes | GN2: Equipes | GO2: Rang | GP2: Place | GQ2: Equipes | GR2: Equipes | GS2: Rang | GT2: Place | GU2: Equipes | GW2: ok | GX2: Dates et horaires des matchs prévus | GY2: Dates et horaires des matchs restant à jouer | GZ2: Date et horaire minimum à jouer | HA2: Date et horaire maximum à jouer | HC2: Total J | HD2: Total J
C3: Albi | D3: 10 | E3: =IF(D3="","",IF(H3="","",IF(D3>H3,"",IF(D3=H3,"",IF(D3<H3,IF(SUM(H3-D3)<=7,"Bd","")))))) ->  | F3: 1 | G3: =IF(F3="","",IF(J3="","",IF(SUM(F3-J3)>=3,"Bo",""))) ->  | H3: 7 | I3: =IF(H3="","",IF(D3="","",IF(H3>D3,"",IF(H3=D3,"",IF(H3<D3,IF(SUM(D3-H3)<=7,"Bd","")))))) -> Bd | J3: 1 | K3: =IF(J3="","",IF(F3="","",IF(SUM(J3-F3)>=3,"Bo",""))) ->  | L3: Périgueux | O3: Samedi 9 septembre 2023 | P3: 19:00:00 | S3: 1 | T3: =IFERROR(_xlfn.XLOOKUP(CG3,$CH$3:$CH$18,$CM$3:$CM$18),"") -> Narbonne | V3: =IFERROR(_xlfn.XLOOKUP(T3,$CM$3:$CM$18,$CR$3:$CR$18),"") -> 12 | W3: =IFERROR(_xlfn.XLOOKUP(T3,$CM$3:$CM$18,$CO$3:$CO$18),"") -> 1 | X3: =IFERROR(_xlfn.XLOOKUP(T3,$CM$3:$CM$18,$CP$3:$CP$18),"") -> p | Y3: =IFERROR(_xlfn.XLOOKUP(T3,$CM$3:$CM$18,$CS$3:$CS$18),"") -> 3 | Z3: =IFERROR(_xlfn.XLOOKUP(T3,$CM$3:$CM$18,$CT$3:$CT$18),"") -> 3 | AA3: =IFERROR(_xlfn.XLOOKUP(T3,$CM$3:$CM$18,$CU$3:$CU$18),"") -> 0 | AB3: =IFERROR(_xlfn.XLOOKUP(T3,$CM$3:$CM$18,$CV$3:$CV$18),"") -> 0 | AC3: =IFERROR(_xlfn.XLOOKUP(T3,$CM$3:$CM$18,$CW$3:$CW$18),"") -> 72 | AD3: =ROUND(AC3/Y3,0) -> 24 | AE3: =IFERROR(_xlfn.XLOOKUP(T3,$CM$3:$CM$18,$CY$3:$CY$18),"") -> 45 | AF3: =ROUND(AE3/Y3,0) -> 15 | AG3: =IFERROR(_xlfn.XLOOKUP(T3,$CM$3:$CM$18,$DA$3:$DA$18),"") -> 27 | AH3: =SUM(AI3:AK3) -> 0 | AI3: =IFERROR(_xlfn.XLOOKUP(T3,$CM$3:$CM$18,$DB$3:$DB$18),"") -> 0 | AJ3: =IFERROR(_xlfn.XLOOKUP(T3,$CM$3:$CM$18,$DC$3:$DC$18),"") -> 0 | AK3: 0 | AL3: =IFERROR(_xlfn.XLOOKUP(T3,$CM$3:$CM$18,$DE$3:$DE$18),"") -> 8 | AM3: =IFERROR(_xlfn.XLOOKUP(T3,$CM$3:$CM$18,$DF$3:$DF$18),"") -> 4 | AN3: =IFERROR(_xlfn.XLOOKUP(T3,$CM$3:$CM$18,$DG$3:$DG$18),"") -> 4 | AO3: 1 | AP3: =IFERROR(_xlfn.XLOOKUP(CI3,$CJ$3:$CJ$18,$DH$3:$DH$18),"") -> Périgueux | AR3: =IFERROR(_xlfn.XLOOKUP(AP3,$DH$3:$DH$18,$DM$3:$DM$18),"") -> 8 | AS3: =IFERROR(_xlfn.XLOOKUP(AP3,$DH$3:$DH$18,$DJ$3:$DJ$18),"") -> 0 | AT3: =IFERROR(_xlfn.XLOOKUP(AP3,$DH$3:$DH$18,$DK$3:$DK$18),"") -> u | AU3: =IFERROR(_xlfn.XLOOKUP(AP3,$DH$3:$DH$18,$DN$3:$DN$18),"") -> 2 | AV3: =IFERROR(_xlfn.XLOOKUP(AP3,$DH$3:$DH$18,$DO$3:$DO$18),"") -> 2 | AW3: =IFERROR(_xlfn.XLOOKUP(AP3,$DH$3:$DH$18,$DP$3:$DP$18),"") -> 0 | AX3: =IFERROR(_xlfn.XLOOKUP(AP3,$DH$3:$DH$18,$DQ$3:$DQ$18),"") -> 0 | AY3: =IFERROR(_xlfn.XLOOKUP(AP3,$DH$3:$DH$18,$DR$3:$DR$18),"") -> 47 | AZ3: =IFERROR(ROUND(AY3/AU3,0),0) -> 24 | BA3: =IFERROR(_xlfn.XLOOKUP(AP3,$DH$3:$DH$18,$DT$3:$DT$18),"") -> 21 | BB3: =IFERROR(ROUND(BA3/AU3,0),0) -> 11 | BC3: =IFERROR(_xlfn.XLOOKUP(AP3,$DH$3:$DH$18,$DV$3:$DV$18),"") -> 26 | BD3: =SUM(BE3:BG3) -> 1 | BE3: =IFERROR(_xlfn.XLOOKUP(AP3,$DH$3:$DH$18,$DW$3:$DW$18),"") -> 0 | BF3: =IFERROR(_xlfn.XLOOKUP(AP3,$DH$3:$DH$18,$DX$3:$DX$18),"") -> 1 | BG3: 0 | BH3: =IFERROR(_xlfn.XLOOKUP(AP3,$DH$3:$DH$18,$DZ$3:$DZ$18),"") -> 6 | BI3: =IFERROR(_xlfn.XLOOKUP(AP3,$DH$3:$DH$18,$EA$3:$EA$18),"") -> 3 | BJ3: =IFERROR(_xlfn.XLOOKUP(AP3,$DH$3:$DH$18,$EB$3:$EB$18),"") -> 3 | BK3: 1 | BL3: =IFERROR(_xlfn.XLOOKUP(CK3,$CL$3:$CL$18,$EC$3:$EC$18),"") -> Nice | BN3: =IFERROR(_xlfn.XLOOKUP(BL3,$EC$3:$EC$18,$EH$3:$EH$18),"") -> 10 | BO3: =IFERROR(_xlfn.XLOOKUP(BL3,$EC$3:$EC$18,$EE$3:$EE$18),"") -> 0 | BP3: =IFERROR(_xlfn.XLOOKUP(BL3,$EC$3:$EC$18,$EF$3:$EF$18),"") -> u | BQ3: =IFERROR(_xlfn.XLOOKUP(BL3,$EC$3:$EC$18,$EI$3:$EI$18),"") -> 3 | BR3: =IFERROR(_xlfn.XLOOKUP(BL3,$EC$3:$EC$18,$EJ$3:$EJ$18),"") -> 2 | BS3: =IFERROR(_xlfn.XLOOKUP(BL3,$EC$3:$EC$18,$EK$3:$EK$18),"") -> 0 | BT3: =IFERROR(_xlfn.XLOOKUP(BL3,$EC$3:$EC$18,$EL$3:$EL$18),"") -> 1 | BU3: =IFERROR(_xlfn.XLOOKUP(BL3,$EC$3:$EC$18,$EM$3:$EM$18),"") -> 77 | BV3: =IFERROR(ROUND(BU3/BQ3,0),0) -> 26 | BW3: =IFERROR(_xlfn.XLOOKUP(BL3,$EC$3:$EC$18,$EO$3:$EO$18),"") -> 31 | BX3: =IFERROR(ROUND(BW3/BQ3,0),0) -> 10 | BY3: =IFERROR(_xlfn.XLOOKUP(BL3,$EC$3:$EC$18,$EQ$3:$EQ$18),"") -> 46 | BZ3: =SUM(CA3:CC3) -> 2 | CA3: =IFERROR(_xlfn.XLOOKUP(BL3,$EC$3:$EC$18,$ER$3:$ER$18),"") -> 2 | CB3: =IFERROR(_xlfn.XLOOKUP(BL3,$EC$3:$EC$18,$ES$3:$ES$18),"") -> 0 | CC3: 0 | CD3: =IFERROR(_xlfn.XLOOKUP(BL3,$EC$3:$EC$18,$EU$3:$EU$18),"") -> 10 | CE3: =IFERROR(_xlfn.XLOOKUP(BL3,$EC$3:$EC$18,$EV$3:$EV$18),"") -> 3 | CF3: =IFERROR(_xlfn.XLOOKUP(BL3,$EC$3:$EC$18,$EW$3:$EW$18),"") -> 7 | CG3: 1 | CH3: =CQ3 -> 7 | CI3: 1 | CJ3: =DL3 -> 3 | CK3: 1 | CL3: =EG3 -> 13 | CM3: =IF(Equipes!$C$2="","",Equipes!$C$2) -> Albi | CN3: =_xlfn.RANK.EQ(EX3,$EX$3:$EX$18) -> 7 | CO3: ='J02'!CN3-CN3 -> 2 | CP3: =IF(CN3>'J02'!CN3,'J02'!$CP$20,IF(CN3='J02'!CN3,'J02'!$CO$20,IF(CN3<'J02'!CN3,'J02'!$CN$20))) -> p | CQ3: =_xlfn.RANK.EQ(EY3,$EY$3:$EY$18) -> 7 | CR3: =SUMPRODUCT(($C$3:$C$10=CM3)*($FN$3:$FN$10))+SUMPRODUCT(($L$3:$L$10=CM3)*($FO$3:$FO$10))+'J02'!CR3+DD3+DY3 -> 8 | CS3: =SUMPRODUCT(($C$3:$C$10=CM3)*($FR$3:$FR$10))+SUMPRODUCT(($L$3:$L$10=CM3)*($FS$3:$FS$10))+'J02'!CS3 -> 3 | CT3: =SUMPRODUCT(($C$3:$C$10=CM3)*($FV$3:$FV$10))+SUMPRODUCT(($L$3:$L$10=CM3)*($FW$3:$FW$10))+'J02'!CT3 -> 2 | CU3: =SUMPRODUCT(($C$3:$C$10=CM3)*($FX$3:$FX$10))+SUMPRODUCT(($L$3:$L$10=CM3)*($FY$3:$FY$10))+'J02'!CU3 -> 0 | CV3: =SUMPRODUCT(($C$3:$C$10=CM3)*($FZ$3:$FZ$10))+SUMPRODUCT(($L$3:$L$10=CM3)*($GA$3:$GA$10))+'J02'!CV3 -> 1 | CW3: =SUMPRODUCT(($C$3:$C$10=CM3)*($GB$3:$GB$10))+SUMPRODUCT(($L$3:$L$10=CM3)*($GC$3:$GC$10))+'J02'!CW3 -> 43 | CX3: =ROUND(CW3/CS3,0) -> 14 | CY3: =SUMPRODUCT(($C$3:$C$10=CM3)*($GD$3:$GD$10))+SUMPRODUCT(($L$3:$L$10=CM3)*($GE$3:$GE$10))+'J02'!CY3 -> 40 | CZ3: =ROUND(CY3/CS3,0) -> 13 | DA3: =CW3-CY3 -> 3 | DB3: =SUMPRODUCT(($C$3:$C$10=CM3)*($FH$3:$FH$10))+SUMPRODUCT(($L$3:$L$10=CM3)*($FI$3:$FI$10))+'J02'!DB3 -> 0 | DC3: =SUMPRODUCT(($C$3:$C$10=CM3)*($FJ$3:$FJ$10))+SUMPRODUCT(($L$3:$L$10=CM3)*($FK$3:$FK$10))+'J02'!DC3 -> 0 | DD3: 0 | DE3: =SUMPRODUCT(($C$3:$C$10=CM3)*($GF$3:$GF$10))+SUMPRODUCT(($L$3:$L$10=CM3)*($GG$3:$GG$10))+'J02'!DE3 -> 4 | DF3: =SUMPRODUCT(($C$3:$C$10=CM3)*($GH$3:$GH$10))+SUMPRODUCT(($L$3:$L$10=CM3)*($GI$3:$GI$10))+'J02'!DF3 -> 3 | DG3: =DE3-DF3 -> 1 | DH3: =IF(Equipes!$C$2="","",Equipes!$C$2) -> Albi | DI3: =_xlfn.RANK.EQ(EZ3,$EZ$3:$EZ$18) -> 3 | DJ3: ='J02'!DI3-DI3 -> 2 | DK3: =IF(DI3>'J02'!DI3,'J02'!$DK$20,IF(DI3='J02'!DI3,'J02'!$DJ$20,IF(DI3<'J02'!DI3,'J02'!$DI$20))) -> p | DL3: =_xlfn.RANK.EQ(FA3,$FA$3:$FA$18) -> 3 | DM3: =SUMPRODUCT(($C$3:$C$10=DH3)*($FL$3:$FL$10))+'J02'!DM3 -> 8 | DN3: =SUMPRODUCT(($C$3:$C$10=DH3)*($FR$3:$FR$10))+'J02'!DN3 -> 2 | DO3: =SUMPRODUCT(($C$3:$C$10=DH3)*($FV$3:$FV$10))+'J02'!DO3 -> 2 | DP3: =SUMPRODUCT(($C$3:$C$10=DH3)*($FX$3:$FX$10))+'J02'!DP3 -> 0 | DQ3: =SUMPRODUCT(($C$3:$C$10=DH3)*($FZ$3:$FZ$10))+'J02'!DQ3 -> 0 | DR3: =SUMPRODUCT(($C$3:$C$10=DH3)*($GB$3:$GB$10))+'J02'!DR3 -> 37 | DS3: =IFERROR(ROUND(DR3/DN3,0),0) -> 19 | DT3: =SUMPRODUCT(($C$3:$C$10=DH3)*($GD$3:$GD$10))+'J02'!DT3 -> 23 | DU3: =IFERROR(ROUND(DT3/DN3,0),0) -> 12 | DV3: =DR3-DT3 -> 14 | DW3: =SUMPRODUCT(($C$3:$C$10=DH3)*($FH$3:$FH$10))+'J02'!DW3 -> 0 | DX3: =SUMPRODUCT(($C$3:$C$10=DH3)*($FJ$3:$FJ$10))+'J02'!DX3 -> 0 | DY3: 0 | DZ3: =SUMPRODUCT(($C$3:$C$10=DH3)*($GF$3:$GF$10))+'J02'!DZ3 -> 4 | EA3: =SUMPRODUCT(($C$3:$C$10=DH3)*($GH$3:$GH$10))+'J02'!EA3 -> 2 | EB3: =DZ3-EA3 -> 2 | EC3: =IF(Equipes!$C$2="","",Equipes!$C$2) -> Albi | ED3: =_xlfn.RANK.EQ(FB3,$FB$3:$FB$18) -> 13 | EE3: ='J02'!ED3-ED3 -> -1 | EF3: =IF(ED3>'J02'!ED3,'J02'!$EF$20,IF(ED3='J02'!ED3,'J02'!$EE$20,IF(ED3<'J02'!ED3,'J02'!$ED$20))) -> q | EG3: =_xlfn.RANK.EQ(FC3,$FC$3:$FC$18) -> 13 | EH3: =SUMPRODUCT(($L$3:$L$10=EC3)*($FM$3:$FM$10))+'J02'!EH3+ET3 -> 0 | EI3: =SUMPRODUCT(($L$3:$L$10=EC3)*($FS$3:$FS$10))+'J02'!EI3 -> 1 | EJ3: =SUMPRODUCT(($L$3:$L$10=EC3)*($FW$3:$FW$10))+'J02'!EJ3 -> 0 | EK3: =SUMPRODUCT(($L$3:$L$10=EC3)*($FY$3:$FY$10))+'J02'!EK3 -> 0 | EL3: =SUMPRODUCT(($L$3:$L$10=EC3)*($GA$3:$GA$10))+'J02'!EL3 -> 1 | EM3: =SUMPRODUCT(($L$3:$L$10=EC3)*($GC$3:$GC$10))+'J02'!EM3 -> 6 | EN3: =IFERROR(ROUND(EM3/EI3,0),0) -> 6 | EO3: =SUMPRODUCT(($L$3:$L$10=EC3)*($GE$3:$GE$10))+'J02'!EO3 -> 17 | EP3: =IFERROR(ROUND(EO3/EI3,0),0) -> 17 | EQ3: =EM3-EO3 -> -11 | ER3: =SUMPRODUCT(($L$3:$L$10=EC3)*($FI$3:$FI$10))+'J02'!ER3 -> 0 | ES3: =SUMPRODUCT(($L$3:$L$10=EC3)*($FK$3:$FK$10))+'J02'!ES3 -> 0 | ET3: 0 | EU3: =SUMPRODUCT(($L$3:$L$10=EC3)*($GG$3:$GG$10))+'J02'!EU3 -> 0 | EV3: =SUMPRODUCT(($L$3:$L$10=EC3)*($GI$3:$GI$10))+'J02'!EV3 -> 1 | EW3: =EU3-EV3 -> -1 | EX3: =SUM(CR3*1000)+(DA3/100)+(CW3/10000) -> 8000.0343 | EY3: =EX3+0.00000014 -> 8000.0343 | EZ3: =SUM(DM3*1000)+(DV3/100)+(DR3/10000) -> 8000.1437 | FA3: =EZ3+0.00000014 -> 8000.1437 | FB3: =SUM(EH3*1000)+(EQ3/100)+(EM3/10000) -> -0.1094 | FC3: =FB3+0.00000014 -> -0.10939986 | FD3: =A3 -> 0 | FE3: =N3 -> 0 | FF3: =IF(D3="",0,IF(H3="",0,IF(D3>H3,4,IF(D3=H3,2,IF(D3<H3,0))))) -> 4 | FG3: =IF(H3="",0,IF(D3="",0,IF(H3>D3,4,IF(H3=D3,2,IF(H3<D3,0))))) -> 0 | FH3: =IF(F3<>"",IF(SUM(F3-J3)>=3,1)) -> FALSE | FI3: =IF(J3<>"",IF(SUM(J3-F3)>=3,1)) -> FALSE | FJ3: =IF(D3<>"",IF(D3<H3,IF(SUM(H3-D3)<=7,1))) -> FALSE | FK3: =IF(H3<>"",IF(H3<D3,IF(SUM(D3-H3)<=7,1))) -> 1 | FL3: =SUM(FF3,FH3,FJ3) -> 4 | FM3: =SUM(FG3,FI3,FK3) -> 1 | FN3: =FL3-FD3 -> 4 | FO3: =FM3-FE3 -> 1 | FP3: =IF(Q3="Match annulé",1,"") ->  | FQ3: =IF(Q3="Match annulé",1,"") ->  | FR3: =IF(D3="",0,1) -> 1 | FS3: =IF(H3="",0,1) -> 1 | FT3: =IF(SUM(FP3,FR3)<>0,SUM(FP3,FR3),0) -> 1 | FU3: =IF(SUM(FQ3,FS3)<>0,SUM(FQ3,FS3),0) -> 1 | FV3: =IF(D3<>"",IF(D3>H3,1)) -> 1 | FW3: =IF(H3<>"",IF(H3>D3,1)) -> FALSE | FX3: =IF(D3<>"",IF(D3=H3,1)) -> FALSE | FY3: =IF(H3<>"",IF(H3=D3,1)) -> FALSE | FZ3: =IF(D3<>"",IF(D3<H3,1)) -> FALSE | GA3: =IF(H3<>"",IF(H3<D3,1)) -> 1 | GB3: =D3 -> 10 | GC3: =H3 -> 7 | GD3: =H3 -> 7 | GE3: =D3 -> 10 | GF3: =F3 -> 1 | GG3: =J3 -> 1 | GH3: =J3 -> 1 | GI3: =F3 -> 1 | GJ3: =IFERROR(_xlfn.XLOOKUP(CG3,$CH$3:$CH$18,$CM$3:$CM$18),"") -> Narbonne | GK3: =IFERROR(_xlfn.XLOOKUP(GJ3,$CM$3:$CM$18,$EX$3:$EX$18),"") -> 12000.2772 | GL3: =IF(GK3="","",_xlfn.RANK.EQ(GK3,GK3:GK18)) -> 1 | GM3: =IF(CM3="","",CM3) -> Albi | GN3: =IFERROR(_xlfn.XLOOKUP(CI3,$CJ$3:$CJ$18,$DH$3:$DH$18),"") -> Périgueux | GO3: =IFERROR(_xlfn.XLOOKUP(GN3,$DH$3:$DH$18,$EZ$3:$EZ$18),"") -> 8000.2647 | GP3: =IF(GO3="","",_xlfn.RANK.EQ(GO3,GO3:GO18)) -> 1 | GQ3: =IF(DH3="","",DH3) -> Albi | GR3: =IFERROR(_xlfn.XLOOKUP(CK3,$CL$3:$CL$18,$EC$3:$EC$18),"") -> Nice | GS3: =IFERROR(_xlfn.XLOOKUP(GR3,$EC$3:$EC$18,$FB$3:$FB$18),"") -> 10000.4677 | GT3: =IF(GS3="","",_xlfn.RANK.EQ(GS3,GS3:GS18)) -> 1 | GU3: =IF(EC3="","",EC3) -> Albi | GW3: =IF(AND(H3="",Q3=""),"",IF(AND(H3>=0,Q3=""),"ok",IF(AND(H3="",Q3="Match à rejouer"),"ok",IF(AND(H3="",Q3="Match annulé"),"ok",IF(AND(H3="",Q3="Match arrêté"),"ok",IF(AND(H3="",Q3="Match avec réserves"),"ok",IF(AND(H3="",Q3="Match reporté"),"ok",IF(AND(H3="",Q3="Match reprogrammé"),"")))))))) -> ok | GX3: =IF(O3="","",IF(P3="","",O3+P3)) ->  | GY3: =IF(O3="","",IF(P3="","",IF(GW3="ok","",O3+P3))) ->  | GZ3: =MIN(GY3:GY9) -> 00:00:00 | HA3: =MAX(GY3:GY9) -> 00:00:00 | HC3: =IF(SUM(FP3,FR3)<>0,SUM(FP3,FR3),"") -> 1 | HD3: =IF(SUM(FQ3,FS3)<>0,SUM(FQ3,FS3),"") -> 1
C4: Narbonne | D4: 28 | F4: 3 | H4: 13 | J4: 1 | L4: Blagnac | O4: Samedi 9 septembre 2023 | P4: 19:00:00 | S4: =IF(GK4=GK3,GL3,GL4) -> 2 | T4: =IFERROR(_xlfn.XLOOKUP(CG4,$CH$3:$CH$18,$CM$3:$CM$18),"") -> Carcassonne | V4: 12 | W4: 1 | X4: p | Y4: 3 | Z4: 3 | AA4: 0 | AB4: 0 | AC4: 53 | AD4: =ROUND(AC4/Y4,0) -> 18 | AE4: 40 | AF4: =ROUND(AE4/Y4,0) -> 13 | AG4: 13 | AH4: =SUM(AI4:AK4) -> 0 | AI4: 0 | AJ4: 0 | AK4: 0 | AL4: 5 | AM4: 4 | AN4: 1 | AO4: =IF(GO4=GO3,GP3,GP4) -> 2 | AP4: =IFERROR(_xlfn.XLOOKUP(CI4,$CJ$3:$CJ$18,$DH$3:$DH$18),"") -> Narbonne | AR4: =IFERROR(_xlfn.XLOOKUP(AP4,$DH$3:$DH$18,$DM$3:$DM$18),"") -> 8 | AS4: =IFERROR(_xlfn.XLOOKUP(AP4,$DH$3:$DH$18,$DJ$3:$DJ$18),"") -> 5 | AT4: =IFERROR(_xlfn.XLOOKUP(AP4,$DH$3:$DH$18,$DK$3:$DK$18),"") -> p | AU4: =IFERROR(_xlfn.XLOOKUP(AP4,$DH$3:$DH$18,$DN$3:$DN$18),"") -> 2 | AV4: =IFERROR(_xlfn.XLOOKUP(AP4,$DH$3:$DH$18,$DO$3:$DO$18),"") -> 2 | AW4: =IFERROR(_xlfn.XLOOKUP(AP4,$DH$3:$DH$18,$DP$3:$DP$18),"") -> 0 | AX4: =IFERROR(_xlfn.XLOOKUP(AP4,$DH$3:$DH$18,$DQ$3:$DQ$18),"") -> 0 | AY4: =IFERROR(_xlfn.XLOOKUP(AP4,$DH$3:$DH$18,$DR$3:$DR$18),"") -> 45 | AZ4: =IFERROR(ROUND(AY4/AU4,0),0) -> 23 | BA4: =IFERROR(_xlfn.XLOOKUP(AP4,$DH$3:$DH$18,$DT$3:$DT$18),"") -> 22 | BB4: =IFERROR(ROUND(BA4/AU4,0),0) -> 11 | BC4: =IFERROR(_xlfn.XLOOKUP(AP4,$DH$3:$DH$18,$DV$3:$DV$18),"") -> 23 | BD4: =SUM(BE4:BG4) -> 0 | BE4: 0 | BF4: 0 | BG4: 0 | BH4: 5 | BI4: 1 | BJ4: 4 | BK4: =IF(GS4=GS3,GT3,GT4) -> 2 | BL4: Suresnes | BN4: 5 | BO4: 5 | BP4: p | BQ4: 3 | BR4: 1 | BS4: 0 | BT4: 2 | BU4: 46 | BV4: =IFERROR(ROUND(BU4/BQ4,0),0) -> 15 | BW4: 62 | BX4: =IFERROR(ROUND(BW4/BQ4,0),0) -> 21 | BY4: -16 | BZ4: =SUM(CA4:CC4) -> 1 | CA4: 0 | CB4: 1 | CC4: 0 | CD4: 4 | CE4: 7 | CF4: -3 | CG4: 2 | CH4: =CQ4 -> 8 | CI4: 2 | CJ4: =DL4 -> 7 | CK4: 2 | CL4: =EG4 -> 10 | CM4: =IF(Equipes!$C$3="","",Equipes!$C$3) -> Blagnac | CN4: =_xlfn.RANK.EQ(EX4,$EX$3:$EX$18) -> 8 | CO4: ='J02'!CN4-CN4 -> -4 | CP4: =IF(CN4>'J02'!CN4,'J02'!$CP$20,IF(CN4='J02'!CN4,'J02'!$CO$20,IF(CN4<'J02'!CN4,'J02'!$CN$20))) -> q | CQ4: =_xlfn.RANK.EQ(EY4,$EY$3:$EY$18) -> 8 | CR4: =SUMPRODUCT(($C$3:$C$10=CM4)*($FN$3:$FN$10))+SUMPRODUCT(($L$3:$L$10=CM4)*($FO$3:$FO$10))+'J02'!CR4+DD4+DY4 -> 6 | CS4: =SUMPRODUCT(($C$3:$C$10=CM4)*($FR$3:$FR$10))+SUMPRODUCT(($L$3:$L$10=CM4)*($FS$3:$FS$10))+'J02'!CS4 -> 3 | CT4: =SUMPRODUCT(($C$3:$C$10=CM4)*($FV$3:$FV$10))+SUMPRODUCT(($L$3:$L$10=CM4)*($FW$3:$FW$10))+'J02'!CT4 -> 1 | CU4: =SUMPRODUCT(($C$3:$C$10=CM4)*($FX$3:$FX$10))+SUMPRODUCT(($L$3:$L$10=CM4)*($FY$3:$FY$10))+'J02'!CU4 -> 0 | CV4: =SUMPRODUCT(($C$3:$C$10=CM4)*($FZ$3:$FZ$10))+SUMPRODUCT(($L$3:$L$10=CM4)*($GA$3:$GA$10))+'J02'!CV4 -> 2 | CW4: =SUMPRODUCT(($C$3:$C$10=CM4)*($GB$3:$GB$10))+SUMPRODUCT(($L$3:$L$10=CM4)*($GC$3:$GC$10))+'J02'!CW4 -> 86 | CX4: =ROUND(CW4/CS4,0) -> 29 | CY4: =SUMPRODUCT(($C$3:$C$10=CM4)*($GD$3:$GD$10))+SUMPRODUCT(($L$3:$L$10=CM4)*($GE$3:$GE$10))+'J02'!CY4 -> 67 | CZ4: =ROUND(CY4/CS4,0) -> 22 | DA4: =CW4-CY4 -> 19 | DB4: =SUMPRODUCT(($C$3:$C$10=CM4)*($FH$3:$FH$10))+SUMPRODUCT(($L$3:$L$10=CM4)*($FI$3:$FI$10))+'J02'!DB4 -> 1 | DC4: =SUMPRODUCT(($C$3:$C$10=CM4)*($FJ$3:$FJ$10))+SUMPRODUCT(($L$3:$L$10=CM4)*($FK$3:$FK$10))+'J02'!DC4 -> 1 | DD4: 0 | DE4: =SUMPRODUCT(($C$3:$C$10=CM4)*($GF$3:$GF$10))+SUMPRODUCT(($L$3:$L$10=CM4)*($GG$3:$GG$10))+'J02'!DE4 -> 10 | DF4: =SUMPRODUCT(($C$3:$C$10=CM4)*($GH$3:$GH$10))+SUMPRODUCT(($L$3:$L$10=CM4)*($GI$3:$GI$10))+'J02'!DF4 -> 6 | DG4: =DE4-DF4 -> 4 | DH4: =IF(Equipes!$C$3="","",Equipes!$C$3) -> Blagnac | DI4: =_xlfn.RANK.EQ(EZ4,$EZ$3:$EZ$18) -> 7 | DJ4: ='J02'!DI4-DI4 -> -4 | DK4: =IF(DI4>'J02'!DI4,'J02'!$DK$20,IF(DI4='J02'!DI4,'J02'!$DJ$20,IF(DI4<'J02'!DI4,'J02'!$DI$20))) -> q | DL4: =_xlfn.RANK.EQ(FA4,$FA$3:$FA$18) -> 7 | DM4: =SUMPRODUCT(($C$3:$C$10=DH4)*($FL$3:$FL$10))+'J02'!DM4 -> 5 | DN4: =SUMPRODUCT(($C$3:$C$10=DH4)*($FR$3:$FR$10))+'J02'!DN4 -> 1 | DO4: =SUMPRODUCT(($C$3:$C$10=DH4)*($FV$3:$FV$10))+'J02'!DO4 -> 1 | DP4: =SUMPRODUCT(($C$3:$C$10=DH4)*($FX$3:$FX$10))+'J02'!DP4 -> 0 | DQ4: =SUMPRODUCT(($C$3:$C$10=DH4)*($FZ$3:$FZ$10))+'J02'!DQ4 -> 0 | DR4: =SUMPRODUCT(($C$3:$C$10=DH4)*($GB$3:$GB$10))+'J02'!DR4 -> 53 | DS4: =IFERROR(ROUND(DR4/DN4,0),0) -> 53 | DT4: =SUMPRODUCT(($C$3:$C$10=DH4)*($GD$3:$GD$10))+'J02'!DT4 -> 16 | DU4: =IFERROR(ROUND(DT4/DN4,0),0) -> 16 | DV4: =DR4-DT4 -> 37 | DW4: =SUMPRODUCT(($C$3:$C$10=DH4)*($FH$3:$FH$10))+'J02'!DW4 -> 1 | DX4: =SUMPRODUCT(($C$3:$C$10=DH4)*($FJ$3:$FJ$10))+'J02'!DX4 -> 1 | DY4: 0 | DZ4: =SUMPRODUCT(($C$3:$C$10=DH4)*($GF$3:$GF$10))+'J02'!DZ4 -> 7 | EA4: =SUMPRODUCT(($C$3:$C$10=DH4)*($GH$3:$GH$10))+'J02'!EA4 -> 1 | EB4: =DZ4-EA4 -> 6 | EC4: =IF(Equipes!$C$3="","",Equipes!$C$3) -> Blagnac | ED4: =_xlfn.RANK.EQ(FB4,$FB$3:$FB$18) -> 10 | EE4: ='J02'!ED4-ED4 -> -5 | EF4: =IF(ED4>'J02'!ED4,'J02'!$EF$20,IF(ED4='J02'!ED4,'J02'!$EE$20,IF(ED4<'J02'!ED4,'J02'!$ED$20))) -> q | EG4: =_xlfn.RANK.EQ(FC4,$FC$3:$FC$18) -> 10 | EH4: =SUMPRODUCT(($L$3:$L$10=EC4)*($FM$3:$FM$10))+'J02'!EH4+ET4 -> 1 | EI4: =SUMPRODUCT(($L$3:$L$10=EC4)*($FS$3:$FS$10))+'J02'!EI4 -> 2 | EJ4: =SUMPRODUCT(($L$3:$L$10=EC4)*($FW$3:$FW$10))+'J02'!EJ4 -> 0 | EK4: =SUMPRODUCT(($L$3:$L$10=EC4)*($FY$3:$FY$10))+'J02'!EK4 -> 0 | EL4: =SUMPRODUCT(($L$3:$L$10=EC4)*($GA$3:$GA$10))+'J02'!EL4 -> 2 | EM4: =SUMPRODUCT(($L$3:$L$10=EC4)*($GC$3:$GC$10))+'J02'!EM4 -> 33 | EN4: =IFERROR(ROUND(EM4/EI4,0),0) -> 17 | EO4: =SUMPRODUCT(($L$3:$L$10=EC4)*($GE$3:$GE$10))+'J02'!EO4 -> 51 | EP4: =IFERROR(ROUND(EO4/EI4,0),0) -> 26 | EQ4: =EM4-EO4 -> -18 | ER4: =SUMPRODUCT(($L$3:$L$10=EC4)*($FI$3:$FI$10))+'J02'!ER4 -> 1 | ES4: =SUMPRODUCT(($L$3:$L$10=EC4)*($FK$3:$FK$10))+'J02'!ES4 -> 1 | ET4: 0 | EU4: =SUMPRODUCT(($L$3:$L$10=EC4)*($GG$3:$GG$10))+'J02'!EU4 -> 3 | EV4: =SUMPRODUCT(($L$3:$L$10=EC4)*($GI$3:$GI$10))+'J02'!EV4 -> 5 | EW4: =EU4-EV4 -> -2 | EX4: 6000.1986 | EY4: =EX4+0.00000013 -> 6000.1986 | EZ4: 5000.3753 | FA4: =EZ4+0.00000013 -> 5000.3753 | FB4: 999.8233 | FC4: =FB4+0.00000013 -> 999.8233001 | FD4: 0 | FE4: 0 | FF4: 4 | FG4: 0 | FH4: FALSE | FI4: FALSE | FJ4: FALSE | FK4: FALSE | FL4: =SUM(FF4,FH4,FJ4) -> 4 | FM4: 0 | FN4: =FL4-FD4 -> 4 | FO4: 0 | FR4: 1 | FS4: 1 | FT4: =IF(SUM(FP4,FR4)<>0,SUM(FP4,FR4),0) -> 1 | FU4: 1 | FV4: 1 | FW4: FALSE | FX4: FALSE | FY4: FALSE | FZ4: FALSE | GA4: 1 | GB4: 28 | GC4: 13 | GD4: 13 | GE4: 28 | GF4: 3 | GG4: 1 | GH4: 1 | GI4: 3 | GJ4: Carcassonne | GK4: 12000.1353 | GL4: =IF(GK4="","",_xlfn.RANK.EQ(GK4,GK3:GK18)) -> 2 | GM4: Blagnac | GN4: Narbonne | GO4: 8000.2345 | GP4: =IF(GO4="","",_xlfn.RANK.EQ(GO4,GO3:GO18)) -> 2 | GQ4: Blagnac | GR4: Suresnes | GS4: 4999.8446 | GT4: =IF(GS4="","",_xlfn.RANK.EQ(GS4,GS3:GS18)) -> 2 | GU4: Blagnac | GW4: ok | HC4: =IF(SUM(FP4,FR4)<>0,SUM(FP4,FR4),"") -> 1 | HD4: 1
C5: Tarbes | D5: 3 | F5: 0 | H5: 38 | J5: 5 | K5: Bo | L5: Nice | O5: Samedi 9 septembre 2023 | P5: 19:30:00 | S5: =IF(GK5=GK4,GL4,GL5) -> 3 | T5: Nice | V5: 10 | W5: 3 | X5: p | Y5: 3 | Z5: 2 | AA5: 0 | AB5: 1 | AC5: 77 | AD5: 26 | AE5: 31 | AF5: 10 | AG5: 46 | AH5: 2 | AI5: 2 | AJ5: 0 | AK5: 0 | AL5: 10 | AM5: 3 | AN5: 7 | AO5: =IF(GO5=GO4,GP4,GP5) -> 3 | AP5: Albi | AR5: 8 | AS5: 2 | AT5: p | AU5: 2 | AV5: 2 | AW5: 0 | AX5: 0 | AY5: 37 | AZ5: 19 | BA5: 23 | BB5: 12 | BC5: 14 | BD5: 0 | BE5: 0 | BF5: 0 | BG5: 0 | BH5: 4 | BI5: 2 | BJ5: 2 | BK5: =IF(GS5=GS4,GT4,GT5) -> 3 | BL5: Hyères | BN5: 4 | BO5: 5 | BP5: p | BQ5: 1 | BR5: 1 | BS5: 0 | BT5: 0 | BU5: 13 | BV5: 13 | BW5: 6 | BX5: 6 | BY5: 7 | BZ5: 0 | CA5: 0 | CB5: 0 | CC5: 0 | CD5: 1 | CE5: 0 | CF5: 1 | CG5: 3 | CH5: 13 | CI5: 3 | CJ5: 10 | CK5: 3 | CL5: 12 | CM5: =IF(Equipes!$C$4="","",Equipes!$C$4) -> Bourg-en-Bresse | CN5: 13 | CO5: ='J02'!CN5-CN5 -> -1 | CP5: =IF(CN5>'J02'!CN5,'J02'!$CP$20,IF(CN5='J02'!CN5,'J02'!$CO$20,IF(CN5<'J02'!CN5,'J02'!$CN$20))) -> q | CQ5: 13 | CR5: =SUMPRODUCT(($C$3:$C$10=CM5)*($FN$3:$FN$10))+SUMPRODUCT(($L$3:$L$10=CM5)*($FO$3:$FO$10))+'J02'!CR5+DD5+DY5 -> 2 | CS5: =SUMPRODUCT(($C$3:$C$10=CM5)*($FR$3:$FR$10))+SUMPRODUCT(($L$3:$L$10=CM5)*($FS$3:$FS$10))+'J02'!CS5 -> 3 | CT5: =SUMPRODUCT(($C$3:$C$10=CM5)*($FV$3:$FV$10))+SUMPRODUCT(($L$3:$L$10=CM5)*($FW$3:$FW$10))+'J02'!CT5 -> 0 | CU5: =SUMPRODUCT(($C$3:$C$10=CM5)*($FX$3:$FX$10))+SUMPRODUCT(($L$3:$L$10=CM5)*($FY$3:$FY$10))+'J02'!CU5 -> 0 | CV5: =SUMPRODUCT(($C$3:$C$10=CM5)*($FZ$3:$FZ$10))+SUMPRODUCT(($L$3:$L$10=CM5)*($GA$3:$GA$10))+'J02'!CV5 -> 3 | CW5: =SUMPRODUCT(($C$3:$C$10=CM5)*($GB$3:$GB$10))+SUMPRODUCT(($L$3:$L$10=CM5)*($GC$3:$GC$10))+'J02'!CW5 -> 43 | CX5: 14 | CY5: =SUMPRODUCT(($C$3:$C$10=CM5)*($GD$3:$GD$10))+SUMPRODUCT(($L$3:$L$10=CM5)*($GE$3:$GE$10))+'J02'!CY5 -> 61 | CZ5: 20 | DA5: -18 | DB5: =SUMPRODUCT(($C$3:$C$10=CM5)*($FH$3:$FH$10))+SUMPRODUCT(($L$3:$L$10=CM5)*($FI$3:$FI$10))+'J02'!DB5 -> 0 | DC5: =SUMPRODUCT(($C$3:$C$10=CM5)*($FJ$3:$FJ$10))+SUMPRODUCT(($L$3:$L$10=CM5)*($FK$3:$FK$10))+'J02'!DC5 -> 2 | DD5: 0 | DE5: =SUMPRODUCT(($C$3:$C$10=CM5)*($GF$3:$GF$10))+SUMPRODUCT(($L$3:$L$10=CM5)*($GG$3:$GG$10))+'J02'!DE5 -> 4 | DF5: =SUMPRODUCT(($C$3:$C$10=CM5)*($GH$3:$GH$10))+SUMPRODUCT(($L$3:$L$10=CM5)*($GI$3:$GI$10))+'J02'!DF5 -> 4 | DG5: 0 | DH5: =IF(Equipes!$C$4="","",Equipes!$C$4) -> Bourg-en-Bresse | DI5: 10 | DJ5: ='J02'!DI5-DI5 -> 0 | DK5: =IF(DI5>'J02'!DI5,'J02'!$DK$20,IF(DI5='J02'!DI5,'J02'!$DJ$20,IF(DI5<'J02'!DI5,'J02'!$DI$20))) -> u | DL5: 10 | DM5: =SUMPRODUCT(($C$3:$C$10=DH5)*($FL$3:$FL$10))+'J02'!DM5 -> 2 | DN5: =SUMPRODUCT(($C$3:$C$10=DH5)*($FR$3:$FR$10))+'J02'!DN5 -> 2 | DO5: =SUMPRODUCT(($C$3:$C$10=DH5)*($FV$3:$FV$10))+'J02'!DO5 -> 0 | DP5: =SUMPRODUCT(($C$3:$C$10=DH5)*($FX$3:$FX$10))+'J02'!DP5 -> 0 | DQ5: =SUMPRODUCT(($C$3:$C$10=DH5)*($FZ$3:$FZ$10))+'J02'!DQ5 -> 2 | DR5: =SUMPRODUCT(($C$3:$C$10=DH5)*($GB$3:$GB$10))+'J02'!DR5 -> 27 | DS5: 14 | DT5: =SUMPRODUCT(($C$3:$C$10=DH5)*($GD$3:$GD$10))+'J02'!DT5 -> 34 | DU5: 17 | DV5: -7 | DW5: =SUMPRODUCT(($C$3:$C$10=DH5)*($FH$3:$FH$10))+'J02'!DW5 -> 0 | DX5: =SUMPRODUCT(($C$3:$C$10=DH5)*($FJ$3:$FJ$10))+'J02'!DX5 -> 2 | DY5: 0 | DZ5: =SUMPRODUCT(($C$3:$C$10=DH5)*($GF$3:$GF$10))+'J02'!DZ5 -> 3 | EA5: =SUMPRODUCT(($C$3:$C$10=DH5)*($GH$3:$GH$10))+'J02'!EA5 -> 1 | EB5: 2 | EC5: =IF(Equipes!$C$4="","",Equipes!$C$4) -> Bourg-en-Bresse | ED5: 12 | EE5: ='J02'!ED5-ED5 -> -1 | EF5: =IF(ED5>'J02'!ED5,'J02'!$EF$20,IF(ED5='J02'!ED5,'J02'!$EE$20,IF(ED5<'J02'!ED5,'J02'!$ED$20))) -> q | EG5: 12 | EH5: =SUMPRODUCT(($L$3:$L$10=EC5)*($FM$3:$FM$10))+'J02'!EH5+ET5 -> 0 | EI5: =SUMPRODUCT(($L$3:$L$10=EC5)*($FS$3:$FS$10))+'J02'!EI5 -> 1 | EJ5: =SUMPRODUCT(($L$3:$L$10=EC5)*($FW$3:$FW$10))+'J02'!EJ5 -> 0 | EK5: =SUMPRODUCT(($L$3:$L$10=EC5)*($FY$3:$FY$10))+'J02'!EK5 -> 0 | EL5: =SUMPRODUCT(($L$3:$L$10=EC5)*($GA$3:$GA$10))+'J02'!EL5 -> 1 | EM5: =SUMPRODUCT(($L$3:$L$10=EC5)*($GC$3:$GC$10))+'J02'!EM5 -> 16 | EN5: 16 | EO5: =SUMPRODUCT(($L$3:$L$10=EC5)*($GE$3:$GE$10))+'J02'!EO5 -> 27 | EP5: 27 | EQ5: -11 | ER5: =SUMPRODUCT(($L$3:$L$10=EC5)*($FI$3:$FI$10))+'J02'!ER5 -> 0 | ES5: 2 | ET5: 0 | EU5: =SUMPRODUCT(($L$3:$L$10=EC5)*($GG$3:$GG$10))+'J02'!EU5 -> 1 | EV5: =SUMPRODUCT(($L$3:$L$10=EC5)*($GI$3:$GI$10))+'J02'!EV5 -> 3 | EW5: -2 | EX5: 1999.8243 | EY5: =EX5+0.00000012 -> 1999.8243 | EZ5: 1999.9327 | FA5: =EZ5+0.00000012 -> 1999.9327 | FB5: -0.1084 | FC5: =FB5+0.00000012 -> -0.10839988 | FD5: 0 | FE5: 0 | FF5: 0 | FG5: 4 | FH5: FALSE | FI5: 1 | FJ5: FALSE | FK5: FALSE | FL5: 0 | FM5: 5 | FN5: 0 | FO5: 5 | FR5: 1 | FS5: 1 | FT5: 1 | FU5: 1 | FV5: FALSE | FW5: 1 | FX5: FALSE | FY5: FALSE | FZ5: 1 | GA5: FALSE | GB5: 3 | GC5: 38 | GD5: 38 | GE5: 3 | GF5: 0 | GG5: 5 | GH5: 5 | GI5: 0 | GJ5: Nice | GK5: 10000.4677 | GL5: =IF(GK5="","",_xlfn.RANK.EQ(GK5,GK3:GK18)) -> 3 | GM5: Bourg-en-Bresse | GN5: Albi | GO5: 8000.1437 | GP5: =IF(GO5="","",_xlfn.RANK.EQ(GO5,GO3:GO18)) -> 3 | GQ5: Bourg-en-Bresse | GR5: Hyères | GS5: 4000.0713 | GT5: =IF(GS5="","",_xlfn.RANK.EQ(GS5,GS3:GS18)) -> 3 | GU5: Bourg-en-Bresse | GW5: ok | HC5: 1 | HD5: 1
C6: Vienne | D6: 7 | F6: 1 | H6: 21 | J6: 2 | L6: Bourgoin-Jallieu | O6: Samedi 9 septembre 2023 | P6: 19:30:00 | S6: 4 | T6: Hyères | V6: 10 | W6: 1 | X6: p | Y6: 3 | Z6: 2 | AA6: 1 | AB6: 0 | AC6: 53 | AD6: 18 | AE6: 32 | AF6: 11 | AG6: 21 | AH6: 0 | AI6: 0 | AJ6: 0 | AK6: 0 | AL6: 4 | AM6: 2 | AN6: 2 | AO6: 4 | AP6: Carcassonne | AR6: 8 | AS6: 4 | AT6: p | AU6: 2 | AV6: 2 | AW6: 0 | AX6: 0 | AY6: 41 | AZ6: 21 | BA6: 30 | BB6: 15 | BC6: 11 | BD6: 0 | BE6: 0 | BF6: 0 | BG6: 0 | BH6: 5 | BI6: 3 | BJ6: 2 | BK6: 4 | BL6: Narbonne | BN6: 4 | BO6: -2 | BP6: q | BQ6: 1 | BR6: 1 | BS6: 0 | BT6: 0 | BU6: 27 | BV6: 27 | BW6: 23 | BX6: 23 | BY6: 4 | BZ6: 0 | CA6: 0 | CB6: 0 | CC6: 0 | CD6: 3 | CE6: 3 | CF6: 0 | CG6: 4 | CH6: 6 | CI6: 4 | CJ6: 8 | CK6: 4 | CL6: 6 | CM6: =IF(Equipes!$C$5="","",Equipes!$C$5) -> Bourgoin-Jallieu | CN6: 6 | CO6: ='J02'!CN6-CN6 -> 4 | CP6: =IF(CN6>'J02'!CN6,'J02'!$CP$20,IF(CN6='J02'!CN6,'J02'!$CO$20,IF(CN6<'J02'!CN6,'J02'!$CN$20))) -> p | CQ6: 6 | CR6: =SUMPRODUCT(($C$3:$C$10=CM6)*($FN$3:$FN$10))+SUMPRODUCT(($L$3:$L$10=CM6)*($FO$3:$FO$10))+'J02'!CR6+DD6+DY6 -> 8 | CS6: =SUMPRODUCT(($C$3:$C$10=CM6)*($FR$3:$FR$10))+SUMPRODUCT(($L$3:$L$10=CM6)*($FS$3:$FS$10))+'J02'!CS6 -> 3 | CT6: =SUMPRODUCT(($C$3:$C$10=CM6)*($FV$3:$FV$10))+SUMPRODUCT(($L$3:$L$10=CM6)*($FW$3:$FW$10))+'J02'!CT6 -> 2 | CU6: =SUMPRODUCT(($C$3:$C$10=CM6)*($FX$3:$FX$10))+SUMPRODUCT(($L$3:$L$10=CM6)*($FY$3:$FY$10))+'J02'!CU6 -> 0 | CV6: =SUMPRODUCT(($C$3:$C$10=CM6)*($FZ$3:$FZ$10))+SUMPRODUCT(($L$3:$L$10=CM6)*($GA$3:$GA$10))+'J02'!CV6 -> 1 | CW6: =SUMPRODUCT(($C$3:$C$10=CM6)*($GB$3:$GB$10))+SUMPRODUCT(($L$3:$L$10=CM6)*($GC$3:$GC$10))+'J02'!CW6 -> 45 | CX6: 15 | CY6: =SUMPRODUCT(($C$3:$C$10=CM6)*($GD$3:$GD$10))+SUMPRODUCT(($L$3:$L$10=CM6)*($GE$3:$GE$10))+'J02'!CY6 -> 35 | CZ6: 12 | DA6: 10 | DB6: =SUMPRODUCT(($C$3:$C$10=CM6)*($FH$3:$FH$10))+SUMPRODUCT(($L$3:$L$10=CM6)*($FI$3:$FI$10))+'J02'!DB6 -> 0 | DC6: =SUMPRODUCT(($C$3:$C$10=CM6)*($FJ$3:$FJ$10))+SUMPRODUCT(($L$3:$L$10=CM6)*($FK$3:$FK$10))+'J02'!DC6 -> 0 | DD6: 0 | DE6: =SUMPRODUCT(($C$3:$C$10=CM6)*($GF$3:$GF$10))+SUMPRODUCT(($L$3:$L$10=CM6)*($GG$3:$GG$10))+'J02'!DE6 -> 4 | DF6: =SUMPRODUCT(($C$3:$C$10=CM6)*($GH$3:$GH$10))+SUMPRODUCT(($L$3:$L$10=CM6)*($GI$3:$GI$10))+'J02'!DF6 -> 4 | DG6: 0 | DH6: =IF(Equipes!$C$5="","",Equipes!$C$5) -> Bourgoin-Jallieu | DI6: 8 | DJ6: ='J02'!DI6-DI6 -> -2 | DK6: =IF(DI6>'J02'!DI6,'J02'!$DK$20,IF(DI6='J02'!DI6,'J02'!$DJ$20,IF(DI6<'J02'!DI6,'J02'!$DI$20))) -> q | DL6: 8 | DM6: =SUMPRODUCT(($C$3:$C$10=DH6)*($FL$3:$FL$10))+'J02'!DM6 -> 4 | DN6: =SUMPRODUCT(($C$3:$C$10=DH6)*($FR$3:$FR$10))+'J02'!DN6 -> 1 | DO6: =SUMPRODUCT(($C$3:$C$10=DH6)*($FV$3:$FV$10))+'J02'!DO6 -> 1 | DP6: =SUMPRODUCT(($C$3:$C$10=DH6)*($FX$3:$FX$10))+'J02'!DP6 -> 0 | DQ6: =SUMPRODUCT(($C$3:$C$10=DH6)*($FZ$3:$FZ$10))+'J02'!DQ6 -> 0 | DR6: =SUMPRODUCT(($C$3:$C$10=DH6)*($GB$3:$GB$10))+'J02'!DR6 -> 17 | DS6: 17 | DT6: =SUMPRODUCT(($C$3:$C$10=DH6)*($GD$3:$GD$10))+'J02'!DT6 -> 6 | DU6: 6 | DV6: 11 | DW6: =SUMPRODUCT(($C$3:$C$10=DH6)*($FH$3:$FH$10))+'J02'!DW6 -> 0 | DX6: =SUMPRODUCT(($C$3:$C$10=DH6)*($FJ$3:$FJ$10))+'J02'!DX6 -> 0 | DY6: 0 | DZ6: =SUMPRODUCT(($C$3:$C$10=DH6)*($GF$3:$GF$10))+'J02'!DZ6 -> 1 | EA6: =SUMPRODUCT(($C$3:$C$10=DH6)*($GH$3:$GH$10))+'J02'!EA6 -> 0 | EB6: 1 | EC6: =IF(Equipes!$C$5="","",Equipes!$C$5) -> Bourgoin-Jallieu | ED6: 6 | EE6: ='J02'!ED6-ED6 -> 7 | EF6: =IF(ED6>'J02'!ED6,'J02'!$EF$20,IF(ED6='J02'!ED6,'J02'!$EE$20,IF(ED6<'J02'!ED6,'J02'!$ED$20))) -> p | EG6: 6 | EH6: =SUMPRODUCT(($L$3:$L$10=EC6)*($FM$3:$FM$10))+'J02'!EH6+ET6 -> 4 | EI6: =SUMPRODUCT(($L$3:$L$10=EC6)*($FS$3:$FS$10))+'J02'!EI6 -> 2 | EJ6: =SUMPRODUCT(($L$3:$L$10=EC6)*($FW$3:$FW$10))+'J02'!EJ6 -> 1 | EK6: =SUMPRODUCT(($L$3:$L$10=EC6)*($FY$3:$FY$10))+'J02'!EK6 -> 0 | EL6: =SUMPRODUCT(($L$3:$L$10=EC6)*($GA$3:$GA$10))+'J02'!EL6 -> 1 | EM6: =SUMPRODUCT(($L$3:$L$10=EC6)*($GC$3:$GC$10))+'J02'!EM6 -> 28 | EN6: 14 | EO6: =SUMPRODUCT(($L$3:$L$10=EC6)*($GE$3:$GE$10))+'J02'!EO6 -> 29 | EP6: 15 | EQ6: -1 | ER6: =SUMPRODUCT(($L$3:$L$10=EC6)*($FI$3:$FI$10))+'J02'!ER6 -> 0 | ES6: =SUMPRODUCT(($L$3:$L$10=EC6)*($FK$3:$FK$10))+'J02'!ES6 -> 0 | ET6: 0 | EU6: =SUMPRODUCT(($L$3:$L$10=EC6)*($GG$3:$GG$10))+'J02'!EU6 -> 3 | EV6: =SUMPRODUCT(($L$3:$L$10=EC6)*($GI$3:$GI$10))+'J02'!EV6 -> 4 | EW6: -1 | EX6: 8000.1045 | EY6: =EX6+0.00000011 -> 8000.1045 | EZ6: 4000.1117 | FA6: =EZ6+0.00000011 -> 4000.1117 | FB6: 3999.9928 | FC6: =FB6+0.00000011 -> 3999.9928 | FD6: 0 | FE6: 0 | FF6: 0 | FG6: 4 | FH6: FALSE | FI6: FALSE | FJ6: FALSE | FK6: FALSE | FL6: 0 | FM6: 4 | FN6: 0 | FO6: 4 | FR6: 1 | FS6: 1 | FT6: 1 | FU6: 1 | FV6: FALSE | FW6: 1 | FX6: FALSE | FY6: FALSE | FZ6: 1 | GA6: FALSE | GB6: 7 | GC6: 21 | GD6: 21 | GE6: 7 | GF6: 1 | GG6: 2 | GH6: 2 | GI6: 1 | GJ6: Hyères | GK6: 10000.2153 | GL6: =IF(GK6="","",_xlfn.RANK.EQ(GK6,GK3:GK18)) -> 4 | GM6: Bourgoin-Jallieu | GN6: Carcassonne | GO6: 8000.1141 | GP6: =IF(GO6="","",_xlfn.RANK.EQ(GO6,GO3:GO18)) -> 4 | GQ6: Bourgoin-Jallieu | GR6: Narbonne | GS6: 4000.0427 | GT6: =IF(GS6="","",_xlfn.RANK.EQ(GS6,GS3:GS18)) -> 4 | GU6: Bourgoin-Jallieu | GW6: ok | HC6: 1 | HD6: 1
C7: Carcassonne | D7: 20 | F7: 2 | H7: 16 | I7: Bd | J7: 1 | L7: Chambéry | O7: vendredi 8 septembre 2023 | P7: 18:00:00 | S7: 5 | T7: Périgueux | V7: 9 | W7: -4 | X7: q | Y7: 3 | Z7: 2 | AA7: 0 | AB7: 1 | AC7: 54 | AD7: 18 | AE7: 31 | AF7: 10 | AG7: 23 | AH7: 1 | AI7: 0 | AJ7: 1 | AK7: 0 | AL7: 7 | AM7: 4 | AN7: 3 | AO7: 5 | AP7: Hyères | AR7: 6 | AS7: -3 | AT7: q | AU7: 2 | AV7: 1 | AW7: 1 | AX7: 0 | AY7: 40 | AZ7: 20 | BA7: 26 | BB7: 13 | BC7: 14 | BD7: 0 | BE7: 0 | BF7: 0 | BG7: 0 | BH7: 3 | BI7: 2 | BJ7: 1 | BK7: 5 | BL7: Carcassonne | BN7: 4 | BO7: -2 | BP7: q | BQ7: 1 | BR7: 1 | BS7: 0 | BT7: 0 | BU7: 12 | BV7: 12 | BW7: 10 | BX7: 10 | BY7: 2 | BZ7: 0 | CA7: 0 | CB7: 0 | CC7: 0 | CD7: 0 | CE7: 1 | CF7: -1 | CG7: 5 | CH7: 2 | CI7: 5 | CJ7: 4 | CK7: 5 | CL7: 5 | CM7: =IF(Equipes!$C$6="","",Equipes!$C$6) -> Carcassonne | CN7: 2 | CO7: ='J02'!CN7-CN7 -> 1 | CP7: =IF(CN7>'J02'!CN7,'J02'!$CP$20,IF(CN7='J02'!CN7,'J02'!$CO$20,IF(CN7<'J02'!CN7,'J02'!$CN$20))) -> p | CQ7: 2 | CR7: =SUMPRODUCT(($C$3:$C$10=CM7)*($FN$3:$FN$10))+SUMPRODUCT(($L$3:$L$10=CM7)*($FO$3:$FO$10))+'J02'!CR7+DD7+DY7 -> 12 | CS7: =SUMPRODUCT(($C$3:$C$10=CM7)*($FR$3:$FR$10))+SUMPRODUCT(($L$3:$L$10=CM7)*($FS$3:$FS$10))+'J02'!CS7 -> 3 | CT7: =SUMPRODUCT(($C$3:$C$10=CM7)*($FV$3:$FV$10))+SUMPRODUCT(($L$3:$L$10=CM7)*($FW$3:$FW$10))+'J02'!CT7 -> 3 | CU7: =SUMPRODUCT(($C$3:$C$10=CM7)*($FX$3:$FX$10))+SUMPRODUCT(($L$3:$L$10=CM7)*($FY$3:$FY$10))+'J02'!CU7 -> 0 | CV7: =SUMPRODUCT(($C$3:$C$10=CM7)*($FZ$3:$FZ$10))+SUMPRODUCT(($L$3:$L$10=CM7)*($GA$3:$GA$10))+'J02'!CV7 -> 0 | CW7: =SUMPRODUCT(($C$3:$C$10=CM7)*($GB$3:$GB$10))+SUMPRODUCT(($L$3:$L$10=CM7)*($GC$3:$GC$10))+'J02'!CW7 -> 53 | CX7: 18 | CY7: =SUMPRODUCT(($C$3:$C$10=CM7)*($GD$3:$GD$10))+SUMPRODUCT(($L$3:$L$10=CM7)*($GE$3:$GE$10))+'J02'!CY7 -> 40 | CZ7: 13 | DA7: 13 | DB7: =SUMPRODUCT(($C$3:$C$10=CM7)*($FH$3:$FH$10))+SUMPRODUCT(($L$3:$L$10=CM7)*($FI$3:$FI$10))+'J02'!DB7 -> 0 | DC7: =SUMPRODUCT(($C$3:$C$10=CM7)*($FJ$3:$FJ$10))+SUMPRODUCT(($L$3:$L$10=CM7)*($FK$3:$FK$10))+'J02'!DC7 -> 0 | DD7: 0 | DE7: =SUMPRODUCT(($C$3:$C$10=CM7)*($GF$3:$GF$10))+SUMPRODUCT(($L$3:$L$10=CM7)*($GG$3:$GG$10))+'J02'!DE7 -> 5 | DF7: =SUMPRODUCT(($C$3:$C$10=CM7)*($GH$3:$GH$10))+SUMPRODUCT(($L$3:$L$10=CM7)*($GI$3:$GI$10))+'J02'!DF7 -> 4 | DG7: 1 | DH7: =IF(Equipes!$C$6="","",Equipes!$C$6) -> Carcassonne | DI7: 4 | DJ7: ='J02'!DI7-DI7 -> 4 | DK7: =IF(DI7>'J02'!DI7,'J02'!$DK$20,IF(DI7='J02'!DI7,'J02'!$DJ$20,IF(DI7<'J02'!DI7,'J02'!$DI$20))) -> p | DL7: 4 | DM7: =SUMPRODUCT(($C$3:$C$10=DH7)*($FL$3:$FL$10))+'J02'!DM7 -> 8 | DN7: =SUMPRODUCT(($C$3:$C$10=DH7)*($FR$3:$FR$10))+'J02'!DN7 -> 2 | DO7: =SUMPRODUCT(($C$3:$C$10=DH7)*($FV$3:$FV$10))+'J02'!DO7 -> 2 | DP7: =SUMPRODUCT(($C$3:$C$10=DH7)*($FX$3:$FX$10))+'J02'!DP7 -> 0 | DQ7: =SUMPRODUCT(($C$3:$C$10=DH7)*($FZ$3:$FZ$10))+'J02'!DQ7 -> 0 | DR7: =SUMPRODUCT(($C$3:$C$10=DH7)*($GB$3:$GB$10))+'J02'!DR7 -> 41 | DS7: 21 | DT7: =SUMPRODUCT(($C$3:$C$10=DH7)*($GD$3:$GD$10))+'J02'!DT7 -> 30 | DU7: 15 | DV7: 11 | DW7: =SUMPRODUCT(($C$3:$C$10=DH7)*($FH$3:$FH$10))+'J02'!DW7 -> 0 | DX7: =SUMPRODUCT(($C$3:$C$10=DH7)*($FJ$3:$FJ$10))+'J02'!DX7 -> 0 | DY7: 0 | DZ7: =SUMPRODUCT(($C$3:$C$10=DH7)*($GF$3:$GF$10))+'J02'!DZ7 -> 5 | EA7: =SUMPRODUCT(($C$3:$C$10=DH7)*($GH$3:$GH$10))+'J02'!EA7 -> 3 | EB7: 2 | EC7: =IF(Equipes!$C$6="","",Equipes!$C$6) -> Carcassonne | ED7: 5 | EE7: ='J02'!ED7-ED7 -> -2 | EF7: =IF(ED7>'J02'!ED7,'J02'!$EF$20,IF(ED7='J02'!ED7,'J02'!$EE$20,IF(ED7<'J02'!ED7,'J02'!$ED$20))) -> q | EG7: 5 | EH7: =SUMPRODUCT(($L$3:$L$10=EC7)*($FM$3:$FM$10))+'J02'!EH7+ET7 -> 4 | EI7: =SUMPRODUCT(($L$3:$L$10=EC7)*($FS$3:$FS$10))+'J02'!EI7 -> 1 | EJ7: =SUMPRODUCT(($L$3:$L$10=EC7)*($FW$3:$FW$10))+'J02'!EJ7 -> 1 | EK7: =SUMPRODUCT(($L$3:$L$10=EC7)*($FY$3:$FY$10))+'J02'!EK7 -> 0 | EL7: =SUMPRODUCT(($L$3:$L$10=EC7)*($GA$3:$GA$10))+'J02'!EL7 -> 0 | EM7: =SUMPRODUCT(($L$3:$L$10=EC7)*($GC$3:$GC$10))+'J02'!EM7 -> 12 | EN7: 12 | EO7: =SUMPRODUCT(($L$3:$L$10=EC7)*($GE$3:$GE$10))+'J02'!EO7 -> 10 | EP7: 10 | EQ7: 2 | ER7: =SUMPRODUCT(($L$3:$L$10=EC7)*($FI$3:$FI$10))+'J02'!ER7 -> 0 | ES7: =SUMPRODUCT(($L$3:$L$10=EC7)*($FK$3:$FK$10))+'J02'!ES7 -> 0 | ET7: 0 | EU7: =SUMPRODUCT(($L$3:$L$10=EC7)*($GG$3:$GG$10))+'J02'!EU7 -> 0 | EV7: =SUMPRODUCT(($L$3:$L$10=EC7)*($GI$3:$GI$10))+'J02'!EV7 -> 1 | EW7: -1 | EX7: 12000.1353 | EY7: =EX7+0.0000001 -> 12000.1353 | EZ7: 8000.1141 | FA7: =EZ7+0.0000001 -> 8000.1141 | FB7: 4000.0212 | FC7: =FB7+0.0000001 -> 4000.0212 | FD7: 0 | FE7: 0 | FF7: 4 | FG7: 0 | FH7: FALSE | FI7: FALSE | FJ7: FALSE | FK7: 1 | FL7: 4 | FM7: 1 | FN7: 4 | FO7: 1 | FR7: 1 | FS7: 1 | FT7: 1 | FU7: 1 | FV7: 1 | FW7: FALSE | FX7: FALSE | FY7: FALSE | FZ7: FALSE | GA7: 1 | GB7: 20 | GC7: 16 | GD7: 16 | GE7: 20 | GF7: 2 | GG7: 1 | GH7: 1 | GI7: 2 | GJ7: Périgueux | GK7: 9000.2354 | GL7: =IF(GK7="","",_xlfn.RANK.EQ(GK7,GK3:GK18)) -> 5 | GM7: Carcassonne | GN7: Hyères | GO7: 6000.144 | GP7: =IF(GO7="","",_xlfn.RANK.EQ(GO7,GO3:GO18)) -> 5 | GQ7: Carcassonne | GR7: Carcassonne | GS7: 4000.0212 | GT7: =IF(GS7="","",_xlfn.RANK.EQ(GS7,GS3:GS18)) -> 5 | GU7: Carcassonne | GW7: ok | HC7: 1 | HD7: 1
C8: Massy | D8: 6 | E8: Bd | F8: 0 | H8: 13 | J8: 1 | L8: Hyères | O8: vendredi 8 septembre 2023 | P8: 18:30:00 | S8: 6 | T8: Bourgoin-Jallieu | V8: 8 | W8: 4 | X8: p | Y8: 3 | Z8: 2 | AA8: 0 | AB8: 1 | AC8: 45 | AD8: 15 | AE8: 35 | AF8: 12 | AG8: 10 | AH8: 0 | AI8: 0 | AJ8: 0 | AK8: 0 | AL8: 4 | AM8: 4 | AN8: 0 | AO8: 6 | AP8: Massy | AR8: 6 | AS8: -2 | AT8: q | AU8: 3 | AV8: 1 | AW8: 0 | AX8: 2 | AY8: 49 | AZ8: 16 | BA8: 53 | BB8: 18 | BC8: -4 | BD8: 2 | BE8: 0 | BF8: 2 | BG8: 0 | BH8: 5 | BI8: 5 | BJ8: 0 | BK8: 6 | BL8: Bourgoin-Jallieu | BN8: 4 | BO8: 7 | BP8: p | BQ8: 2 | BR8: 1 | BS8: 0 | BT8: 1 | BU8: 28 | BV8: 14 | BW8: 29 | BX8: 15 | BY8: -1 | BZ8: 0 | CA8: 0 | CB8: 0 | CC8: 0 | CD8: 3 | CE8: 4 | CF8: -1 | CG8: 6 | CH8: 12 | CI8: 6 | CJ8: 11 | CK8: 6 | CL8: 7 | CM8: =IF(Equipes!$C$7="","",Equipes!$C$7) -> Chambéry | CN8: 12 | CO8: ='J02'!CN8-CN8 -> -1 | CP8: =IF(CN8>'J02'!CN8,'J02'!$CP$20,IF(CN8='J02'!CN8,'J02'!$CO$20,IF(CN8<'J02'!CN8,'J02'!$CN$20))) -> q | CQ8: 12 | CR8: =SUMPRODUCT(($C$3:$C$10=CM8)*($FN$3:$FN$10))+SUMPRODUCT(($L$3:$L$10=CM8)*($FO$3:$FO$10))+'J02'!CR8+DD8+DY8 -> 3 | CS8: =SUMPRODUCT(($C$3:$C$10=CM8)*($FR$3:$FR$10))+SUMPRODUCT(($L$3:$L$10=CM8)*($FS$3:$FS$10))+'J02'!CS8 -> 3 | CT8: =SUMPRODUCT(($C$3:$C$10=CM8)*($FV$3:$FV$10))+SUMPRODUCT(($L$3:$L$10=CM8)*($FW$3:$FW$10))+'J02'!CT8 -> 0 | CU8: =SUMPRODUCT(($C$3:$C$10=CM8)*($FX$3:$FX$10))+SUMPRODUCT(($L$3:$L$10=CM8)*($FY$3:$FY$10))+'J02'!CU8 -> 1 | CV8: =SUMPRODUCT(($C$3:$C$10=CM8)*($FZ$3:$FZ$10))+SUMPRODUCT(($L$3:$L$10=CM8)*($GA$3:$GA$10))+'J02'!CV8 -> 2 | CW8: =SUMPRODUCT(($C$3:$C$10=CM8)*($GB$3:$GB$10))+SUMPRODUCT(($L$3:$L$10=CM8)*($GC$3:$GC$10))+'J02'!CW8 -> 41 | CX8: 14 | CY8: =SUMPRODUCT(($C$3:$C$10=CM8)*($GD$3:$GD$10))+SUMPRODUCT(($L$3:$L$10=CM8)*($GE$3:$GE$10))+'J02'!CY8 -> 53 | CZ8: 18 | DA8: -12 | DB8: =SUMPRODUCT(($C$3:$C$10=CM8)*($FH$3:$FH$10))+SUMPRODUCT(($L$3:$L$10=CM8)*($FI$3:$FI$10))+'J02'!DB8 -> 0 | DC8: =SUMPRODUCT(($C$3:$C$10=CM8)*($FJ$3:$FJ$10))+SUMPRODUCT(($L$3:$L$10=CM8)*($FK$3:$FK$10))+'J02'!DC8 -> 1 | DD8: 0 | DE8: =SUMPRODUCT(($C$3:$C$10=CM8)*($GF$3:$GF$10))+SUMPRODUCT(($L$3:$L$10=CM8)*($GG$3:$GG$10))+'J02'!DE8 -> 2 | DF8: =SUMPRODUCT(($C$3:$C$10=CM8)*($GH$3:$GH$10))+SUMPRODUCT(($L$3:$L$10=CM8)*($GI$3:$GI$10))+'J02'!DF8 -> 5 | DG8: -3 | DH8: =IF(Equipes!$C$7="","",Equipes!$C$7) -> Chambéry | DI8: 11 | DJ8: ='J02'!DI8-DI8 -> 0 | DK8: =IF(DI8>'J02'!DI8,'J02'!$DK$20,IF(DI8='J02'!DI8,'J02'!$DJ$20,IF(DI8<'J02'!DI8,'J02'!$DI$20))) -> u | DL8: 11 | DM8: =SUMPRODUCT(($C$3:$C$10=DH8)*($FL$3:$FL$10))+'J02'!DM8 -> 0 | DN8: =SUMPRODUCT(($C$3:$C$10=DH8)*($FR$3:$FR$10))+'J02'!DN8 -> 0 | DO8: =SUMPRODUCT(($C$3:$C$10=DH8)*($FV$3:$FV$10))+'J02'!DO8 -> 0 | DP8: =SUMPRODUCT(($C$3:$C$10=DH8)*($FX$3:$FX$10))+'J02'!DP8 -> 0 | DQ8: =SUMPRODUCT(($C$3:$C$10=DH8)*($FZ$3:$FZ$10))+'J02'!DQ8 -> 0 | DR8: =SUMPRODUCT(($C$3:$C$10=DH8)*($GB$3:$GB$10))+'J02'!DR8 -> 0 | DS8: 0 | DT8: =SUMPRODUCT(($C$3:$C$10=DH8)*($GD$3:$GD$10))+'J02'!DT8 -> 0 | DU8: 0 | DV8: 0 | DW8: =SUMPRODUCT(($C$3:$C$10=DH8)*($FH$3:$FH$10))+'J02'!DW8 -> 0 | DX8: 1 | DY8: 0 | DZ8: =SUMPRODUCT(($C$3:$C$10=DH8)*($GF$3:$GF$10))+'J02'!DZ8 -> 0 | EA8: =SUMPRODUCT(($C$3:$C$10=DH8)*($GH$3:$GH$10))+'J02'!EA8 -> 0 | EB8: 0 | EC8: =IF(Equipes!$C$7="","",Equipes!$C$7) -> Chambéry | ED8: 7 | EE8: ='J02'!ED8-ED8 -> -3 | EF8: =IF(ED8>'J02'!ED8,'J02'!$EF$20,IF(ED8='J02'!ED8,'J02'!$EE$20,IF(ED8<'J02'!ED8,'J02'!$ED$20))) -> q | EG8: 7 | EH8: =SUMPRODUCT(($L$3:$L$10=EC8)*($FM$3:$FM$10))+'J02'!EH8+ET8 -> 3 | EI8: =SUMPRODUCT(($L$3:$L$10=EC8)*($FS$3:$FS$10))+'J02'!EI8 -> 3 | EJ8: =SUMPRODUCT(($L$3:$L$10=EC8)*($FW$3:$FW$10))+'J02'!EJ8 -> 0 | EK8: =SUMPRODUCT(($L$3:$L$10=EC8)*($FY$3:$FY$10))+'J02'!EK8 -> 1 | EL8: =SUMPRODUCT(($L$3:$L$10=EC8)*($GA$3:$GA$10))+'J02'!EL8 -> 2 | EM8: =SUMPRODUCT(($L$3:$L$10=EC8)*($GC$3:$GC$10))+'J02'!EM8 -> 41 | EN8: 14 | EO8: =SUMPRODUCT(($L$3:$L$10=EC8)*($GE$3:$GE$10))+'J02'!EO8 -> 53 | EP8: 18 | EQ8: -12 | ER8: =SUMPRODUCT(($L$3:$L$10=EC8)*($FI$3:$FI$10))+'J02'!ER8 -> 0 | ES8: =SUMPRODUCT(($L$3:$L$10=EC8)*($FK$3:$FK$10))+'J02'!ES8 -> 1 | ET8: 0 | EU8: =SUMPRODUCT(($L$3:$L$10=EC8)*($GG$3:$GG$10))+'J02'!EU8 -> 2 | EV8: =SUMPRODUCT(($L$3:$L$10=EC8)*($GI$3:$GI$10))+'J02'!EV8 -> 5 | EW8: -3 | EX8: 2999.8841 | EY8: =EX8+0.00000009 -> 2999.8841 | EZ8: 0 | FA8: =EZ8+0.00000009 -> 9e-08 | FB8: 2999.8841 | FC8: =FB8+0.00000009 -> 2999.8841 | FD8: 0 | FE8: 0 | FF8: 0 | FG8: 4 | FH8: FALSE | FI8: FALSE | FJ8: 1 | FK8: FALSE | FL8: 1 | FM8: 4 | FN8: 1 | FO8: 4 | FR8: 1 | FS8: 1 | FT8: 1 | FU8: 1 | FV8: FALSE | FW8: 1 | FX8: FALSE | FY8: FALSE | FZ8: 1 | GA8: FALSE | GB8: 6 | GC8: 13 | GD8: 13 | GE8: 6 | GF8: 0 | GG8: 1 | GH8: 1 | GI8: 0 | GJ8: Bourgoin-Jallieu | GK8: 8000.1045 | GL8: =IF(GK8="","",_xlfn.RANK.EQ(GK8,GK3:GK18)) -> 6 | GM8: Chambéry | GN8: Massy | GO8: 5999.9649 | GP8: =IF(GO8="","",_xlfn.RANK.EQ(GO8,GO3:GO18)) -> 6 | GQ8: Chambéry | GR8: Bourgoin-Jallieu | GS8: 3999.9928 | GT8: =IF(GS8="","",_xlfn.RANK.EQ(GS8,GS3:GS18)) -> 6 | GU8: Chambéry | GW8: ok | HC8: 1 | HD8: 1
C9: Bourg-en-Bresse | D9: 17 | E9: Bd | F9: 2 | H9: 22 | J9: 1 | L9: Suresnes | O9: vendredi 8 septembre 2023 | P9: 19:00:00 | S9: 7 | T9: Albi | V9: 8 | W9: 2 | X9: p | Y9: 3 | Z9: 2 | AA9: 0 | AB9: 1 | AC9: 43 | AD9: 14 | AE9: 40 | AF9: 13 | AG9: 3 | AH9: 0 | AI9: 0 | AJ9: 0 | AK9: 0 | AL9: 4 | AM9: 3 | AN9: 1 | AO9: 7 | AP9: Blagnac | AR9: 5 | AS9: -4 | AT9: q | AU9: 1 | AV9: 1 | AW9: 0 | AX9: 0 | AY9: 53 | AZ9: 53 | BA9: 16 | BB9: 16 | BC9: 37 | BD9: 2 | BE9: 1 | BF9: 1 | BG9: 0 | BH9: 7 | BI9: 1 | BJ9: 6 | BK9: 7 | BL9: Chambéry | BN9: 3 | BO9: -3 | BP9: q | BQ9: 3 | BR9: 0 | BS9: 1 | BT9: 2 | BU9: 41 | BV9: 14 | BW9: 53 | BX9: 18 | BY9: -12 | BZ9: 1 | CA9: 0 | CB9: 1 | CC9: 0 | CD9: 2 | CE9: 5 | CF9: -3 | CG9: 7 | CH9: 4 | CI9: 7 | CJ9: 5 | CK9: 7 | CL9: 3 | CM9: =IF(Equipes!$C$8="","",Equipes!$C$8) -> Hyères | CN9: 4 | CO9: ='J02'!CN9-CN9 -> 1 | CP9: =IF(CN9>'J02'!CN9,'J02'!$CP$20,IF(CN9='J02'!CN9,'J02'!$CO$20,IF(CN9<'J02'!CN9,'J02'!$CN$20))) -> p | CQ9: 4 | CR9: =SUMPRODUCT(($C$3:$C$10=CM9)*($FN$3:$FN$10))+SUMPRODUCT(($L$3:$L$10=CM9)*($FO$3:$FO$10))+'J02'!CR9+DD9+DY9 -> 10 | CS9: =SUMPRODUCT(($C$3:$C$10=CM9)*($FR$3:$FR$10))+SUMPRODUCT(($L$3:$L$10=CM9)*($FS$3:$FS$10))+'J02'!CS9 -> 3 | CT9: =SUMPRODUCT(($C$3:$C$10=CM9)*($FV$3:$FV$10))+SUMPRODUCT(($L$3:$L$10=CM9)*($FW$3:$FW$10))+'J02'!CT9 -> 2 | CU9: =SUMPRODUCT(($C$3:$C$10=CM9)*($FX$3:$FX$10))+SUMPRODUCT(($L$3:$L$10=CM9)*($FY$3:$FY$10))+'J02'!CU9 -> 1 | CV9: =SUMPRODUCT(($C$3:$C$10=CM9)*($FZ$3:$FZ$10))+SUMPRODUCT(($L$3:$L$10=CM9)*($GA$3:$GA$10))+'J02'!CV9 -> 0 | CW9: =SUMPRODUCT(($C$3:$C$10=CM9)*($GB$3:$GB$10))+SUMPRODUCT(($L$3:$L$10=CM9)*($GC$3:$GC$10))+'J02'!CW9 -> 53 | CX9: 18 | CY9: =SUMPRODUCT(($C$3:$C$10=CM9)*($GD$3:$GD$10))+SUMPRODUCT(($L$3:$L$10=CM9)*($GE$3:$GE$10))+'J02'!CY9 -> 32 | CZ9: 11 | DA9: 21 | DB9: =SUMPRODUCT(($C$3:$C$10=CM9)*($FH$3:$FH$10))+SUMPRODUCT(($L$3:$L$10=CM9)*($FI$3:$FI$10))+'J02'!DB9 -> 0 | DC9: =SUMPRODUCT(($C$3:$C$10=CM9)*($FJ$3:$FJ$10))+SUMPRODUCT(($L$3:$L$10=CM9)*($FK$3:$FK$10))+'J02'!DC9 -> 0 | DD9: 0 | DE9: =SUMPRODUCT(($C$3:$C$10=CM9)*($GF$3:$GF$10))+SUMPRODUCT(($L$3:$L$10=CM9)*($GG$3:$GG$10))+'J02'!DE9 -> 4 | DF9: =SUMPRODUCT(($C$3:$C$10=CM9)*($GH$3:$GH$10))+SUMPRODUCT(($L$3:$L$10=CM9)*($GI$3:$GI$10))+'J02'!DF9 -> 2 | DG9: 2 | DH9: =IF(Equipes!$C$8="","",Equipes!$C$8) -> Hyères | DI9: 5 | DJ9: ='J02'!DI9-DI9 -> -3 | DK9: =IF(DI9>'J02'!DI9,'J02'!$DK$20,IF(DI9='J02'!DI9,'J02'!$DJ$20,IF(DI9<'J02'!DI9,'J02'!$DI$20))) -> q | DL9: 5 | DM9: =SUMPRODUCT(($C$3:$C$10=DH9)*($FL$3:$FL$10))+'J02'!DM9 -> 6 | DN9: =SUMPRODUCT(($C$3:$C$10=DH9)*($FR$3:$FR$10))+'J02'!DN9 -> 2 | DO9: =SUMPRODUCT(($C$3:$C$10=DH9)*($FV$3:$FV$10))+'J02'!DO9 -> 1 | DP9: =SUMPRODUCT(($C$3:$C$10=DH9)*($FX$3:$FX$10))+'J02'!DP9 -> 1 | DQ9: =SUMPRODUCT(($C$3:$C$10=DH9)*($FZ$3:$FZ$10))+'J02'!DQ9 -> 0 | DR9: =SUMPRODUCT(($C$3:$C$10=DH9)*($GB$3:$GB$10))+'J02'!DR9 -> 40 | DS9: 20 | DT9: =SUMPRODUCT(($C$3:$C$10=DH9)*($GD$3:$GD$10))+'J02'!DT9 -> 26 | DU9: 13 | DV9: 14 | DW9: =SUMPRODUCT(($C$3:$C$10=DH9)*($FH$3:$FH$10))+'J02'!DW9 -> 0 | DX9: =SUMPRODUCT(($C$3:$C$10=DH9)*($FJ$3:$FJ$10))+'J02'!DX9 -> 0 | DY9: 0 | DZ9: =SUMPRODUCT(($C$3:$C$10=DH9)*($GF$3:$GF$10))+'J02'!DZ9 -> 3 | EA9: =SUMPRODUCT(($C$3:$C$10=DH9)*($GH$3:$GH$10))+'J02'!EA9 -> 2 | EB9: 1 | EC9: =IF(Equipes!$C$8="","",Equipes!$C$8) -> Hyères | ED9: 3 | EE9: ='J02'!ED9-ED9 -> 5 | EF9: =IF(ED9>'J02'!ED9,'J02'!$EF$20,IF(ED9='J02'!ED9,'J02'!$EE$20,IF(ED9<'J02'!ED9,'J02'!$ED$20))) -> p | EG9: 3 | EH9: =SUMPRODUCT(($L$3:$L$10=EC9)*($FM$3:$FM$10))+'J02'!EH9+ET9 -> 4 | EI9: =SUMPRODUCT(($L$3:$L$10=EC9)*($FS$3:$FS$10))+'J02'!EI9 -> 1 | EJ9: =SUMPRODUCT(($L$3:$L$10=EC9)*($FW$3:$FW$10))+'J02'!EJ9 -> 1 | EK9: =SUMPRODUCT(($L$3:$L$10=EC9)*($FY$3:$FY$10))+'J02'!EK9 -> 0 | EL9: =SUMPRODUCT(($L$3:$L$10=EC9)*($GA$3:$GA$10))+'J02'!EL9 -> 0 | EM9: =SUMPRODUCT(($L$3:$L$10=EC9)*($GC$3:$GC$10))+'J02'!EM9 -> 13 | EN9: 13 | EO9: =SUMPRODUCT(($L$3:$L$10=EC9)*($GE$3:$GE$10))+'J02'!EO9 -> 6 | EP9: 6 | EQ9: 7 | ER9: =SUMPRODUCT(($L$3:$L$10=EC9)*($FI$3:$FI$10))+'J02'!ER9 -> 0 | ES9: =SUMPRODUCT(($L$3:$L$10=EC9)*($FK$3:$FK$10))+'J02'!ES9 -> 0 | ET9: 0 | EU9: =SUMPRODUCT(($L$3:$L$10=EC9)*($GG$3:$GG$10))+'J02'!EU9 -> 1 | EV9: =SUMPRODUCT(($L$3:$L$10=EC9)*($GI$3:$GI$10))+'J02'!EV9 -> 0 | EW9: 1 | EX9: 10000.2153 | EY9: =EX9+0.00000008 -> 10000.2153 | EZ9: 6000.144 | FA9: =EZ9+0.00000008 -> 6000.144 | FB9: 4000.0713 | FC9: =FB9+0.00000008 -> 4000.0713 | FD9: 0 | FE9: 0 | FF9: 0 | FG9: 4 | FH9: FALSE | FI9: FALSE | FJ9: 1 | FK9: FALSE | FL9: 1 | FM9: 4 | FN9: 1 | FO9: 4 | FR9: 1 | FS9: 1 | FT9: 1 | FU9: 1 | FV9: FALSE | FW9: 1 | FX9: FALSE | FY9: FALSE | FZ9: 1 | GA9: FALSE | GB9: 17 | GC9: 22 | GD9: 22 | GE9: 17 | GF9: 2 | GG9: 1 | GH9: 1 | GI9: 2 | GJ9: Albi | GK9: 8000.0343 | GL9: =IF(GK9="","",_xlfn.RANK.EQ(GK9,GK3:GK18)) -> 7 | GM9: Hyères | GN9: Blagnac | GO9: 5000.3753 | GP9: =IF(GO9="","",_xlfn.RANK.EQ(GO9,GO3:GO18)) -> 7 | GQ9: Hyères | GR9: Chambéry | GS9: 2999.8841 | GT9: =IF(GS9="","",_xlfn.RANK.EQ(GS9,GS3:GS18)) -> 7 | GU9: Hyères | GW9: ok | HC9: 1 | HD9: 1
S10: 8 | T10: Blagnac | V10: 6 | W10: -4 | X10: q | Y10: 3 | Z10: 1 | AA10: 0 | AB10: 2 | AC10: 86 | AD10: 29 | AE10: 67 | AF10: 22 | AG10: 19 | AH10: 2 | AI10: 1 | AJ10: 1 | AK10: 0 | AL10: 10 | AM10: 6 | AN10: 4 | AO10: 8 | AP10: Bourgoin-Jallieu | AR10: 4 | AS10: -2 | AT10: q | AU10: 1 | AV10: 1 | AW10: 0 | AX10: 0 | AY10: 17 | AZ10: 17 | BA10: 6 | BB10: 6 | BC10: 11 | BD10: 0 | BE10: 0 | BF10: 0 | BG10: 0 | BH10: 1 | BI10: 0 | BJ10: 1 | BK10: 8 | BL10: Périgueux | BN10: 1 | BO10: 0 | BP10: u | BQ10: 1 | BR10: 0 | BS10: 0 | BT10: 1 | BU10: 7 | BV10: 7 | BW10: 10 | BX10: 10 | BY10: -3 | BZ10: 1 | CA10: 0 | CB10: 1 | CC10: 0 | CD10: 1 | CE10: 1 | CF10: 0 | CG10: 8 | CH10: 9 | CI10: 8 | CJ10: 6 | CK10: 8 | CL10: 11 | CM10: =IF(Equipes!$C$9="","",Equipes!$C$9) -> Massy | CN10: 9 | CO10: ='J02'!CN10-CN10 -> -2 | CP10: =IF(CN10>'J02'!CN10,'J02'!$CP$20,IF(CN10='J02'!CN10,'J02'!$CO$20,IF(CN10<'J02'!CN10,'J02'!$CN$20))) -> q | CQ10: 9 | CR10: =SUMPRODUCT(($C$3:$C$10=CM10)*($FN$3:$FN$10))+SUMPRODUCT(($L$3:$L$10=CM10)*($FO$3:$FO$10))+'J02'!CR10+DD10+DY10 -> 6 | CS10: =SUMPRODUCT(($C$3:$C$10=CM10)*($FR$3:$FR$10))+SUMPRODUCT(($L$3:$L$10=CM10)*($FS$3:$FS$10))+'J02'!CS10 -> 3 | CT10: =SUMPRODUCT(($C$3:$C$10=CM10)*($FV$3:$FV$10))+SUMPRODUCT(($L$3:$L$10=CM10)*($FW$3:$FW$10))+'J02'!CT10 -> 1 | CU10: =SUMPRODUCT(($C$3:$C$10=CM10)*($FX$3:$FX$10))+SUMPRODUCT(($L$3:$L$10=CM10)*($FY$3:$FY$10))+'J02'!CU10 -> 0 | CV10: =SUMPRODUCT(($C$3:$C$10=CM10)*($FZ$3:$FZ$10))+SUMPRODUCT(($L$3:$L$10=CM10)*($GA$3:$GA$10))+'J02'!CV10 -> 2 | CW10: =SUMPRODUCT(($C$3:$C$10=CM10)*($GB$3:$GB$10))+SUMPRODUCT(($L$3:$L$10=CM10)*($GC$3:$GC$10))+'J02'!CW10 -> 49 | CX10: 16 | CY10: =SUMPRODUCT(($C$3:$C$10=CM10)*($GD$3:$GD$10))+SUMPRODUCT(($L$3:$L$10=CM10)*($GE$3:$GE$10))+'J02'!CY10 -> 53 | CZ10: 18 | DA10: -4 | DB10: =SUMPRODUCT(($C$3:$C$10=CM10)*($FH$3:$FH$10))+SUMPRODUCT(($L$3:$L$10=CM10)*($FI$3:$FI$10))+'J02'!DB10 -> 0 | DC10: =SUMPRODUCT(($C$3:$C$10=CM10)*($FJ$3:$FJ$10))+SUMPRODUCT(($L$3:$L$10=CM10)*($FK$3:$FK$10))+'J02'!DC10 -> 2 | DD10: 0 | DE10: =SUMPRODUCT(($C$3:$C$10=CM10)*($GF$3:$GF$10))+SUMPRODUCT(($L$3:$L$10=CM10)*($GG$3:$GG$10))+'J02'!DE10 -> 5 | DF10: =SUMPRODUCT(($C$3:$C$10=CM10)*($GH$3:$GH$10))+SUMPRODUCT(($L$3:$L$10=CM10)*($GI$3:$GI$10))+'J02'!DF10 -> 5 | DG10: 0 | DH10: =IF(Equipes!$C$9="","",Equipes!$C$9) -> Massy | DI10: 6 | DJ10: ='J02'!DI10-DI10 -> -2 | DK10: =IF(DI10>'J02'!DI10,'J02'!$DK$20,IF(DI10='J02'!DI10,'J02'!$DJ$20,IF(DI10<'J02'!DI10,'J02'!$DI$20))) -> q | DL10: 6 | DM10: =SUMPRODUCT(($C$3:$C$10=DH10)*($FL$3:$FL$10))+'J02'!DM10 -> 6 | DN10: =SUMPRODUCT(($C$3:$C$10=DH10)*($FR$3:$FR$10))+'J02'!DN10 -> 3 | DO10: =SUMPRODUCT(($C$3:$C$10=DH10)*($FV$3:$FV$10))+'J02'!DO10 -> 1 | DP10: =SUMPRODUCT(($C$3:$C$10=DH10)*($FX$3:$FX$10))+'J02'!DP10 -> 0 | DQ10: =SUMPRODUCT(($C$3:$C$10=DH10)*($FZ$3:$FZ$10))+'J02'!DQ10 -> 2 | DR10: =SUMPRODUCT(($C$3:$C$10=DH10)*($GB$3:$GB$10))+'J02'!DR10 -> 49 | DS10: 16 | DT10: =SUMPRODUCT(($C$3:$C$10=DH10)*($GD$3:$GD$10))+'J02'!DT10 -> 53 | DU10: 18 | DV10: -4 | DW10: =SUMPRODUCT(($C$3:$C$10=DH10)*($FH$3:$FH$10))+'J02'!DW10 -> 0 | DX10: =SUMPRODUCT(($C$3:$C$10=DH10)*($FJ$3:$FJ$10))+'J02'!DX10 -> 2 | DY10: 0 | DZ10: =SUMPRODUCT(($C$3:$C$10=DH10)*($GF$3:$GF$10))+'J02'!DZ10 -> 5 | EA10: =SUMPRODUCT(($C$3:$C$10=DH10)*($GH$3:$GH$10))+'J02'!EA10 -> 5 | EB10: 0 | EC10: =IF(Equipes!$C$9="","",Equipes!$C$9) -> Massy | ED10: 11 | EE10: ='J02'!ED10-ED10 -> -3 | EF10: =IF(ED10>'J02'!ED10,'J02'!$EF$20,IF(ED10='J02'!ED10,'J02'!$EE$20,IF(ED10<'J02'!ED10,'J02'!$ED$20))) -> q | EG10: 11 | EH10: =SUMPRODUCT(($L$3:$L$10=EC10)*($FM$3:$FM$10))+'J02'!EH10+ET10 -> 0 | EI10: =SUMPRODUCT(($L$3:$L$10=EC10)*($FS$3:$FS$10))+'J02'!EI10 -> 0 | EJ10: =SUMPRODUCT(($L$3:$L$10=EC10)*($FW$3:$FW$10))+'J02'!EJ10 -> 0 | EK10: =SUMPRODUCT(($L$3:$L$10=EC10)*($FY$3:$FY$10))+'J02'!EK10 -> 0 | EL10: =SUMPRODUCT(($L$3:$L$10=EC10)*($GA$3:$GA$10))+'J02'!EL10 -> 0 | EM10: =SUMPRODUCT(($L$3:$L$10=EC10)*($GC$3:$GC$10))+'J02'!EM10 -> 0 | EN10: 0 | EO10: =SUMPRODUCT(($L$3:$L$10=EC10)*($GE$3:$GE$10))+'J02'!EO10 -> 0 | EP10: 0 | EQ10: 0 | ER10: =SUMPRODUCT(($L$3:$L$10=EC10)*($FI$3:$FI$10))+'J02'!ER10 -> 0 | ES10: 2 | ET10: 0 | EU10: =SUMPRODUCT(($L$3:$L$10=EC10)*($GG$3:$GG$10))+'J02'!EU10 -> 0 | EV10: =SUMPRODUCT(($L$3:$L$10=EC10)*($GI$3:$GI$10))+'J02'!EV10 -> 0 | EW10: 0 | EX10: 5999.9649 | EY10: =EX10+0.00000007 -> 5999.9649 | EZ10: 5999.9649 | FA10: =EZ10+0.00000007 -> 5999.9649 | FB10: 0 | FC10: =FB10+0.00000007 -> 7e-08 | GJ10: Blagnac | GK10: 6000.1986 | GL10: =IF(GK10="","",_xlfn.RANK.EQ(GK10,GK3:GK18)) -> 8 | GM10: Massy | GN10: Bourgoin-Jallieu | GO10: 4000.1117 | GP10: =IF(GO10="","",_xlfn.RANK.EQ(GO10,GO3:GO18)) -> 8 | GQ10: Massy | GR10: Périgueux | GS10: 999.9707 | GT10: =IF(GS10="","",_xlfn.RANK.EQ(GS10,GS3:GS18)) -> 8 | GU10: Massy
S11: 9 | T11: Massy | V11: 6 | W11: -2 | X11: q | Y11: 3 | Z11: 1 | AA11: 0 | AB11: 2 | AC11: 49 | AD11: 16 | AE11: 53 | AF11: 18 | AG11: -4 | AH11: 2 | AI11: 0 | AJ11: 2 | AK11: 0 | AL11: 5 | AM11: 5 | AN11: 0 | AO11: 9 | AP11: Tarbes | AR11: 4 | AS11: 0 | AT11: u | AU11: 2 | AV11: 1 | AW11: 0 | AX11: 1 | AY11: 26 | AZ11: 13 | BA11: 58 | BB11: 29 | BC11: -32 | BD11: 1 | BE11: 0 | BF11: 1 | BG11: 0 | BH11: 2 | BI11: 7 | BJ11: -5 | BK11: 9 | BL11: Tarbes | BN11: 1 | BO11: -3 | BP11: q | BQ11: 1 | BR11: 0 | BS11: 0 | BT11: 1 | BU11: 13 | BV11: 13 | BW11: 20 | BX11: 20 | BY11: -7 | BZ11: 1 | CA11: 0 | CB11: 1 | CC11: 0 | CD11: 1 | CE11: 2 | CF11: -1 | CG11: 9 | CH11: 1 | CI11: 9 | CJ11: 2 | CK11: 9 | CL11: 4 | CM11: =IF(Equipes!$C$10="","",Equipes!$C$10) -> Narbonne | CN11: 1 | CO11: ='J02'!CN11-CN11 -> 1 | CP11: =IF(CN11>'J02'!CN11,'J02'!$CP$20,IF(CN11='J02'!CN11,'J02'!$CO$20,IF(CN11<'J02'!CN11,'J02'!$CN$20))) -> p | CQ11: 1 | CR11: =SUMPRODUCT(($C$3:$C$10=CM11)*($FN$3:$FN$10))+SUMPRODUCT(($L$3:$L$10=CM11)*($FO$3:$FO$10))+'J02'!CR11+DD11+DY11 -> 12 | CS11: =SUMPRODUCT(($C$3:$C$10=CM11)*($FR$3:$FR$10))+SUMPRODUCT(($L$3:$L$10=CM11)*($FS$3:$FS$10))+'J02'!CS11 -> 3 | CT11: =SUMPRODUCT(($C$3:$C$10=CM11)*($FV$3:$FV$10))+SUMPRODUCT(($L$3:$L$10=CM11)*($FW$3:$FW$10))+'J02'!CT11 -> 3 | CU11: =SUMPRODUCT(($C$3:$C$10=CM11)*($FX$3:$FX$10))+SUMPRODUCT(($L$3:$L$10=CM11)*($FY$3:$FY$10))+'J02'!CU11 -> 0 | CV11: =SUMPRODUCT(($C$3:$C$10=CM11)*($FZ$3:$FZ$10))+SUMPRODUCT(($L$3:$L$10=CM11)*($GA$3:$GA$10))+'J02'!CV11 -> 0 | CW11: =SUMPRODUCT(($C$3:$C$10=CM11)*($GB$3:$GB$10))+SUMPRODUCT(($L$3:$L$10=CM11)*($GC$3:$GC$10))+'J02'!CW11 -> 72 | CX11: 24 | CY11: =SUMPRODUCT(($C$3:$C$10=CM11)*($GD$3:$GD$10))+SUMPRODUCT(($L$3:$L$10=CM11)*($GE$3:$GE$10))+'J02'!CY11 -> 45 | CZ11: 15 | DA11: 27 | DB11: =SUMPRODUCT(($C$3:$C$10=CM11)*($FH$3:$FH$10))+SUMPRODUCT(($L$3:$L$10=CM11)*($FI$3:$FI$10))+'J02'!DB11 -> 0 | DC11: =SUMPRODUCT(($C$3:$C$10=CM11)*($FJ$3:$FJ$10))+SUMPRODUCT(($L$3:$L$10=CM11)*($FK$3:$FK$10))+'J02'!DC11 -> 0 | DD11: 0 | DE11: =SUMPRODUCT(($C$3:$C$10=CM11)*($GF$3:$GF$10))+SUMPRODUCT(($L$3:$L$10=CM11)*($GG$3:$GG$10))+'J02'!DE11 -> 8 | DF11: =SUMPRODUCT(($C$3:$C$10=CM11)*($GH$3:$GH$10))+SUMPRODUCT(($L$3:$L$10=CM11)*($GI$3:$GI$10))+'J02'!DF11 -> 4 | DG11: 4 | DH11: =IF(Equipes!$C$10="","",Equipes!$C$10) -> Narbonne | DI11: 2 | DJ11: ='J02'!DI11-DI11 -> 5 | DK11: =IF(DI11>'J02'!DI11,'J02'!$DK$20,IF(DI11='J02'!DI11,'J02'!$DJ$20,IF(DI11<'J02'!DI11,'J02'!$DI$20))) -> p | DL11: 2 | DM11: =SUMPRODUCT(($C$3:$C$10=DH11)*($FL$3:$FL$10))+'J02'!DM11 -> 8 | DN11: =SUMPRODUCT(($C$3:$C$10=DH11)*($FR$3:$FR$10))+'J02'!DN11 -> 2 | DO11: =SUMPRODUCT(($C$3:$C$10=DH11)*($FV$3:$FV$10))+'J02'!DO11 -> 2 | DP11: =SUMPRODUCT(($C$3:$C$10=DH11)*($FX$3:$FX$10))+'J02'!DP11 -> 0 | DQ11: =SUMPRODUCT(($C$3:$C$10=DH11)*($FZ$3:$FZ$10))+'J02'!DQ11 -> 0 | DR11: =SUMPRODUCT(($C$3:$C$10=DH11)*($GB$3:$GB$10))+'J02'!DR11 -> 45 | DS11: 23 | DT11: =SUMPRODUCT(($C$3:$C$10=DH11)*($GD$3:$GD$10))+'J02'!DT11 -> 22 | DU11: 11 | DV11: 23 | DW11: =SUMPRODUCT(($C$3:$C$10=DH11)*($FH$3:$FH$10))+'J02'!DW11 -> 0 | DX11: =SUMPRODUCT(($C$3:$C$10=DH11)*($FJ$3:$FJ$10))+'J02'!DX11 -> 0 | DY11: 0 | DZ11: =SUMPRODUCT(($C$3:$C$10=DH11)*($GF$3:$GF$10))+'J02'!DZ11 -> 5 | EA11: =SUMPRODUCT(($C$3:$C$10=DH11)*($GH$3:$GH$10))+'J02'!EA11 -> 1 | EB11: 4 | EC11: =IF(Equipes!$C$10="","",Equipes!$C$10) -> Narbonne | ED11: 4 | EE11: ='J02'!ED11-ED11 -> -2 | EF11: =IF(ED11>'J02'!ED11,'J02'!$EF$20,IF(ED11='J02'!ED11,'J02'!$EE$20,IF(ED11<'J02'!ED11,'J02'!$ED$20))) -> q | EG11: 4 | EH11: =SUMPRODUCT(($L$3:$L$10=EC11)*($FM$3:$FM$10))+'J02'!EH11+ET11 -> 4 | EI11: =SUMPRODUCT(($L$3:$L$10=EC11)*($FS$3:$FS$10))+'J02'!EI11 -> 1 | EJ11: =SUMPRODUCT(($L$3:$L$10=EC11)*($FW$3:$FW$10))+'J02'!EJ11 -> 1 | EK11: =SUMPRODUCT(($L$3:$L$10=EC11)*($FY$3:$FY$10))+'J02'!EK11 -> 0 | EL11: =SUMPRODUCT(($L$3:$L$10=EC11)*($GA$3:$GA$10))+'J02'!EL11 -> 0 | EM11: =SUMPRODUCT(($L$3:$L$10=EC11)*($GC$3:$GC$10))+'J02'!EM11 -> 27 | EN11: 27 | EO11: =SUMPRODUCT(($L$3:$L$10=EC11)*($GE$3:$GE$10))+'J02'!EO11 -> 23 | EP11: 23 | EQ11: 4 | ER11: =SUMPRODUCT(($L$3:$L$10=EC11)*($FI$3:$FI$10))+'J02'!ER11 -> 0 | ES11: =SUMPRODUCT(($L$3:$L$10=EC11)*($FK$3:$FK$10))+'J02'!ES11 -> 0 | ET11: 0 | EU11: =SUMPRODUCT(($L$3:$L$10=EC11)*($GG$3:$GG$10))+'J02'!EU11 -> 3 | EV11: =SUMPRODUCT(($L$3:$L$10=EC11)*($GI$3:$GI$10))+'J02'!EV11 -> 3 | EW11: 0 | EX11: 12000.2772 | EY11: =EX11+0.00000006 -> 12000.2772 | EZ11: 8000.2345 | FA11: =EZ11+0.00000006 -> 8000.2345 | FB11: 4000.0427 | FC11: =FB11+0.00000006 -> 4000.0427 | GJ11: Massy | GK11: 5999.9649 | GL11: =IF(GK11="","",_xlfn.RANK.EQ(GK11,GK3:GK18)) -> 9 | GM11: Narbonne | GN11: Tarbes | GO11: 3999.6826 | GP11: =IF(GO11="","",_xlfn.RANK.EQ(GO11,GO3:GO18)) -> 9 | GQ11: Narbonne | GR11: Tarbes | GS11: 999.9313 | GT11: =IF(GS11="","",_xlfn.RANK.EQ(GS11,GS3:GS18)) -> 9 | GU11: Narbonne
S12: 10 | T12: Suresnes | V12: 5 | W12: 3 | X12: p | Y12: 3 | Z12: 1 | AA12: 0 | AB12: 2 | AC12: 46 | AD12: 15 | AE12: 62 | AF12: 21 | AG12: -16 | AH12: 1 | AI12: 0 | AJ12: 1 | AK12: 0 | AL12: 4 | AM12: 7 | AN12: -3 | AO12: 10 | AP12: Bourg-en-Bresse | AR12: 2 | AS12: 0 | AT12: u | AU12: 2 | AV12: 0 | AW12: 0 | AX12: 2 | AY12: 27 | AZ12: 14 | BA12: 34 | BB12: 17 | BC12: -7 | BD12: 2 | BE12: 0 | BF12: 2 | BG12: 0 | BH12: 3 | BI12: 1 | BJ12: 2 | BK12: 10 | BL12: Blagnac | BN12: 1 | BO12: -5 | BP12: q | BQ12: 2 | BR12: 0 | BS12: 0 | BT12: 2 | BU12: 33 | BV12: 17 | BW12: 51 | BX12: 26 | BY12: -18 | BZ12: 2 | CA12: 1 | CB12: 1 | CC12: 0 | CD12: 3 | CE12: 5 | CF12: -2 | CG12: 10 | CH12: 3 | CI12: 10 | CJ12: 12 | CK12: 10 | CL12: 1 | CM12: =IF(Equipes!$C$11="","",Equipes!$C$11) -> Nice | CN12: 3 | CO12: ='J02'!CN12-CN12 -> 3 | CP12: =IF(CN12>'J02'!CN12,'J02'!$CP$20,IF(CN12='J02'!CN12,'J02'!$CO$20,IF(CN12<'J02'!CN12,'J02'!$CN$20))) -> p | CQ12: 3 | CR12: =SUMPRODUCT(($C$3:$C$10=CM12)*($FN$3:$FN$10))+SUMPRODUCT(($L$3:$L$10=CM12)*($FO$3:$FO$10))+'J02'!CR12+DD12+DY12 -> 10 | CS12: =SUMPRODUCT(($C$3:$C$10=CM12)*($FR$3:$FR$10))+SUMPRODUCT(($L$3:$L$10=CM12)*($FS$3:$FS$10))+'J02'!CS12 -> 3 | CT12: =SUMPRODUCT(($C$3:$C$10=CM12)*($FV$3:$FV$10))+SUMPRODUCT(($L$3:$L$10=CM12)*($FW$3:$FW$10))+'J02'!CT12 -> 2 | CU12: =SUMPRODUCT(($C$3:$C$10=CM12)*($FX$3:$FX$10))+SUMPRODUCT(($L$3:$L$10=CM12)*($FY$3:$FY$10))+'J02'!CU12 -> 0 | CV12: =SUMPRODUCT(($C$3:$C$10=CM12)*($FZ$3:$FZ$10))+SUMPRODUCT(($L$3:$L$10=CM12)*($GA$3:$GA$10))+'J02'!CV12 -> 1 | CW12: =SUMPRODUCT(($C$3:$C$10=CM12)*($GB$3:$GB$10))+SUMPRODUCT(($L$3:$L$10=CM12)*($GC$3:$GC$10))+'J02'!CW12 -> 77 | CX12: 26 | CY12: =SUMPRODUCT(($C$3:$C$10=CM12)*($GD$3:$GD$10))+SUMPRODUCT(($L$3:$L$10=CM12)*($GE$3:$GE$10))+'J02'!CY12 -> 31 | CZ12: 10 | DA12: 46 | DB12: =SUMPRODUCT(($C$3:$C$10=CM12)*($FH$3:$FH$10))+SUMPRODUCT(($L$3:$L$10=CM12)*($FI$3:$FI$10))+'J02'!DB12 -> 2 | DC12: =SUMPRODUCT(($C$3:$C$10=CM12)*($FJ$3:$FJ$10))+SUMPRODUCT(($L$3:$L$10=CM12)*($FK$3:$FK$10))+'J02'!DC12 -> 0 | DD12: 0 | DE12: =SUMPRODUCT(($C$3:$C$10=CM12)*($GF$3:$GF$10))+SUMPRODUCT(($L$3:$L$10=CM12)*($GG$3:$GG$10))+'J02'!DE12 -> 10 | DF12: =SUMPRODUCT(($C$3:$C$10=CM12)*($GH$3:$GH$10))+SUMPRODUCT(($L$3:$L$10=CM12)*($GI$3:$GI$10))+'J02'!DF12 -> 3 | DG12: 7 | DH12: =IF(Equipes!$C$11="","",Equipes!$C$11) -> Nice | DI12: 11 | DJ12: ='J02'!DI12-DI12 -> 0 | DK12: =IF(DI12>'J02'!DI12,'J02'!$DK$20,IF(DI12='J02'!DI12,'J02'!$DJ$20,IF(DI12<'J02'!DI12,'J02'!$DI$20))) -> u | DL12: 12 | DM12: =SUMPRODUCT(($C$3:$C$10=DH12)*($FL$3:$FL$10))+'J02'!DM12 -> 0 | DN12: =SUMPRODUCT(($C$3:$C$10=DH12)*($FR$3:$FR$10))+'J02'!DN12 -> 0 | DO12: =SUMPRODUCT(($C$3:$C$10=DH12)*($FV$3:$FV$10))+'J02'!DO12 -> 0 | DP12: =SUMPRODUCT(($C$3:$C$10=DH12)*($FX$3:$FX$10))+'J02'!DP12 -> 0 | DQ12: =SUMPRODUCT(($C$3:$C$10=DH12)*($FZ$3:$FZ$10))+'J02'!DQ12 -> 0 | DR12: =SUMPRODUCT(($C$3:$C$10=DH12)*($GB$3:$GB$10))+'J02'!DR12 -> 0 | DS12: 0 | DT12: =SUMPRODUCT(($C$3:$C$10=DH12)*($GD$3:$GD$10))+'J02'!DT12 -> 0 | DU12: 0 | DV12: 0 | DW12: 2 | DX12: =SUMPRODUCT(($C$3:$C$10=DH12)*($FJ$3:$FJ$10))+'J02'!DX12 -> 0 | DY12: 0 | DZ12: =SUMPRODUCT(($C$3:$C$10=DH12)*($GF$3:$GF$10))+'J02'!DZ12 -> 0 | EA12: =SUMPRODUCT(($C$3:$C$10=DH12)*($GH$3:$GH$10))+'J02'!EA12 -> 0 | EB12: 0 | EC12: =IF(Equipes!$C$11="","",Equipes!$C$11) -> Nice | ED12: 1 | EE12: ='J02'!ED12-ED12 -> 0 | EF12: =IF(ED12>'J02'!ED12,'J02'!$EF$20,IF(ED12='J02'!ED12,'J02'!$EE$20,IF(ED12<'J02'!ED12,'J02'!$ED$20))) -> u | EG12: 1 | EH12: =SUMPRODUCT(($L$3:$L$10=EC12)*($FM$3:$FM$10))+'J02'!EH12+ET12 -> 10 | EI12: =SUMPRODUCT(($L$3:$L$10=EC12)*($FS$3:$FS$10))+'J02'!EI12 -> 3 | EJ12: =SUMPRODUCT(($L$3:$L$10=EC12)*($FW$3:$FW$10))+'J02'!EJ12 -> 2 | EK12: =SUMPRODUCT(($L$3:$L$10=EC12)*($FY$3:$FY$10))+'J02'!EK12 -> 0 | EL12: =SUMPRODUCT(($L$3:$L$10=EC12)*($GA$3:$GA$10))+'J02'!EL12 -> 1 | EM12: =SUMPRODUCT(($L$3:$L$10=EC12)*($GC$3:$GC$10))+'J02'!EM12 -> 77 | EN12: 26 | EO12: =SUMPRODUCT(($L$3:$L$10=EC12)*($GE$3:$GE$10))+'J02'!EO12 -> 31 | EP12: 10 | EQ12: 46 | ER12: =SUMPRODUCT(($L$3:$L$10=EC12)*($FI$3:$FI$10))+'J02'!ER12 -> 2 | ES12: =SUMPRODUCT(($L$3:$L$10=EC12)*($FK$3:$FK$10))+'J02'!ES12 -> 0 | ET12: 0 | EU12: =SUMPRODUCT(($L$3:$L$10=EC12)*($GG$3:$GG$10))+'J02'!EU12 -> 10 | EV12: =SUMPRODUCT(($L$3:$L$10=EC12)*($GI$3:$GI$10))+'J02'!EV12 -> 3 | EW12: 7 | EX12: 10000.4677 | EY12: =EX12+0.00000005 -> 10000.4677 | EZ12: 0 | FA12: =EZ12+0.00000005 -> 5e-08 | FB12: 10000.4677 | FC12: =FB12+0.00000005 -> 10000.4677 | GJ12: Suresnes | GK12: 4999.8446 | GL12: =IF(GK12="","",_xlfn.RANK.EQ(GK12,GK3:GK18)) -> 10 | GM12: Nice | GN12: Bourg-en-Bresse | GO12: 1999.9327 | GP12: =IF(GO12="","",_xlfn.RANK.EQ(GO12,GO3:GO18)) -> 10 | GQ12: Nice | GR12: Blagnac | GS12: 999.8233 | GT12: =IF(GS12="","",_xlfn.RANK.EQ(GS12,GS3:GS18)) -> 10 | GU12: Nice
S13: 11 | T13: Tarbes | V13: 5 | W13: -3 | X13: q | Y13: 3 | Z13: 1 | AA13: 0 | AB13: 2 | AC13: 39 | AD13: 13 | AE13: 78 | AF13: 26 | AG13: -39 | AH13: 1 | AI13: 0 | AJ13: 1 | AK13: 0 | AL13: 3 | AM13: 9 | AN13: -6 | AO13: 11 | AP13: Chambéry | AR13: 0 | AS13: 0 | AT13: u | AU13: 0 | AV13: 0 | AW13: 0 | AX13: 0 | AY13: 0 | AZ13: 0 | BA13: 0 | BB13: 0 | BC13: 0 | BD13: 1 | BE13: 0 | BF13: 1 | BG13: 0 | BH13: 0 | BI13: 0 | BJ13: 0 | BK13: 11 | BL13: Massy | BN13: 0 | BO13: -3 | BP13: q | BQ13: 0 | BR13: 0 | BS13: 0 | BT13: 0 | BU13: 0 | BV13: 0 | BW13: 0 | BX13: 0 | BY13: 0 | BZ13: 2 | CA13: 0 | CB13: 2 | CC13: 0 | CD13: 0 | CE13: 0 | CF13: 0 | CG13: 11 | CH13: 5 | CI13: 11 | CJ13: 1 | CK13: 11 | CL13: 8 | CM13: =IF(Equipes!$C$12="","",Equipes!$C$12) -> Périgueux | CN13: 5 | CO13: ='J02'!CN13-CN13 -> -4 | CP13: =IF(CN13>'J02'!CN13,'J02'!$CP$20,IF(CN13='J02'!CN13,'J02'!$CO$20,IF(CN13<'J02'!CN13,'J02'!$CN$20))) -> q | CQ13: 5 | CR13: =SUMPRODUCT(($C$3:$C$10=CM13)*($FN$3:$FN$10))+SUMPRODUCT(($L$3:$L$10=CM13)*($FO$3:$FO$10))+'J02'!CR13+DD13+DY13 -> 9 | CS13: =SUMPRODUCT(($C$3:$C$10=CM13)*($FR$3:$FR$10))+SUMPRODUCT(($L$3:$L$10=CM13)*($FS$3:$FS$10))+'J02'!CS13 -> 3 | CT13: =SUMPRODUCT(($C$3:$C$10=CM13)*($FV$3:$FV$10))+SUMPRODUCT(($L$3:$L$10=CM13)*($FW$3:$FW$10))+'J02'!CT13 -> 2 | CU13: =SUMPRODUCT(($C$3:$C$10=CM13)*($FX$3:$FX$10))+SUMPRODUCT(($L$3:$L$10=CM13)*($FY$3:$FY$10))+'J02'!CU13 -> 0 | CV13: =SUMPRODUCT(($C$3:$C$10=CM13)*($FZ$3:$FZ$10))+SUMPRODUCT(($L$3:$L$10=CM13)*($GA$3:$GA$10))+'J02'!CV13 -> 1 | CW13: =SUMPRODUCT(($C$3:$C$10=CM13)*($GB$3:$GB$10))+SUMPRODUCT(($L$3:$L$10=CM13)*($GC$3:$GC$10))+'J02'!CW13 -> 54 | CX13: 18 | CY13: =SUMPRODUCT(($C$3:$C$10=CM13)*($GD$3:$GD$10))+SUMPRODUCT(($L$3:$L$10=CM13)*($GE$3:$GE$10))+'J02'!CY13 -> 31 | CZ13: 10 | DA13: 23 | DB13: =SUMPRODUCT(($C$3:$C$10=CM13)*($FH$3:$FH$10))+SUMPRODUCT(($L$3:$L$10=CM13)*($FI$3:$FI$10))+'J02'!DB13 -> 0 | DC13: =SUMPRODUCT(($C$3:$C$10=CM13)*($FJ$3:$FJ$10))+SUMPRODUCT(($L$3:$L$10=CM13)*($FK$3:$FK$10))+'J02'!DC13 -> 1 | DD13: 0 | DE13: =SUMPRODUCT(($C$3:$C$10=CM13)*($GF$3:$GF$10))+SUMPRODUCT(($L$3:$L$10=CM13)*($GG$3:$GG$10))+'J02'!DE13 -> 7 | DF13: =SUMPRODUCT(($C$3:$C$10=CM13)*($GH$3:$GH$10))+SUMPRODUCT(($L$3:$L$10=CM13)*($GI$3:$GI$10))+'J02'!DF13 -> 4 | DG13: 3 | DH13: =IF(Equipes!$C$12="","",Equipes!$C$12) -> Périgueux | DI13: 1 | DJ13: ='J02'!DI13-DI13 -> 0 | DK13: =IF(DI13>'J02'!DI13,'J02'!$DK$20,IF(DI13='J02'!DI13,'J02'!$DJ$20,IF(DI13<'J02'!DI13,'J02'!$DI$20))) -> u | DL13: 1 | DM13: =SUMPRODUCT(($C$3:$C$10=DH13)*($FL$3:$FL$10))+'J02'!DM13 -> 8 | DN13: =SUMPRODUCT(($C$3:$C$10=DH13)*($FR$3:$FR$10))+'J02'!DN13 -> 2 | DO13: =SUMPRODUCT(($C$3:$C$10=DH13)*($FV$3:$FV$10))+'J02'!DO13 -> 2 | DP13: =SUMPRODUCT(($C$3:$C$10=DH13)*($FX$3:$FX$10))+'J02'!DP13 -> 0 | DQ13: =SUMPRODUCT(($C$3:$C$10=DH13)*($FZ$3:$FZ$10))+'J02'!DQ13 -> 0 | DR13: =SUMPRODUCT(($C$3:$C$10=DH13)*($GB$3:$GB$10))+'J02'!DR13 -> 47 | DS13: 24 | DT13: =SUMPRODUCT(($C$3:$C$10=DH13)*($GD$3:$GD$10))+'J02'!DT13 -> 21 | DU13: 11 | DV13: 26 | DW13: =SUMPRODUCT(($C$3:$C$10=DH13)*($FH$3:$FH$10))+'J02'!DW13 -> 0 | DX13: 1 | DY13: 0 | DZ13: =SUMPRODUCT(($C$3:$C$10=DH13)*($GF$3:$GF$10))+'J02'!DZ13 -> 6 | EA13: =SUMPRODUCT(($C$3:$C$10=DH13)*($GH$3:$GH$10))+'J02'!EA13 -> 3 | EB13: 3 | EC13: =IF(Equipes!$C$12="","",Equipes!$C$12) -> Périgueux | ED13: 8 | EE13: ='J02'!ED13-ED13 -> 0 | EF13: =IF(ED13>'J02'!ED13,'J02'!$EF$20,IF(ED13='J02'!ED13,'J02'!$EE$20,IF(ED13<'J02'!ED13,'J02'!$ED$20))) -> u | EG13: 8 | EH13: =SUMPRODUCT(($L$3:$L$10=EC13)*($FM$3:$FM$10))+'J02'!EH13+ET13 -> 1 | EI13: =SUMPRODUCT(($L$3:$L$10=EC13)*($FS$3:$FS$10))+'J02'!EI13 -> 1 | EJ13: =SUMPRODUCT(($L$3:$L$10=EC13)*($FW$3:$FW$10))+'J02'!EJ13 -> 0 | EK13: =SUMPRODUCT(($L$3:$L$10=EC13)*($FY$3:$FY$10))+'J02'!EK13 -> 0 | EL13: =SUMPRODUCT(($L$3:$L$10=EC13)*($GA$3:$GA$10))+'J02'!EL13 -> 1 | EM13: =SUMPRODUCT(($L$3:$L$10=EC13)*($GC$3:$GC$10))+'J02'!EM13 -> 7 | EN13: 7 | EO13: =SUMPRODUCT(($L$3:$L$10=EC13)*($GE$3:$GE$10))+'J02'!EO13 -> 10 | EP13: 10 | EQ13: -3 | ER13: =SUMPRODUCT(($L$3:$L$10=EC13)*($FI$3:$FI$10))+'J02'!ER13 -> 0 | ES13: =SUMPRODUCT(($L$3:$L$10=EC13)*($FK$3:$FK$10))+'J02'!ES13 -> 1 | ET13: 0 | EU13: =SUMPRODUCT(($L$3:$L$10=EC13)*($GG$3:$GG$10))+'J02'!EU13 -> 1 | EV13: =SUMPRODUCT(($L$3:$L$10=EC13)*($GI$3:$GI$10))+'J02'!EV13 -> 1 | EW13: 0 | EX13: 9000.2354 | EY13: =EX13+0.00000004 -> 9000.2354 | EZ13: 8000.2647 | FA13: =EZ13+0.00000004 -> 8000.2647 | FB13: 999.9707 | FC13: =FB13+0.00000004 -> 999.9707 | GJ13: Tarbes | GK13: 4999.6139 | GL13: =IF(GK13="","",_xlfn.RANK.EQ(GK13,GK3:GK18)) -> 11 | GM13: Périgueux | GN13: Chambéry | GO13: 0 | GP13: =IF(GO13="","",_xlfn.RANK.EQ(GO13,GO3:GO18)) -> 11 | GQ13: Périgueux | GR13: Massy | GS13: 0 | GT13: =IF(GS13="","",_xlfn.RANK.EQ(GS13,GS3:GS18)) -> 11 | GU13: Périgueux
M14: =IF(Accueil!$D$2="","",IF(Accueil!$D$2="Choix de la saison","","Aujourd'hui, nous sommes le "&TEXT(TODAY(),"jjjj jj mmmm aaaa"))) -> Aujourd'hui, nous sommes le dimanche 10 décembre 2023 | S14: 12 | T14: Chambéry | V14: 3 | W14: -1 | X14: q | Y14: 3 | Z14: 0 | AA14: 1 | AB14: 2 | AC14: 41 | AD14: 14 | AE14: 53 | AF14: 18 | AG14: -12 | AH14: 1 | AI14: 0 | AJ14: 1 | AK14: 0 | AL14: 2 | AM14: 5 | AN14: -3 | AO14: 11 | AP14: Nice | AR14: 0 | AS14: 0 | AT14: u | AU14: 0 | AV14: 0 | AW14: 0 | AX14: 0 | AY14: 0 | AZ14: 0 | BA14: 0 | BB14: 0 | BC14: 0 | BD14: 2 | BE14: 2 | BF14: 0 | BG14: 0 | BH14: 0 | BI14: 0 | BJ14: 0 | BK14: 12 | BL14: Bourg-en-Bresse | BN14: 0 | BO14: -1 | BP14: q | BQ14: 1 | BR14: 0 | BS14: 0 | BT14: 1 | BU14: 16 | BV14: 16 | BW14: 27 | BX14: 27 | BY14: -11 | BZ14: 2 | CA14: 0 | CB14: 2 | CC14: 0 | CD14: 1 | CE14: 3 | CF14: -2 | CG14: 12 | CH14: 10 | CI14: 12 | CJ14: 13 | CK14: 12 | CL14: 2 | CM14: =IF(Equipes!$C$13="","",Equipes!$C$13) -> Suresnes | CN14: 10 | CO14: ='J02'!CN14-CN14 -> 3 | CP14: =IF(CN14>'J02'!CN14,'J02'!$CP$20,IF(CN14='J02'!CN14,'J02'!$CO$20,IF(CN14<'J02'!CN14,'J02'!$CN$20))) -> p | CQ14: 10 | CR14: =SUMPRODUCT(($C$3:$C$10=CM14)*($FN$3:$FN$10))+SUMPRODUCT(($L$3:$L$10=CM14)*($FO$3:$FO$10))+'J02'!CR14+DD14+DY14 -> 5 | CS14: =SUMPRODUCT(($C$3:$C$10=CM14)*($FR$3:$FR$10))+SUMPRODUCT(($L$3:$L$10=CM14)*($FS$3:$FS$10))+'J02'!CS14 -> 3 | CT14: =SUMPRODUCT(($C$3:$C$10=CM14)*($FV$3:$FV$10))+SUMPRODUCT(($L$3:$L$10=CM14)*($FW$3:$FW$10))+'J02'!CT14 -> 1 | CU14: =SUMPRODUCT(($C$3:$C$10=CM14)*($FX$3:$FX$10))+SUMPRODUCT(($L$3:$L$10=CM14)*($FY$3:$FY$10))+'J02'!CU14 -> 0 | CV14: =SUMPRODUCT(($C$3:$C$10=CM14)*($FZ$3:$FZ$10))+SUMPRODUCT(($L$3:$L$10=CM14)*($GA$3:$GA$10))+'J02'!CV14 -> 2 | CW14: =SUMPRODUCT(($C$3:$C$10=CM14)*($GB$3:$GB$10))+SUMPRODUCT(($L$3:$L$10=CM14)*($GC$3:$GC$10))+'J02'!CW14 -> 46 | CX14: 15 | CY14: =SUMPRODUCT(($C$3:$C$10=CM14)*($GD$3:$GD$10))+SUMPRODUCT(($L$3:$L$10=CM14)*($GE$3:$GE$10))+'J02'!CY14 -> 62 | CZ14: 21 | DA14: -16 | DB14: =SUMPRODUCT(($C$3:$C$10=CM14)*($FH$3:$FH$10))+SUMPRODUCT(($L$3:$L$10=CM14)*($FI$3:$FI$10))+'J02'!DB14 -> 0 | DC14: =SUMPRODUCT(($C$3:$C$10=CM14)*($FJ$3:$FJ$10))+SUMPRODUCT(($L$3:$L$10=CM14)*($FK$3:$FK$10))+'J02'!DC14 -> 1 | DD14: 0 | DE14: =SUMPRODUCT(($C$3:$C$10=CM14)*($GF$3:$GF$10))+SUMPRODUCT(($L$3:$L$10=CM14)*($GG$3:$GG$10))+'J02'!DE14 -> 4 | DF14: =SUMPRODUCT(($C$3:$C$10=CM14)*($GH$3:$GH$10))+SUMPRODUCT(($L$3:$L$10=CM14)*($GI$3:$GI$10))+'J02'!DF14 -> 7 | DG14: -3 | DH14: =IF(Equipes!$C$13="","",Equipes!$C$13) -> Suresnes | DI14: 11 | DJ14: ='J02'!DI14-DI14 -> 0 | DK14: =IF(DI14>'J02'!DI14,'J02'!$DK$20,IF(DI14='J02'!DI14,'J02'!$DJ$20,IF(DI14<'J02'!DI14,'J02'!$DI$20))) -> u | DL14: 13 | DM14: =SUMPRODUCT(($C$3:$C$10=DH14)*($FL$3:$FL$10))+'J02'!DM14 -> 0 | DN14: =SUMPRODUCT(($C$3:$C$10=DH14)*($FR$3:$FR$10))+'J02'!DN14 -> 0 | DO14: =SUMPRODUCT(($C$3:$C$10=DH14)*($FV$3:$FV$10))+'J02'!DO14 -> 0 | DP14: =SUMPRODUCT(($C$3:$C$10=DH14)*($FX$3:$FX$10))+'J02'!DP14 -> 0 | DQ14: =SUMPRODUCT(($C$3:$C$10=DH14)*($FZ$3:$FZ$10))+'J02'!DQ14 -> 0 | DR14: =SUMPRODUCT(($C$3:$C$10=DH14)*($GB$3:$GB$10))+'J02'!DR14 -> 0 | DS14: 0 | DT14: =SUMPRODUCT(($C$3:$C$10=DH14)*($GD$3:$GD$10))+'J02'!DT14 -> 0 | DU14: 0 | DV14: 0 | DW14: =SUMPRODUCT(($C$3:$C$10=DH14)*($FH$3:$FH$10))+'J02'!DW14 -> 0 | DX14: =SUMPRODUCT(($C$3:$C$10=DH14)*($FJ$3:$FJ$10))+'J02'!DX14 -> 1 | DY14: 0 | DZ14: =SUMPRODUCT(($C$3:$C$10=DH14)*($GF$3:$GF$10))+'J02'!DZ14 -> 0 | EA14: =SUMPRODUCT(($C$3:$C$10=DH14)*($GH$3:$GH$10))+'J02'!EA14 -> 0 | EB14: 0 | EC14: =IF(Equipes!$C$13="","",Equipes!$C$13) -> Suresnes | ED14: 2 | EE14: ='J02'!ED14-ED14 -> 5 | EF14: =IF(ED14>'J02'!ED14,'J02'!$EF$20,IF(ED14='J02'!ED14,'J02'!$EE$20,IF(ED14<'J02'!ED14,'J02'!$ED$20))) -> p | EG14: 2 | EH14: =SUMPRODUCT(($L$3:$L$10=EC14)*($FM$3:$FM$10))+'J02'!EH14+ET14 -> 5 | EI14: =SUMPRODUCT(($L$3:$L$10=EC14)*($FS$3:$FS$10))+'J02'!EI14 -> 3 | EJ14: =SUMPRODUCT(($L$3:$L$10=EC14)*($FW$3:$FW$10))+'J02'!EJ14 -> 1 | EK14: =SUMPRODUCT(($L$3:$L$10=EC14)*($FY$3:$FY$10))+'J02'!EK14 -> 0 | EL14: =SUMPRODUCT(($L$3:$L$10=EC14)*($GA$3:$GA$10))+'J02'!EL14 -> 2 | EM14: =SUMPRODUCT(($L$3:$L$10=EC14)*($GC$3:$GC$10))+'J02'!EM14 -> 46 | EN14: 15 | EO14: =SUMPRODUCT(($L$3:$L$10=EC14)*($GE$3:$GE$10))+'J02'!EO14 -> 62 | EP14: 21 | EQ14: -16 | ER14: =SUMPRODUCT(($L$3:$L$10=EC14)*($FI$3:$FI$10))+'J02'!ER14 -> 0 | ES14: =SUMPRODUCT(($L$3:$L$10=EC14)*($FK$3:$FK$10))+'J02'!ES14 -> 1 | ET14: 0 | EU14: =SUMPRODUCT(($L$3:$L$10=EC14)*($GG$3:$GG$10))+'J02'!EU14 -> 4 | EV14: =SUMPRODUCT(($L$3:$L$10=EC14)*($GI$3:$GI$10))+'J02'!EV14 -> 7 | EW14: -3 | EX14: 4999.8446 | EY14: =EX14+0.00000003 -> 4999.8446 | EZ14: 0 | FA14: =EZ14+0.00000003 -> 3e-08 | FB14: 4999.8446 | FC14: =FB14+0.00000003 -> 4999.8446 | GJ14: Chambéry | GK14: 2999.8841 | GL14: =IF(GK14="","",_xlfn.RANK.EQ(GK14,GK3:GK18)) -> 12 | GM14: Suresnes | GN14: Nice | GO14: 0 | GP14: =IF(GO14="","",_xlfn.RANK.EQ(GO14,GO3:GO18)) -> 11 | GQ14: Suresnes | GR14: Bourg-en-Bresse | GS14: -0.1084 | GT14: =IF(GS14="","",_xlfn.RANK.EQ(GS14,GS3:GS18)) -> 12 | GU14: Suresnes
S15: 13 | T15: Bourg-en-Bresse | V15: 2 | W15: -1 | X15: q | Y15: 3 | Z15: 0 | AA15: 0 | AB15: 3 | AC15: 43 | AD15: 14 | AE15: 61 | AF15: 20 | AG15: -18 | AH15: 2 | AI15: 0 | AJ15: 2 | AK15: 0 | AL15: 4 | AM15: 4 | AN15: 0 | AO15: 11 | AP15: Suresnes | AR15: 0 | AS15: 0 | AT15: u | AU15: 0 | AV15: 0 | AW15: 0 | AX15: 0 | AY15: 0 | AZ15: 0 | BA15: 0 | BB15: 0 | BC15: 0 | BD15: 1 | BE15: 0 | BF15: 1 | BG15: 0 | BH15: 0 | BI15: 0 | BJ15: 0 | BK15: 13 | BL15: Albi | BN15: 0 | BO15: -1 | BP15: q | BQ15: 1 | BR15: 0 | BS15: 0 | BT15: 1 | BU15: 6 | BV15: 6 | BW15: 17 | BX15: 17 | BY15: -11 | BZ15: 0 | CA15: 0 | CB15: 0 | CC15: 0 | CD15: 0 | CE15: 1 | CF15: -1 | CG15: 13 | CH15: 11 | CI15: 13 | CJ15: 9 | CK15: 13 | CL15: 9 | CM15: =IF(Equipes!$C$14="","",Equipes!$C$14) -> Tarbes | CN15: 11 | CO15: ='J02'!CN15-CN15 -> -3 | CP15: =IF(CN15>'J02'!CN15,'J02'!$CP$20,IF(CN15='J02'!CN15,'J02'!$CO$20,IF(CN15<'J02'!CN15,'J02'!$CN$20))) -> q | CQ15: 11 | CR15: =SUMPRODUCT(($C$3:$C$10=CM15)*($FN$3:$FN$10))+SUMPRODUCT(($L$3:$L$10=CM15)*($FO$3:$FO$10))+'J02'!CR15+DD15+DY15 -> 5 | CS15: =SUMPRODUCT(($C$3:$C$10=CM15)*($FR$3:$FR$10))+SUMPRODUCT(($L$3:$L$10=CM15)*($FS$3:$FS$10))+'J02'!CS15 -> 3 | CT15: =SUMPRODUCT(($C$3:$C$10=CM15)*($FV$3:$FV$10))+SUMPRODUCT(($L$3:$L$10=CM15)*($FW$3:$FW$10))+'J02'!CT15 -> 1 | CU15: =SUMPRODUCT(($C$3:$C$10=CM15)*($FX$3:$FX$10))+SUMPRODUCT(($L$3:$L$10=CM15)*($FY$3:$FY$10))+'J02'!CU15 -> 0 | CV15: =SUMPRODUCT(($C$3:$C$10=CM15)*($FZ$3:$FZ$10))+SUMPRODUCT(($L$3:$L$10=CM15)*($GA$3:$GA$10))+'J02'!CV15 -> 2 | CW15: =SUMPRODUCT(($C$3:$C$10=CM15)*($GB$3:$GB$10))+SUMPRODUCT(($L$3:$L$10=CM15)*($GC$3:$GC$10))+'J02'!CW15 -> 39 | CX15: 13 | CY15: =SUMPRODUCT(($C$3:$C$10=CM15)*($GD$3:$GD$10))+SUMPRODUCT(($L$3:$L$10=CM15)*($GE$3:$GE$10))+'J02'!CY15 -> 78 | CZ15: 26 | DA15: -39 | DB15: =SUMPRODUCT(($C$3:$C$10=CM15)*($FH$3:$FH$10))+SUMPRODUCT(($L$3:$L$10=CM15)*($FI$3:$FI$10))+'J02'!DB15 -> 0 | DC15: =SUMPRODUCT(($C$3:$C$10=CM15)*($FJ$3:$FJ$10))+SUMPRODUCT(($L$3:$L$10=CM15)*($FK$3:$FK$10))+'J02'!DC15 -> 1 | DD15: 0 | DE15: =SUMPRODUCT(($C$3:$C$10=CM15)*($GF$3:$GF$10))+SUMPRODUCT(($L$3:$L$10=CM15)*($GG$3:$GG$10))+'J02'!DE15 -> 3 | DF15: =SUMPRODUCT(($C$3:$C$10=CM15)*($GH$3:$GH$10))+SUMPRODUCT(($L$3:$L$10=CM15)*($GI$3:$GI$10))+'J02'!DF15 -> 9 | DG15: -6 | DH15: =IF(Equipes!$C$14="","",Equipes!$C$14) -> Tarbes | DI15: 9 | DJ15: ='J02'!DI15-DI15 -> 0 | DK15: =IF(DI15>'J02'!DI15,'J02'!$DK$20,IF(DI15='J02'!DI15,'J02'!$DJ$20,IF(DI15<'J02'!DI15,'J02'!$DI$20))) -> u | DL15: 9 | DM15: =SUMPRODUCT(($C$3:$C$10=DH15)*($FL$3:$FL$10))+'J02'!DM15 -> 4 | DN15: =SUMPRODUCT(($C$3:$C$10=DH15)*($FR$3:$FR$10))+'J02'!DN15 -> 2 | DO15: =SUMPRODUCT(($C$3:$C$10=DH15)*($FV$3:$FV$10))+'J02'!DO15 -> 1 | DP15: =SUMPRODUCT(($C$3:$C$10=DH15)*($FX$3:$FX$10))+'J02'!DP15 -> 0 | DQ15: =SUMPRODUCT(($C$3:$C$10=DH15)*($FZ$3:$FZ$10))+'J02'!DQ15 -> 1 | DR15: =SUMPRODUCT(($C$3:$C$10=DH15)*($GB$3:$GB$10))+'J02'!DR15 -> 26 | DS15: 13 | DT15: =SUMPRODUCT(($C$3:$C$10=DH15)*($GD$3:$GD$10))+'J02'!DT15 -> 58 | DU15: 29 | DV15: -32 | DW15: =SUMPRODUCT(($C$3:$C$10=DH15)*($FH$3:$FH$10))+'J02'!DW15 -> 0 | DX15: =SUMPRODUCT(($C$3:$C$10=DH15)*($FJ$3:$FJ$10))+'J02'!DX15 -> 1 | DY15: 0 | DZ15: =SUMPRODUCT(($C$3:$C$10=DH15)*($GF$3:$GF$10))+'J02'!DZ15 -> 2 | EA15: =SUMPRODUCT(($C$3:$C$10=DH15)*($GH$3:$GH$10))+'J02'!EA15 -> 7 | EB15: -5 | EC15: =IF(Equipes!$C$14="","",Equipes!$C$14) -> Tarbes | ED15: 9 | EE15: ='J02'!ED15-ED15 -> -3 | EF15: =IF(ED15>'J02'!ED15,'J02'!$EF$20,IF(ED15='J02'!ED15,'J02'!$EE$20,IF(ED15<'J02'!ED15,'J02'!$ED$20))) -> q | EG15: 9 | EH15: =SUMPRODUCT(($L$3:$L$10=EC15)*($FM$3:$FM$10))+'J02'!EH15+ET15 -> 1 | EI15: =SUMPRODUCT(($L$3:$L$10=EC15)*($FS$3:$FS$10))+'J02'!EI15 -> 1 | EJ15: =SUMPRODUCT(($L$3:$L$10=EC15)*($FW$3:$FW$10))+'J02'!EJ15 -> 0 | EK15: =SUMPRODUCT(($L$3:$L$10=EC15)*($FY$3:$FY$10))+'J02'!EK15 -> 0 | EL15: =SUMPRODUCT(($L$3:$L$10=EC15)*($GA$3:$GA$10))+'J02'!EL15 -> 1 | EM15: =SUMPRODUCT(($L$3:$L$10=EC15)*($GC$3:$GC$10))+'J02'!EM15 -> 13 | EN15: 13 | EO15: =SUMPRODUCT(($L$3:$L$10=EC15)*($GE$3:$GE$10))+'J02'!EO15 -> 20 | EP15: 20 | EQ15: -7 | ER15: =SUMPRODUCT(($L$3:$L$10=EC15)*($FI$3:$FI$10))+'J02'!ER15 -> 0 | ES15: =SUMPRODUCT(($L$3:$L$10=EC15)*($FK$3:$FK$10))+'J02'!ES15 -> 1 | ET15: 0 | EU15: =SUMPRODUCT(($L$3:$L$10=EC15)*($GG$3:$GG$10))+'J02'!EU15 -> 1 | EV15: =SUMPRODUCT(($L$3:$L$10=EC15)*($GI$3:$GI$10))+'J02'!EV15 -> 2 | EW15: -1 | EX15: 4999.6139 | EY15: =EX15+0.00000002 -> 4999.6139 | EZ15: 3999.6826 | FA15: =EZ15+0.00000002 -> 3999.6826 | FB15: 999.9313 | FC15: =FB15+0.00000002 -> 999.9313 | GJ15: Bourg-en-Bresse | GK15: 1999.8243 | GL15: =IF(GK15="","",_xlfn.RANK.EQ(GK15,GK3:GK18)) -> 13 | GM15: Tarbes | GN15: Suresnes | GO15: 0 | GP15: =IF(GO15="","",_xlfn.RANK.EQ(GO15,GO3:GO18)) -> 11 | GQ15: Tarbes | GR15: Albi | GS15: -0.1094 | GT15: =IF(GS15="","",_xlfn.RANK.EQ(GS15,GS3:GS18)) -> 13 | GU15: Tarbes
M16: =IF(Equipes!$M$20="","",Equipes!$M$20) -> Date du début du Championnat : vendredi 25 août 2023 | S16: 14 | T16: Vienne | V16: 0 | W16: 0 | X16: u | Y16: 3 | Z16: 0 | AA16: 0 | AB16: 3 | AC16: 26 | AD16: 9 | AE16: 99 | AF16: 33 | AG16: -73 | AH16: 0 | AI16: 0 | AJ16: 0 | AK16: 0 | AL16: 2 | AM16: 12 | AN16: -10 | AO16: 14 | AP16: Vienne | AR16: 0 | AS16: 0 | AT16: u | AU16: 2 | AV16: 0 | AW16: 0 | AX16: 2 | AY16: 10 | AZ16: 5 | BA16: 46 | BB16: 23 | BC16: -36 | BD16: 0 | BE16: 0 | BF16: 0 | BG16: 0 | BH16: 1 | BI16: 5 | BJ16: -4 | BK16: 14 | BL16: Vienne | BN16: 0 | BO16: 0 | BP16: u | BQ16: 1 | BR16: 0 | BS16: 0 | BT16: 1 | BU16: 16 | BV16: 16 | BW16: 53 | BX16: 53 | BY16: -37 | BZ16: 0 | CA16: 0 | CB16: 0 | CC16: 0 | CD16: 1 | CE16: 7 | CF16: -6 | CG16: 14 | CH16: 14 | CI16: 14 | CJ16: 14 | CK16: 14 | CL16: 14 | CM16: =IF(Equipes!$C$15="","",Equipes!$C$15) -> Vienne | CN16: 14 | CO16: ='J02'!CN16-CN16 -> 0 | CP16: =IF(CN16>'J02'!CN16,'J02'!$CP$20,IF(CN16='J02'!CN16,'J02'!$CO$20,IF(CN16<'J02'!CN16,'J02'!$CN$20))) -> u | CQ16: 14 | CR16: =SUMPRODUCT(($C$3:$C$10=CM16)*($FN$3:$FN$10))+SUMPRODUCT(($L$3:$L$10=CM16)*($FO$3:$FO$10))+'J02'!CR16+DD16+DY16 -> 0 | CS16: =SUMPRODUCT(($C$3:$C$10=CM16)*($FR$3:$FR$10))+SUMPRODUCT(($L$3:$L$10=CM16)*($FS$3:$FS$10))+'J02'!CS16 -> 3 | CT16: =SUMPRODUCT(($C$3:$C$10=CM16)*($FV$3:$FV$10))+SUMPRODUCT(($L$3:$L$10=CM16)*($FW$3:$FW$10))+'J02'!CT16 -> 0 | CU16: =SUMPRODUCT(($C$3:$C$10=CM16)*($FX$3:$FX$10))+SUMPRODUCT(($L$3:$L$10=CM16)*($FY$3:$FY$10))+'J02'!CU16 -> 0 | CV16: =SUMPRODUCT(($C$3:$C$10=CM16)*($FZ$3:$FZ$10))+SUMPRODUCT(($L$3:$L$10=CM16)*($GA$3:$GA$10))+'J02'!CV16 -> 3 | CW16: =SUMPRODUCT(($C$3:$C$10=CM16)*($GB$3:$GB$10))+SUMPRODUCT(($L$3:$L$10=CM16)*($GC$3:$GC$10))+'J02'!CW16 -> 26 | CX16: 9 | CY16: =SUMPRODUCT(($C$3:$C$10=CM16)*($GD$3:$GD$10))+SUMPRODUCT(($L$3:$L$10=CM16)*($GE$3:$GE$10))+'J02'!CY16 -> 99 | CZ16: 33 | DA16: -73 | DB16: =SUMPRODUCT(($C$3:$C$10=CM16)*($FH$3:$FH$10))+SUMPRODUCT(($L$3:$L$10=CM16)*($FI$3:$FI$10))+'J02'!DB16 -> 0 | DC16: =SUMPRODUCT(($C$3:$C$10=CM16)*($FJ$3:$FJ$10))+SUMPRODUCT(($L$3:$L$10=CM16)*($FK$3:$FK$10))+'J02'!DC16 -> 0 | DD16: 0 | DE16: =SUMPRODUCT(($C$3:$C$10=CM16)*($GF$3:$GF$10))+SUMPRODUCT(($L$3:$L$10=CM16)*($GG$3:$GG$10))+'J02'!DE16 -> 2 | DF16: =SUMPRODUCT(($C$3:$C$10=CM16)*($GH$3:$GH$10))+SUMPRODUCT(($L$3:$L$10=CM16)*($GI$3:$GI$10))+'J02'!DF16 -> 12 | DG16: -10 | DH16: =IF(Equipes!$C$15="","",Equipes!$C$15) -> Vienne | DI16: 14 | DJ16: ='J02'!DI16-DI16 -> 0 | DK16: =IF(DI16>'J02'!DI16,'J02'!$DK$20,IF(DI16='J02'!DI16,'J02'!$DJ$20,IF(DI16<'J02'!DI16,'J02'!$DI$20))) -> u | DL16: 14 | DM16: =SUMPRODUCT(($C$3:$C$10=DH16)*($FL$3:$FL$10))+'J02'!DM16 -> 0 | DN16: =SUMPRODUCT(($C$3:$C$10=DH16)*($FR$3:$FR$10))+'J02'!DN16 -> 2 | DO16: =SUMPRODUCT(($C$3:$C$10=DH16)*($FV$3:$FV$10))+'J02'!DO16 -> 0 | DP16: =SUMPRODUCT(($C$3:$C$10=DH16)*($FX$3:$FX$10))+'J02'!DP16 -> 0 | DQ16: =SUMPRODUCT(($C$3:$C$10=DH16)*($FZ$3:$FZ$10))+'J02'!DQ16 -> 2 | DR16: =SUMPRODUCT(($C$3:$C$10=DH16)*($GB$3:$GB$10))+'J02'!DR16 -> 10 | DS16: 5 | DT16: =SUMPRODUCT(($C$3:$C$10=DH16)*($GD$3:$GD$10))+'J02'!DT16 -> 46 | DU16: 23 | DV16: -36 | DW16: =SUMPRODUCT(($C$3:$C$10=DH16)*($FH$3:$FH$10))+'J02'!DW16 -> 0 | DX16: =SUMPRODUCT(($C$3:$C$10=DH16)*($FJ$3:$FJ$10))+'J02'!DX16 -> 0 | DY16: 0 | DZ16: =SUMPRODUCT(($C$3:$C$10=DH16)*($GF$3:$GF$10))+'J02'!DZ16 -> 1 | EA16: =SUMPRODUCT(($C$3:$C$10=DH16)*($GH$3:$GH$10))+'J02'!EA16 -> 5 | EB16: -4 | EC16: =IF(Equipes!$C$15="","",Equipes!$C$15) -> Vienne | ED16: 14 | EE16: ='J02'!ED16-ED16 -> 0 | EF16: =IF(ED16>'J02'!ED16,'J02'!$EF$20,IF(ED16='J02'!ED16,'J02'!$EE$20,IF(ED16<'J02'!ED16,'J02'!$ED$20))) -> u | EG16: 14 | EH16: =SUMPRODUCT(($L$3:$L$10=EC16)*($FM$3:$FM$10))+'J02'!EH16+ET16 -> 0 | EI16: =SUMPRODUCT(($L$3:$L$10=EC16)*($FS$3:$FS$10))+'J02'!EI16 -> 1 | EJ16: =SUMPRODUCT(($L$3:$L$10=EC16)*($FW$3:$FW$10))+'J02'!EJ16 -> 0 | EK16: =SUMPRODUCT(($L$3:$L$10=EC16)*($FY$3:$FY$10))+'J02'!EK16 -> 0 | EL16: =SUMPRODUCT(($L$3:$L$10=EC16)*($GA$3:$GA$10))+'J02'!EL16 -> 1 | EM16: =SUMPRODUCT(($L$3:$L$10=EC16)*($GC$3:$GC$10))+'J02'!EM16 -> 16 | EN16: 16 | EO16: =SUMPRODUCT(($L$3:$L$10=EC16)*($GE$3:$GE$10))+'J02'!EO16 -> 53 | EP16: 53 | EQ16: -37 | ER16: =SUMPRODUCT(($L$3:$L$10=EC16)*($FI$3:$FI$10))+'J02'!ER16 -> 0 | ES16: =SUMPRODUCT(($L$3:$L$10=EC16)*($FK$3:$FK$10))+'J02'!ES16 -> 0 | ET16: 0 | EU16: =SUMPRODUCT(($L$3:$L$10=EC16)*($GG$3:$GG$10))+'J02'!EU16 -> 1 | EV16: =SUMPRODUCT(($L$3:$L$10=EC16)*($GI$3:$GI$10))+'J02'!EV16 -> 7 | EW16: -6 | EX16: -0.7274 | EY16: =EX16+0.00000001 -> -0.72739999 | EZ16: -0.359 | FA16: =EZ16+0.00000001 -> -0.35899999 | FB16: -0.3684 | FC16: =FB16+0.00000001 -> -0.36839999 | GJ16: Vienne | GK16: -0.7274 | GL16: =IF(GK16="","",_xlfn.RANK.EQ(GK16,GK3:GK18)) -> 14 | GM16: Vienne | GN16: Vienne | GO16: -0.359 | GP16: =IF(GO16="","",_xlfn.RANK.EQ(GO16,GO3:GO18)) -> 14 | GQ16: Vienne | GR16: Vienne | GS16: -0.3684 | GT16: =IF(GS16="","",_xlfn.RANK.EQ(GS16,GS3:GS18)) -> 14 | GU16: Vienne
M18: =IF(Equipes!$M$22="","",Equipes!$M$22) -> Date de la fin du Championnat : samedi 27 avril 2024
Y20: =IF(SUM(Y3:Y16)<>0,SUM(Y3:Y16),"") -> 42 | CN20: p | CO20: u | CP20: q | DI20: p | DJ20: u | DK20: q | ED20: p | EE20: u | EF20: q
CN21: p | CO21: u | CP21: q | DI21: p | DJ21: u | DK21: q | ED21: p | EE21: u | EF21: q

Sheet J04
A1: =IF(Accueil!$H$2="","",IF(Accueil!$H$2="Choix du Championnat de Rugby","",IF(Accueil!$B$2="","",IF(Accueil!$D$2="","",IF(Accueil!$D$2="Choix de la saison","",_xlfn.CONCAT(Accueil!$H$2," / ",Accueil!$B$2," ",Accueil!$D$2)))))) -> Championnat de France de Rugby à 15 - Nationale / Saison du Championnat : 2023 - 2024 | Q1: ='J03'!Q1+1 -> 4 | S1: CLASSEMENT GENERAL | AO1: CLASSEMENT A DOMICILE | BK1: CLASSEMENT A L'EXTERIEUR | CG1: =S1 -> CLASSEMENT GENERAL | CI1: =AO1 -> CLASSEMENT A DOMICILE | CK1: =BK1 -> CLASSEMENT A L'EXTERIEUR | CM1: =S1 -> CLASSEMENT GENERAL | DH1: =AO1 -> CLASSEMENT A DOMICILE | EC1: =BK1 -> CLASSEMENT A L'EXTERIEUR | EX1: =S1 -> CLASSEMENT GENERAL | EZ1: =AO1 -> CLASSEMENT A DOMICILE | FB1: =BK1 -> CLASSEMENT A L'EXTERIEUR | FD1: Dom. | FE1: Ext. | FF1: Dom. | FG1: Ext. | FH1: Dom. | FI1: Ext. | FJ1: Dom. | FK1: Ext. | FL1: Dom. | FM1: Ext. | FN1: Dom. | FO1: Ext. | FP1: Dom. | FQ1: Ext. | FR1: Dom. | FS1: Ext. | FT1: Dom. | FU1: Ext. | FV1: Dom. | FW1: Ext. | FX1: Dom. | FY1: Ext. | FZ1: Dom. | GA1: Ext. | GB1: Dom. | GC1: Ext. | GD1: Dom. | GE1: Ext. | GF1: Dom. | GG1: Ext. | GH1: Dom. | GI1: Ext. | GJ1: =S1 -> CLASSEMENT GENERAL | GN1: =AO1 -> CLASSEMENT A DOMICILE | GR1: =BK1 -> CLASSEMENT A L'EXTERIEUR
A2: Points de pénalités | B2: Equipes exclues, forfaits, matchs gagnés ou perdus sur tapis vert | C2: Equipes | D2: Points | E2: Bonus défensif Bd | F2: Essais | G2: Bonus offensif Bo | H2: Points | I2: Bonus défensif Bd | J2: Essais | K2: Bonus offensif Bo | L2: Equipes | M2: Equipes exclues, forfaits, matchs gagnés ou perdus sur tapis vert | N2: Points de pénalités | O2: Dates | P2: Horaires | Q2: Matchs à rejouer, annulés, arrêtés, avec réserves, reportés ou reprogrammés | S2: Place | T2: Equipes | U2: Logo | V2: Points | W2: Evolution | Y2: Joués | Z2: Gagnés | AA2: Nuls | AB2: Perdus | AC2: Points marqués | AD2: Moyenne par match | AE2: Points encaissés | AF2: Moyenne par match | AG2: +/- | AH2: Tous les bonus | AI2: Bonus offensif | AJ2: Bonus défensif | AK2: Bonus fédération | AL2: Essais marqués | AM2: Essais encaissés | AN2: +/- | AO2: Place | AP2: Equipes | AQ2: Logo | AR2: Points | AS2: Evolution | AU2: Joués | AV2: Gagnés | AW2: Nuls | AX2: Perdus | AY2: Points marqués | AZ2: Moyenne par match | BA2: Points encaissés | BB2: Moyenne par match | BC2: +/- | BD2: Tous les bonus | BE2: Bonus offensif | BF2: Bonus défensif | BG2: Bonus fédération | BH2: Essais marqués | BI2: Essais encaissés | BJ2: +/- | BK2: Place | BL2: Equipes | BM2: Logo | BN2: Points | BO2: Evolution | BQ2: Joués | BR2: Gagnés | BS2: Nuls | BT2: Perdus | BU2: Points marqués | BV2: Moyenne par match | BW2: Points encaissés | BX2: Moyenne par match | BY2: +/- | BZ2: Tous les bonus | CA2: Bonus offensif | CB2: Bonus défensif | CC2: Bonus fédération | CD2: Essais marqués | CE2: Essais encaissés | CF2: +/- | CG2: Rang | CH2: Place | CI2: Rang | CJ2: Place | CK2: Rang | CL2: Place | CM2: Equipes | CN2: Rang | CO2: Evolution | CQ2: Place | CR2: Points | CS2: Joués | CT2: Gagnés | CU2: Nuls | CV2: Perdus | CW2: Points marqués | CX2: Moyenne par match | CY2: Points encaissés | CZ2: Moyenne par match | DA2: +/- | DB2: Bonus offensif | DC2: Bonus défensif | DD2: Bonus fédération | DE2: Essais marqués | DF2: Essais encaissés | DG2: +/- | DH2: Equipes | DI2: Rang | DJ2: Evolution | DL2: Place | DM2: Points | DN2: Joués | DO2: Gagnés | DP2: Nuls | DQ2: Perdus | DR2: Points marqués | DS2: Moyenne par match | DT2: Points encaissés | DU2: Moyenne par match | DV2: Différence | DW2: Bonus offensif | DX2: Bonus défensif | DY2: Bonus fédération | DZ2: Essais marqués | EA2: Essais encaissés | EB2: Différence | EC2: Equipes | ED2: Rang | EE2: Evolution | EG2: Place | EH2: Points | EI2: Joués | EJ2: Gagnés | EK2: Nuls | EL2: Perdus | EM2: Points marqués | EN2: Moyenne par match | EO2: Points encaissés | EP2: Moyenne par match | EQ2: +/- | ER2: Bonus offensif | ES2: Bonus défensif | ET2: Bonus fédération | EU2: Essais marqués | EV2: Essais encaissés | EW2: +/- | EX2: Rang | EY2: Place | EZ2: Rang | FA2: Place | FB2: Rang | FC2: Place | FD2: Points de pénalités | FE2: Points de pénalités | FF2: Pts | FG2: Pts | FH2: Bo | FI2: Bo | FJ2: Bd | FK2: Bd | FL2: T Pts | FM2: T Pts | FN2: T Pts | FO2: TPts | FP2: J annulé | FQ2: J annulé | FR2: J | FS2: J | FT2: Total J | FU2: Total J | FV2: G | FW2: G | FX2: N | FY2: N | FZ2: P | GA2: P | GB2: Pts + | GC2: Pts + | GD2: Pts - | GE2: Pts - | GF2: Essais + | GG2: Essais + | GH2: Essais - | GI2: Essais - | GJ2: Equipes | GK2: Rang | GL2: Place | GM2: Equipes | GN2: Equipes | GO2: Rang | GP2: Place | GQ2: Equipes | GR2: Equipes | GS2: Rang | GT2: Place | GU2: Equipes | GW2: ok | GX2: Dates et horaires des matchs prévus | GY2: Dates et horaires des matchs restant à jouer | GZ2: Date et horaire minimum à jouer | HA2: Date et horaire maximum à jouer | HC2: Total J | HD2: Total J
